Workbook

Sheet ProjectInformation
A1: CPN DATA
A2: INFORMATION ADDED BY DESIGNER
A3: Section Engineer | B3: WHKS & CO.
A4: Design Team
A6: County | B6: CLINTON
A7: Project Number | B7: STPN-136-1(73)--2J-23
A8: English or Metric | B8: ENGLISH
A9: Revised
A10: Bridge Block
A11: File No.

Sheet PrintSheets
B94: FILE NO. | I94: =IF(ProjectInformation!$B$11<>"",ProjectInformation!$B$11,"") ->  | P94: =UPPER(ProjectInformation!B8) -> ENGLISH | W94: DESIGN TEAM | AF94: =IF(AND(ProjectInformation!$B$3<>"",ProjectInformation!$B$4<>"",ProjectInformation!$B$5<>""),ProjectInformation!$B$3&"\"&ProjectInformation!$B$4&"\"&ProjectInformation!$B$5,IF(AND(ProjectInformation!$B$3<>"",ProjectInformation!$B$4<>""),ProjectInformation!$B$3&"\"&ProjectInformation!$B$4,IF(ProjectInformation!$B$3<>"",ProjectInformation!$B$3,""))) -> WHKS & CO. | BN94: =IF(ProjectInformation!$B$6<>"",ProjectInformation!$B$6,"") -> CLINTON | CX94: COUNTY | DD94: PROJECT NUMBER | DP94: =IF(ProjectInformation!$B$7<>"",ProjectInformation!$B$7,"") -> STPN-136-1(73)--2J-23 | ET94: SHEET NUMBER | FD94: RC.1 | FJ94: =IF(FP94<>"","REVISED","") ->  | FP94: =IF(ProjectInformation!$B$9<>"",ProjectInformation!$B$9,"") -> 
B95: 11/4/2019 11:55:07 AM dwherry K:\7805\SA26 701BT Clinton Culverts\Design\DE Sheets\2313601013rc01.xlsm
B189: FILE NO. | I189: =IF(ProjectInformation!$B$11<>"",ProjectInformation!$B$11,"") ->  | P189: =UPPER(ProjectInformation!B8) -> ENGLISH | W189: DESIGN TEAM | AF189: =IF(AND(ProjectInformation!$B$3<>"",ProjectInformation!$B$4<>"",ProjectInformation!$B$5<>""),ProjectInformation!$B$3&"\"&ProjectInformation!$B$4&"\"&ProjectInformation!$B$5,IF(AND(ProjectInformation!$B$3<>"",ProjectInformation!$B$4<>""),ProjectInformation!$B$3&"\"&ProjectInformation!$B$4,IF(ProjectInformation!$B$3<>"",ProjectInformation!$B$3,""))) -> WHKS & CO. | BN189: =IF(ProjectInformation!$B$6<>"",ProjectInformation!$B$6,"") -> CLINTON | CX189: COUNTY | DD189: PROJECT NUMBER | DP189: =IF(ProjectInformation!$B$7<>"",ProjectInformation!$B$7,"") -> STPN-136-1(73)--2J-23 | ET189: SHEET NUMBER | FD189: RC.2 | FJ189: =IF(FP189<>"","REVISED","") ->  | FP189: =IF(ProjectInformation!$B$9<>"",ProjectInformation!$B$9,"") -> 
B190: 11/4/2019 11:55:07 AM dwherry K:\7805\SA26 701BT Clinton Culverts\Design\DE Sheets\2313601013rc01.xlsm
B284: FILE NO. | I284: =IF(ProjectInformation!$B$11<>"",ProjectInformation!$B$11,"") ->  | P284: =UPPER(ProjectInformation!B8) -> ENGLISH | W284: DESIGN TEAM | AF284: =IF(AND(ProjectInformation!$B$3<>"",ProjectInformation!$B$4<>"",ProjectInformation!$B$5<>""),ProjectInformation!$B$3&"\"&ProjectInformation!$B$4&"\"&ProjectInformation!$B$5,IF(AND(ProjectInformation!$B$3<>"",ProjectInformation!$B$4<>""),ProjectInformation!$B$3&"\"&ProjectInformation!$B$4,IF(ProjectInformation!$B$3<>"",ProjectInformation!$B$3,""))) -> WHKS & CO. | BN284: =IF(ProjectInformation!$B$6<>"",ProjectInformation!$B$6,"") -> CLINTON | CX284: COUNTY | DD284: PROJECT NUMBER | DP284: =IF(ProjectInformation!$B$7<>"",ProjectInformation!$B$7,"") -> STPN-136-1(73)--2J-23 | ET284: SHEET NUMBER | FD284: RC.3 | FJ284: =IF(FP284<>"","REVISED","") ->  | FP284: =IF(ProjectInformation!$B$9<>"",ProjectInformation!$B$9,"") -> 
B285: 11/4/2019 11:55:08 AM dwherry K:\7805\SA26 701BT Clinton Culverts\Design\DE Sheets\2313601013rc01.xlsm
B379: FILE NO. | I379: =IF(ProjectInformation!$B$11<>"",ProjectInformation!$B$11,"") ->  | P379: =UPPER(ProjectInformation!B8) -> ENGLISH | W379: DESIGN TEAM | AF379: =IF(AND(ProjectInformation!$B$3<>"",ProjectInformation!$B$4<>"",ProjectInformation!$B$5<>""),ProjectInformation!$B$3&"\"&ProjectInformation!$B$4&"\"&ProjectInformation!$B$5,IF(AND(ProjectInformation!$B$3<>"",ProjectInformation!$B$4<>""),ProjectInformation!$B$3&"\"&ProjectInformation!$B$4,IF(ProjectInformation!$B$3<>"",ProjectInformation!$B$3,""))) -> WHKS & CO. | BN379: =IF(ProjectInformation!$B$6<>"",ProjectInformation!$B$6,"") -> CLINTON | CX379: COUNTY | DD379: PROJECT NUMBER | DP379: =IF(ProjectInformation!$B$7<>"",ProjectInformation!$B$7,"") -> STPN-136-1(73)--2J-23 | ET379: SHEET NUMBER | FD379: RC.4 | FJ379: =IF(FP379<>"","REVISED","") ->  | FP379: =IF(ProjectInformation!$B$9<>"",ProjectInformation!$B$9,"") -> 
B380: 11/4/2019 11:55:08 AM dwherry K:\7805\SA26 701BT Clinton Culverts\Design\DE Sheets\2313601013rc01.xlsm
B474: FILE NO. | I474: =IF(ProjectInformation!$B$11<>"",ProjectInformation!$B$11,"") ->  | P474: =UPPER(ProjectInformation!B8) -> ENGLISH | W474: DESIGN TEAM | AF474: =IF(AND(ProjectInformation!$B$3<>"",ProjectInformation!$B$4<>"",ProjectInformation!$B$5<>""),ProjectInformation!$B$3&"\"&ProjectInformation!$B$4&"\"&ProjectInformation!$B$5,IF(AND(ProjectInformation!$B$3<>"",ProjectInformation!$B$4<>""),ProjectInformation!$B$3&"\"&ProjectInformation!$B$4,IF(ProjectInformation!$B$3<>"",ProjectInformation!$B$3,""))) -> WHKS & CO. | BN474: =IF(ProjectInformation!$B$6<>"",ProjectInformation!$B$6,"") -> CLINTON | CX474: COUNTY | DD474: PROJECT NUMBER | DP474: =IF(ProjectInformation!$B$7<>"",ProjectInformation!$B$7,"") -> STPN-136-1(73)--2J-23 | ET474: SHEET NUMBER | FD474: RC.5 | FJ474: =IF(FP474<>"","REVISED","") ->  | FP474: =IF(ProjectInformation!$B$9<>"",ProjectInformation!$B$9,"") -> 
B475: 11/4/2019 11:55:08 AM dwherry K:\7805\SA26 701BT Clinton Culverts\Design\DE Sheets\2313601013rc01.xlsm

Sheet PrintSheetTemplate (hidden)
B94: FILE NO. | I94: =IF(ProjectInformation!$B$11<>"",ProjectInformation!$B$11,"") ->  | P94: =UPPER(ProjectInformation!$B$8) -> ENGLISH | W94: DESIGN TEAM | AF94: =IF(AND(ProjectInformation!$B$3<>"",ProjectInformation!$B$4<>"",ProjectInformation!$B$5<>""),ProjectInformation!$B$3&"\"&ProjectInformation!$B$4&"\"&ProjectInformation!$B$5,IF(AND(ProjectInformation!$B$3<>"",ProjectInformation!$B$4<>""),ProjectInformation!$B$3&"\"&ProjectInformation!$B$4,IF(ProjectInformation!$B$3<>"",ProjectInformation!$B$3,""))) -> WHKS & CO. | BN94: =IF(ProjectInformation!$B$6<>"",ProjectInformation!$B$6,"") -> CLINTON | CX94: COUNTY | DD94: PROJECT NUMBER | DP94: =IF(ProjectInformation!$B$7<>"",ProjectInformation!$B$7,"") -> STPN-136-1(73)--2J-23 | ET94: SHEET NUMBER | FJ94: =IF(FP94<>"","REVISED","") ->  | FP94: =IF(ProjectInformation!$B$9<>"",ProjectInformation!$B$9,"") -> 

Sheet Note1 (hidden)
A1: SEE V SHEETS FOR ADDITIONAL BID ITEMS AND QUANTITIES

Sheet BridgeBlock (hidden)
A1: 2
C3: Design No. | J3: =IF(#REF!<>"",#REF!,"") -> 
C4: File No. | I4: =IF(#REF!<>"",#REF!,"") -> 

Sheet DE100_17
A1: TabTitle | B1: =C16 -> TABULATION OF SILT FENCES
A2: Number of Tab Columns | B2: 5 | P2: Possible Contract Item
A3: DE Starter Row Number | B3: 23 | O3: 2602-0000020 | P3: SILT FENCE | Q3: =F15 -> 39869.41
A4: TabSheet Starter Row Number | B4: 9
A5: TabSheet Header Row Count | B5: 8
A6: Top Header Cell | B6: I15
A7: Bottom Header Cell | B7: M22
A8: DESheet Row Count | B8: 173
A9: Fixed Empty Rows | B9: 5
A10: Usable Empty Rows | B10: 0
A11: Total Rows Placed | B11: 178 | C11: xlRight(1) | D11: xlRight(1) | E11: xlLeft(1) | F11: xlRight(1) | G11: xlLeft(1) | I11: =C11 -> xlRight(1) | J11: xlRight(1) | K11: xlLeft(1) | L11: xlRight(1) | M11: xlLeft(1)
A12: Total Rows Needed | B12: =SUM(B8:B10) -> 178 | C12: #+00.00 | D12: #+00.00 | E12: General | F12: 0.0 | G12: General | I12: #+00.00 | J12: #+00.00 | K12: General | L12: 0.0 | M12: General
A13: Last Tab DE Starter Row | B13: 187 | C13: =CELL("width",C13) -> 16 | D13: =CELL("width",D13) -> 16 | E13: =CELL("width",E13) -> 6 | F13: =CELL("width",F13) -> 10 | G13: =CELL("width",G13) -> 26 | I13: =CELL("width",I13) -> 0 | J13: =CELL("width",J13) -> 0 | K13: =CELL("width",K13) -> 0 | L13: =CELL("width",L13) -> 0 | M13: =CELL("width",M13) -> 0
A14: Last Tab Tabsheet Starter Row | B14: 189 | C14: A | D14: B | E14: C | F14: D | G14: E | I14: =LOWER(C14) -> a | J14: =LOWER(D14) -> b | K14: =LOWER(E14) -> c | L14: =LOWER(F14) -> d | M14: =LOWER(G14) -> e
A15: Last Copy Starter Row | B15: 181 | E15: Totals: | F15: =SUBTOTAL(9,F23:F6000) -> 39869.41 | I15: 100-17
A16: Tab Loop Number | B16: 4 | C16: TABULATION OF SILT FENCES | I16: =B17 -> 2010-04-20
A17: Revision Date | B17: 2010-04-20 | I17: =C16 -> TABULATION OF SILT FENCES
A18: Tabulation Width | B18: 1 | C18: Refer to EC-201
A19: Horizontal Grid Lines | B19: Yes | C19: ="This Data Entry Sheet fills Tab "&I15&" effective "&TEXT(B17,"mm-dd-yy") -> This Data Entry Sheet fills Tab 100-17 effective 04-20-10 | I19: =C18 -> Refer to EC-201
C20: Location | F20: Length | G20: Remarks | I20: =C20 -> Location | L20: =F20 -> Length | M20: =G20 -> Remarks
C21: Begin Station | D21: End Station | E21: Side | I21: =C21 -> Begin Station | J21: =D21 -> End Station | K21: =E21 -> Side
F22: LF | L22: =F22 -> LF
C24: 7983.25 | D24: 8014.33 | E24: Rt | F24: 40.9
C25: 8013.44 | D25: 8117.19 | E25: Rt | F25: 124.3
C26: 8023.6 | D26: 8117.83 | E26: Rt | F26: 95.8
C28: 7979.68 | D28: 8003.23 | E28: Lt | F28: 98.7
C29: 7988.82 | D29: 8017.38 | E29: Lt | F29: 85.3
C30: 8012.66 | D30: 8088.98 | E30: Lt | F30: 78.3
C32: 9545.85 | D32: 9645.91 | E32: Rt | F32: 103.2
C33: 9652.18 | D33: 9741.48 | E33: Rt | F33: 91.9
C34: 9550 | D34: 9740.92 | E34: Rt | F34: 202.7
C35: 9621.22 | E35: Rt | F35: 60 | G35: (1)
C37: 9532.12 | D37: 9615.13 | E37: Lt | F37: 86
C38: 9621.4 | D38: 9714.16 | E38: Lt | F38: 96.6
C39: 9645.41 | E39: Lt | F39: 60 | G39: (1)
C41: 10778.27 | D41: 10873.75 | E41: Rt | F41: 98.2
C42: 10878.25 | D42: 10947.67 | E42: Rt | F42: 71.2
C43: 10785.31 | D43: 10966.39 | E43: Rt | F43: 197.3
C44: 10899.75 | E44: Rt | F44: 60 | G44: (1)
C46: 10785.3 | D46: 10873.75 | E46: Lt | F46: 91.8
C47: 10878.25 | D47: 10966.39 | E47: Lt | F47: 91.4
C48: 10899.75 | E48: Lt | F48: 60 | G48: (1)
C50: 38235.25 | D50: 38305.99 | E50: Rt | F50: 85.7
C51: 38310.2 | D51: 38388.45 | E51: Rt | F51: 95.4
C53: 38207.08 | D53: 38328.02 | E53: Lt | F53: 130.4
C54: 38332.26 | D54: 38484.71 | E54: Lt | F54: 162.3
C55: 38206.02 | D55: 38485.47 | E55: Lt | F55: 307.2
C57: 53868.15 | D57: 53969.06 | E57: Rt | F57: 115.2
C58: 53973.4 | D58: 54041.29 | E58: Rt | F58: 83.3
C59: 53991.99 | E59: Rt | F59: 60 | G59: (1)
C61: 53863.52 | D61: 53950.69 | E61: Lt | F61: 89.4
C62: 53955.19 | D62: 54011.53 | E62: Lt | F62: 62
C63: 53863.52 | D63: 54009.71 | E63: Lt | F63: 162.2
C64: 53977.94 | E64: Lt | F64: 60 | G64: (1)
C66: 55306.67 | D66: 55389.78 | E66: Rt | F66: 90.1
C67: 55394.17 | D67: 55474.07 | E67: Rt | F67: 85.8
C68: 55414.08 | E68: Rt | F68: 60 | G68: (1)
C70: 55274.04 | D70: 55381.21 | E70: Lt | F70: 111.5
C71: 55385.61 | D71: 55493.37 | E71: Lt | F71: 112.1
C72: 55275 | D72: 55367.79 | E72: Lt | F72: 101.4
C73: 55383.41 | D73: 55493.37 | E73: Lt | F73: 118.2
C74: 55406.52 | E74: Lt | F74: 60 | G74: (1)
C76: 56997.46 | D76: 57159.4 | E76: Rt | F76: 167.1
C77: 57165 | D77: 57311.04 | E77: Rt | F77: 151.7
C79: 57106.77 | D79: 57159.4 | E79: Lt | F79: 54
C80: 57165 | D80: 57216.55 | E80: Lt | F80: 52.8
C81: 57106.77 | D81: 57216.55 | E81: Lt | F81: 115.8
C83: 58062.16 | D83: 58102.67 | E83: Rt | F83: 42.7
C84: 58108.27 | D84: 58148.78 | E84: Rt | F84: 42.7
C85: 58062.16 | D85: 58148.78 | E85: Rt | F85: 90
C87: 65041.53 | D87: 65140.8 | E87: Rt | F87: 104.8
C88: 65145.2 | D88: 65241.34 | E88: Rt | F88: 102.8
C90: 65049.27 | D90: 65141.73 | E90: Lt | F90: 93.5
C91: 65144.28 | D91: 65238.48 | E91: Lt | F91: 95.2
C92: 65050 | D92: 65238.48 | E92: Lt | F92: 199.4
C94: 70461.29 | D94: 70467.21 | E94: Rt | F94: 53.2
C95: 70474.62 | D95: 70485.72 | E95: Rt | F95: 38.2
C96: 70474.62 | D96: 70572.87 | E96: Rt | F96: 102.5
C98: 74258.34 | D98: 74321.32 | E98: Rt | F98: 63.2
C99: 74258.34 | D99: 74319.2 | E99: Rt | F99: 62.7
C100: 74329.07 | D100: 74395.1 | E100: Rt | F100: 66.3
C102: 74222.28 | D102: 74312.44 | E102: Lt | F102: 94.6
C103: 74222.28 | D103: 74291.03 | E103: Lt | F103: 79.2
C104: 74309.93 | D104: 74426.49 | E104: Lt | F104: 128.1
C105: 74320.4 | D105: 74426.49 | E105: Lt | F105: 110.4
C107: 76523.87 | D107: 76605.59 | E107: Rt | F107: 89.7
C108: 76612.4 | D108: 76692.45 | E108: Rt | F108: 88.1
C109: 76633.7 | E109: Rt | F109: 60 | G109: (1)
C111: 76532.86 | D111: 76605.7 | E111: Lt | F111: 76.9
C112: 76612.29 | D112: 76693.99 | E112: Lt | F112: 86.2
C113: 76532.87 | D113: 76694 | E113: Lt | F113: 198.6
C114: 76633.01 | E114: Lt | F114: 60 | G114: (1)
C116: 78735.82 | D116: 78841.65 | E116: Rt | F116: 109.1
C117: 78846.49 | D117: 78948.32 | E117: Rt | F117: 104.6
C118: 78816.42 | E118: Rt | F118: 60 | G118: (1)
C120: 78720.48 | D120: 78797.5 | E120: Lt | F120: 79.4
C121: 78720.48 | D121: 78784.98 | E121: Lt | F121: 89.5
C122: 78789.58 | D122: 78802.35 | E122: Lt | F122: 49.1
C123: 78802.35 | D123: 78846.94 | E123: Lt | F123: 47.6
C124: 78775.92 | E124: Lt | F124: 60 | G124: (1)
C126: 80017.33 | D126: 80101.92 | E126: Rt | F126: 87.2
C127: 80107.53 | D127: 80186.58 | E127: Rt | F127: 81.7
C129: 80021.29 | D129: 80056.46 | E129: Lt | F129: 38.8
C130: 80021.29 | D130: 80005.13 | E130: Lt | F130: 89.4
C131: 80013.42 | D131: 80143.03 | E131: Lt | F131: 158.2
C132: 80062.07 | D132: 80143.04 | E132: Lt | F132: 87.8
C134: 80767.93 | D134: 80862.39 | E134: Rt | F134: 98.5
C135: 80849.72 | D135: 80861.17 | E135: Rt | F135: 83.1
C136: 80868.67 | D136: 80874.97 | E136: Rt | F136: 79.7
C137: 80871.6 | D137: 80965.64 | E137: Rt | F137: 99
C139: 80797.72 | D139: 80862.1 | E139: Lt | F139: 64.8
C140: 80797.72 | D140: 80854.68 | E140: Lt | F140: 101.6
C141: 80871.89 | D141: 80935.23 | E141: Lt | F141: 64
C142: 80874.53 | D142: 80875.17 | E142: Lt | F142: 45.1
C144: 81693.34 | D144: 81777.03 | E144: Rt | F144: 86.3
C145: 81784.01 | D145: 81868.63 | E145: Rt | F145: 87.2
C147: 81718.91 | D147: 81797.98 | E147: Lt | F147: 81.6
C148: 81718.92 | D148: 81806.62 | E148: Lt | F148: 116.1
C149: 81804.96 | D149: 81842.47 | E149: Lt | F149: 39.1
C150: 81812.44 | D150: 81883.6 | E150: Lt | F150: 101
C152: 82979.97 | D152: 83058.02 | E152: Rt | F152: 88.7
C153: 83062.48 | D153: 83134.26 | E153: Rt | F153: 83.5
C154: 83034.83 | E154: Rt | F154: 60 | G154: (1)
C156: 82962.37 | D156: 83045.74 | E156: Lt | F156: 85.4
C157: 82962.37 | D157: 83134.26 | E157: Lt | F157: 180.3
C158: 83050.2 | D158: 83119.26 | E158: Lt | F158: 73.2
C159: 83024.26 | E159: Lt | F159: 60 | G159: (1)
C161: 83737.42 | D161: 83826.88 | E161: Rt | F161: =D161-C161 -> 89.46
C162: 83843.84 | D162: 83946.69 | E162: Rt | F162: 102.85
C164: 83730.6 | D164: 83806.38 | E164: Lt | F164: =D164-C164 -> 75.78
C165: 83749.48 | D165: 83764.85 | E165: Lt | F165: =D165-C165 -> 15.37
C166: 83820.96 | D166: 83894.9 | E166: Lt | F166: =D166-C166 -> 73.94
C167: 83752.81 | D167: 83785.77 | E167: Lt | F167: =D167-C167 -> 32.96
C169: 84292.84 | D169: 84377.74 | E169: Rt | F169: 108.4
C170: 84317.25 | D170: 84404.88 | E170: Rt | F170: 90.3
C171: 84305.74 | D171: 84425 | E171: Rt | F171: 145.5
C172: 84418.3 | D172: 84510.56 | E172: Rt | F172: 94.9
C174: 85479.48 | D174: 85554.46 | E174: Rt | F174: 88.7
C175: 85519.37 | D175: 85556.83 | E175: Rt | F175: 61.4
C176: 85477.02 | E176: Rt | F176: 60 | G176: (1)
C178: 85417.59 | D178: 85497.8 | E178: Lt | F178: 113.7
C179: 85502.2 | D179: 85578.36 | E179: Lt | F179: 112.7
C180: 85483.65 | F180: 60 | G180: (1)
C182: 87805.54 | D182: 87864.97 | E182: Rt | F182: 61.3
C183: 87869.54 | D183: 87954.28 | E183: Rt | F183: 86.6
C185: 90842.08 | D185: 90914.1 | E185: Rt | F185: 93.1
C186: 90916.87 | D186: 90987.26 | E186: Rt | F186: 87.5
F188: =SUM(F24:F186) -> 11391.26 | G188: TOTAL
F190: =F188*0.25 -> 2847.815 | G190: 25% FOR REPLACEMENT
F192: =F188+F190 -> 14239.075 | G192: TOTAL BID QUANTITY
C194: (1) Silt Fence to enclose excavated material for trenchless
C195: construction. See Detail 570-09 on Sheet U.2.

Sheet DE100_18
A1: TabTitle | B1: =C16 -> SILT FENCES FOR DITCH CHECKS
A2: Number of Tab Columns | B2: 13
A3: DE Starter Row Number | B3: 37
A4: TabSheet Starter Row Number | B4: 23
A5: TabSheet Header Row Count | B5: 22
A6: Top Header Cell | B6: T15
A7: Bottom Header Cell | B7: AF36
A8: DESheet Row Count | B8: 97
A9: Fixed Empty Rows | B9: 5
A10: Usable Empty Rows | B10: 0
A11: Total Rows Placed | B11: 102 | C11: xlRight(1) | D11: xlRight(1) | E11: xlRight(1) | F11: xlLeft(1) | G11: xlRight(1) | H11: xlRight(1) | I11: xlRight(1) | J11: xlRight(1) | K11: xlRight(1) | L11: xlRight(1) | M11: xlRight(1) | P11: xlRight(1) | R11: xlLeft(1) | T11: =C11 -> xlRight(1) | U11: =D11 -> xlRight(1) | V11: =E11 -> xlRight(1) | W11: xlLeft(1) | X11: xlRight(1) | Y11: xlRight(1) | Z11: xlRight(1) | AA11: xlRight(1) | AB11: xlRight(1) | AC11: xlRight(1) | AD11: xlRight(1) | AE11: =P11 -> xlRight(1) | AF11: =R11 -> xlLeft(1)
A12: Total Rows Needed | B12: =SUM(B8:B10) -> 102 | C12: 0 | D12: General | E12: #+00.00 | F12: General | G12: 0.0 | H12: 0.0 | I12: 0.0 | J12: 0.0 | K12: 0.0 | L12: 0.0 | M12: 0.0% | P12: 0.0 | R12: General | T12: =C12 -> 0 | U12: =D12 -> General | V12: #+00.00 | W12: General | X12: 0.0 | Y12: 0.0 | Z12: 0.0 | AA12: 0.0 | AB12: 0.0 | AC12: 0.0 | AD12: 0.0% | AE12: =P12 -> 0.0 | AF12: General
A13: Last Tab DE Starter Row | B13: 105 | C13: =CELL("width",C13) -> 6 | D13: =CELL("width",D13) -> 6 | E13: =CELL("width",E13) -> 16 | F13: =CELL("width",F13) -> 6 | G13: =CELL("width",G13) -> 14 | H13: =CELL("width",H13) -> 14 | I13: 14 | J13: 12 | K13: 12 | L13: 14 | M13: 15 | P13: 12 | R13: =CELL("width",R13) -> 8 | T13: =CELL("width",T13) -> 0 | U13: =CELL("width",U13) -> 0 | V13: =CELL("width",V13) -> 0 | W13: =CELL("width",W13) -> 0 | X13: =CELL("width",X13) -> 0 | Y13: =CELL("width",Y13) -> 0 | Z13: 0 | AA13: 0 | AB13: 0 | AC13: 0 | AD13: 0 | AE13: 0 | AF13: =CELL("width",AF13) -> 0
A14: Last Tab Tabsheet Starter Row | B14: 113 | C14: A | D14: B | E14: C | F14: D | G14: E | H14: F | I14: G | J14: H | K14: I | L14: J | M14: K | P14: L | R14: M | T14: =LOWER(C14) -> a | U14: =LOWER(D14) -> b | V14: c | W14: d | X14: e | Y14: f | Z14: g | AA14: h | AB14: i | AC14: j | AD14: k | AE14: =LOWER(P14) -> l | AF14: =LOWER(R14) -> m
A15: Last Copy Starter Row | B15: 91 | C15: Totals: | G15: =SUBTOTAL(9,G37:G5921) -> 4737.6 | H15: =SUBTOTAL(9,H37:H5921) -> 473.71 | I15: =SUBTOTAL(9,I37:I5921) -> 4737.6 | P15: =SUBTOTAL(9,P37:P5921) -> 20358.74414 | T15: 100-18 | AH15: Slope Range | AI15: Spacing | AJ15: =D34 -> Type
A16: Tab Loop Number | B16: 3 | C16: SILT FENCES FOR DITCH CHECKS | T16: =B17 -> 2017-10-17 | AH16: 0 | AI16: 315 | AJ16: 1
A17: Revision Date | B17: 2017-10-17 | T17: =C16 -> SILT FENCES FOR DITCH CHECKS | AH17: 0.001 | AI17: 315 | AJ17: 2
A18: Tabulation Width | B18: 2 | AH18: 0.002 | AI18: 315 | AJ18: 3
A19: Horizontal Grid Lines | B19: Yes | C19: Possible Standard: EC-201 Possible Detail: 570-4 | AH19: 0.003 | AI19: 315 | AJ19: 4
T20: =C19 -> Possible Standard: EC-201 Possible Detail: 570-4 | AH20: 0.004 | AI20: 315 | AJ20: 5
AH21: 0.005 | AI21: 315
AH22: 0.006 | AI22: 155
AH23: 0.007 | AI23: 155
AH24: 0.008 | AI24: 155
AH25: 0.009 | AI25: 155
AH26: 0.01 | AI26: 155
AH27: 0.011 | AI27: 100
AH28: 0.012 | AI28: 100
AH29: 0.013 | AI29: 100
AH30: 0.014 | AI30: 100
C31: * The functional height used in the volume equation is 85% of effective height. Effective height is 1.58 feet as shown on EC-201. | AH31: 0.015 | AI31: 100
C32: * Volume equation: [0.5*Spacing*(0.5*H2*FS+DW*H+0.5*H2*BS)] | T32: =C31 -> * The functional height used in the volume equation is 85% of effective height. Effective height is 1.58 feet as shown on EC-201. | AH32: 0.016 | AI32: 75
C33: ="This Data Entry Sheet fills Tab "&T15&" effective "&TEXT(B17,"mm-dd-yy") -> This Data Entry Sheet fills Tab 100-18 effective 10-17-17 | T33: * Volume equation: [0.5*Spacing*(0.5*H2*FS+DW*H+0.5*H2*BS)] | AH33: 0.017 | AI33: 75
C34: Basin No. | D34: Type | E34: Location | G34: Bid Items | J34: Stormwater Storage Volume Summary | Q34: Subtotal | R34: Remarks | T34: =C34 -> Basin No. | U34: =D34 -> Type | V34: =E34 -> Location | X34: =G34 -> Bid Items | AA34: =J34 -> Stormwater Storage Volume Summary | AF34: =R34 -> Remarks | AH34: 0.018 | AI34: 75
E35: Station | F35: Side | G35: Installation | H35: Maintenance | I35: Removal | J35: Foreslope | K35: Backslope | L35: Ditch Width | M35: Avg.% Slope | N35: Spacing | O35: Down Stream | P35: Volume* | V35: =E35 -> Station | W35: =F35 -> Side | X35: =G35 -> Installation | Y35: =H35 -> Maintenance | Z35: =I35 -> Removal | AA35: =J35 -> Foreslope | AB35: =K35 -> Backslope | AC35: =L35 -> Ditch Width | AD35: Avg.% Slope | AE35: =P35 -> Volume* | AH35: 0.019 | AI35: 75
G36: LF | H36: LF | I36: LF | J36: FS:1 | K36: BS:1 | L36: FT | M36: Ditch Grade | P36: CF | X36: =G36 -> LF | Y36: =H36 -> LF | Z36: =I36 -> LF | AA36: =J36 -> FS:1 | AB36: =K36 -> BS:1 | AC36: =L36 -> FT | AD36: Ditch Grade | AE36: =P36 -> CF | AH36: 0.02 | AI36: 75
N37: =IF(M37<>"",IF(M37<0.06,VLOOKUP(M37,$AH$16:$AI$53,2,TRUE),"XX"),"") ->  | O37: =IF(M37<>"",((0.5*1.343^2*J37)+(1.343*L37)+(0.5*1.343^2*K37)),"") ->  | P37: =IF(C37<>"",(0.5*N37*O37),"") ->  | AH37: 0.021 | AI37: 60
C38: 1 | D38: 1 | E38: 8010.74 | F38: Rt | G38: 19 | H38: 1.9 | I38: 19 | J38: 4.9 | K38: 2 | L38: 5.1745 | M38: 0.0151646 | N38: 100 | O38: =IF(M38<>"",((0.5*1.343^2*J38)+(1.343*L38)+(0.5*1.343^2*K38)),"") -> 13.17194255 | P38: 658.5971275 | AH38: 0.022 | AI38: 60
C39: 1 | D39: 1 | E39: 7995.82 | F39: Lt | G39: 13 | H39: 1.3 | I39: 13 | J39: 1.99135 | K39: 2 | L39: 5 | M39: 0.0101345 | N39: 155 | O39: =IF(M39<>"",((0.5*1.343^2*J39)+(1.343*L39)+(0.5*1.343^2*K39)),"") -> 10.31449722 | P39: 799.3735344 | AH39: 0.026 | AI39: 50
C40: 1 | D40: 1 | E40: 8050 | F40: Rt | G40: 18 | H40: 1.8 | I40: 18 | J40: 4 | K40: 2 | L40: 5.0225 | M40: 0.0394407 | N40: 40 | O40: 12.1561645 | P40: 243.12329 | AH40: 0.029 | AI40: 50
C41: 1 | D41: 1 | E41: 8075 | F41: Rt | G41: 14 | H41: 1.4 | I41: 14 | J41: 3.4 | K41: 2 | L41: 5.0413 | M41: 0.0394407 | N41: 40 | O41: 11.6403182 | P41: 232.806364 | AH41: 0.032 | AI41: 45
AH42: 0.034 | AI42: 45
C43: 2 | D43: 1 | E43: 9575 | F43: Rt | G43: 14 | H43: 1.4 | I43: 14 | J43: 3.6 | K43: 2 | L43: 1.9847 | M43: 0.039 | N43: 40 | O43: 7.7156693 | P43: 154.313386 | AH43: 0.036 | AI43: 40
C44: 2 | D44: 1 | E44: 9625 | F44: Rt | G44: 18 | H44: 1.8 | I44: 18 | J44: 4.1 | K44: 2.1 | L44: 5 | M44: 0.039 | N44: 40 | O44: 12.3063119 | P44: 246.126238
C45: 2 | D45: 1 | E45: 9675 | F45: Rt | G45: 17 | H45: 1.7 | I45: 17 | J45: 3.3 | K45: 2 | L45: 5 | M45: 0.0363574 | N45: 40 | O45: 11.49466985 | P45: 229.893397 | AH45: 0.038 | AI45: 40
C46: 2 | D46: 1 | E46: 9725 | F46: Rt | G46: 13 | H46: 1.3 | I46: 13 | J46: 3.2 | K46: 2 | L46: 1.7 | M46: 0.0363574 | N46: 40 | O46: 6.9725874 | P46: 139.451748 | AH46: 0.041 | AI46: 35
AH47: 0.042 | AI47: 35
C48: 3 | D48: 1 | E48: 10800 | F48: Rt | G48: 18 | H48: 1.8 | I48: 18 | J48: 3.4 | K48: 2 | L48: 2.4385 | M48: 0.0346233 | N48: 45 | O48: 8.1447578 | P48: 183.2570505 | AH48: 0.044 | AI48: 35
C49: 3 | D49: 1 | E49: 10850 | F49: Rt | G49: 22 | H49: 2.2 | I49: 22 | J49: 3.5 | K49: 2 | L49: 5.1598 | M49: 0.0346233 | N49: 45 | O49: 11.88964615 | P49: 267.5170384 | AH49: 0.048 | AI49: 35
AH50: 0.05 | AI50: 35
C51: 4 | D51: 1 | E51: 38225 | F51: Lt | G51: 14 | H51: 1.4 | I51: 14 | J51: 4.4 | K51: 2 | L51: 0.8227 | M51: 0.0423 | N51: 35 | O51: 6.8765629 | P51: 120.3398507 | AH51: 0.052 | AI51: 30
C52: 4 | D52: 1 | E52: 38250 | F52: Lt | G52: 15 | H52: 1.5 | I52: 15 | J52: 3.9 | K52: 2 | L52: 1.98 | M52: 0.0423 | N52: 35 | O52: 7.97990455 | P52: 139.6483296 | AH52: 0.056 | AI52: 25
C53: 4 | D53: 1 | E53: 38275 | F53: Lt | G53: 15 | H53: 1.5 | I53: 15 | J53: 3.8 | K53: 2 | L53: 3.1511 | M53: 0.0423 | N53: 35 | O53: 9.4625094 | P53: 165.5939145 | AH53: 0.059 | AI53: 25
C54: 4 | D54: 1 | E54: 38300 | F54: Lt | G54: 16 | H54: 1.6 | I54: 16 | J54: 3.2 | K54: 2 | L54: 4.339 | M54: 0.0423 | N54: 35 | O54: 10.5167644 | P54: 184.043377
C55: 4 | D55: 1 | E55: 38350 | F55: Lt | G55: 17 | H55: 1.7 | I55: 17 | J55: 3.6 | K55: 2 | L55: 5 | M55: 0.034 | N55: 45 | O55: 11.7652172 | P55: 264.717387
C56: 4 | D56: 1 | E56: 38375 | F56: Lt | G56: 16 | H56: 1.6 | I56: 16 | J56: 3.4 | K56: 2 | L56: 3.939 | M56: 0.034 | N56: 45 | O56: 10.1599293 | P56: 228.5984093
C57: 4 | D57: 1 | E57: 38400 | F57: Lt | G57: 15 | H57: 1.5 | I57: 15 | J57: 3.2 | K57: 2 | L57: 3.0227 | M57: 0.034 | N57: 45 | O57: 8.7489735 | P57: 196.8519037
C58: 4 | D58: 1 | E58: 38425 | F58: Lt | G58: 14 | H58: 1.4 | I58: 14 | J58: 3.4 | K58: 2 | L58: 2.1193 | M58: 0.034 | N58: 45 | O58: 7.7160722 | P58: 173.6116245
C59: 4 | D59: 1 | E59: 38450 | F59: Lt | G59: 14 | H59: 1.4 | I59: 14 | J59: 3.8 | K59: 2 | L59: 1.2264 | M59: 0.034 | N59: 45 | O59: 6.8776373 | P59: 154.7468392
C61: 5 | D61: 1 | E61: 53907.07 | F61: Lt | G61: 17 | H61: 1.7 | I61: 17 | J61: 4.05 | K61: 2 | L61: 3.6542 | M61: 0.0337237 | N61: 45 | O61: 10.36362882 | P61: 233.1816486
C62: 5 | D62: 1 | E62: 53938.67 | F62: Lt | G62: 17 | H62: 1.7 | I62: 17 | J62: 3.5 | K62: 2 | L62: 5 | M62: 0.0337237 | N62: 45 | O62: =IF(M62<>"",((0.5*1.343^2*J62)+(1.343*L62)+(0.5*1.343^2*K62)),"") -> 11.67503475 | P62: =IF(C62<>"",(0.5*N62*O62),"") -> 262.6882819
C63: 5 | D63: 1 | E63: 53966.34 | F63: Lt | G63: 17 | H63: 1.7 | I63: 17 | J63: 3.35 | K63: 2 | L63: 5 | M63: 0.0360078 | N63: 40 | O63: 11.53976107 | P63: =IF(C63<>"",(0.5*N63*O63),"") -> 230.7952215
C64: 5 | D64: 1 | E64: 53983.86 | F64: Lt | G64: 17 | H64: 1.7 | I64: 17 | J64: 4.4 | K64: 2 | L64: 3.4059 | M64: 0.0360078 | N64: 40 | O64: 10.3458005 | P64: 206.91601
C66: 6 | D66: 1 | E66: 55300 | F66: Lt | G66: 16 | H66: 1.6 | I66: 16 | J66: 4.7 | K66: 2 | L66: 1.4125 | M66: 0.0314062 | N66: 50 | O66: 7.93921165 | P66: =IF(C66<>"",(0.5*N66*O66),"") -> 198.4802912
C67: 6 | D67: 1 | E67: 55350 | F67: Lt | G67: 18 | H67: 1.8 | I67: 18 | J67: 4.4 | K67: 2 | L67: 4.1644 | M67: 0.0314062 | N67: 50 | O67: =IF(M67<>"",((0.5*1.343^2*J67)+(1.343*L67)+(0.5*1.343^2*K67)),"") -> 11.364466 | P67: 284.11165
C68: 6 | D68: 1 | E68: 55400 | F68: Lt | G68: 17 | H68: 1.7 | I68: 17 | J68: 3.4 | K68: 2 | L68: 5 | M68: 0.0211043 | N68: 60 | O68: 11.5848523 | P68: 347.545569
C69: 6 | D69: 1 | E69: 55450 | F69: Lt | G69: 16 | H69: 1.6 | I69: 16 | J69: 4.1 | K69: 2 | L69: 2.3457 | M69: 0.0211043 | N69: 60 | O69: 8.65140455 | P69: 259.5421365
O70: =IF(M70<>"",((0.5*1.343^2*J70)+(1.343*L70)+(0.5*1.343^2*K70)),"") ->  | P70: =IF(C70<>"",(0.5*N70*O70),"") -> 
C71: 7 | D71: 1 | E71: 57125 | F71: Lt | G71: 17 | H71: 1.7 | I71: 17 | J71: 3.3 | K71: 2 | L71: 5 | M71: 0.0409 | N71: 40 | O71: 11.49466985 | P71: 229.893397
C72: 7 | D72: 1 | E72: 57150 | F72: Lt | G72: 20 | H72: 2 | I72: 20 | J72: 4.9 | K72: 2 | L72: 5 | M72: 0.0409 | N72: 40 | O72: 12.93758905 | P72: 258.751781
C73: 7 | D73: 1 | E73: 57175 | F73: Lt | G73: 20 | H73: 2 | I73: 20 | J73: 5 | K73: 5 | L73: 2 | M73: 0.0164453 | N73: 75 | O73: 11.704245 | P73: 438.9091875
C75: 8 | D75: 1 | E75: 58087.5 | F75: Rt | G75: 14 | H75: 1.4 | I75: 14 | J75: 3 | K75: 2 | L75: 3.1096 | M75: 0.00518141 | N75: 315 | O75: 8.6853153 | P75: 1367.93716
C76: 8 | D76: 1 | E76: 58115.24 | F76: Rt | G76: 14 | H76: 1.4 | I76: 14 | J76: 3 | K76: 2 | L76: 3.1096 | M76: 0.00518141 | N76: 315 | O76: 8.6853153 | P76: 1367.93716
C78: 9 | D78: 1 | E78: 65075 | F78: Lt | G78: 18 | H78: 1.8 | I78: 18 | J78: 5.3 | K78: 2 | L78: 2.5497 | M78: 0.04518 | N78: 35 | O78: 10.00756595 | P78: 175.1324041
C79: 9 | D79: 1 | E79: 65100 | F79: Lt | G79: 19 | H79: 1.9 | I79: 19 | J79: 4.5 | K79: 2 | L79: 4.6788 | M79: 0.04518 | N79: 35 | O79: 12.14548765 | P79: 212.5460339
C80: 9 | D80: 1 | E80: 65125 | F80: LT | G80: 18 | H80: 1.8 | I80: 18 | J80: 3 | K80: 2 | L80: 5 | M80: 0.04518 | N80: 35 | O80: 11.2241225 | P80: 196.4221438
C81: 9 | D81: 1 | E81: 65150 | F81: Lt | G81: 15 | H81: 1.5 | I81: 15 | J81: 3 | K81: 2 | L81: 5 | M81: 0.0273363 | N81: 50 | O81: =IF(M81<>"",((0.5*1.343^2*J81)+(1.343*L81)+(0.5*1.343^2*K81)),"") -> 11.2241225 | P81: =IF(C81<>"",(0.5*N81*O81),"") -> 280.6030625
C82: 9 | D82: 1 | E82: 65200 | F82: Lt | G82: 14 | H82: 1.4 | I82: 14 | J82: 3 | K82: 2 | L82: 3.9797 | M82: 0.0273363 | N82: 50 | O82: 9.8538596 | P82: 246.34649
C84: 10 | D84: 1 | E84: 74300 | F84: Rt | G84: 19 | H84: 1.9 | I84: 19 | J84: 4.3 | K84: 2 | L84: 5 | M84: 0.033559 | N84: 45 | O84: 12.39649435 | P84: 278.9211229
C85: 10 | D85: 1 | E85: 74275 | F85: Lt | G85: 19 | H85: 1.9 | I85: 19 | J85: 4.1 | K85: 2 | L85: 5 | M85: 0.0344621 | N85: 45 | O85: 12.21612945 | P85: 274.8629126
C86: 10 | D86: 1 | E86: 74350 | F86: Lt | G86: 21 | H86: 2.1 | I86: 21 | J86: 5.1 | K86: 2 | L86: 5 | M86: 0.0362499 | N86: 40 | O86: 13.11795395 | P86: 262.359079
C87: 10 | D87: 1 | E87: 74375 | F87: Lt | G87: 18 | H87: 1.8 | I87: 18 | J87: 4.8 | K87: 2 | L87: 3.7525 | M87: 0.0362499 | N87: 40 | O87: 11.1720141 | P87: 223.440282
O88: =IF(M88<>"",((0.5*1.343^2*J88)+(1.343*L88)+(0.5*1.343^2*K88)),"") ->  | P88: =IF(C88<>"",(0.5*N88*O88),"") -> 
C89: 11 | D89: 1 | E89: 76550 | F89: Lt | G89: 15 | H89: 1.5 | I89: 15 | J89: 3 | K89: 2 | L89: 5 | M89: 0.0396052 | N89: 40 | O89: 11.2241225 | P89: 224.48245
C90: 11 | D90: 1 | E90: 76575 | F90: Lt | G90: 14 | H90: 1.4 | I90: 14 | J90: 3 | K90: 2 | L90: 3.7216 | M90: 0.0396052 | N90: 40 | O90: 9.5072313 | P90: 190.144626
C91: 11 | D91: 1 | E91: 76625 | F91: Lt | G91: 15 | H91: 1.5 | I91: 15 | J91: 3 | K91: 2 | L91: 5 | M91: 0.0300743 | N91: 50 | O91: =IF(M91<>"",((0.5*1.343^2*J91)+(1.343*L91)+(0.5*1.343^2*K91)),"") -> 11.2241225 | P91: 280.6030625
C92: 11 | D92: 1 | E92: 76650 | F92: Lt | G92: 15 | H92: 1.5 | I92: 15 | J92: 3 | K92: 2 | L92: 5 | M92: 0.0300743 | N92: 50 | O92: 11.2241225 | P92: 280.6030625
C94: 12 | D94: 1 | E94: 78725 | F94: Lt | G94: 13 | H94: 1.3 | I94: 13 | J94: 4.1 | K94: 2 | L94: 3.3899 | M94: 0.0441969 | N94: 35 | O94: 10.05376515 | P94: 175.9408901
C95: 12 | D95: 1 | E95: 78750 | F95: Lt | G95: 14 | H95: 1.4 | I95: 14 | J95: 2.8 | K95: 2 | L95: 5.5039 | M95: 0.0441969 | N95: 35 | O95: 11.7204953 | P95: 205.1086677
C96: 12 | D96: 1 | E96: 78775 | F96: Lt | G96: 14 | H96: 1.4 | I96: 14 | J96: 2.1 | K96: 2 | L96: 5.3272 | M96: 0.0441969 | N96: 35 | O96: 10.85191005 | P96: 189.9084259
C97: 12 | D97: 1 | E97: 78820 | F97: Lt | G97: 16 | H97: 1.6 | I97: 16 | J97: 5.90674 | K97: 2 | L97: 0 | M97: 0.0363167 | N97: 40 | O97: 7.130491847 | P97: 142.6098369
C99: 13 | D99: 1 | E99: 80027.91 | F99: Lt | G99: 11 | H99: 1.1 | I99: 11 | J99: 2.91522 | K99: 2 | L99: 1.021 | M99: 0.048675 | N99: 35 | O99: 5.803868819 | P99: 101.5677043
C100: 13 | D100: 1 | E100: 80041.14 | F100: Lt | G100: 14 | H100: 1.4 | I100: 14 | J100: 3.38136 | K100: 2 | L100: 3.0629 | M100: 0.048675 | N100: 35 | O100: 8.966516991 | P100: 156.9140473
C101: 13 | D101: 1 | E101: 80075 | F101: LT | G101: 20 | H101: 2 | I101: 20 | J101: 4.8 | K101: 2 | L101: 5 | M101: 0.0118716 | N101: =IF(M101<>"",IF(M101<0.06,VLOOKUP(M101,$AH$16:$AI$53,2,TRUE),"XX"),"") -> 100 | O101: 12.8474066 | P101: 642.37033
P102: =IF(C102<>"",(0.5*N102*O102),"") -> 
C103: 14 | D103: 1 | E103: 81725 | F103: Lt | G103: 12 | H103: 1.2 | I103: 12 | J103: 3 | K103: 2 | L103: 0.9347 | M103: 0.024142 | N103: 60 | O103: 5.7644246 | P103: 172.932738
C104: 14 | D104: 1 | E104: 81775 | F104: Lt | G104: 19 | H104: 1.9 | I104: 19 | J104: 4.4 | K104: 2 | L104: 5 | M104: 0.024142 | N104: 60 | O104: =IF(M104<>"",((0.5*1.343^2*J104)+(1.343*L104)+(0.5*1.343^2*K104)),"") -> 12.4866768 | P104: 374.600304
C105: 14 | D105: 1 | E105: 81825 | F105: Lt | G105: 24 | H105: 2.4 | I105: 24 | J105: 6.8 | K105: 2 | L105: 5 | M105: 0.0486528 | N105: 35 | O105: 14.6510556 | P105: 256.393473
C106: 14 | D106: 1 | E106: 81850 | F106: Lt | G106: 29 | H106: 2.9 | I106: 29 | J106: 9.4 | K106: 2 | L106: 4.5869 | M106: 0.0486528 | N106: 35 | O106: 16.441006 | P106: 287.717605
C108: 15 | D108: 1 | E108: 83025 | F108: Lt | G108: 19 | H108: 1.9 | I108: 19 | J108: 4.3 | K108: 2 | L108: 5 | M108: 0.0309057 | N108: 50 | O108: 12.39649435 | P108: 309.9123588
C109: 15 | D109: 1 | E109: 83075 | F109: Lt | G109: 21 | H109: 2.1 | I109: 21 | J109: 5.2 | K109: 2 | L109: 5.19 | M109: 0.0441615 | N109: 35 | O109: 13.4633064 | P109: 235.607862
C110: 15 | D110: 1 | E110: 83100 | F110: Lt | G110: 19 | H110: 1.9 | I110: 19 | J110: 4.7 | K110: 2 | L110: 4.51 | M110: 0.0441615 | N110: 35 | O110: 12.09915415 | P110: 211.7351976
C112: 16 | D112: 1 | E112: 83825 | F112: Lt | G112: =J112*2+K112*2+L112 -> 16.6 | H112: 1.7 | I112: 16.6 | J112: 3.8 | K112: 2 | L112: 5 | M112: =(682.87-680.83)/51.9 -> 0.03930635838 | N112: 40 | O112: 11.9455821 | P112: 238.911642
C113: 16 | D113: 1 | E113: 83850 | F113: Lt | G113: =J113*2+K113*2+L113 -> 17.2 | H113: 1.7 | I113: 17.2 | J113: 4.1 | K113: 2 | L113: 5 | M113: 0.039 | N113: 40 | O113: 12.21612945 | P113: 244.322589
C114: 16 | D114: 1 | E114: 83875 | F114: Lt | G114: 18.4 | H114: 1.8 | I114: 18.4 | J114: 5.8 | K114: 2 | L114: 2.8 | M114: 0.039 | N114: 40 | O114: 10.7946311 | P114: =IF(C114<>"",(0.5*N114*O114),"") -> 215.892622
C116: 17 | D116: 1 | E116: 84325 | F116: RT | G116: =J116*2+K116*2+L116 -> 13.6 | H116: 1.4 | I116: 13.6 | J116: 3.2 | K116: 2 | L116: 3.2 | M116: 0.054 | N116: 30 | O116: 8.9870874 | P116: 134.806311
C117: 17 | D117: 1 | E117: 84350 | F117: RT | G117: =J117*2+K117*2+L117 -> 17 | H117: 1.7 | I117: 17 | J117: 4.3 | K117: 2 | L117: 4.4 | M117: 0.054 | N117: 30 | O117: 11.59069435 | P117: 173.8604152
C118: 17 | D118: 1 | E118: 84375 | F118: RT | G118: 15.2 | H118: 1.5 | I118: 15.2 | J118: 3.1 | K118: 2 | L118: 5.2 | M118: 0.054 | N118: 30 | O118: 11.58290495 | P118: 173.7435742
C120: 18 | D120: 1 | E120: 85450 | F120: RT | G120: =L120+J120*2+K120*2 -> 14.6 | H120: 1.46 | I120: 14.6 | J120: 3 | K120: 2 | L120: 4.6 | M120: =(716.48-715.33)/25 -> 0.046 | N120: 35 | O120: 10.6869225 | P120: 187.0211437
C121: 18 | D121: 1 | E121: 85475 | F121: RT | G121: =L121+J121*2+K121*2 -> 16.3 | H121: 1.63 | I121: 16.3 | J121: 3.4 | K121: 2 | L121: 5.5 | M121: 0.046 | N121: 35 | O121: 12.2563523 | P121: 214.4861652
C122: 18 | D122: 1 | E122: 85525 | F122: RT | G122: =L122+J122*2+K122*2 -> 14.5 | H122: 1.5 | I122: 14.5 | J122: 2.7 | K122: 2 | L122: 5.1 | M122: =(714.63-714.31)/25 -> 0.0128 | N122: 100 | O122: 11.08787515 | P122: 554.3937575
C123: 18 | D123: 1 | E123: 85550 | F123: RT | G123: 13.4 | H123: 1.3 | I123: 13.4 | J123: 2.4 | K123: 2 | L123: 4.6 | M123: 0.013 | N123: 100 | O123: 10.1458278 | P123: 507.29139
C125: 19 | D125: 1 | E125: 90850 | F125: Rt | G125: =J125*2+K125*2+L125 -> 12.2 | H125: 1.2 | I125: 12.2 | J125: 3.1 | K125: 2 | L125: 2 | M125: 0.034 | N125: 45 | O125: 7.28530495 | P125: 163.9193614
C126: 19 | D126: 1 | E126: 90875 | F126: Rt | G126: =J126*2+K126*2+L126 -> 17.2 | H126: 1.7 | I126: 17.2 | J126: 4.1 | K126: 2 | L126: 5 | M126: 0.034 | N126: 45 | O126: 12.21612945 | P126: 274.8629126
C127: 19 | D127: 1 | E127: 90950 | F127: Rt | G127: 11.2 | H127: 1.1 | I127: 11.2 | J127: 3.2 | K127: 2 | L127: 0.8 | M127: 0.018 | N127: 75 | O127: 5.7638874 | P127: 216.1457775
G129: =SUM(G38:G127) -> 1184.4 | H129: =G129*0.1 -> 118.44 | I129: =G129 -> 1184.4 | K129: TOTAL
G131: =G129*0.5 -> 592.2 | H131: =H129*0.5 -> 59.22 | I131: =I129*0.5 -> 592.2 | K131: 50% FPOR REPLACEMENT
G133: =G129+G131 -> 1776.6 | H133: =H129+H131 -> 177.66 | I133: =I129+I131 -> 1776.6 | K133: BID ITEM QUANTITY
P150: =IF(C150<>"",(0.5*N150*O150),"") -> 
O152: =IF(M152<>"",((0.5*1.343^2*J152)+(1.343*L152)+(0.5*1.343^2*K152)),"") -> 
N164: =IF(M164<>"",IF(M164<0.06,VLOOKUP(M164,$AH$16:$AI$53,2,TRUE),"XX"),"") -> 
P214: =IF(C214<>"",(0.5*N214*O214),"") -> 
O216: =IF(M216<>"",((0.5*1.343^2*J216)+(1.343*L216)+(0.5*1.343^2*K216)),"") -> 
N228: =IF(M228<>"",IF(M228<0.06,VLOOKUP(M228,$AH$16:$AI$53,2,TRUE),"XX"),"") -> 
P278: =IF(C278<>"",(0.5*N278*O278),"") -> 
O280: =IF(M280<>"",((0.5*1.343^2*J280)+(1.343*L280)+(0.5*1.343^2*K280)),"") -> 
N292: =IF(M292<>"",IF(M292<0.06,VLOOKUP(M292,$AH$16:$AI$53,2,TRUE),"XX"),"") -> 
P342: =IF(C342<>"",(0.5*N342*O342),"") -> 
O344: =IF(M344<>"",((0.5*1.343^2*J344)+(1.343*L344)+(0.5*1.343^2*K344)),"") -> 
N356: =IF(M356<>"",IF(M356<0.06,VLOOKUP(M356,$AH$16:$AI$53,2,TRUE),"XX"),"") -> 
P406: =IF(C406<>"",(0.5*N406*O406),"") -> 
O408: =IF(M408<>"",((0.5*1.343^2*J408)+(1.343*L408)+(0.5*1.343^2*K408)),"") -> 
N420: =IF(M420<>"",IF(M420<0.06,VLOOKUP(M420,$AH$16:$AI$53,2,TRUE),"XX"),"") -> 
P470: =IF(C470<>"",(0.5*N470*O470),"") -> 
O472: =IF(M472<>"",((0.5*1.343^2*J472)+(1.343*L472)+(0.5*1.343^2*K472)),"") -> 
N484: =IF(M484<>"",IF(M484<0.06,VLOOKUP(M484,$AH$16:$AI$53,2,TRUE),"XX"),"") -> 
P534: =IF(C534<>"",(0.5*N534*O534),"") -> 
O536: =IF(M536<>"",((0.5*1.343^2*J536)+(1.343*L536)+(0.5*1.343^2*K536)),"") -> 
N548: =IF(M548<>"",IF(M548<0.06,VLOOKUP(M548,$AH$16:$AI$53,2,TRUE),"XX"),"") -> 
P598: =IF(C598<>"",(0.5*N598*O598),"") -> 
O600: =IF(M600<>"",((0.5*1.343^2*J600)+(1.343*L600)+(0.5*1.343^2*K600)),"") -> 
N612: =IF(M612<>"",IF(M612<0.06,VLOOKUP(M612,$AH$16:$AI$53,2,TRUE),"XX"),"") -> 
P662: =IF(C662<>"",(0.5*N662*O662),"") -> 
O664: =IF(M664<>"",((0.5*1.343^2*J664)+(1.343*L664)+(0.5*1.343^2*K664)),"") -> 
N676: =IF(M676<>"",IF(M676<0.06,VLOOKUP(M676,$AH$16:$AI$53,2,TRUE),"XX"),"") -> 
P726: =IF(C726<>"",(0.5*N726*O726),"") -> 
O728: =IF(M728<>"",((0.5*1.343^2*J728)+(1.343*L728)+(0.5*1.343^2*K728)),"") -> 
N740: =IF(M740<>"",IF(M740<0.06,VLOOKUP(M740,$AH$16:$AI$53,2,TRUE),"XX"),"") -> 
P790: =IF(C790<>"",(0.5*N790*O790),"") -> 
O792: =IF(M792<>"",((0.5*1.343^2*J792)+(1.343*L792)+(0.5*1.343^2*K792)),"") -> 
N804: =IF(M804<>"",IF(M804<0.06,VLOOKUP(M804,$AH$16:$AI$53,2,TRUE),"XX"),"") -> 
P854: =IF(C854<>"",(0.5*N854*O854),"") -> 
O856: =IF(M856<>"",((0.5*1.343^2*J856)+(1.343*L856)+(0.5*1.343^2*K856)),"") -> 
N868: =IF(M868<>"",IF(M868<0.06,VLOOKUP(M868,$AH$16:$AI$53,2,TRUE),"XX"),"") -> 
P918: =IF(C918<>"",(0.5*N918*O918),"") -> 
O920: =IF(M920<>"",((0.5*1.343^2*J920)+(1.343*L920)+(0.5*1.343^2*K920)),"") -> 
N932: =IF(M932<>"",IF(M932<0.06,VLOOKUP(M932,$AH$16:$AI$53,2,TRUE),"XX"),"") -> 
P982: =IF(C982<>"",(0.5*N982*O982),"") -> 
O984: =IF(M984<>"",((0.5*1.343^2*J984)+(1.343*L984)+(0.5*1.343^2*K984)),"") -> 
N996: =IF(M996<>"",IF(M996<0.06,VLOOKUP(M996,$AH$16:$AI$53,2,TRUE),"XX"),"") -> 
P1046: =IF(C1046<>"",(0.5*N1046*O1046),"") -> 
O1048: =IF(M1048<>"",((0.5*1.343^2*J1048)+(1.343*L1048)+(0.5*1.343^2*K1048)),"") -> 
N1060: =IF(M1060<>"",IF(M1060<0.06,VLOOKUP(M1060,$AH$16:$AI$53,2,TRUE),"XX"),"") -> 
P1110: =IF(C1110<>"",(0.5*N1110*O1110),"") -> 
O1112: =IF(M1112<>"",((0.5*1.343^2*J1112)+(1.343*L1112)+(0.5*1.343^2*K1112)),"") -> 
N1124: =IF(M1124<>"",IF(M1124<0.06,VLOOKUP(M1124,$AH$16:$AI$53,2,TRUE),"XX"),"") -> 
P1174: =IF(C1174<>"",(0.5*N1174*O1174),"") -> 
O1176: =IF(M1176<>"",((0.5*1.343^2*J1176)+(1.343*L1176)+(0.5*1.343^2*K1176)),"") -> 
N1188: =IF(M1188<>"",IF(M1188<0.06,VLOOKUP(M1188,$AH$16:$AI$53,2,TRUE),"XX"),"") -> 
P1238: =IF(C1238<>"",(0.5*N1238*O1238),"") -> 
O1240: =IF(M1240<>"",((0.5*1.343^2*J1240)+(1.343*L1240)+(0.5*1.343^2*K1240)),"") -> 
N1252: =IF(M1252<>"",IF(M1252<0.06,VLOOKUP(M1252,$AH$16:$AI$53,2,TRUE),"XX"),"") -> 
P1302: =IF(C1302<>"",(0.5*N1302*O1302),"") -> 
O1304: =IF(M1304<>"",((0.5*1.343^2*J1304)+(1.343*L1304)+(0.5*1.343^2*K1304)),"") -> 
N1316: =IF(M1316<>"",IF(M1316<0.06,VLOOKUP(M1316,$AH$16:$AI$53,2,TRUE),"XX"),"") -> 
P1366: =IF(C1366<>"",(0.5*N1366*O1366),"") -> 
O1368: =IF(M1368<>"",((0.5*1.343^2*J1368)+(1.343*L1368)+(0.5*1.343^2*K1368)),"") -> 
N1380: =IF(M1380<>"",IF(M1380<0.06,VLOOKUP(M1380,$AH$16:$AI$53,2,TRUE),"XX"),"") -> 
P1430: =IF(C1430<>"",(0.5*N1430*O1430),"") -> 
O1432: =IF(M1432<>"",((0.5*1.343^2*J1432)+(1.343*L1432)+(0.5*1.343^2*K1432)),"") -> 
N1444: =IF(M1444<>"",IF(M1444<0.06,VLOOKUP(M1444,$AH$16:$AI$53,2,TRUE),"XX"),"") -> 
P1494: =IF(C1494<>"",(0.5*N1494*O1494),"") -> 
O1496: =IF(M1496<>"",((0.5*1.343^2*J1496)+(1.343*L1496)+(0.5*1.343^2*K1496)),"") -> 
N1508: =IF(M1508<>"",IF(M1508<0.06,VLOOKUP(M1508,$AH$16:$AI$53,2,TRUE),"XX"),"") -> 
P1558: =IF(C1558<>"",(0.5*N1558*O1558),"") -> 
O1560: =IF(M1560<>"",((0.5*1.343^2*J1560)+(1.343*L1560)+(0.5*1.343^2*K1560)),"") -> 
N1572: =IF(M1572<>"",IF(M1572<0.06,VLOOKUP(M1572,$AH$16:$AI$53,2,TRUE),"XX"),"") -> 
P1622: =IF(C1622<>"",(0.5*N1622*O1622),"") -> 
O1624: =IF(M1624<>"",((0.5*1.343^2*J1624)+(1.343*L1624)+(0.5*1.343^2*K1624)),"") -> 
N1636: =IF(M1636<>"",IF(M1636<0.06,VLOOKUP(M1636,$AH$16:$AI$53,2,TRUE),"XX"),"") -> 
P1686: =IF(C1686<>"",(0.5*N1686*O1686),"") -> 
O1688: =IF(M1688<>"",((0.5*1.343^2*J1688)+(1.343*L1688)+(0.5*1.343^2*K1688)),"") -> 
N1700: =IF(M1700<>"",IF(M1700<0.06,VLOOKUP(M1700,$AH$16:$AI$53,2,TRUE),"XX"),"") -> 
P1750: =IF(C1750<>"",(0.5*N1750*O1750),"") -> 
O1752: =IF(M1752<>"",((0.5*1.343^2*J1752)+(1.343*L1752)+(0.5*1.343^2*K1752)),"") -> 
N1764: =IF(M1764<>"",IF(M1764<0.06,VLOOKUP(M1764,$AH$16:$AI$53,2,TRUE),"XX"),"") -> 
P1814: =IF(C1814<>"",(0.5*N1814*O1814),"") -> 
O1816: =IF(M1816<>"",((0.5*1.343^2*J1816)+(1.343*L1816)+(0.5*1.343^2*K1816)),"") -> 
N1828: =IF(M1828<>"",IF(M1828<0.06,VLOOKUP(M1828,$AH$16:$AI$53,2,TRUE),"XX"),"") -> 
P1878: =IF(C1878<>"",(0.5*N1878*O1878),"") -> 
... 190 more rows

Sheet DE100_19
A1: TabTitle | B1: =C16 -> PERIMETER AND SLOPE SEDIMENT CONTROL DEVICE
A2: Number of Tab Columns | B2: 7
A3: DE Starter Row Number | B3: 24
A4: TabSheet Starter Row Number | B4: 10
A5: TabSheet Header Row Count | B5: 9
A6: Top Header Cell | B6: K15
A7: Bottom Header Cell | B7: Q23
A8: DESheet Row Count | B8: 30
A9: Fixed Empty Rows | B9: 5
A10: Usable Empty Rows | B10: 0
A11: Total Rows Placed | B11: 35 | C11: xlRight(1) | D11: xlRight(1) | E11: xlLeft(1) | F11: xlRight(1) | G11: xlRight(1) | H11: xlRight(1) | I11: xlLeft(1) | K11: =C11 -> xlRight(1) | L11: xlRight(1) | M11: xlLeft(1) | N11: xlRight(1) | O11: xlRight(1) | P11: xlRight(1) | Q11: xlLeft(1)
A12: Total Rows Needed | B12: =SUM(B8:B10) -> 35 | C12: #+00.00 | D12: #+00.00 | E12: General | F12: 0.0 | G12: 0.0 | H12: 0.0 | I12: General | K12: #+00.00 | L12: #+00.00 | M12: General | N12: 0.0 | O12: 0.0 | P12: 0.0 | Q12: General
A13: Last Tab DE Starter Row | B13: 24 | C13: =CELL("width",C13) -> 17 | D13: 17 | E13: 6 | F13: 14 | G13: 14 | H13: 14 | I13: 71 | K13: =CELL("width",K13) -> 0 | L13: =CELL("width",L13) -> 0 | M13: =CELL("width",M13) -> 0 | N13: =CELL("width",N13) -> 0 | O13: 0 | P13: 0 | Q13: =CELL("width",Q13) -> 0
A14: Last Tab Tabsheet Starter Row | B14: 10 | C14: A | D14: B | E14: C | F14: D | G14: E | H14: F | I14: G | K14: =LOWER(C14) -> a | L14: =LOWER(D14) -> b | M14: =LOWER(E14) -> c | N14: =LOWER(F14) -> d | O14: e | P14: f | Q14: g
A15: Last Copy Starter Row | B15: 1 | E15: Totals: | F15: =SUBTOTAL(9,F24:F5996) -> 0 | G15: =SUBTOTAL(9,G24:G5996) -> 0 | H15: =SUBTOTAL(9,H24:H5996) -> 768.6 | K15: 100-19
A16: Tab Loop Number | B16: 2 | C16: PERIMETER AND SLOPE SEDIMENT CONTROL DEVICE | K16: =B17 -> 2016-04-19
A17: Revision Date | B17: 2016-04-19 | K17: =C16 -> PERIMETER AND SLOPE SEDIMENT CONTROL DEVICE
A18: Tabulation Width | B18: 2 | C18: Possible Standards: EC-204
A19: Horizontal Grid Lines | B19: Yes | C19: ="This Data Entry Sheet fills Tab "&K15&" effective "&TEXT(B17,"mm-dd-yy") -> This Data Entry Sheet fills Tab 100-19 effective 04-19-16 | K19: =C18 -> Possible Standards: EC-204
C20: Location | F20: Length of Installation | I20: Remarks | K20: =C20 -> Location | N20: =F20 -> Length of Installation | Q20: =I20 -> Remarks
C21: Begin Station | D21: End Station | E21: Side | F21: 9 inch Dia | G21: 12 inch Dia | H21: 20 inch Dia | K21: =C21 -> Begin Station | L21: =D21 -> End Station | M21: =E21 -> Side | N21: =F21 -> 9 inch Dia | O21: 12 inch Dia | P21: 20 inch Dia
F23: LF | G23: LF | H23: LF | N23: =F23 -> LF | O23: =G23 -> LF | P23: =H23 -> LF
C24: 9536.96 | E24: Lt | H24: 10 | I24: Use for Ditch Check
C25: 9550 | E25: Lt | H25: 10 | I25: Use for Ditch Check
C26: 9575 | E26: Lt | H26: 10 | I26: Use for Ditch Check
C27: 9600 | E27: Lt | H27: 10 | I27: Use for Ditch Check
C28: 9637.94 | E28: Lt | H28: 10 | I28: Use for Ditch Check
C29: 9663.02 | E29: Lt | H29: 10 | I29: Use for Ditch Check
C30: 9687.45 | E30: Lt | H30: 10 | I30: Use for Ditch Check
C32: 10881.25 | E32: Rt | H32: 10 | I32: Use for Ditch Check
C33: 10900.1 | E33: Rt | H33: 10 | I33: Use for Ditch Check
C35: 80803.49 | E35: Lt | H35: 10 | I35: Use for Ditch Check
C36: 80815.63 | E36: Lt | H36: 10 | I36: Use for Ditch Check
C37: 80828.6 | E37: Lt | H37: 10 | I37: Use for Ditch Check
C38: 80843.04 | E38: Lt | H38: 10 | I38: Use for Ditch Check
C40: 84421.97 | E40: Rt | H40: 10 | I40: Use for Ditch Checks
C41: 84434.97 | E41: Rt | H41: 10 | I41: Use for Ditch Checks
C42: 84447.16 | E42: Rt | H42: 10 | I42: Use for Ditch Checks
C43: 84458.93 | E43: Rt | H43: 10 | I43: Use for Ditch Checks
C44: 84470.47 | E44: Rt | H44: 10 | I44: Use for Ditch Checks
C45: 84481.92 | E45: Rt | H45: 10 | I45: Use for Ditch Checks
C46: 84493.38 | E46: Rt | H46: 10 | I46: Use for Ditch Checks
C47: 84504.83 | E47: Rt | H47: 10 | I47: Use for Ditch Checks
H49: =SUM(H24:H48) -> 210 | I49: TOTAL
H51: =H49*0.33 -> 69.3 | I51: 33% FOR REPLACEMENT
H53: =H49+H51 -> 279.3 | I53: TOTAL BID QUANTITY

Sheet DE100_23
A1: TabTitle | B1: =C16 -> ROCK EROSION CONTROL
A2: Number of Tab Columns | B2: 15 | AJ2: Possible Contract Items
A3: DE Starter Row Number | B3: 25 | AI3: 2507-8029000 | AJ3: EROSION STONE | AK3: =N15 -> 641.97
A4: TabSheet Starter Row Number | B4: 11 | AI4: 2507-6800061 | AJ4: REVETMENT, CLASS E | AK4: =O15 -> 393.13
A5: TabSheet Header Row Count | B5: 10 | AI5: 2507-3250005 | AJ5: ENGINEERING FABRIC | AK5: =P15 -> 0
A6: Top Header Cell | B6: S15
A7: Bottom Header Cell | B7: AG24
A8: DESheet Row Count | B8: 55
A9: Fixed Empty Rows | B9: 1
A10: Usable Empty Rows | B10: 0
A11: Total Rows Placed | B11: 56 | C11: xlLeft(1) | D11: xlRight(1) | E11: xlCenter | F11: xlCenter | G11: xlCenter | H11: xlCenter | I11: xlCenter | J11: xlCenter | K11: xlCenter | L11: xlCenter | M11: xlCenter | N11: xlRight(1) | O11: xlRight(1) | P11: xlRight(1) | Q11: xlLeft(1) | S11: =C11 -> xlLeft(1) | T11: xlRight(1) | U11: xlCenter | V11: xlCenter | W11: xlCenter | X11: xlCenter | Y11: xlCenter | Z11: xlCenter | AA11: xlCenter | AB11: xlCenter | AC11: xlCenter | AD11: xlRight(1) | AE11: xlRight(1) | AF11: xlRight(1) | AG11: xlLeft(1)
A12: Total Rows Needed | B12: =SUM(B8:B10) -> 56 | C12: General | D12: #+00.00 | E12: #+00.00 | F12: General | G12: General | H12: General | I12: General | J12: General | K12: General | L12: General | M12: General | N12: 0.0 | O12: 0.0 | P12: 0.0 | Q12: General | S12: General | T12: #+00.00 | U12: #+00.00 | V12: General | W12: General | X12: General | Y12: General | Z12: General | AA12: General | AB12: General | AC12: General | AD12: 0.0 | AE12: 0.0 | AF12: 0.0 | AG12: General
A13: Last Tab DE Starter Row | B13: 25 | C13: =CELL("width",C13) -> 47 | D13: 16 | E13: 16 | F13: 10 | G13: 10 | H13: 10 | I13: 13 | J13: 11 | K13: 11 | L13: 14 | M13: 13 | N13: 12 | O13: 12 | P13: 12 | Q13: 22 | S13: =CELL("width",S13) -> 0 | T13: 0 | U13: 0 | V13: 0 | W13: 0 | X13: 0 | Y13: 0 | Z13: 0 | AA13: 0 | AB13: 0 | AC13: 0 | AD13: 0 | AE13: 0 | AF13: 0 | AG13: 0
A14: Last Tab Tabsheet Starter Row | B14: 11 | C14: A | D14: B | E14: C | F14: D | G14: E | H14: F | I14: G | J14: H | K14: I | L14: J | M14: K | N14: L | O14: M | P14: N | Q14: O | S14: =LOWER(C14) -> a | T14: b | U14: c | V14: d | W14: e | X14: f | Y14: g | Z14: h | AA14: i | AB14: j | AC14: k | AD14: l | AE14: m | AF14: n | AG14: o
A15: Last Copy Starter Row | B15: 1 | M15: Totals: | N15: =SUBTOTAL(9,N25:N6000) -> 641.97 | O15: =SUBTOTAL(9,O25:O6000) -> 393.13 | P15: =SUBTOTAL(9,P25:P6000) -> 0 | S15: 100-23
A16: Tab Loop Number | B16: 2 | C16: ROCK EROSION CONTROL | S16: =B17 -> 2018-04-17
A17: Revision Date | B17: 2018-04-17 | S17: =C16 -> ROCK EROSION CONTROL
A18: Tabulation Width | B18: 3 | C18: Refer to EC-301 and Detail 570-8
A19: Horizontal Grid Lines | B19: Yes | C19: ="This Data Entry Sheet fills Tab "&S15&" effective "&TEXT(B17,"mm-dd-yy") -> This Data Entry Sheet fills Tab 100-23 effective 04-17-18 | S19: =C18 -> Refer to EC-301 and Detail 570-8
C20: Location | I20: Rock Erosion Control (REC) | N20: Material Bid Quantities | Q20: Remarks | S20: =C20 -> Location | Y20: =I20 -> Rock Erosion Control (REC) | AD20: =N20 -> Material Bid Quantities | AG20: =Q20 -> Remarks
C21: Road Identification | D21: Begin Station | E21: End Station | F21: Side | I21: Type 1 | J21: Type 2 | K21: Type 3 | L21: Type 4 | M21: Type 5 | N21: Eng. Fabric | O21: Class E Revetment | P21: Erosion Stone | S21: =C21 -> Road Identification | T21: =D21 -> Begin Station | U21: =E21 -> End Station | V21: =F21 -> Side | Y21: =I21 -> Type 1 | Z21: =J21 -> Type 2 | AA21: Type 3 | AB21: Type 4 | AC21: Type 5 | AD21: =N21 -> Eng. Fabric | AE21: =O21 -> Class E Revetment | AF21: =P21 -> Erosion Stone
I22: Rock Ditch Check | J22: Rock Ditch | K22: Rock Flume | L22: Rock Splash Basin | M22: Rock Slope Protection | Y22: =I22 -> Rock Ditch Check | Z22: Rock Ditch | AA22: Rock Flume | AB22: Rock Splash Basin | AC22: Rock Slope Protection
F24: Lt./Rt. | G24: FT | H24: FT | N24: SY | O24: TON | P24: TON | V24: =F24 -> Lt./Rt. | W24: =G24 -> FT | X24: =H24 -> FT | AD24: =N24 -> SY | AE24: =O24 -> TON | AF24: =P24 -> TON
C25: IA 136 | D25: 7995.68 | E25: 8015.75 | F25: Lt. | G25: 15.9 | H25: 24.5 | L25: X
C26: IA 136 | D26: 8011.54 | E26: 8030.96 | F26: Rt. | G26: 15.3 | H26: 24.8 | L26: X
C28: IA 136 | D28: 9608.89 | E28: 9624.22 | F28: Lt. | G28: 10 | H28: 12.7 | L28: X | N28: 24.2 | O28: 15.03
C29: IA 136 | D29: 9643.09 | E29: 9657.26 | F29: Rt. | G29: 9.3 | H29: 13.5 | L29: X | N29: 23.7 | O29: 14.42
C31: IA 136 | D31: 10870.75 | E31: 10883.05 | F31: Lt. | G31: 10.5 | H31: 10.1 | L31: X | N31: 21.1 | O31: 12.69
C32: IA 136 | D32: 10870.75 | E32: 10881.25 | F32: Rt. | G32: 10.5 | H32: 7.6 | L32: X | N32: 17 | O32: 9.5
C34: IA 136 | D34: 38297.68 | E34: 38313.38 | F34: Rt. | G34: 10.5 | H34: 10 | L34: X | N34: 20.8 | O34: 12.45
C35: IA 136 | D35: 38325.25 | E35: 38335.08 | F35: Lt. | G35: 10.5 | H35: 7.9 | L35: X | N35: 17.4 | O35: 9.78
C37: IA 136 | D37: 53945.89 | E37: 53958.18 | F37: Lt. | G37: 10.5 | H37: 10 | L37: X | N37: 20.8 | O37: 12.45
C38: IA 136 | D38: 53966.17 | E38: 53977.94 | F38: Rt. | G38: 10.5 | H38: 10 | L38: X | N38: 20.8 | O38: 12.45
C40: IA 136 | D40: 55378.32 | E40: 55388.53 | F40: Lt. | G40: 10.5 | H40: 8.3 | L40: X | N40: 18.1 | O40: 10.35
C41: IA 136 | D41: 55386.63 | E41: 55400.51 | F41: Rt. | G41: 10.5 | H41: 10 | L41: X | N41: 20.8 | O41: 12.45
C43: IA 136 | D43: 57156.4 | E43: 57168 | F43: Rt. | G43: 11.6 | H43: 10 | L43: X | N43: 22.5 | O43: 13.74
C44: IA 136 | D44: 57156.4 | E44: 57168 | F44: Lt. | G44: 11.6 | H44: 10 | L44: X | N44: 22.5 | O44: 13.74
C46: IA 136 | D46: 58099.67 | E46: 58111.27 | F46: Rt. | G46: 11.6 | H46: 5.7 | L46: X | N46: 15 | O46: 7.78
C48: IA 136 | D48: 65137.63 | E48: 65148.39 | F48: Lt. | G48: 10.5 | H48: 7.6 | L48: X | N48: 17 | O48: 9.5
C49: IA 136 | D49: 65137.88 | E49: 65151.54 | F49: Rt. | G49: 10.5 | H49: 10.1 | L49: X | N49: 20.8 | O49: 12.45
C51: IA 136 | D51: 76602.51 | E51: 76615.46 | F51: Rt. | G51: 12.7 | H51: 10 | L51: X | N51: 24.2 | O51: 15.03
C52: IA 136 | D52: 76602.74 | E52: 76615.25 | F52: Lt. | G52: 12.7 | H52: 12.4 | L52: X | N52: 28.77 | O52: 18.74
C54: IA 136 | D54: 78786.9 | E54: 78804.94 | F54: Lt. | G54: 11.6 | H54: 16 | L54: X | N54: 32.9 | O54: 21.99
C55: IA 136 | D55: 78839.05 | E55: 78854.09 | F55: Rt. | G55: 11.6 | H55: 10 | L55: X | N55: 22.5 | O55: 13.74
C57: IA 136 | D57: 80047.04 | E57: 80064.6 | F57: Lt. | G57: 12.7 | H57: 12.7 | L57: X | N57: 26.4 | O57: 19.16
C58: IA 136 | D58: 80099.39 | E58: 80115.47 | F58: Rt. | G58: 12.7 | H58: 10 | L58: X | N58: 24.2 | O58: 15.03
C60: IA 136 | D60: 80858.83 | E60: 80874.98 | F60: Lt. | G60: 15.1 | H60: 25.1 | L60: X
C61: IA 136 | D61: 80859.48 | E61: 80874.35 | F61: Rt. | G61: 15.5 | H61: 24.5 | L61: X
C63: IA 136 | D63: 81771.39 | E63: 81786.9 | F63: Rt. | G63: 13.3 | H63: 10 | L63: X | N63: 25.1 | O63: 15.72
C64: IA 136 | D64: 81795.09 | E64: 81811.46 | F64: Lt. | G64: 13.3 | H64: 12.3 | L64: X | N64: 30.1 | O64: 19.95
C66: IA 136 | D66: 83041.61 | E66: 83053.17 | F66: Lt. | G66: 10.5 | H66: 7.5 | L66: X | N66: 16.9 | O66: 9.39
C67: IA 136 | D67: 83055.05 | E67: 83066.84 | F67: Rt. | G67: 10.5 | H67: 10 | L67: X | N67: 20.8 | O67: 12.45
C69: IA 136 | D69: 83790.5 | E69: 83820.96 | F69: Lt. | G69: 17.9 | H69: 31.7 | L69: X
C70: IA 136 | D70: 83826.88 | E70: 83852.75 | F70: Rt. | G70: 17.9 | H70: 29.6 | L70: X
C72: IA 136 | D72: 84387.84 | E72: 84420.73 | F72: Rt. | G72: 17.9 | H72: 33.9 | L72: X
C74: IA 136 | D74: 85494.11 | E74: 85505.1 | F74: Lt. | G74: 10.5 | H74: 10.6 | L74: X | N74: 21.8 | O74: 13.22
C75: IA 136 | D75: 85494.63 | E75: 85505.34 | F75: Rt. | G75: 10.5 | H75: 10 | L75: X | N75: 20.8 | O75: 12.45
C77: IA 136 | D77: 87877.01 | E77: 87894.47 | F77: Rt. | G77: 14.4 | H77: 10 | L77: X | N77: 26.9 | O77: 17.11
C79: IA 136 | D79: 90911.22 | E79: 90922.82 | F79: Rt. | G79: 8.9 | H79: 9.9 | L79: X | N79: 18.1 | O79: 10.37

Sheet DE100_32
A1: TabTitle | B1: =C16 -> ROCK CHECK DAM
A2: Number of Tab Columns | B2: 13
A3: DE Starter Row Number | B3: 37
A4: TabSheet Starter Row Number | B4: 23
A5: TabSheet Header Row Count | B5: 22
A6: Top Header Cell | B6: T15
A7: Bottom Header Cell | B7: AF36
A8: DESheet Row Count | B8: 10
A9: Fixed Empty Rows | B9: 1
A10: Usable Empty Rows | B10: 0
A11: Total Rows Placed | B11: 11 | C11: xlRight(1) | D11: xlRight(1) | E11: xlRight(1) | F11: xlRight(1) | G11: xlRight(1) | H11: xlRight(1) | I11: xlRight(1) | J11: xlRight(1) | K11: xlRight(1) | L11: xlRight(1) | M11: xlRight(1) | P11: xlRight(1) | R11: xlLeft(1) | T11: =C11 -> xlRight(1) | U11: xlRight(1) | V11: xlRight(1) | W11: xlRight(1) | X11: xlRight(1) | Y11: xlRight(1) | Z11: xlRight(1) | AA11: xlRight(1) | AB11: xlRight(1) | AC11: xlRight(1) | AD11: xlRight(1) | AE11: =P11 -> xlRight(1) | AF11: =R11 -> xlLeft(1)
A12: Total Rows Needed | B12: =SUM(B8:B10) -> 11 | C12: 0 | D12: #+00.00 | E12: General | F12: 0.0 | G12: 0.0 | H12: 0 | I12: 0 | J12: 0.0 | K12: 0.0 | L12: 0.0 | M12: 0.0% | P12: 0.0 | R12: General | T12: 0 | U12: #+00.00 | V12: General | W12: 0.0 | X12: 0.0 | Y12: 0 | Z12: 0 | AA12: 0.0 | AB12: 0.0 | AC12: 0.0 | AD12: 0.0% | AE12: =P12 -> 0.0 | AF12: General
A13: Last Tab DE Starter Row | B13: 37 | C13: =CELL("width",C13) -> 6 | D13: 16 | E13: 8 | F13: 8 | G13: 14 | H13: 14 | I13: 14 | J13: 14 | K13: 14 | L13: 14 | M13: 14 | P13: 14 | R13: =CELL("width",R13) -> 80 | T13: =CELL("width",T13) -> 0 | U13: 0 | V13: 0 | W13: 0 | X13: 0 | Y13: 0 | Z13: 0 | AA13: 0 | AB13: 0 | AC13: 0 | AD13: 0 | AE13: 0 | AF13: =CELL("width",AF13) -> 0
A14: Last Tab Tabsheet Starter Row | B14: 23 | C14: A | D14: B | E14: C | F14: D | G14: E | H14: F | I14: G | J14: H | K14: I | L14: J | M14: K | P14: L | R14: M | T14: =LOWER(C14) -> a | U14: b | V14: c | W14: d | X14: e | Y14: f | Z14: g | AA14: h | AB14: i | AC14: j | AD14: k | AE14: =LOWER(P14) -> l | AF14: =LOWER(R14) -> m
A15: Last Copy Starter Row | B15: 1 | F15: Totals: | G15: =SUBTOTAL(9,G37:G6009) -> 133 | H15: =SUBTOTAL(9,H37:H6009) -> 36 | I15: =SUBTOTAL(9,I37:I6009) -> 12 | P15: =SUBTOTAL(9,P37:P6009) -> 1029.6 | T15: 100-32 | AH15: % Slope | AI15: Spacing
A16: Tab Loop Number | B16: 2 | C16: ROCK CHECK DAM | T16: =B17 -> 2016-10-18 | AH16: 0 | AI16: 400
A17: Revision Date | B17: 2016-10-18 | T17: =C16 -> ROCK CHECK DAM | AH17: 0.001 | AI17: 400
A18: Tabulation Width | B18: 3 | AH18: 0.002 | AI18: 400
A19: Horizontal Grid Lines | B19: Yes | C19: Possible Detail: 570-2 | AH19: 0.003 | AI19: 400
T20: =C19 -> Possible Detail: 570-2 | AH20: 0.004 | AI20: 400
AH21: 0.005 | AI21: 400
AH22: 0.006 | AI22: 200
AH23: 0.007 | AI23: 200
AH24: 0.008 | AI24: 200
AH25: 0.009 | AI25: 200
AH26: 0.01 | AI26: 200
AH27: 0.011 | AI27: 130
AH28: 0.012 | AI28: 130
AH29: 0.013 | AI29: 130
AH30: 0.014 | AI30: 130
C31: * The functional height used in the volume equation is 90% of effective height. Effective height is 2 feet as shown in 570-2. | AH31: 0.015 | AI31: 130
C32: * Volume equation: [0.5*Spacing*(0.5*H2*FS+DW*H+0.5*H2*BS)] | T32: =C31 -> * The functional height used in the volume equation is 90% of effective height. Effective height is 2 feet as shown in 570-2. | AH32: 0.016 | AI32: 100
C33: ="This Data Entry Sheet fills Tab "&T15&" effective "&TEXT(B17,"mm-dd-yy") -> This Data Entry Sheet fills Tab 100-32 effective 10-18-16 | T33: * Volume equation: [0.5*Spacing*(0.5*H2*FS+DW*H+0.5*H2*BS)] | AH33: 0.017 | AI33: 100
C34: Basin No. | D34: Location | G34: Bid Items | J34: Stormwater Storage Volume Summary | Q34: Subtotal | R34: Remarks | T34: =C34 -> Basin No. | U34: =D34 -> Location | X34: =G34 -> Bid Items | AA34: =J34 -> Stormwater Storage Volume Summary | AF34: =R34 -> Remarks | AH34: 0.018 | AI34: 100
D35: Station | E35: Side | F35: Offset | G35: Installation | H35: Maintenance | I35: Removal | J35: Foreslope | K35: Backslope | L35: Ditch Width | M35: Avg. % Slope | N35: Spacing | O35: Down Stream | P35: Volume* | U35: =D35 -> Station | V35: =E35 -> Side | W35: =F35 -> Offset | X35: =G35 -> Installation | Y35: =H35 -> Maintenance | Z35: =I35 -> Removal | AA35: =J35 -> Foreslope | AB35: =K35 -> Backslope | AC35: =L35 -> Ditch Width | AD35: =M35 -> Avg. % Slope | AE35: =P35 -> Volume* | AH35: 0.019 | AI35: 100
F36: FT | G36: LF | H36: Each | I36: Each | J36: FS:1 | K36: BS:1 | L36: FT | P36: CF | W36: =F36 -> FT | X36: =G36 -> LF | Y36: =H36 -> Each | Z36: =I36 -> Each | AA36: =J36 -> FS:1 | AB36: =K36 -> BS:1 | AC36: =L36 -> FT | AE36: =P36 -> CF | AH36: 0.02 | AI36: 100
N37: =IF(M37<>"",VLOOKUP(M37,$AH$16:$AI$125,2,TRUE),"") ->  | O37: =IF(M37<>"",((0.5*1.8^2*J37)+(1.8*L37)+(0.5*1.8^2*K37)),"") ->  | P37: =IF(C37<>"",(0.5*N37*O37),"") ->  | AH37: 0.021 | AI37: 80
C38: 1 | D38: 80817.72 | E38: Lt | F38: 42.1 | G38: 16.5 | H38: 3 | I38: 1 | J38: 3 | K38: 2 | L38: 4.5 | M38: 0.092 | N38: =IF(M38<>"",VLOOKUP(M38,$AH$16:$AI$125,2,TRUE),"") -> 20 | O38: =IF(M38<>"",((0.5*1.8^2*J38)+(1.8*L38)+(0.5*1.8^2*K38)),"") -> 16.2 | P38: =IF(C38<>"",(0.5*N38*O38),"") -> 162
C39: 1 | D39: 80837.72 | E39: Lt | F39: 54.1 | G39: 19 | H39: 3 | I39: 1 | J39: 3.5 | K39: 2 | L39: 5 | M39: 0.092 | N39: 20 | O39: 17.91 | P39: =IF(C39<>"",(0.5*N39*O39),"") -> 179.1
C40: 1 | D40: 80857.72 | E40: Lt | F40: 56.8 | G40: 19 | H40: 3 | I40: 1 | J40: 3.5 | K40: 2 | L40: 5 | M40: 0.092 | N40: =IF(M40<>"",VLOOKUP(M40,$AH$16:$AI$125,2,TRUE),"") -> 20 | O40: =IF(M40<>"",((0.5*1.8^2*J40)+(1.8*L40)+(0.5*1.8^2*K40)),"") -> 17.91 | P40: =IF(C40<>"",(0.5*N40*O40),"") -> 179.1 | AH40: 0.022 | AI40: 80
C42: 2 | D42: 83749.3 | E42: Lt | F42: 35.11 | G42: 4 | H42: 3 | I42: 1 | J42: 4.5 | K42: 2 | L42: 3 | M42: 0.135 | N42: 20 | O42: =IF(M42<>"",((0.5*1.8^2*J42)+(1.8*L42)+(0.5*1.8^2*K42)),"") -> 15.93 | P42: =IF(C42<>"",(0.5*N42*O42),"") -> 159.3
C43: 2 | D43: 83766.96 | E43: Lt | F43: 45.8 | G43: 4 | H43: 3 | I43: 1 | J43: 3.5 | K43: 2 | L43: 5 | M43: 0.135 | N43: 20 | O43: 17.91 | P43: 179.1
C44: 2 | D44: 83785.91 | E44: Lt | F44: 55 | G44: 4 | H44: 3 | I44: 1 | J44: 3 | K44: 2 | L44: 5 | M44: 0.135 | N44: 20 | O44: 17.1 | P44: 171
G46: =SUM(G38:G44) -> 66.5 | H46: =SUM(H38:H44) -> 18 | I46: 6 | K46: TOTAL
N48: =IF(M48<>"",VLOOKUP(M48,$AH$16:$AI$125,2,TRUE),"") ->  | O48: =IF(M48<>"",((0.5*1.8^2*J48)+(1.8*L48)+(0.5*1.8^2*K48)),"") ->  | AH48: 0.023 | AI48: 80
AH49: 0.024 | AI49: 80
AH50: 0.025 | AI50: 80
AH51: 0.026 | AI51: 65
AH52: 0.027 | AI52: 65
AH53: 0.028 | AI53: 65
AH54: 0.029 | AI54: 65
AH55: 0.03 | AI55: 65
AH56: 0.031 | AI56: 55
AH57: 0.032 | AI57: 55
AH58: 0.033 | AI58: 55
AH59: 0.034 | AI59: 55
AH60: 0.035 | AI60: 55
AH61: 0.036 | AI61: 50
AH62: 0.037 | AI62: 50
AH63: 0.038 | AI63: 50
AH64: 0.039 | AI64: 50
AH65: 0.04 | AI65: 50
AH66: 0.041 | AI66: 45
AH67: 0.042 | AI67: 45
AH68: 0.043 | AI68: 45
AH69: 0.044 | AI69: 45
AH70: 0.045 | AI70: 45
AH71: 0.046 | AI71: 40
AH72: 0.047 | AI72: 40
AH73: 0.048 | AI73: 40
AH74: 0.049 | AI74: 40
AH75: 0.05 | AI75: 40
AH76: 0.051 | AI76: 35
AH77: 0.052 | AI77: 35
AH78: 0.053 | AI78: 35
AH79: 0.054 | AI79: 35
AH80: 0.055 | AI80: 35
AH81: 0.056 | AI81: 30
AH82: 0.057 | AI82: 30
AH83: 0.058 | AI83: 30
AH84: 0.059 | AI84: 30
AH85: 0.06 | AI85: 30
AH86: 0.061 | AI86: 30
AH87: 0.062 | AI87: 30
AH88: 0.063 | AI88: 30
AH89: 0.064 | AI89: 30
AH90: 0.065 | AI90: 30
AH91: 0.066 | AI91: 25
AH92: 0.067 | AI92: 25
AH93: 0.068 | AI93: 25
AH94: 0.069 | AI94: 25
AH95: 0.07 | AI95: 25
AH96: 0.071 | AI96: 25
AH97: 0.072 | AI97: 25
AH98: 0.073 | AI98: 25
AH99: 0.074 | AI99: 25
AH100: 0.075 | AI100: 25
AH101: 0.076 | AI101: 25
AH102: 0.077 | AI102: 25
AH103: 0.078 | AI103: 25
AH104: 0.079 | AI104: 25
AH105: 0.08 | AI105: 25
AH106: 0.081 | AI106: 20
AH107: 0.082 | AI107: 20
AH108: 0.083 | AI108: 20
AH109: 0.084 | AI109: 20
P110: =IF(C110<>"",(0.5*N110*O110),"") ->  | AH110: 0.085 | AI110: 20
O111: =IF(M111<>"",((0.5*1.8^2*J111)+(1.8*L111)+(0.5*1.8^2*K111)),"") ->  | AH111: 0.086 | AI111: 20
N112: =IF(M112<>"",VLOOKUP(M112,$AH$16:$AI$125,2,TRUE),"") ->  | AH112: 0.087 | AI112: 20
AH113: 0.088 | AI113: 20
AH114: 0.089 | AI114: 20
AH115: 0.09 | AI115: 20
AH116: 0.091 | AI116: 20
AH117: 0.092 | AI117: 20
AH118: 0.093 | AI118: 20
AH119: 0.094 | AI119: 20
AH120: 0.095 | AI120: 20
AH121: 0.096 | AI121: 20
AH122: 0.097 | AI122: 20
AH123: 0.098 | AI123: 20
AH124: 0.099 | AI124: 20
AH125: 0.1 | AI125: 20
P174: =IF(C174<>"",(0.5*N174*O174),"") -> 
O175: =IF(M175<>"",((0.5*1.8^2*J175)+(1.8*L175)+(0.5*1.8^2*K175)),"") -> 
N176: =IF(M176<>"",VLOOKUP(M176,$AH$16:$AI$125,2,TRUE),"") -> 
P238: =IF(C238<>"",(0.5*N238*O238),"") -> 
O239: =IF(M239<>"",((0.5*1.8^2*J239)+(1.8*L239)+(0.5*1.8^2*K239)),"") -> 
N240: =IF(M240<>"",VLOOKUP(M240,$AH$16:$AI$125,2,TRUE),"") -> 
P302: =IF(C302<>"",(0.5*N302*O302),"") -> 
O303: =IF(M303<>"",((0.5*1.8^2*J303)+(1.8*L303)+(0.5*1.8^2*K303)),"") -> 
N304: =IF(M304<>"",VLOOKUP(M304,$AH$16:$AI$125,2,TRUE),"") -> 
P366: =IF(C366<>"",(0.5*N366*O366),"") -> 
O367: =IF(M367<>"",((0.5*1.8^2*J367)+(1.8*L367)+(0.5*1.8^2*K367)),"") -> 
N368: =IF(M368<>"",VLOOKUP(M368,$AH$16:$AI$125,2,TRUE),"") -> 
P430: =IF(C430<>"",(0.5*N430*O430),"") -> 
O431: =IF(M431<>"",((0.5*1.8^2*J431)+(1.8*L431)+(0.5*1.8^2*K431)),"") -> 
N432: =IF(M432<>"",VLOOKUP(M432,$AH$16:$AI$125,2,TRUE),"") -> 
P494: =IF(C494<>"",(0.5*N494*O494),"") -> 
O495: =IF(M495<>"",((0.5*1.8^2*J495)+(1.8*L495)+(0.5*1.8^2*K495)),"") -> 
N496: =IF(M496<>"",VLOOKUP(M496,$AH$16:$AI$125,2,TRUE),"") -> 
P558: =IF(C558<>"",(0.5*N558*O558),"") -> 
O559: =IF(M559<>"",((0.5*1.8^2*J559)+(1.8*L559)+(0.5*1.8^2*K559)),"") -> 
N560: =IF(M560<>"",VLOOKUP(M560,$AH$16:$AI$125,2,TRUE),"") -> 
P622: =IF(C622<>"",(0.5*N622*O622),"") -> 
O623: =IF(M623<>"",((0.5*1.8^2*J623)+(1.8*L623)+(0.5*1.8^2*K623)),"") -> 
N624: =IF(M624<>"",VLOOKUP(M624,$AH$16:$AI$125,2,TRUE),"") -> 
P686: =IF(C686<>"",(0.5*N686*O686),"") -> 
O687: =IF(M687<>"",((0.5*1.8^2*J687)+(1.8*L687)+(0.5*1.8^2*K687)),"") -> 
N688: =IF(M688<>"",VLOOKUP(M688,$AH$16:$AI$125,2,TRUE),"") -> 
P750: =IF(C750<>"",(0.5*N750*O750),"") -> 
O751: =IF(M751<>"",((0.5*1.8^2*J751)+(1.8*L751)+(0.5*1.8^2*K751)),"") -> 
N752: =IF(M752<>"",VLOOKUP(M752,$AH$16:$AI$125,2,TRUE),"") -> 
P814: =IF(C814<>"",(0.5*N814*O814),"") -> 
O815: =IF(M815<>"",((0.5*1.8^2*J815)+(1.8*L815)+(0.5*1.8^2*K815)),"") -> 
N816: =IF(M816<>"",VLOOKUP(M816,$AH$16:$AI$125,2,TRUE),"") -> 
P878: =IF(C878<>"",(0.5*N878*O878),"") -> 
O879: =IF(M879<>"",((0.5*1.8^2*J879)+(1.8*L879)+(0.5*1.8^2*K879)),"") -> 
N880: =IF(M880<>"",VLOOKUP(M880,$AH$16:$AI$125,2,TRUE),"") -> 
P942: =IF(C942<>"",(0.5*N942*O942),"") -> 
O943: =IF(M943<>"",((0.5*1.8^2*J943)+(1.8*L943)+(0.5*1.8^2*K943)),"") -> 
N944: =IF(M944<>"",VLOOKUP(M944,$AH$16:$AI$125,2,TRUE),"") -> 
P1006: =IF(C1006<>"",(0.5*N1006*O1006),"") -> 
O1007: =IF(M1007<>"",((0.5*1.8^2*J1007)+(1.8*L1007)+(0.5*1.8^2*K1007)),"") -> 
N1008: =IF(M1008<>"",VLOOKUP(M1008,$AH$16:$AI$125,2,TRUE),"") -> 
P1070: =IF(C1070<>"",(0.5*N1070*O1070),"") -> 
O1071: =IF(M1071<>"",((0.5*1.8^2*J1071)+(1.8*L1071)+(0.5*1.8^2*K1071)),"") -> 
N1072: =IF(M1072<>"",VLOOKUP(M1072,$AH$16:$AI$125,2,TRUE),"") -> 
P1134: =IF(C1134<>"",(0.5*N1134*O1134),"") -> 
O1135: =IF(M1135<>"",((0.5*1.8^2*J1135)+(1.8*L1135)+(0.5*1.8^2*K1135)),"") -> 
N1136: =IF(M1136<>"",VLOOKUP(M1136,$AH$16:$AI$125,2,TRUE),"") -> 
P1198: =IF(C1198<>"",(0.5*N1198*O1198),"") -> 
O1199: =IF(M1199<>"",((0.5*1.8^2*J1199)+(1.8*L1199)+(0.5*1.8^2*K1199)),"") -> 
N1200: =IF(M1200<>"",VLOOKUP(M1200,$AH$16:$AI$125,2,TRUE),"") -> 
P1262: =IF(C1262<>"",(0.5*N1262*O1262),"") -> 
O1263: =IF(M1263<>"",((0.5*1.8^2*J1263)+(1.8*L1263)+(0.5*1.8^2*K1263)),"") -> 
N1264: =IF(M1264<>"",VLOOKUP(M1264,$AH$16:$AI$125,2,TRUE),"") -> 
P1326: =IF(C1326<>"",(0.5*N1326*O1326),"") -> 
O1327: =IF(M1327<>"",((0.5*1.8^2*J1327)+(1.8*L1327)+(0.5*1.8^2*K1327)),"") -> 
N1328: =IF(M1328<>"",VLOOKUP(M1328,$AH$16:$AI$125,2,TRUE),"") -> 
P1390: =IF(C1390<>"",(0.5*N1390*O1390),"") -> 
O1391: =IF(M1391<>"",((0.5*1.8^2*J1391)+(1.8*L1391)+(0.5*1.8^2*K1391)),"") -> 
N1392: =IF(M1392<>"",VLOOKUP(M1392,$AH$16:$AI$125,2,TRUE),"") -> 
P1454: =IF(C1454<>"",(0.5*N1454*O1454),"") -> 
O1455: =IF(M1455<>"",((0.5*1.8^2*J1455)+(1.8*L1455)+(0.5*1.8^2*K1455)),"") -> 
N1456: =IF(M1456<>"",VLOOKUP(M1456,$AH$16:$AI$125,2,TRUE),"") -> 
P1518: =IF(C1518<>"",(0.5*N1518*O1518),"") -> 
O1519: =IF(M1519<>"",((0.5*1.8^2*J1519)+(1.8*L1519)+(0.5*1.8^2*K1519)),"") -> 
N1520: =IF(M1520<>"",VLOOKUP(M1520,$AH$16:$AI$125,2,TRUE),"") -> 
P1582: =IF(C1582<>"",(0.5*N1582*O1582),"") -> 
O1583: =IF(M1583<>"",((0.5*1.8^2*J1583)+(1.8*L1583)+(0.5*1.8^2*K1583)),"") -> 
N1584: =IF(M1584<>"",VLOOKUP(M1584,$AH$16:$AI$125,2,TRUE),"") -> 
P1646: =IF(C1646<>"",(0.5*N1646*O1646),"") -> 
O1647: =IF(M1647<>"",((0.5*1.8^2*J1647)+(1.8*L1647)+(0.5*1.8^2*K1647)),"") -> 
N1648: =IF(M1648<>"",VLOOKUP(M1648,$AH$16:$AI$125,2,TRUE),"") -> 
P1710: =IF(C1710<>"",(0.5*N1710*O1710),"") -> 
O1711: =IF(M1711<>"",((0.5*1.8^2*J1711)+(1.8*L1711)+(0.5*1.8^2*K1711)),"") -> 
N1712: =IF(M1712<>"",VLOOKUP(M1712,$AH$16:$AI$125,2,TRUE),"") -> 
P1774: =IF(C1774<>"",(0.5*N1774*O1774),"") -> 
O1775: =IF(M1775<>"",((0.5*1.8^2*J1775)+(1.8*L1775)+(0.5*1.8^2*K1775)),"") -> 
N1776: =IF(M1776<>"",VLOOKUP(M1776,$AH$16:$AI$125,2,TRUE),"") -> 
... 198 more rows

Sheet DE110_12A
A1: TabTitle | B1: =C15 -> POLLUTION PREVENTION PLAN
A2: Number of Tab Columns | B2: 1 | K2: Click to Choose Soil Associations | M2: Click to Choose Hydrologic Soil Group
A3: DE Starter Row Number | B3: 18 | K3: Moody - Trent | L3: B - B | M3: A
A4: TabSheet Starter Row Number | B4: 5 | K4: Galva - Primghar | L4: B - B | M4: B
A5: TabSheet Header Row Count | B5: 4 | K5: Everly - Wilmonton - Letri | L5: B - B - B/D | M5: C
A6: Top Header Cell | B6: I15 | K6: Clarion - Nicollet - Webster | L6: B - B - B/D | M6: D
A7: Bottom Header Cell | B7: I18 | K7: Marna - Kossuth - Bode | L7: C/D - B/D - B
A8: DESheet Row Count | B8: 198 | K8: Kenyon - Clyde - Floyd | L8: B - B/D - B
A9: Fixed Empty Rows | B9: 2 | K9: Rockton | L9: B
A10: Usable Empty Rows | B10: 0 | K10: Downs - Fayette - Nordness | L10: B - B - B
A11: Total Rows Placed | B11: 200 | C11: xlLeft(1) | I11: xlLeft(1) | K11: Dinsdale - Klinger | L11: B - B
A12: Total Rows Needed | B12: =SUM(B8:B10) -> 200 | C12: General | I12: General | K12: Tama - Muscatine - Downs | L12: B - B - B
A13: Last Tab DE Starter Row | B13: 190 | C13: =CELL("width",C13) -> 159 | I13: =CELL("width",C13) -> 159 | K13: Mashall - Shelby | L13: B - B
A14: Last Tab TabSheet Starter Row | B14: 185 | C14: A | I14: =LOWER(C14) -> a | K14: Monona - Ida - Napier | L14: B - B - B
A15: Last Copy Starter Row | B15: 181 | C15: POLLUTION PREVENTION PLAN | E15: Instructions: | I15: 110-12A | K15: Ida - Hamburg | L15: B - B
A16: Tab Loop Number | B16: 4 | E16: 1. Choose your Soil Association(s) | I16: =B17 -> 2017-10-17 | K16: Albaton - Luton - Onawa | L16: D - D - D
A17: Revision Date | B17: 2017-10-17 | C17: ="This Data Entry Sheet fills Tab "&I15&" effective "&TEXT(B17,"mm-dd-yy") -> This Data Entry Sheet fills Tab 110-12A effective 10-17-17 | E17: 2. Determine which Hydrologic Soil Group to use and then select the group for Runoff Coefficient Number. | I17: =C15 -> POLLUTION PREVENTION PLAN | K17: Sharpsburg - Shelby - Adair | L17: B - B - C
A18: Tabulation Width | B18: 2 | C18: This project is regulated by the requirements of the Iowa Department of Natural Resources (DNR) National Pollutant Discharge Elimination | E18: 3. Enter the total acres of the project and all surface areas pertaining to your project. | K18: Pershing - Gosport - Gara | L18: C - C - C
A19: Horizontal Grid Lines | B19: No | C19: System (NPDES) General Permit No. 2 OR an Iowa Department of Natural Resources (DNR) National Pollutant Discharge Elimination System | E19: 4. The rest of the calculations will be automatically populated. | K19: Otley - Ladoga | L19: B - B
C20: (NPDES) individual storm water permit. The Contractor shall carry out the terms and conditions of this permit and the Pollution | K20: Sparta - Chelsea - Dickinson | L20: A - A - B
C21: Prevention Plan (PPP). | E21: Select a Soil Association: | F21: Downs - Fayette - Nordness | K21: Fayette | L21: B
F22: =IF(F21<>"Choose Soil Associations",INDEX($L$3:$L$24,MATCH(F21,$K$3:$K$24,FALSE),1),"") -> B - B - B | K22: Colo - Cheguest - Titus | L22: B/D - C - B/D
C23: This Base PPP includes information on Roles and Responsibilities, Project Site Description, Controls, Maintenance Procedures, Inspection | K23: Grundy - Haig - Arispe - Gara | L23: C - C/D - C - C
C24: Requirements, Non-Storm Water Controls, Potential Sources of Off Right-of-Way Pollution, and Definitions. This plan references other | E24: Select a second Soil Association if needed: | F24: Click to Choose Soil Associations | K24: Seymour - Edina - Clarinda | L24: C - D - D
C25: documents rather than repeating the information contained in the documents. A copy of this Base Pollution Prevention Plan, amended as | F25: =IF(F24<>"Choose Soil Associations",INDEX($L$3:$L$24,MATCH(F24,$K$3:$K$24,FALSE),1),"") -> 
C26: needed per plan revisions or by contract modification, will be readily available for review.
E27: Select Hydrologic Soil Group: | F27: B
C28: All contractors shall conduct their operations in a manner that controls pollutants, minimizes erosion, and prevents sediments from
C29: entering waters of the state and leaving the highway right-of-way. The prime contractor shall be responsible for compliance and | E29: Runoff Coefficient Numbers
C30: implementation of the PPP for their entire contract. This responsibility shall be further shared with subcontractors whose work is a | E30: A link to Chapter 10D-01 is provided to use Table 2 for Runoff Coefficient Numbers.
C31: source of potential pollution as defined in this PPP. | E31: Paved Surfaces | F31: =IF($F$27="A",0.85,IF($F$27="B",0.85,IF($F$27="C",0.85,IF($F$27="D",0.85,"Please select Hydrologic Soil Group")))) -> 0.85
E32: Granular Shoulder Surfaces | F32: =IF($F$27="A",0.25,IF($F$27="B",0.35,IF($F$27="C",0.4,IF($F$27="D",0.4,"")))) -> 0.35
E33: Grass Surfaces | F33: =IF($F$27="A",0.1,IF($F$27="B",0.2,IF($F$27="C",0.3,IF($F$27="D",0.3,"")))) -> 0.2
C34: I. ROLES AND RESPONSIBILITES
C35: A. Designer: | G35: ACRES
C36: 1. Prepares Base PPP included in the project plan. | E36: Total Acres = (average ROW width x length of permit limits) + interchange areas | G36: 6.4
C37: 2. Prepares Notice of Intent (NOI) submitted to Iowa DNR.
C38: 3. Signature authority on the Base PPP and NOI. | E38: Paved Surfaces Acres = | G38: 2.5
C39: B. Contractor/Subcontractor: | E39: Granular Shoulder Surfaces Acres = | G39: 0.19
C40: 1. Affected contractors/subcontractors are co-permittees with the IDOT and will sign a certification statement adhering to the | E40: Grass Surfaces Acres = | G40: =SUM(G36-SUM(G38:G39)) -> 3.71
C41: requirements of the NPDES permit and this PPP plan. Affected contractors/subcontractors are anyone responsible for sediment or
C42: erosion controls or involved in land disturbing activities. All co-permittees are legally required under the Clean Water Act | E42: Disturbed Acres = area of new pavt + area of new gran. & earth shoulders + area to be seeded | G42: 5.4
C43: and the Iowa Administrative Code to ensure compliance with the terms and conditions of this PPP.
C44: 2. Submit an Erosion Control Implementation Plan (ECIP) according to Specifications Section 2602 and any additional plan notes.
C45: 3. Install and maintain appropriate controls. | E45: Percentage Breakdowns Per Surface
C46: 4. Supervise and implement good housekeeping practices. | E46: % Paved Surfaces = | G46: =IF(AND($G$36<>"",$G$38<>""),$G$38/$G$36,"") -> 0.390625
C47: 5. Conduct joint required inspections of the site with inspection staff. | E47: % Granular Shoulder Surfaces Acres = | G47: =IF(AND($G$36<>"",$G$39<>""),$G$39/$G$36,"") -> 0.0296875
C48: 6. Comply with training and certification requirements of Specifications Section 2602. | E48: % Grass Surfaces Acres = | G48: =IF(AND($G$36<>"",$G$40<>""),$G$40/$G$36,"") -> 0.5796875
C49: 7. Signature authority on Co-Permittee Certification Statements and storm water inspection reports.
C50: C. RCE/Inspector: | E50: Calculate Average Runoff Coefficient Number
C51: 1. Update PPP whenever there is a change in design, construction, operation or maintenance, which has a significant effect on the | E51: Paved Surfaces = | G51: =IF(G46<>"",IF(OR($F$27="A",$F$27="B",$F$27="C",$F$27="D"),F31*G46,""),"") -> 0.33203125
C52: discharge of pollutants from the project. | E52: Granular Shoulder Surfaces = | G52: =IF(G47<>"",IF(OR($F$27="A",$F$27="B",$F$27="C",$F$27="D"),F32*G47,""),"") -> 0.010390625
C53: 2. Maintain an up-to-date record that identifies contractors and subcontractors as co-permittees. | E53: Grass Surfaces = | G53: =IF(G48<>"",IF(OR($F$27="A",$F$27="B",$F$27="C",$F$27="D"),F33*G48,""),"") -> 0.1159375
C54: 3. Make these plans available to the DNR upon their request.
C55: 4. Conduct joint required inspections of the site with the contractor/subcontractor. | E55: Average Runoff Coefficient Number | G55: =ROUNDUP(SUM(G51:G53),2) -> 0.46
C56: 5. Complete an inspection report after each inspection.
C57: 6. Signature authority on storm water inspection reports and Notice of Discontinuation (NOD).
C59: II. PROJECT SITE DESCRIPTION
C60: A. This Pollution Prevention Plan (PPP) is for the construction of various Pipe Culverts and Box Culverts.
C61: B. This PPP covers approximately 6.4 acres with an estimated 5.4 acres being disturbed. The
C62: portion of the PPP covered by this contract has 5.4 acres disturbed.
C63: C. The PPP is located in an area of 1 soil association (Downs-Fayette-Nordness).
C64: The estimated weighted average runoff coefficient number for this PPP after completion will be 0.46.
C65: D. Storm Water Site Map - Multiple sources of information comprise the base storm water site map including:
C66: 1. Drainage patterns – Plan and Profile sheets and Situation plans.
C67: 2. Proposed Slopes – Cross Sections.
C68: 3. Areas of Soil Disturbance – construction limits shown on Plan and Profile sheets.
C69: 4. Location of Structural Controls – Tabulations on C sheets.
C70: 5. Locations of Non-structural Controls – Tabulations on C sheets.
C71: 6. Locations of Stabilization Practices – generally within construction limits shown on Plan and Profile sheets.
C72: 7. Surface Waters (including wetlands) – Project Location Map and Plan and Profile sheets.
C73: 8. Locations where storm water is discharged – Plan and Profile sheets.
C74: E. The base site map is amended by contract modifications and progress payments (fieldbook entries) of completed erosion control
C75: work. Also, due to project phasing, erosion and sediment controls shown on project plans may not be installed until needed, based
C76: on site conditions. For example, silt fence ditch checks will typically not be installed until the ditch has been installed.
C77: Installed locations may also be modified from tabulation locations by field staff. Installed locations will be documented by
C78: fieldbook entries.
C79: F. Runoff from this work will flow into Deep Creek and Mill Creek.
C81: III. CONTROLS
C82: A. The contractor’s ECIP specified in Article 2602.03 for accomplishment of storm water controls should clearly describe the intended
C83: sequence of major activities and for each activity define the control measure and the timing during the construction process that
C84: the measure will be implemented.
C85: B. Preserve vegetation in areas not needed for construction.
C86: C. Sections 2601 and 2602 of the Standard Specifications define requirements to implement erosion and sediment control measures.
C87: Actual quantities used and installed locations may vary from the Base PPP and amendment of the plan will be documented via
C88: fieldbook entries or by contract modification. Additional erosion and sediment control items may be required as determined by the
C89: inspector and/or contractor during storm water monitoring inspections. If the work involved is not applicable to any contract
C90: items, the work will be paid for according to Article 1109.03 paragraph B.
C91: 1. EROSION AND SEDIMENT CONTROLS
C92: a. Stabilization Practices
C93: 1) Site plans will ensure that existing vegetation or natural buffers are preserved where attainable and disturbed portions
C94: of the site will be stabilized.
C95: 2) Initialize stabilization of disturbed areas immediately after clearing, grading, excavating, or other earth disturbing
C96: activities have:
C97: a) Permanently ceased on any portion of the site, or
C98: b) Temporarily ceased on any portion of the site and will not resume for a period exceeding 14 calendar days.
C99: 3) Staged permanent and/or temporary stabilizing seeding and mulching shall be completed as the disturbed areas are
C100: completed. Incomplete areas shall be stabilized according to paragraph III, C, 1, a, 2, b above.
C101: 4) Permanent and Temporary Stabilization practices to be used for this project are located in the Estimated Project
C102: Quantities (100-0A, 100-1A, or 100-1C) and Estimate Reference Information (100-4A) located on the C sheets of the plan.
C103: Typical drawings detailing construction of the practices to be used on this project are referenced in the Standard Road
C104: Plans Tabulation.
C105: 5) Preservation of existing vegetation within right-of-way or easements will act as vegetative buffer strips.
C106: 6) Preservation of topsoil: Bid items to be used for this project are located in the Estimated Project Quantities (100-0A,
C107: 100-1A, or 100-1C) and Estimate Reference Information (100-4A) located on the C sheets of the plan. Additional
C108: information may be found in Tabulations in the C or T sheets of the plans or is referenced in Standard Specifications
C109: Section 2105.
C110: b. Structural Practices
C111: 1) Structural practices will be implemented to divert flows from exposed soils and detain or otherwise limit runoff and the
C112: discharge of pollutants from exposed areas of the site. Additionally, structural practices may include: silt basins that
C113: provide 3600 cubic feet of storage per acre drained or equivalent sediment controls, outlet structures that withdraw water
C114: from surface when discharging basins, and controls to direct storm water to vegetated areas.
C115: 2) Structural practices to be used for this project are located in the Estimated Project Quantities (100-0A, 100-1A, or
C116: 100-1C) and Estimate Reference Information (100-4A) located on the C sheets of the plan, as well as all other item
C117: specific Tabulations. Typical drawings detailing construction of the devices to be used on this project can be found on
C118: the B sheets of the plans or are referenced in the Standard Road Plans Tabulation.
C119: c. Storm Water Management
C120: 1) Measures shall be installed during the construction process to control pollutants in storm water discharges that will
C121: occur after construction operations have been completed. This may include velocity dissipation devices at discharge
C122: locations and along length of outfall channel as necessary to provide a non-erosion velocity flow from structure to water
C123: course. If included with this project, these items are located in the Estimated Project Quantities (100-0A, 100-1A, or
C124: 100-1C) and Estimate Reference Information (100-4A) located on the C sheets of the plan, as well as all other item
C125: specific Tabulations. Typical drawings detailing construction of the practices to be used on this project are referenced
C126: in the Standard Road Plans Tabulation. The installation of these devices may be subject to Section 404 of the Clean Water
C127: Act.
C128: 2. OTHER CONTROLS
C129: a. Contractor disposal of unused construction materials and construction material wastes shall comply with applicable state and
C130: local waste disposal, sanitary sewer, or septic system regulations. In the event of a conflict with other governmental
C131: laws, rules and regulations, the more restrictive laws, rules or regulations shall apply.
C132: 1) Vehicle Entrances and Exits - Construct and maintain entrances and exits to prevent tracking of sediments onto roadways.
C133: 2) Material Delivery, Storage and Use - Implement practices to prevent discharge of construction materials during delivery,
C134: storage, and use.
C135: 3) Stockpile Management - Install controls to reduce or eliminate pollution of storm water from stockpiles of soil and
C136: paving.
C137: 4) Waste Disposal - Do not discharge any materials, including building materials, into waters of the state, except as
C138: authorized by a Section 404 permit.
C139: 5) Spill Prevention and Control - Implement procedures to contain and clean-up spills and prevent material discharges to the
C140: storm drain system and waters of the state.
C141: 6) Concrete Residuals and Washout Wastes - Designate temporary concrete washout facilities for rinsing out concrete trucks.
C142: Provide directions to truck drivers where designated washout facilities are located. Designated washout areas should be
C143: located at least 50 feet away from storm drains, streams or other water bodies. Care should be taken to ensure these
C144: facilities do not overflow during storm events.
C145: 7) Concrete Grooving/Grinding Slurry – Do not discharge slurry to a waterbody or storm drain. Slurry may be applied on
C146: foreslopes or removed from the project.
C147: 8) Vehicle and Equipment Storage and Maintenance Areas - Perform on site fueling and maintenance in accordance with all
C148: environment laws such as proper storage of onside fuels and proper disposal of used engine oil or other fluids on site.
C149: Employ washing practices that prevent contamination of surface and ground water from wash water.
C150: 9) Litter Management - Ensure employees properly dispose of litter.
C151: 10) Dewatering – Properly treat water to remove suspended sediment before it re-enters a waterbody or discharges off-site.
C152: Measures are also to be taken to prevent scour erosion at dewatering discharge point.
C153: 3. APPROVED STATE OR LOCAL PLANS
C154: During the course of this construction, it is possible that situations will arise where unknown materials will be encountered.
C155: When such situations are encountered, they will be handled according to all federal, state, and local regulations in effect at
C156: the time.
C158: IV. MAINTENANCE PROCEDURES
C159: The contractor is required to maintain all temporary erosion and sediment control measures in proper working order, including
C160: cleaning, repairing, or replacing them throughout the contract period. This shall begin when the features have lost 50% of their
C161: capacity.
C163: V. INSPECTION REQUIREMENTS
C164: A. Inspections shall be made jointly by the contractor and the contracting authority at least once every seven calendar days. Storm
C165: water monitoring inspections will include:
C166: 1. Date of the inspection.
C167: 2. Summary of the scope of the inspection.
C168: 3. Name and qualifications of the personnel making the inspection.
C169: 5. Review erosion and sediment control measures within disturbed areas for the effectiveness in preventing impacts to receiving
C170: waters.
C171: 6. Major observations related to the implementation of the PPP.
C172: 7. Identify corrective actions required to maintain or modify erosion and sediment control measures.
C173: B. Include storm water monitoring inspection reports in the Amended PPP. Incorporate any additional erosion and sediment control
C174: measures determined as a result of the inspection. Immediately begin corrective actions on all deficiencies found within 3
C175: calendar days of the inspection.
C177: VI. NON-STORM WATER DISCHARGES
C178: This includes subsurface drains (i.e. longitudinal and standard subdrains) and slope drains. The velocity of the discharge from
C179: these features may be controlled by the use of patio blocks, Class A stone, erosion stone or other appropriate materials. This also
C180: includes uncontaminated groundwater from dewatering operations, which will be controlled as discussed in Section III of the PPP.
C182: VII. POTENTIAL SOURCES OF OFF RIGHT-OF-WAY (ROW) POLLUTION
C183: Silts, sediment, and other forms of pollution may be transported onto highway right-of-way (ROW) as a result of a storm event.
C184: Potential sources of pollution located outside highway ROW are beyond the control of this PPP. Pollution within highway ROW will be
C185: conveyed and controlled per this PPP.
C187: VIII. DEFINITIONS
C188: A. Base PPP - Initial Pollution Prevention Plan.
C189: B. Amended PPP - May include Plan Revisions or Contract Modifications for new items, storm water monitoring inspection reports, and
C190: fieldbook entries made by the inspector.
C191: C. IDR - Inspector’s Daily Report – this contains the inspector’s daily diary and bid item postings.
C192: D. Controls - Methods, practices, or measures to minimize or prevent erosion, control sedimentation, control storm water, or minimize
C193: contaminants from other types of waste or materials. Also called Best Management Practices (BMPs).
C194: E. Signature Authority - Representative from Designer, Contractor/Subcontractor, or RCE/Inspector authorized to sign various storm
C195: water documents.
C197: ---------------------------------------------------------------------------------------------------------------------------------
C198: CERTIFICATION STATEMENT
C199: I certify under penalty of law that this document and all attachments were prepared under my direction or supervision in accordance
C200: with a system designed to assure that qualified personnel properly gathered and evaluated the information submitted. Based on my inquiry
C201: of the person or persons who manage the system, or those persons directly responsible for gathering the information, the information
C202: submitted is, to the best of my knowledge and belief, true, accurate, and complete. I am aware that there are significant penalties for
C203: submitting false information, including the possibility of fine and imprisonment for knowing violations.
C205: ________________________________________
C206: Signature
C208: ________________________________________
C209: Printed or Typed Name
C211: ________________________________________
... 3 more rows

Sheet DE111_25
A1: TabTitle | B1: =C15 -> INDEX OF TABULATIONS
A2: Number of Tab Columns | B2: 3
A3: DE Starter Row Number | B3: 20
A4: TabSheet Starter Row Number | B4: 7
A5: TabSheet Header Row Count | B5: 6
A6: Top Header Cell | B6: G15
A7: Bottom Header Cell | B7: I20
A8: DESheet Row Count | B8: 6
A9: Fixed Empty Rows | B9: 10
A10: Usable Empty Rows | B10: 0
A11: Total Rows Placed | B11: 0 | C11: xlLeft(1) | D11: xlLeft(1) | E11: xlLeft(1) | G11: =C11 -> xlLeft(1) | H11: =D11 -> xlLeft(1) | I11: xlLeft(1)
A12: Total Rows Needed | B12: =SUM(B8:B10) -> 16 | C12: General | D12: General | E12: General | G12: =C12 -> General | H12: General | I12: General
A13: Last Tab DE Starter Row | B13: 0 | C13: =CELL("width",C13) -> 13 | D13: =CELL("width",D13) -> 128 | E13: =CELL("width",E13) -> 15 | G13: =CELL("width",G13) -> 0 | H13: =CELL("width",H13) -> 0 | I13: =CELL("width",I13) -> 0
A14: Last Tab TabSheet Starter Row | B14: 0 | C14: A | D14: B | E14: C | G14: =LOWER(C14) -> a | H14: =LOWER(D14) -> b | I14: =LOWER(E14) -> c
A15: Last Copy Starter Row | B15: 0 | C15: INDEX OF TABULATIONS | G15: 111-25
A16: Tab Loop Number | B16: 1 | G16: =B17 -> 2011-10-18
A17: Revision Date | B17: 2011-10-18 | C17: ="This Data Entry Sheet fills Tab "&G15&" effective "&TEXT(B17,"mm-dd-yy") -> This Data Entry Sheet fills Tab 111-25 effective 10-18-11 | G17: =C15 -> INDEX OF TABULATIONS
A18: Tabulation Width | B18: 2 | C18: Tabulation | D18: Tabulation Title | E18: Sheet No.
A19: Horizontal Grid Lines | B19: Yes | G19: =C18 -> Tabulation | H19: =D18 -> Tabulation Title | I19: =E18 -> Sheet No.
C20: RC Sheets
C21: 100-17 | D21: TABULATION OF SILT FENCES | E21: RC.3
C22: 100-18 | D22: SILT FENCES FOR DITCH CHECKS | E22: RC.4
C23: 100-19 | D23: PERIMETER AND SLOPE SEDIMENT CONTROL DEVICE | E23: RC.5
C24: 100-32 | D24: ROCK CHECK DAM | E24: RC.5
C25: 110-12A | D25: POLLUTION PREVENTION PLAN | E25: RC.1 - RC.2

Sheet 100_17
A1: 100-17
A2: 2010-04-20
A3: TABULATION OF SILT FENCES
A5: Refer to EC-201
A6: Location | D6: Length | E6: Remarks
A7: Begin Station | B7: End Station | C7: Side
D8: LF
A9: =IF(OFFSET(DE100_17!$C$23,ROWS($C$23:C23)-1,COLUMNS($C$23:C23)-1)<>"",OFFSET(DE100_17!$C$23,ROWS($C$23:C23)-1,COLUMNS($C$23:C23)-1),"") ->  | B9: =IF(OFFSET(DE100_17!$D$23,ROWS($D$23:D23)-1,COLUMNS($D$23:D23)-1)<>"",OFFSET(DE100_17!$D$23,ROWS($D$23:D23)-1,COLUMNS($D$23:D23)-1),"") ->  | C9: =IF(OFFSET(DE100_17!$E$23,ROWS($E$23:E23)-1,COLUMNS($E$23:E23)-1)<>"",OFFSET(DE100_17!$E$23,ROWS($E$23:E23)-1,COLUMNS($E$23:E23)-1),"") ->  | D9: =IF(OFFSET(DE100_17!$F$23,ROWS($F$23:F23)-1,COLUMNS($F$23:F23)-1)<>"",OFFSET(DE100_17!$F$23,ROWS($F$23:F23)-1,COLUMNS($F$23:F23)-1),"") ->  | E9: =IF(OFFSET(DE100_17!$G$23,ROWS($G$23:G23)-1,COLUMNS($G$23:G23)-1)<>"",OFFSET(DE100_17!$G$23,ROWS($G$23:G23)-1,COLUMNS($G$23:G23)-1),"") -> 
A10: =IF(OFFSET(DE100_17!$C$23,ROWS($C$23:C24)-1,COLUMNS($C$23:C24)-1)<>"",OFFSET(DE100_17!$C$23,ROWS($C$23:C24)-1,COLUMNS($C$23:C24)-1),"") -> 7983.25 | B10: =IF(OFFSET(DE100_17!$D$23,ROWS($D$23:D24)-1,COLUMNS($D$23:D24)-1)<>"",OFFSET(DE100_17!$D$23,ROWS($D$23:D24)-1,COLUMNS($D$23:D24)-1),"") -> 8014.33 | C10: =IF(OFFSET(DE100_17!$E$23,ROWS($E$23:E24)-1,COLUMNS($E$23:E24)-1)<>"",OFFSET(DE100_17!$E$23,ROWS($E$23:E24)-1,COLUMNS($E$23:E24)-1),"") -> Rt | D10: =IF(OFFSET(DE100_17!$F$23,ROWS($F$23:F24)-1,COLUMNS($F$23:F24)-1)<>"",OFFSET(DE100_17!$F$23,ROWS($F$23:F24)-1,COLUMNS($F$23:F24)-1),"") -> 40.9 | E10: =IF(OFFSET(DE100_17!$G$23,ROWS($G$23:G24)-1,COLUMNS($G$23:G24)-1)<>"",OFFSET(DE100_17!$G$23,ROWS($G$23:G24)-1,COLUMNS($G$23:G24)-1),"") -> 
A11: =IF(OFFSET(DE100_17!$C$23,ROWS($C$23:C25)-1,COLUMNS($C$23:C25)-1)<>"",OFFSET(DE100_17!$C$23,ROWS($C$23:C25)-1,COLUMNS($C$23:C25)-1),"") -> 8013.44 | B11: =IF(OFFSET(DE100_17!$D$23,ROWS($D$23:D25)-1,COLUMNS($D$23:D25)-1)<>"",OFFSET(DE100_17!$D$23,ROWS($D$23:D25)-1,COLUMNS($D$23:D25)-1),"") -> 8117.19 | C11: =IF(OFFSET(DE100_17!$E$23,ROWS($E$23:E25)-1,COLUMNS($E$23:E25)-1)<>"",OFFSET(DE100_17!$E$23,ROWS($E$23:E25)-1,COLUMNS($E$23:E25)-1),"") -> Rt | D11: =IF(OFFSET(DE100_17!$F$23,ROWS($F$23:F25)-1,COLUMNS($F$23:F25)-1)<>"",OFFSET(DE100_17!$F$23,ROWS($F$23:F25)-1,COLUMNS($F$23:F25)-1),"") -> 124.3 | E11: =IF(OFFSET(DE100_17!$G$23,ROWS($G$23:G25)-1,COLUMNS($G$23:G25)-1)<>"",OFFSET(DE100_17!$G$23,ROWS($G$23:G25)-1,COLUMNS($G$23:G25)-1),"") -> 
A12: =IF(OFFSET(DE100_17!$C$23,ROWS($C$23:C26)-1,COLUMNS($C$23:C26)-1)<>"",OFFSET(DE100_17!$C$23,ROWS($C$23:C26)-1,COLUMNS($C$23:C26)-1),"") -> 8023.6 | B12: =IF(OFFSET(DE100_17!$D$23,ROWS($D$23:D26)-1,COLUMNS($D$23:D26)-1)<>"",OFFSET(DE100_17!$D$23,ROWS($D$23:D26)-1,COLUMNS($D$23:D26)-1),"") -> 8117.83 | C12: =IF(OFFSET(DE100_17!$E$23,ROWS($E$23:E26)-1,COLUMNS($E$23:E26)-1)<>"",OFFSET(DE100_17!$E$23,ROWS($E$23:E26)-1,COLUMNS($E$23:E26)-1),"") -> Rt | D12: =IF(OFFSET(DE100_17!$F$23,ROWS($F$23:F26)-1,COLUMNS($F$23:F26)-1)<>"",OFFSET(DE100_17!$F$23,ROWS($F$23:F26)-1,COLUMNS($F$23:F26)-1),"") -> 95.8 | E12: =IF(OFFSET(DE100_17!$G$23,ROWS($G$23:G26)-1,COLUMNS($G$23:G26)-1)<>"",OFFSET(DE100_17!$G$23,ROWS($G$23:G26)-1,COLUMNS($G$23:G26)-1),"") -> 
A13: =IF(OFFSET(DE100_17!$C$23,ROWS($C$23:C27)-1,COLUMNS($C$23:C27)-1)<>"",OFFSET(DE100_17!$C$23,ROWS($C$23:C27)-1,COLUMNS($C$23:C27)-1),"") ->  | B13: =IF(OFFSET(DE100_17!$D$23,ROWS($D$23:D27)-1,COLUMNS($D$23:D27)-1)<>"",OFFSET(DE100_17!$D$23,ROWS($D$23:D27)-1,COLUMNS($D$23:D27)-1),"") ->  | C13: =IF(OFFSET(DE100_17!$E$23,ROWS($E$23:E27)-1,COLUMNS($E$23:E27)-1)<>"",OFFSET(DE100_17!$E$23,ROWS($E$23:E27)-1,COLUMNS($E$23:E27)-1),"") ->  | D13: =IF(OFFSET(DE100_17!$F$23,ROWS($F$23:F27)-1,COLUMNS($F$23:F27)-1)<>"",OFFSET(DE100_17!$F$23,ROWS($F$23:F27)-1,COLUMNS($F$23:F27)-1),"") ->  | E13: =IF(OFFSET(DE100_17!$G$23,ROWS($G$23:G27)-1,COLUMNS($G$23:G27)-1)<>"",OFFSET(DE100_17!$G$23,ROWS($G$23:G27)-1,COLUMNS($G$23:G27)-1),"") -> 
A14: =IF(OFFSET(DE100_17!$C$23,ROWS($C$23:C28)-1,COLUMNS($C$23:C28)-1)<>"",OFFSET(DE100_17!$C$23,ROWS($C$23:C28)-1,COLUMNS($C$23:C28)-1),"") -> 7979.68 | B14: =IF(OFFSET(DE100_17!$D$23,ROWS($D$23:D28)-1,COLUMNS($D$23:D28)-1)<>"",OFFSET(DE100_17!$D$23,ROWS($D$23:D28)-1,COLUMNS($D$23:D28)-1),"") -> 8003.23 | C14: =IF(OFFSET(DE100_17!$E$23,ROWS($E$23:E28)-1,COLUMNS($E$23:E28)-1)<>"",OFFSET(DE100_17!$E$23,ROWS($E$23:E28)-1,COLUMNS($E$23:E28)-1),"") -> Lt | D14: =IF(OFFSET(DE100_17!$F$23,ROWS($F$23:F28)-1,COLUMNS($F$23:F28)-1)<>"",OFFSET(DE100_17!$F$23,ROWS($F$23:F28)-1,COLUMNS($F$23:F28)-1),"") -> 98.7 | E14: =IF(OFFSET(DE100_17!$G$23,ROWS($G$23:G28)-1,COLUMNS($G$23:G28)-1)<>"",OFFSET(DE100_17!$G$23,ROWS($G$23:G28)-1,COLUMNS($G$23:G28)-1),"") -> 
A15: =IF(OFFSET(DE100_17!$C$23,ROWS($C$23:C29)-1,COLUMNS($C$23:C29)-1)<>"",OFFSET(DE100_17!$C$23,ROWS($C$23:C29)-1,COLUMNS($C$23:C29)-1),"") -> 7988.82 | B15: =IF(OFFSET(DE100_17!$D$23,ROWS($D$23:D29)-1,COLUMNS($D$23:D29)-1)<>"",OFFSET(DE100_17!$D$23,ROWS($D$23:D29)-1,COLUMNS($D$23:D29)-1),"") -> 8017.38 | C15: =IF(OFFSET(DE100_17!$E$23,ROWS($E$23:E29)-1,COLUMNS($E$23:E29)-1)<>"",OFFSET(DE100_17!$E$23,ROWS($E$23:E29)-1,COLUMNS($E$23:E29)-1),"") -> Lt | D15: =IF(OFFSET(DE100_17!$F$23,ROWS($F$23:F29)-1,COLUMNS($F$23:F29)-1)<>"",OFFSET(DE100_17!$F$23,ROWS($F$23:F29)-1,COLUMNS($F$23:F29)-1),"") -> 85.3 | E15: =IF(OFFSET(DE100_17!$G$23,ROWS($G$23:G29)-1,COLUMNS($G$23:G29)-1)<>"",OFFSET(DE100_17!$G$23,ROWS($G$23:G29)-1,COLUMNS($G$23:G29)-1),"") -> 
A16: =IF(OFFSET(DE100_17!$C$23,ROWS($C$23:C30)-1,COLUMNS($C$23:C30)-1)<>"",OFFSET(DE100_17!$C$23,ROWS($C$23:C30)-1,COLUMNS($C$23:C30)-1),"") -> 8012.66 | B16: =IF(OFFSET(DE100_17!$D$23,ROWS($D$23:D30)-1,COLUMNS($D$23:D30)-1)<>"",OFFSET(DE100_17!$D$23,ROWS($D$23:D30)-1,COLUMNS($D$23:D30)-1),"") -> 8088.98 | C16: =IF(OFFSET(DE100_17!$E$23,ROWS($E$23:E30)-1,COLUMNS($E$23:E30)-1)<>"",OFFSET(DE100_17!$E$23,ROWS($E$23:E30)-1,COLUMNS($E$23:E30)-1),"") -> Lt | D16: =IF(OFFSET(DE100_17!$F$23,ROWS($F$23:F30)-1,COLUMNS($F$23:F30)-1)<>"",OFFSET(DE100_17!$F$23,ROWS($F$23:F30)-1,COLUMNS($F$23:F30)-1),"") -> 78.3 | E16: =IF(OFFSET(DE100_17!$G$23,ROWS($G$23:G30)-1,COLUMNS($G$23:G30)-1)<>"",OFFSET(DE100_17!$G$23,ROWS($G$23:G30)-1,COLUMNS($G$23:G30)-1),"") -> 
A17: =IF(OFFSET(DE100_17!$C$23,ROWS($C$23:C31)-1,COLUMNS($C$23:C31)-1)<>"",OFFSET(DE100_17!$C$23,ROWS($C$23:C31)-1,COLUMNS($C$23:C31)-1),"") ->  | B17: =IF(OFFSET(DE100_17!$D$23,ROWS($D$23:D31)-1,COLUMNS($D$23:D31)-1)<>"",OFFSET(DE100_17!$D$23,ROWS($D$23:D31)-1,COLUMNS($D$23:D31)-1),"") ->  | C17: =IF(OFFSET(DE100_17!$E$23,ROWS($E$23:E31)-1,COLUMNS($E$23:E31)-1)<>"",OFFSET(DE100_17!$E$23,ROWS($E$23:E31)-1,COLUMNS($E$23:E31)-1),"") ->  | D17: =IF(OFFSET(DE100_17!$F$23,ROWS($F$23:F31)-1,COLUMNS($F$23:F31)-1)<>"",OFFSET(DE100_17!$F$23,ROWS($F$23:F31)-1,COLUMNS($F$23:F31)-1),"") ->  | E17: =IF(OFFSET(DE100_17!$G$23,ROWS($G$23:G31)-1,COLUMNS($G$23:G31)-1)<>"",OFFSET(DE100_17!$G$23,ROWS($G$23:G31)-1,COLUMNS($G$23:G31)-1),"") -> 
A18: =IF(OFFSET(DE100_17!$C$23,ROWS($C$23:C32)-1,COLUMNS($C$23:C32)-1)<>"",OFFSET(DE100_17!$C$23,ROWS($C$23:C32)-1,COLUMNS($C$23:C32)-1),"") -> 9545.85 | B18: =IF(OFFSET(DE100_17!$D$23,ROWS($D$23:D32)-1,COLUMNS($D$23:D32)-1)<>"",OFFSET(DE100_17!$D$23,ROWS($D$23:D32)-1,COLUMNS($D$23:D32)-1),"") -> 9645.91 | C18: =IF(OFFSET(DE100_17!$E$23,ROWS($E$23:E32)-1,COLUMNS($E$23:E32)-1)<>"",OFFSET(DE100_17!$E$23,ROWS($E$23:E32)-1,COLUMNS($E$23:E32)-1),"") -> Rt | D18: =IF(OFFSET(DE100_17!$F$23,ROWS($F$23:F32)-1,COLUMNS($F$23:F32)-1)<>"",OFFSET(DE100_17!$F$23,ROWS($F$23:F32)-1,COLUMNS($F$23:F32)-1),"") -> 103.2 | E18: =IF(OFFSET(DE100_17!$G$23,ROWS($G$23:G32)-1,COLUMNS($G$23:G32)-1)<>"",OFFSET(DE100_17!$G$23,ROWS($G$23:G32)-1,COLUMNS($G$23:G32)-1),"") -> 
A19: =IF(OFFSET(DE100_17!$C$23,ROWS($C$23:C33)-1,COLUMNS($C$23:C33)-1)<>"",OFFSET(DE100_17!$C$23,ROWS($C$23:C33)-1,COLUMNS($C$23:C33)-1),"") -> 9652.18 | B19: =IF(OFFSET(DE100_17!$D$23,ROWS($D$23:D33)-1,COLUMNS($D$23:D33)-1)<>"",OFFSET(DE100_17!$D$23,ROWS($D$23:D33)-1,COLUMNS($D$23:D33)-1),"") -> 9741.48 | C19: =IF(OFFSET(DE100_17!$E$23,ROWS($E$23:E33)-1,COLUMNS($E$23:E33)-1)<>"",OFFSET(DE100_17!$E$23,ROWS($E$23:E33)-1,COLUMNS($E$23:E33)-1),"") -> Rt | D19: =IF(OFFSET(DE100_17!$F$23,ROWS($F$23:F33)-1,COLUMNS($F$23:F33)-1)<>"",OFFSET(DE100_17!$F$23,ROWS($F$23:F33)-1,COLUMNS($F$23:F33)-1),"") -> 91.9 | E19: =IF(OFFSET(DE100_17!$G$23,ROWS($G$23:G33)-1,COLUMNS($G$23:G33)-1)<>"",OFFSET(DE100_17!$G$23,ROWS($G$23:G33)-1,COLUMNS($G$23:G33)-1),"") -> 
A20: =IF(OFFSET(DE100_17!$C$23,ROWS($C$23:C34)-1,COLUMNS($C$23:C34)-1)<>"",OFFSET(DE100_17!$C$23,ROWS($C$23:C34)-1,COLUMNS($C$23:C34)-1),"") -> 9550 | B20: =IF(OFFSET(DE100_17!$D$23,ROWS($D$23:D34)-1,COLUMNS($D$23:D34)-1)<>"",OFFSET(DE100_17!$D$23,ROWS($D$23:D34)-1,COLUMNS($D$23:D34)-1),"") -> 9740.92 | C20: =IF(OFFSET(DE100_17!$E$23,ROWS($E$23:E34)-1,COLUMNS($E$23:E34)-1)<>"",OFFSET(DE100_17!$E$23,ROWS($E$23:E34)-1,COLUMNS($E$23:E34)-1),"") -> Rt | D20: =IF(OFFSET(DE100_17!$F$23,ROWS($F$23:F34)-1,COLUMNS($F$23:F34)-1)<>"",OFFSET(DE100_17!$F$23,ROWS($F$23:F34)-1,COLUMNS($F$23:F34)-1),"") -> 202.7 | E20: =IF(OFFSET(DE100_17!$G$23,ROWS($G$23:G34)-1,COLUMNS($G$23:G34)-1)<>"",OFFSET(DE100_17!$G$23,ROWS($G$23:G34)-1,COLUMNS($G$23:G34)-1),"") -> 
A21: =IF(OFFSET(DE100_17!$C$23,ROWS($C$23:C35)-1,COLUMNS($C$23:C35)-1)<>"",OFFSET(DE100_17!$C$23,ROWS($C$23:C35)-1,COLUMNS($C$23:C35)-1),"") -> 9621.22 | B21: =IF(OFFSET(DE100_17!$D$23,ROWS($D$23:D35)-1,COLUMNS($D$23:D35)-1)<>"",OFFSET(DE100_17!$D$23,ROWS($D$23:D35)-1,COLUMNS($D$23:D35)-1),"") ->  | C21: =IF(OFFSET(DE100_17!$E$23,ROWS($E$23:E35)-1,COLUMNS($E$23:E35)-1)<>"",OFFSET(DE100_17!$E$23,ROWS($E$23:E35)-1,COLUMNS($E$23:E35)-1),"") -> Rt | D21: =IF(OFFSET(DE100_17!$F$23,ROWS($F$23:F35)-1,COLUMNS($F$23:F35)-1)<>"",OFFSET(DE100_17!$F$23,ROWS($F$23:F35)-1,COLUMNS($F$23:F35)-1),"") -> 60 | E21: =IF(OFFSET(DE100_17!$G$23,ROWS($G$23:G35)-1,COLUMNS($G$23:G35)-1)<>"",OFFSET(DE100_17!$G$23,ROWS($G$23:G35)-1,COLUMNS($G$23:G35)-1),"") -> (1)
A22: =IF(OFFSET(DE100_17!$C$23,ROWS($C$23:C36)-1,COLUMNS($C$23:C36)-1)<>"",OFFSET(DE100_17!$C$23,ROWS($C$23:C36)-1,COLUMNS($C$23:C36)-1),"") ->  | B22: =IF(OFFSET(DE100_17!$D$23,ROWS($D$23:D36)-1,COLUMNS($D$23:D36)-1)<>"",OFFSET(DE100_17!$D$23,ROWS($D$23:D36)-1,COLUMNS($D$23:D36)-1),"") ->  | C22: =IF(OFFSET(DE100_17!$E$23,ROWS($E$23:E36)-1,COLUMNS($E$23:E36)-1)<>"",OFFSET(DE100_17!$E$23,ROWS($E$23:E36)-1,COLUMNS($E$23:E36)-1),"") ->  | D22: =IF(OFFSET(DE100_17!$F$23,ROWS($F$23:F36)-1,COLUMNS($F$23:F36)-1)<>"",OFFSET(DE100_17!$F$23,ROWS($F$23:F36)-1,COLUMNS($F$23:F36)-1),"") ->  | E22: =IF(OFFSET(DE100_17!$G$23,ROWS($G$23:G36)-1,COLUMNS($G$23:G36)-1)<>"",OFFSET(DE100_17!$G$23,ROWS($G$23:G36)-1,COLUMNS($G$23:G36)-1),"") -> 
A23: =IF(OFFSET(DE100_17!$C$23,ROWS($C$23:C37)-1,COLUMNS($C$23:C37)-1)<>"",OFFSET(DE100_17!$C$23,ROWS($C$23:C37)-1,COLUMNS($C$23:C37)-1),"") -> 9532.12 | B23: =IF(OFFSET(DE100_17!$D$23,ROWS($D$23:D37)-1,COLUMNS($D$23:D37)-1)<>"",OFFSET(DE100_17!$D$23,ROWS($D$23:D37)-1,COLUMNS($D$23:D37)-1),"") -> 9615.13 | C23: =IF(OFFSET(DE100_17!$E$23,ROWS($E$23:E37)-1,COLUMNS($E$23:E37)-1)<>"",OFFSET(DE100_17!$E$23,ROWS($E$23:E37)-1,COLUMNS($E$23:E37)-1),"") -> Lt | D23: =IF(OFFSET(DE100_17!$F$23,ROWS($F$23:F37)-1,COLUMNS($F$23:F37)-1)<>"",OFFSET(DE100_17!$F$23,ROWS($F$23:F37)-1,COLUMNS($F$23:F37)-1),"") -> 86 | E23: =IF(OFFSET(DE100_17!$G$23,ROWS($G$23:G37)-1,COLUMNS($G$23:G37)-1)<>"",OFFSET(DE100_17!$G$23,ROWS($G$23:G37)-1,COLUMNS($G$23:G37)-1),"") -> 
A24: =IF(OFFSET(DE100_17!$C$23,ROWS($C$23:C38)-1,COLUMNS($C$23:C38)-1)<>"",OFFSET(DE100_17!$C$23,ROWS($C$23:C38)-1,COLUMNS($C$23:C38)-1),"") -> 9621.4 | B24: =IF(OFFSET(DE100_17!$D$23,ROWS($D$23:D38)-1,COLUMNS($D$23:D38)-1)<>"",OFFSET(DE100_17!$D$23,ROWS($D$23:D38)-1,COLUMNS($D$23:D38)-1),"") -> 9714.16 | C24: =IF(OFFSET(DE100_17!$E$23,ROWS($E$23:E38)-1,COLUMNS($E$23:E38)-1)<>"",OFFSET(DE100_17!$E$23,ROWS($E$23:E38)-1,COLUMNS($E$23:E38)-1),"") -> Lt | D24: =IF(OFFSET(DE100_17!$F$23,ROWS($F$23:F38)-1,COLUMNS($F$23:F38)-1)<>"",OFFSET(DE100_17!$F$23,ROWS($F$23:F38)-1,COLUMNS($F$23:F38)-1),"") -> 96.6 | E24: =IF(OFFSET(DE100_17!$G$23,ROWS($G$23:G38)-1,COLUMNS($G$23:G38)-1)<>"",OFFSET(DE100_17!$G$23,ROWS($G$23:G38)-1,COLUMNS($G$23:G38)-1),"") -> 
A25: =IF(OFFSET(DE100_17!$C$23,ROWS($C$23:C39)-1,COLUMNS($C$23:C39)-1)<>"",OFFSET(DE100_17!$C$23,ROWS($C$23:C39)-1,COLUMNS($C$23:C39)-1),"") -> 9645.41 | B25: =IF(OFFSET(DE100_17!$D$23,ROWS($D$23:D39)-1,COLUMNS($D$23:D39)-1)<>"",OFFSET(DE100_17!$D$23,ROWS($D$23:D39)-1,COLUMNS($D$23:D39)-1),"") ->  | C25: =IF(OFFSET(DE100_17!$E$23,ROWS($E$23:E39)-1,COLUMNS($E$23:E39)-1)<>"",OFFSET(DE100_17!$E$23,ROWS($E$23:E39)-1,COLUMNS($E$23:E39)-1),"") -> Lt | D25: =IF(OFFSET(DE100_17!$F$23,ROWS($F$23:F39)-1,COLUMNS($F$23:F39)-1)<>"",OFFSET(DE100_17!$F$23,ROWS($F$23:F39)-1,COLUMNS($F$23:F39)-1),"") -> 60 | E25: =IF(OFFSET(DE100_17!$G$23,ROWS($G$23:G39)-1,COLUMNS($G$23:G39)-1)<>"",OFFSET(DE100_17!$G$23,ROWS($G$23:G39)-1,COLUMNS($G$23:G39)-1),"") -> (1)
A26: =IF(OFFSET(DE100_17!$C$23,ROWS($C$23:C40)-1,COLUMNS($C$23:C40)-1)<>"",OFFSET(DE100_17!$C$23,ROWS($C$23:C40)-1,COLUMNS($C$23:C40)-1),"") ->  | B26: =IF(OFFSET(DE100_17!$D$23,ROWS($D$23:D40)-1,COLUMNS($D$23:D40)-1)<>"",OFFSET(DE100_17!$D$23,ROWS($D$23:D40)-1,COLUMNS($D$23:D40)-1),"") ->  | C26: =IF(OFFSET(DE100_17!$E$23,ROWS($E$23:E40)-1,COLUMNS($E$23:E40)-1)<>"",OFFSET(DE100_17!$E$23,ROWS($E$23:E40)-1,COLUMNS($E$23:E40)-1),"") ->  | D26: =IF(OFFSET(DE100_17!$F$23,ROWS($F$23:F40)-1,COLUMNS($F$23:F40)-1)<>"",OFFSET(DE100_17!$F$23,ROWS($F$23:F40)-1,COLUMNS($F$23:F40)-1),"") ->  | E26: =IF(OFFSET(DE100_17!$G$23,ROWS($G$23:G40)-1,COLUMNS($G$23:G40)-1)<>"",OFFSET(DE100_17!$G$23,ROWS($G$23:G40)-1,COLUMNS($G$23:G40)-1),"") -> 
A27: =IF(OFFSET(DE100_17!$C$23,ROWS($C$23:C41)-1,COLUMNS($C$23:C41)-1)<>"",OFFSET(DE100_17!$C$23,ROWS($C$23:C41)-1,COLUMNS($C$23:C41)-1),"") -> 10778.27 | B27: =IF(OFFSET(DE100_17!$D$23,ROWS($D$23:D41)-1,COLUMNS($D$23:D41)-1)<>"",OFFSET(DE100_17!$D$23,ROWS($D$23:D41)-1,COLUMNS($D$23:D41)-1),"") -> 10873.75 | C27: =IF(OFFSET(DE100_17!$E$23,ROWS($E$23:E41)-1,COLUMNS($E$23:E41)-1)<>"",OFFSET(DE100_17!$E$23,ROWS($E$23:E41)-1,COLUMNS($E$23:E41)-1),"") -> Rt | D27: =IF(OFFSET(DE100_17!$F$23,ROWS($F$23:F41)-1,COLUMNS($F$23:F41)-1)<>"",OFFSET(DE100_17!$F$23,ROWS($F$23:F41)-1,COLUMNS($F$23:F41)-1),"") -> 98.2 | E27: =IF(OFFSET(DE100_17!$G$23,ROWS($G$23:G41)-1,COLUMNS($G$23:G41)-1)<>"",OFFSET(DE100_17!$G$23,ROWS($G$23:G41)-1,COLUMNS($G$23:G41)-1),"") -> 
A28: =IF(OFFSET(DE100_17!$C$23,ROWS($C$23:C42)-1,COLUMNS($C$23:C42)-1)<>"",OFFSET(DE100_17!$C$23,ROWS($C$23:C42)-1,COLUMNS($C$23:C42)-1),"") -> 10878.25 | B28: =IF(OFFSET(DE100_17!$D$23,ROWS($D$23:D42)-1,COLUMNS($D$23:D42)-1)<>"",OFFSET(DE100_17!$D$23,ROWS($D$23:D42)-1,COLUMNS($D$23:D42)-1),"") -> 10947.67 | C28: =IF(OFFSET(DE100_17!$E$23,ROWS($E$23:E42)-1,COLUMNS($E$23:E42)-1)<>"",OFFSET(DE100_17!$E$23,ROWS($E$23:E42)-1,COLUMNS($E$23:E42)-1),"") -> Rt | D28: =IF(OFFSET(DE100_17!$F$23,ROWS($F$23:F42)-1,COLUMNS($F$23:F42)-1)<>"",OFFSET(DE100_17!$F$23,ROWS($F$23:F42)-1,COLUMNS($F$23:F42)-1),"") -> 71.2 | E28: =IF(OFFSET(DE100_17!$G$23,ROWS($G$23:G42)-1,COLUMNS($G$23:G42)-1)<>"",OFFSET(DE100_17!$G$23,ROWS($G$23:G42)-1,COLUMNS($G$23:G42)-1),"") -> 
A29: =IF(OFFSET(DE100_17!$C$23,ROWS($C$23:C43)-1,COLUMNS($C$23:C43)-1)<>"",OFFSET(DE100_17!$C$23,ROWS($C$23:C43)-1,COLUMNS($C$23:C43)-1),"") -> 10785.31 | B29: =IF(OFFSET(DE100_17!$D$23,ROWS($D$23:D43)-1,COLUMNS($D$23:D43)-1)<>"",OFFSET(DE100_17!$D$23,ROWS($D$23:D43)-1,COLUMNS($D$23:D43)-1),"") -> 10966.39 | C29: =IF(OFFSET(DE100_17!$E$23,ROWS($E$23:E43)-1,COLUMNS($E$23:E43)-1)<>"",OFFSET(DE100_17!$E$23,ROWS($E$23:E43)-1,COLUMNS($E$23:E43)-1),"") -> Rt | D29: =IF(OFFSET(DE100_17!$F$23,ROWS($F$23:F43)-1,COLUMNS($F$23:F43)-1)<>"",OFFSET(DE100_17!$F$23,ROWS($F$23:F43)-1,COLUMNS($F$23:F43)-1),"") -> 197.3 | E29: =IF(OFFSET(DE100_17!$G$23,ROWS($G$23:G43)-1,COLUMNS($G$23:G43)-1)<>"",OFFSET(DE100_17!$G$23,ROWS($G$23:G43)-1,COLUMNS($G$23:G43)-1),"") -> 
A30: =IF(OFFSET(DE100_17!$C$23,ROWS($C$23:C44)-1,COLUMNS($C$23:C44)-1)<>"",OFFSET(DE100_17!$C$23,ROWS($C$23:C44)-1,COLUMNS($C$23:C44)-1),"") -> 10899.75 | B30: =IF(OFFSET(DE100_17!$D$23,ROWS($D$23:D44)-1,COLUMNS($D$23:D44)-1)<>"",OFFSET(DE100_17!$D$23,ROWS($D$23:D44)-1,COLUMNS($D$23:D44)-1),"") ->  | C30: =IF(OFFSET(DE100_17!$E$23,ROWS($E$23:E44)-1,COLUMNS($E$23:E44)-1)<>"",OFFSET(DE100_17!$E$23,ROWS($E$23:E44)-1,COLUMNS($E$23:E44)-1),"") -> Rt | D30: =IF(OFFSET(DE100_17!$F$23,ROWS($F$23:F44)-1,COLUMNS($F$23:F44)-1)<>"",OFFSET(DE100_17!$F$23,ROWS($F$23:F44)-1,COLUMNS($F$23:F44)-1),"") -> 60 | E30: =IF(OFFSET(DE100_17!$G$23,ROWS($G$23:G44)-1,COLUMNS($G$23:G44)-1)<>"",OFFSET(DE100_17!$G$23,ROWS($G$23:G44)-1,COLUMNS($G$23:G44)-1),"") -> (1)
A31: =IF(OFFSET(DE100_17!$C$23,ROWS($C$23:C45)-1,COLUMNS($C$23:C45)-1)<>"",OFFSET(DE100_17!$C$23,ROWS($C$23:C45)-1,COLUMNS($C$23:C45)-1),"") ->  | B31: =IF(OFFSET(DE100_17!$D$23,ROWS($D$23:D45)-1,COLUMNS($D$23:D45)-1)<>"",OFFSET(DE100_17!$D$23,ROWS($D$23:D45)-1,COLUMNS($D$23:D45)-1),"") ->  | C31: =IF(OFFSET(DE100_17!$E$23,ROWS($E$23:E45)-1,COLUMNS($E$23:E45)-1)<>"",OFFSET(DE100_17!$E$23,ROWS($E$23:E45)-1,COLUMNS($E$23:E45)-1),"") ->  | D31: =IF(OFFSET(DE100_17!$F$23,ROWS($F$23:F45)-1,COLUMNS($F$23:F45)-1)<>"",OFFSET(DE100_17!$F$23,ROWS($F$23:F45)-1,COLUMNS($F$23:F45)-1),"") ->  | E31: =IF(OFFSET(DE100_17!$G$23,ROWS($G$23:G45)-1,COLUMNS($G$23:G45)-1)<>"",OFFSET(DE100_17!$G$23,ROWS($G$23:G45)-1,COLUMNS($G$23:G45)-1),"") -> 
A32: =IF(OFFSET(DE100_17!$C$23,ROWS($C$23:C46)-1,COLUMNS($C$23:C46)-1)<>"",OFFSET(DE100_17!$C$23,ROWS($C$23:C46)-1,COLUMNS($C$23:C46)-1),"") -> 10785.3 | B32: =IF(OFFSET(DE100_17!$D$23,ROWS($D$23:D46)-1,COLUMNS($D$23:D46)-1)<>"",OFFSET(DE100_17!$D$23,ROWS($D$23:D46)-1,COLUMNS($D$23:D46)-1),"") -> 10873.75 | C32: =IF(OFFSET(DE100_17!$E$23,ROWS($E$23:E46)-1,COLUMNS($E$23:E46)-1)<>"",OFFSET(DE100_17!$E$23,ROWS($E$23:E46)-1,COLUMNS($E$23:E46)-1),"") -> Lt | D32: =IF(OFFSET(DE100_17!$F$23,ROWS($F$23:F46)-1,COLUMNS($F$23:F46)-1)<>"",OFFSET(DE100_17!$F$23,ROWS($F$23:F46)-1,COLUMNS($F$23:F46)-1),"") -> 91.8 | E32: =IF(OFFSET(DE100_17!$G$23,ROWS($G$23:G46)-1,COLUMNS($G$23:G46)-1)<>"",OFFSET(DE100_17!$G$23,ROWS($G$23:G46)-1,COLUMNS($G$23:G46)-1),"") -> 
A33: =IF(OFFSET(DE100_17!$C$23,ROWS($C$23:C47)-1,COLUMNS($C$23:C47)-1)<>"",OFFSET(DE100_17!$C$23,ROWS($C$23:C47)-1,COLUMNS($C$23:C47)-1),"") -> 10878.25 | B33: =IF(OFFSET(DE100_17!$D$23,ROWS($D$23:D47)-1,COLUMNS($D$23:D47)-1)<>"",OFFSET(DE100_17!$D$23,ROWS($D$23:D47)-1,COLUMNS($D$23:D47)-1),"") -> 10966.39 | C33: =IF(OFFSET(DE100_17!$E$23,ROWS($E$23:E47)-1,COLUMNS($E$23:E47)-1)<>"",OFFSET(DE100_17!$E$23,ROWS($E$23:E47)-1,COLUMNS($E$23:E47)-1),"") -> Lt | D33: =IF(OFFSET(DE100_17!$F$23,ROWS($F$23:F47)-1,COLUMNS($F$23:F47)-1)<>"",OFFSET(DE100_17!$F$23,ROWS($F$23:F47)-1,COLUMNS($F$23:F47)-1),"") -> 91.4 | E33: =IF(OFFSET(DE100_17!$G$23,ROWS($G$23:G47)-1,COLUMNS($G$23:G47)-1)<>"",OFFSET(DE100_17!$G$23,ROWS($G$23:G47)-1,COLUMNS($G$23:G47)-1),"") -> 
A34: =IF(OFFSET(DE100_17!$C$23,ROWS($C$23:C48)-1,COLUMNS($C$23:C48)-1)<>"",OFFSET(DE100_17!$C$23,ROWS($C$23:C48)-1,COLUMNS($C$23:C48)-1),"") -> 10899.75 | B34: =IF(OFFSET(DE100_17!$D$23,ROWS($D$23:D48)-1,COLUMNS($D$23:D48)-1)<>"",OFFSET(DE100_17!$D$23,ROWS($D$23:D48)-1,COLUMNS($D$23:D48)-1),"") ->  | C34: =IF(OFFSET(DE100_17!$E$23,ROWS($E$23:E48)-1,COLUMNS($E$23:E48)-1)<>"",OFFSET(DE100_17!$E$23,ROWS($E$23:E48)-1,COLUMNS($E$23:E48)-1),"") -> Lt | D34: =IF(OFFSET(DE100_17!$F$23,ROWS($F$23:F48)-1,COLUMNS($F$23:F48)-1)<>"",OFFSET(DE100_17!$F$23,ROWS($F$23:F48)-1,COLUMNS($F$23:F48)-1),"") -> 60 | E34: =IF(OFFSET(DE100_17!$G$23,ROWS($G$23:G48)-1,COLUMNS($G$23:G48)-1)<>"",OFFSET(DE100_17!$G$23,ROWS($G$23:G48)-1,COLUMNS($G$23:G48)-1),"") -> (1)
A35: =IF(OFFSET(DE100_17!$C$23,ROWS($C$23:C49)-1,COLUMNS($C$23:C49)-1)<>"",OFFSET(DE100_17!$C$23,ROWS($C$23:C49)-1,COLUMNS($C$23:C49)-1),"") ->  | B35: =IF(OFFSET(DE100_17!$D$23,ROWS($D$23:D49)-1,COLUMNS($D$23:D49)-1)<>"",OFFSET(DE100_17!$D$23,ROWS($D$23:D49)-1,COLUMNS($D$23:D49)-1),"") ->  | C35: =IF(OFFSET(DE100_17!$E$23,ROWS($E$23:E49)-1,COLUMNS($E$23:E49)-1)<>"",OFFSET(DE100_17!$E$23,ROWS($E$23:E49)-1,COLUMNS($E$23:E49)-1),"") ->  | D35: =IF(OFFSET(DE100_17!$F$23,ROWS($F$23:F49)-1,COLUMNS($F$23:F49)-1)<>"",OFFSET(DE100_17!$F$23,ROWS($F$23:F49)-1,COLUMNS($F$23:F49)-1),"") ->  | E35: =IF(OFFSET(DE100_17!$G$23,ROWS($G$23:G49)-1,COLUMNS($G$23:G49)-1)<>"",OFFSET(DE100_17!$G$23,ROWS($G$23:G49)-1,COLUMNS($G$23:G49)-1),"") -> 
A36: =IF(OFFSET(DE100_17!$C$23,ROWS($C$23:C50)-1,COLUMNS($C$23:C50)-1)<>"",OFFSET(DE100_17!$C$23,ROWS($C$23:C50)-1,COLUMNS($C$23:C50)-1),"") -> 38235.25 | B36: =IF(OFFSET(DE100_17!$D$23,ROWS($D$23:D50)-1,COLUMNS($D$23:D50)-1)<>"",OFFSET(DE100_17!$D$23,ROWS($D$23:D50)-1,COLUMNS($D$23:D50)-1),"") -> 38305.99 | C36: =IF(OFFSET(DE100_17!$E$23,ROWS($E$23:E50)-1,COLUMNS($E$23:E50)-1)<>"",OFFSET(DE100_17!$E$23,ROWS($E$23:E50)-1,COLUMNS($E$23:E50)-1),"") -> Rt | D36: =IF(OFFSET(DE100_17!$F$23,ROWS($F$23:F50)-1,COLUMNS($F$23:F50)-1)<>"",OFFSET(DE100_17!$F$23,ROWS($F$23:F50)-1,COLUMNS($F$23:F50)-1),"") -> 85.7 | E36: =IF(OFFSET(DE100_17!$G$23,ROWS($G$23:G50)-1,COLUMNS($G$23:G50)-1)<>"",OFFSET(DE100_17!$G$23,ROWS($G$23:G50)-1,COLUMNS($G$23:G50)-1),"") -> 
A37: =IF(OFFSET(DE100_17!$C$23,ROWS($C$23:C51)-1,COLUMNS($C$23:C51)-1)<>"",OFFSET(DE100_17!$C$23,ROWS($C$23:C51)-1,COLUMNS($C$23:C51)-1),"") -> 38310.2 | B37: =IF(OFFSET(DE100_17!$D$23,ROWS($D$23:D51)-1,COLUMNS($D$23:D51)-1)<>"",OFFSET(DE100_17!$D$23,ROWS($D$23:D51)-1,COLUMNS($D$23:D51)-1),"") -> 38388.45 | C37: =IF(OFFSET(DE100_17!$E$23,ROWS($E$23:E51)-1,COLUMNS($E$23:E51)-1)<>"",OFFSET(DE100_17!$E$23,ROWS($E$23:E51)-1,COLUMNS($E$23:E51)-1),"") -> Rt | D37: =IF(OFFSET(DE100_17!$F$23,ROWS($F$23:F51)-1,COLUMNS($F$23:F51)-1)<>"",OFFSET(DE100_17!$F$23,ROWS($F$23:F51)-1,COLUMNS($F$23:F51)-1),"") -> 95.4 | E37: =IF(OFFSET(DE100_17!$G$23,ROWS($G$23:G51)-1,COLUMNS($G$23:G51)-1)<>"",OFFSET(DE100_17!$G$23,ROWS($G$23:G51)-1,COLUMNS($G$23:G51)-1),"") -> 
A38: =IF(OFFSET(DE100_17!$C$23,ROWS($C$23:C52)-1,COLUMNS($C$23:C52)-1)<>"",OFFSET(DE100_17!$C$23,ROWS($C$23:C52)-1,COLUMNS($C$23:C52)-1),"") ->  | B38: =IF(OFFSET(DE100_17!$D$23,ROWS($D$23:D52)-1,COLUMNS($D$23:D52)-1)<>"",OFFSET(DE100_17!$D$23,ROWS($D$23:D52)-1,COLUMNS($D$23:D52)-1),"") ->  | C38: =IF(OFFSET(DE100_17!$E$23,ROWS($E$23:E52)-1,COLUMNS($E$23:E52)-1)<>"",OFFSET(DE100_17!$E$23,ROWS($E$23:E52)-1,COLUMNS($E$23:E52)-1),"") ->  | D38: =IF(OFFSET(DE100_17!$F$23,ROWS($F$23:F52)-1,COLUMNS($F$23:F52)-1)<>"",OFFSET(DE100_17!$F$23,ROWS($F$23:F52)-1,COLUMNS($F$23:F52)-1),"") ->  | E38: =IF(OFFSET(DE100_17!$G$23,ROWS($G$23:G52)-1,COLUMNS($G$23:G52)-1)<>"",OFFSET(DE100_17!$G$23,ROWS($G$23:G52)-1,COLUMNS($G$23:G52)-1),"") -> 
A39: =IF(OFFSET(DE100_17!$C$23,ROWS($C$23:C53)-1,COLUMNS($C$23:C53)-1)<>"",OFFSET(DE100_17!$C$23,ROWS($C$23:C53)-1,COLUMNS($C$23:C53)-1),"") -> 38207.08 | B39: =IF(OFFSET(DE100_17!$D$23,ROWS($D$23:D53)-1,COLUMNS($D$23:D53)-1)<>"",OFFSET(DE100_17!$D$23,ROWS($D$23:D53)-1,COLUMNS($D$23:D53)-1),"") -> 38328.02 | C39: =IF(OFFSET(DE100_17!$E$23,ROWS($E$23:E53)-1,COLUMNS($E$23:E53)-1)<>"",OFFSET(DE100_17!$E$23,ROWS($E$23:E53)-1,COLUMNS($E$23:E53)-1),"") -> Lt | D39: =IF(OFFSET(DE100_17!$F$23,ROWS($F$23:F53)-1,COLUMNS($F$23:F53)-1)<>"",OFFSET(DE100_17!$F$23,ROWS($F$23:F53)-1,COLUMNS($F$23:F53)-1),"") -> 130.4 | E39: =IF(OFFSET(DE100_17!$G$23,ROWS($G$23:G53)-1,COLUMNS($G$23:G53)-1)<>"",OFFSET(DE100_17!$G$23,ROWS($G$23:G53)-1,COLUMNS($G$23:G53)-1),"") -> 
A40: =IF(OFFSET(DE100_17!$C$23,ROWS($C$23:C54)-1,COLUMNS($C$23:C54)-1)<>"",OFFSET(DE100_17!$C$23,ROWS($C$23:C54)-1,COLUMNS($C$23:C54)-1),"") -> 38332.26 | B40: =IF(OFFSET(DE100_17!$D$23,ROWS($D$23:D54)-1,COLUMNS($D$23:D54)-1)<>"",OFFSET(DE100_17!$D$23,ROWS($D$23:D54)-1,COLUMNS($D$23:D54)-1),"") -> 38484.71 | C40: =IF(OFFSET(DE100_17!$E$23,ROWS($E$23:E54)-1,COLUMNS($E$23:E54)-1)<>"",OFFSET(DE100_17!$E$23,ROWS($E$23:E54)-1,COLUMNS($E$23:E54)-1),"") -> Lt | D40: =IF(OFFSET(DE100_17!$F$23,ROWS($F$23:F54)-1,COLUMNS($F$23:F54)-1)<>"",OFFSET(DE100_17!$F$23,ROWS($F$23:F54)-1,COLUMNS($F$23:F54)-1),"") -> 162.3 | E40: =IF(OFFSET(DE100_17!$G$23,ROWS($G$23:G54)-1,COLUMNS($G$23:G54)-1)<>"",OFFSET(DE100_17!$G$23,ROWS($G$23:G54)-1,COLUMNS($G$23:G54)-1),"") -> 
A41: =IF(OFFSET(DE100_17!$C$23,ROWS($C$23:C55)-1,COLUMNS($C$23:C55)-1)<>"",OFFSET(DE100_17!$C$23,ROWS($C$23:C55)-1,COLUMNS($C$23:C55)-1),"") -> 38206.02 | B41: =IF(OFFSET(DE100_17!$D$23,ROWS($D$23:D55)-1,COLUMNS($D$23:D55)-1)<>"",OFFSET(DE100_17!$D$23,ROWS($D$23:D55)-1,COLUMNS($D$23:D55)-1),"") -> 38485.47 | C41: =IF(OFFSET(DE100_17!$E$23,ROWS($E$23:E55)-1,COLUMNS($E$23:E55)-1)<>"",OFFSET(DE100_17!$E$23,ROWS($E$23:E55)-1,COLUMNS($E$23:E55)-1),"") -> Lt | D41: =IF(OFFSET(DE100_17!$F$23,ROWS($F$23:F55)-1,COLUMNS($F$23:F55)-1)<>"",OFFSET(DE100_17!$F$23,ROWS($F$23:F55)-1,COLUMNS($F$23:F55)-1),"") -> 307.2 | E41: =IF(OFFSET(DE100_17!$G$23,ROWS($G$23:G55)-1,COLUMNS($G$23:G55)-1)<>"",OFFSET(DE100_17!$G$23,ROWS($G$23:G55)-1,COLUMNS($G$23:G55)-1),"") -> 
A42: =IF(OFFSET(DE100_17!$C$23,ROWS($C$23:C56)-1,COLUMNS($C$23:C56)-1)<>"",OFFSET(DE100_17!$C$23,ROWS($C$23:C56)-1,COLUMNS($C$23:C56)-1),"") ->  | B42: =IF(OFFSET(DE100_17!$D$23,ROWS($D$23:D56)-1,COLUMNS($D$23:D56)-1)<>"",OFFSET(DE100_17!$D$23,ROWS($D$23:D56)-1,COLUMNS($D$23:D56)-1),"") ->  | C42: =IF(OFFSET(DE100_17!$E$23,ROWS($E$23:E56)-1,COLUMNS($E$23:E56)-1)<>"",OFFSET(DE100_17!$E$23,ROWS($E$23:E56)-1,COLUMNS($E$23:E56)-1),"") ->  | D42: =IF(OFFSET(DE100_17!$F$23,ROWS($F$23:F56)-1,COLUMNS($F$23:F56)-1)<>"",OFFSET(DE100_17!$F$23,ROWS($F$23:F56)-1,COLUMNS($F$23:F56)-1),"") ->  | E42: =IF(OFFSET(DE100_17!$G$23,ROWS($G$23:G56)-1,COLUMNS($G$23:G56)-1)<>"",OFFSET(DE100_17!$G$23,ROWS($G$23:G56)-1,COLUMNS($G$23:G56)-1),"") -> 
A43: =IF(OFFSET(DE100_17!$C$23,ROWS($C$23:C57)-1,COLUMNS($C$23:C57)-1)<>"",OFFSET(DE100_17!$C$23,ROWS($C$23:C57)-1,COLUMNS($C$23:C57)-1),"") -> 53868.15 | B43: =IF(OFFSET(DE100_17!$D$23,ROWS($D$23:D57)-1,COLUMNS($D$23:D57)-1)<>"",OFFSET(DE100_17!$D$23,ROWS($D$23:D57)-1,COLUMNS($D$23:D57)-1),"") -> 53969.06 | C43: =IF(OFFSET(DE100_17!$E$23,ROWS($E$23:E57)-1,COLUMNS($E$23:E57)-1)<>"",OFFSET(DE100_17!$E$23,ROWS($E$23:E57)-1,COLUMNS($E$23:E57)-1),"") -> Rt | D43: =IF(OFFSET(DE100_17!$F$23,ROWS($F$23:F57)-1,COLUMNS($F$23:F57)-1)<>"",OFFSET(DE100_17!$F$23,ROWS($F$23:F57)-1,COLUMNS($F$23:F57)-1),"") -> 115.2 | E43: =IF(OFFSET(DE100_17!$G$23,ROWS($G$23:G57)-1,COLUMNS($G$23:G57)-1)<>"",OFFSET(DE100_17!$G$23,ROWS($G$23:G57)-1,COLUMNS($G$23:G57)-1),"") -> 
A44: =IF(OFFSET(DE100_17!$C$23,ROWS($C$23:C58)-1,COLUMNS($C$23:C58)-1)<>"",OFFSET(DE100_17!$C$23,ROWS($C$23:C58)-1,COLUMNS($C$23:C58)-1),"") -> 53973.4 | B44: =IF(OFFSET(DE100_17!$D$23,ROWS($D$23:D58)-1,COLUMNS($D$23:D58)-1)<>"",OFFSET(DE100_17!$D$23,ROWS($D$23:D58)-1,COLUMNS($D$23:D58)-1),"") -> 54041.29 | C44: =IF(OFFSET(DE100_17!$E$23,ROWS($E$23:E58)-1,COLUMNS($E$23:E58)-1)<>"",OFFSET(DE100_17!$E$23,ROWS($E$23:E58)-1,COLUMNS($E$23:E58)-1),"") -> Rt | D44: =IF(OFFSET(DE100_17!$F$23,ROWS($F$23:F58)-1,COLUMNS($F$23:F58)-1)<>"",OFFSET(DE100_17!$F$23,ROWS($F$23:F58)-1,COLUMNS($F$23:F58)-1),"") -> 83.3 | E44: =IF(OFFSET(DE100_17!$G$23,ROWS($G$23:G58)-1,COLUMNS($G$23:G58)-1)<>"",OFFSET(DE100_17!$G$23,ROWS($G$23:G58)-1,COLUMNS($G$23:G58)-1),"") -> 
A45: =IF(OFFSET(DE100_17!$C$23,ROWS($C$23:C59)-1,COLUMNS($C$23:C59)-1)<>"",OFFSET(DE100_17!$C$23,ROWS($C$23:C59)-1,COLUMNS($C$23:C59)-1),"") -> 53991.99 | B45: =IF(OFFSET(DE100_17!$D$23,ROWS($D$23:D59)-1,COLUMNS($D$23:D59)-1)<>"",OFFSET(DE100_17!$D$23,ROWS($D$23:D59)-1,COLUMNS($D$23:D59)-1),"") ->  | C45: =IF(OFFSET(DE100_17!$E$23,ROWS($E$23:E59)-1,COLUMNS($E$23:E59)-1)<>"",OFFSET(DE100_17!$E$23,ROWS($E$23:E59)-1,COLUMNS($E$23:E59)-1),"") -> Rt | D45: =IF(OFFSET(DE100_17!$F$23,ROWS($F$23:F59)-1,COLUMNS($F$23:F59)-1)<>"",OFFSET(DE100_17!$F$23,ROWS($F$23:F59)-1,COLUMNS($F$23:F59)-1),"") -> 60 | E45: =IF(OFFSET(DE100_17!$G$23,ROWS($G$23:G59)-1,COLUMNS($G$23:G59)-1)<>"",OFFSET(DE100_17!$G$23,ROWS($G$23:G59)-1,COLUMNS($G$23:G59)-1),"") -> (1)
A46: =IF(OFFSET(DE100_17!$C$23,ROWS($C$23:C60)-1,COLUMNS($C$23:C60)-1)<>"",OFFSET(DE100_17!$C$23,ROWS($C$23:C60)-1,COLUMNS($C$23:C60)-1),"") ->  | B46: =IF(OFFSET(DE100_17!$D$23,ROWS($D$23:D60)-1,COLUMNS($D$23:D60)-1)<>"",OFFSET(DE100_17!$D$23,ROWS($D$23:D60)-1,COLUMNS($D$23:D60)-1),"") ->  | C46: =IF(OFFSET(DE100_17!$E$23,ROWS($E$23:E60)-1,COLUMNS($E$23:E60)-1)<>"",OFFSET(DE100_17!$E$23,ROWS($E$23:E60)-1,COLUMNS($E$23:E60)-1),"") ->  | D46: =IF(OFFSET(DE100_17!$F$23,ROWS($F$23:F60)-1,COLUMNS($F$23:F60)-1)<>"",OFFSET(DE100_17!$F$23,ROWS($F$23:F60)-1,COLUMNS($F$23:F60)-1),"") ->  | E46: =IF(OFFSET(DE100_17!$G$23,ROWS($G$23:G60)-1,COLUMNS($G$23:G60)-1)<>"",OFFSET(DE100_17!$G$23,ROWS($G$23:G60)-1,COLUMNS($G$23:G60)-1),"") -> 
A47: =IF(OFFSET(DE100_17!$C$23,ROWS($C$23:C61)-1,COLUMNS($C$23:C61)-1)<>"",OFFSET(DE100_17!$C$23,ROWS($C$23:C61)-1,COLUMNS($C$23:C61)-1),"") -> 53863.52 | B47: =IF(OFFSET(DE100_17!$D$23,ROWS($D$23:D61)-1,COLUMNS($D$23:D61)-1)<>"",OFFSET(DE100_17!$D$23,ROWS($D$23:D61)-1,COLUMNS($D$23:D61)-1),"") -> 53950.69 | C47: =IF(OFFSET(DE100_17!$E$23,ROWS($E$23:E61)-1,COLUMNS($E$23:E61)-1)<>"",OFFSET(DE100_17!$E$23,ROWS($E$23:E61)-1,COLUMNS($E$23:E61)-1),"") -> Lt | D47: =IF(OFFSET(DE100_17!$F$23,ROWS($F$23:F61)-1,COLUMNS($F$23:F61)-1)<>"",OFFSET(DE100_17!$F$23,ROWS($F$23:F61)-1,COLUMNS($F$23:F61)-1),"") -> 89.4 | E47: =IF(OFFSET(DE100_17!$G$23,ROWS($G$23:G61)-1,COLUMNS($G$23:G61)-1)<>"",OFFSET(DE100_17!$G$23,ROWS($G$23:G61)-1,COLUMNS($G$23:G61)-1),"") -> 
A48: =IF(OFFSET(DE100_17!$C$23,ROWS($C$23:C62)-1,COLUMNS($C$23:C62)-1)<>"",OFFSET(DE100_17!$C$23,ROWS($C$23:C62)-1,COLUMNS($C$23:C62)-1),"") -> 53955.19 | B48: =IF(OFFSET(DE100_17!$D$23,ROWS($D$23:D62)-1,COLUMNS($D$23:D62)-1)<>"",OFFSET(DE100_17!$D$23,ROWS($D$23:D62)-1,COLUMNS($D$23:D62)-1),"") -> 54011.53 | C48: =IF(OFFSET(DE100_17!$E$23,ROWS($E$23:E62)-1,COLUMNS($E$23:E62)-1)<>"",OFFSET(DE100_17!$E$23,ROWS($E$23:E62)-1,COLUMNS($E$23:E62)-1),"") -> Lt | D48: =IF(OFFSET(DE100_17!$F$23,ROWS($F$23:F62)-1,COLUMNS($F$23:F62)-1)<>"",OFFSET(DE100_17!$F$23,ROWS($F$23:F62)-1,COLUMNS($F$23:F62)-1),"") -> 62 | E48: =IF(OFFSET(DE100_17!$G$23,ROWS($G$23:G62)-1,COLUMNS($G$23:G62)-1)<>"",OFFSET(DE100_17!$G$23,ROWS($G$23:G62)-1,COLUMNS($G$23:G62)-1),"") -> 
A49: =IF(OFFSET(DE100_17!$C$23,ROWS($C$23:C63)-1,COLUMNS($C$23:C63)-1)<>"",OFFSET(DE100_17!$C$23,ROWS($C$23:C63)-1,COLUMNS($C$23:C63)-1),"") -> 53863.52 | B49: =IF(OFFSET(DE100_17!$D$23,ROWS($D$23:D63)-1,COLUMNS($D$23:D63)-1)<>"",OFFSET(DE100_17!$D$23,ROWS($D$23:D63)-1,COLUMNS($D$23:D63)-1),"") -> 54009.71 | C49: =IF(OFFSET(DE100_17!$E$23,ROWS($E$23:E63)-1,COLUMNS($E$23:E63)-1)<>"",OFFSET(DE100_17!$E$23,ROWS($E$23:E63)-1,COLUMNS($E$23:E63)-1),"") -> Lt | D49: =IF(OFFSET(DE100_17!$F$23,ROWS($F$23:F63)-1,COLUMNS($F$23:F63)-1)<>"",OFFSET(DE100_17!$F$23,ROWS($F$23:F63)-1,COLUMNS($F$23:F63)-1),"") -> 162.2 | E49: =IF(OFFSET(DE100_17!$G$23,ROWS($G$23:G63)-1,COLUMNS($G$23:G63)-1)<>"",OFFSET(DE100_17!$G$23,ROWS($G$23:G63)-1,COLUMNS($G$23:G63)-1),"") -> 
A50: =IF(OFFSET(DE100_17!$C$23,ROWS($C$23:C64)-1,COLUMNS($C$23:C64)-1)<>"",OFFSET(DE100_17!$C$23,ROWS($C$23:C64)-1,COLUMNS($C$23:C64)-1),"") -> 53977.94 | B50: =IF(OFFSET(DE100_17!$D$23,ROWS($D$23:D64)-1,COLUMNS($D$23:D64)-1)<>"",OFFSET(DE100_17!$D$23,ROWS($D$23:D64)-1,COLUMNS($D$23:D64)-1),"") ->  | C50: =IF(OFFSET(DE100_17!$E$23,ROWS($E$23:E64)-1,COLUMNS($E$23:E64)-1)<>"",OFFSET(DE100_17!$E$23,ROWS($E$23:E64)-1,COLUMNS($E$23:E64)-1),"") -> Lt | D50: =IF(OFFSET(DE100_17!$F$23,ROWS($F$23:F64)-1,COLUMNS($F$23:F64)-1)<>"",OFFSET(DE100_17!$F$23,ROWS($F$23:F64)-1,COLUMNS($F$23:F64)-1),"") -> 60 | E50: =IF(OFFSET(DE100_17!$G$23,ROWS($G$23:G64)-1,COLUMNS($G$23:G64)-1)<>"",OFFSET(DE100_17!$G$23,ROWS($G$23:G64)-1,COLUMNS($G$23:G64)-1),"") -> (1)
A51: =IF(OFFSET(DE100_17!$C$23,ROWS($C$23:C65)-1,COLUMNS($C$23:C65)-1)<>"",OFFSET(DE100_17!$C$23,ROWS($C$23:C65)-1,COLUMNS($C$23:C65)-1),"") ->  | B51: =IF(OFFSET(DE100_17!$D$23,ROWS($D$23:D65)-1,COLUMNS($D$23:D65)-1)<>"",OFFSET(DE100_17!$D$23,ROWS($D$23:D65)-1,COLUMNS($D$23:D65)-1),"") ->  | C51: =IF(OFFSET(DE100_17!$E$23,ROWS($E$23:E65)-1,COLUMNS($E$23:E65)-1)<>"",OFFSET(DE100_17!$E$23,ROWS($E$23:E65)-1,COLUMNS($E$23:E65)-1),"") ->  | D51: =IF(OFFSET(DE100_17!$F$23,ROWS($F$23:F65)-1,COLUMNS($F$23:F65)-1)<>"",OFFSET(DE100_17!$F$23,ROWS($F$23:F65)-1,COLUMNS($F$23:F65)-1),"") ->  | E51: =IF(OFFSET(DE100_17!$G$23,ROWS($G$23:G65)-1,COLUMNS($G$23:G65)-1)<>"",OFFSET(DE100_17!$G$23,ROWS($G$23:G65)-1,COLUMNS($G$23:G65)-1),"") -> 
A52: =IF(OFFSET(DE100_17!$C$23,ROWS($C$23:C66)-1,COLUMNS($C$23:C66)-1)<>"",OFFSET(DE100_17!$C$23,ROWS($C$23:C66)-1,COLUMNS($C$23:C66)-1),"") -> 55306.67 | B52: =IF(OFFSET(DE100_17!$D$23,ROWS($D$23:D66)-1,COLUMNS($D$23:D66)-1)<>"",OFFSET(DE100_17!$D$23,ROWS($D$23:D66)-1,COLUMNS($D$23:D66)-1),"") -> 55389.78 | C52: =IF(OFFSET(DE100_17!$E$23,ROWS($E$23:E66)-1,COLUMNS($E$23:E66)-1)<>"",OFFSET(DE100_17!$E$23,ROWS($E$23:E66)-1,COLUMNS($E$23:E66)-1),"") -> Rt | D52: =IF(OFFSET(DE100_17!$F$23,ROWS($F$23:F66)-1,COLUMNS($F$23:F66)-1)<>"",OFFSET(DE100_17!$F$23,ROWS($F$23:F66)-1,COLUMNS($F$23:F66)-1),"") -> 90.1 | E52: =IF(OFFSET(DE100_17!$G$23,ROWS($G$23:G66)-1,COLUMNS($G$23:G66)-1)<>"",OFFSET(DE100_17!$G$23,ROWS($G$23:G66)-1,COLUMNS($G$23:G66)-1),"") -> 
A53: =IF(OFFSET(DE100_17!$C$23,ROWS($C$23:C67)-1,COLUMNS($C$23:C67)-1)<>"",OFFSET(DE100_17!$C$23,ROWS($C$23:C67)-1,COLUMNS($C$23:C67)-1),"") -> 55394.17 | B53: =IF(OFFSET(DE100_17!$D$23,ROWS($D$23:D67)-1,COLUMNS($D$23:D67)-1)<>"",OFFSET(DE100_17!$D$23,ROWS($D$23:D67)-1,COLUMNS($D$23:D67)-1),"") -> 55474.07 | C53: =IF(OFFSET(DE100_17!$E$23,ROWS($E$23:E67)-1,COLUMNS($E$23:E67)-1)<>"",OFFSET(DE100_17!$E$23,ROWS($E$23:E67)-1,COLUMNS($E$23:E67)-1),"") -> Rt | D53: =IF(OFFSET(DE100_17!$F$23,ROWS($F$23:F67)-1,COLUMNS($F$23:F67)-1)<>"",OFFSET(DE100_17!$F$23,ROWS($F$23:F67)-1,COLUMNS($F$23:F67)-1),"") -> 85.8 | E53: =IF(OFFSET(DE100_17!$G$23,ROWS($G$23:G67)-1,COLUMNS($G$23:G67)-1)<>"",OFFSET(DE100_17!$G$23,ROWS($G$23:G67)-1,COLUMNS($G$23:G67)-1),"") -> 
A54: =IF(OFFSET(DE100_17!$C$23,ROWS($C$23:C68)-1,COLUMNS($C$23:C68)-1)<>"",OFFSET(DE100_17!$C$23,ROWS($C$23:C68)-1,COLUMNS($C$23:C68)-1),"") -> 55414.08 | B54: =IF(OFFSET(DE100_17!$D$23,ROWS($D$23:D68)-1,COLUMNS($D$23:D68)-1)<>"",OFFSET(DE100_17!$D$23,ROWS($D$23:D68)-1,COLUMNS($D$23:D68)-1),"") ->  | C54: =IF(OFFSET(DE100_17!$E$23,ROWS($E$23:E68)-1,COLUMNS($E$23:E68)-1)<>"",OFFSET(DE100_17!$E$23,ROWS($E$23:E68)-1,COLUMNS($E$23:E68)-1),"") -> Rt | D54: =IF(OFFSET(DE100_17!$F$23,ROWS($F$23:F68)-1,COLUMNS($F$23:F68)-1)<>"",OFFSET(DE100_17!$F$23,ROWS($F$23:F68)-1,COLUMNS($F$23:F68)-1),"") -> 60 | E54: =IF(OFFSET(DE100_17!$G$23,ROWS($G$23:G68)-1,COLUMNS($G$23:G68)-1)<>"",OFFSET(DE100_17!$G$23,ROWS($G$23:G68)-1,COLUMNS($G$23:G68)-1),"") -> (1)
A55: =IF(OFFSET(DE100_17!$C$23,ROWS($C$23:C69)-1,COLUMNS($C$23:C69)-1)<>"",OFFSET(DE100_17!$C$23,ROWS($C$23:C69)-1,COLUMNS($C$23:C69)-1),"") ->  | B55: =IF(OFFSET(DE100_17!$D$23,ROWS($D$23:D69)-1,COLUMNS($D$23:D69)-1)<>"",OFFSET(DE100_17!$D$23,ROWS($D$23:D69)-1,COLUMNS($D$23:D69)-1),"") ->  | C55: =IF(OFFSET(DE100_17!$E$23,ROWS($E$23:E69)-1,COLUMNS($E$23:E69)-1)<>"",OFFSET(DE100_17!$E$23,ROWS($E$23:E69)-1,COLUMNS($E$23:E69)-1),"") ->  | D55: =IF(OFFSET(DE100_17!$F$23,ROWS($F$23:F69)-1,COLUMNS($F$23:F69)-1)<>"",OFFSET(DE100_17!$F$23,ROWS($F$23:F69)-1,COLUMNS($F$23:F69)-1),"") ->  | E55: =IF(OFFSET(DE100_17!$G$23,ROWS($G$23:G69)-1,COLUMNS($G$23:G69)-1)<>"",OFFSET(DE100_17!$G$23,ROWS($G$23:G69)-1,COLUMNS($G$23:G69)-1),"") -> 
A56: =IF(OFFSET(DE100_17!$C$23,ROWS($C$23:C70)-1,COLUMNS($C$23:C70)-1)<>"",OFFSET(DE100_17!$C$23,ROWS($C$23:C70)-1,COLUMNS($C$23:C70)-1),"") -> 55274.04 | B56: =IF(OFFSET(DE100_17!$D$23,ROWS($D$23:D70)-1,COLUMNS($D$23:D70)-1)<>"",OFFSET(DE100_17!$D$23,ROWS($D$23:D70)-1,COLUMNS($D$23:D70)-1),"") -> 55381.21 | C56: =IF(OFFSET(DE100_17!$E$23,ROWS($E$23:E70)-1,COLUMNS($E$23:E70)-1)<>"",OFFSET(DE100_17!$E$23,ROWS($E$23:E70)-1,COLUMNS($E$23:E70)-1),"") -> Lt | D56: =IF(OFFSET(DE100_17!$F$23,ROWS($F$23:F70)-1,COLUMNS($F$23:F70)-1)<>"",OFFSET(DE100_17!$F$23,ROWS($F$23:F70)-1,COLUMNS($F$23:F70)-1),"") -> 111.5 | E56: =IF(OFFSET(DE100_17!$G$23,ROWS($G$23:G70)-1,COLUMNS($G$23:G70)-1)<>"",OFFSET(DE100_17!$G$23,ROWS($G$23:G70)-1,COLUMNS($G$23:G70)-1),"") -> 
A57: =IF(OFFSET(DE100_17!$C$23,ROWS($C$23:C71)-1,COLUMNS($C$23:C71)-1)<>"",OFFSET(DE100_17!$C$23,ROWS($C$23:C71)-1,COLUMNS($C$23:C71)-1),"") -> 55385.61 | B57: =IF(OFFSET(DE100_17!$D$23,ROWS($D$23:D71)-1,COLUMNS($D$23:D71)-1)<>"",OFFSET(DE100_17!$D$23,ROWS($D$23:D71)-1,COLUMNS($D$23:D71)-1),"") -> 55493.37 | C57: =IF(OFFSET(DE100_17!$E$23,ROWS($E$23:E71)-1,COLUMNS($E$23:E71)-1)<>"",OFFSET(DE100_17!$E$23,ROWS($E$23:E71)-1,COLUMNS($E$23:E71)-1),"") -> Lt | D57: =IF(OFFSET(DE100_17!$F$23,ROWS($F$23:F71)-1,COLUMNS($F$23:F71)-1)<>"",OFFSET(DE100_17!$F$23,ROWS($F$23:F71)-1,COLUMNS($F$23:F71)-1),"") -> 112.1 | E57: =IF(OFFSET(DE100_17!$G$23,ROWS($G$23:G71)-1,COLUMNS($G$23:G71)-1)<>"",OFFSET(DE100_17!$G$23,ROWS($G$23:G71)-1,COLUMNS($G$23:G71)-1),"") -> 
A58: =IF(OFFSET(DE100_17!$C$23,ROWS($C$23:C72)-1,COLUMNS($C$23:C72)-1)<>"",OFFSET(DE100_17!$C$23,ROWS($C$23:C72)-1,COLUMNS($C$23:C72)-1),"") -> 55275 | B58: =IF(OFFSET(DE100_17!$D$23,ROWS($D$23:D72)-1,COLUMNS($D$23:D72)-1)<>"",OFFSET(DE100_17!$D$23,ROWS($D$23:D72)-1,COLUMNS($D$23:D72)-1),"") -> 55367.79 | C58: =IF(OFFSET(DE100_17!$E$23,ROWS($E$23:E72)-1,COLUMNS($E$23:E72)-1)<>"",OFFSET(DE100_17!$E$23,ROWS($E$23:E72)-1,COLUMNS($E$23:E72)-1),"") -> Lt | D58: =IF(OFFSET(DE100_17!$F$23,ROWS($F$23:F72)-1,COLUMNS($F$23:F72)-1)<>"",OFFSET(DE100_17!$F$23,ROWS($F$23:F72)-1,COLUMNS($F$23:F72)-1),"") -> 101.4 | E58: =IF(OFFSET(DE100_17!$G$23,ROWS($G$23:G72)-1,COLUMNS($G$23:G72)-1)<>"",OFFSET(DE100_17!$G$23,ROWS($G$23:G72)-1,COLUMNS($G$23:G72)-1),"") -> 
A59: =IF(OFFSET(DE100_17!$C$23,ROWS($C$23:C73)-1,COLUMNS($C$23:C73)-1)<>"",OFFSET(DE100_17!$C$23,ROWS($C$23:C73)-1,COLUMNS($C$23:C73)-1),"") -> 55383.41 | B59: =IF(OFFSET(DE100_17!$D$23,ROWS($D$23:D73)-1,COLUMNS($D$23:D73)-1)<>"",OFFSET(DE100_17!$D$23,ROWS($D$23:D73)-1,COLUMNS($D$23:D73)-1),"") -> 55493.37 | C59: =IF(OFFSET(DE100_17!$E$23,ROWS($E$23:E73)-1,COLUMNS($E$23:E73)-1)<>"",OFFSET(DE100_17!$E$23,ROWS($E$23:E73)-1,COLUMNS($E$23:E73)-1),"") -> Lt | D59: =IF(OFFSET(DE100_17!$F$23,ROWS($F$23:F73)-1,COLUMNS($F$23:F73)-1)<>"",OFFSET(DE100_17!$F$23,ROWS($F$23:F73)-1,COLUMNS($F$23:F73)-1),"") -> 118.2 | E59: =IF(OFFSET(DE100_17!$G$23,ROWS($G$23:G73)-1,COLUMNS($G$23:G73)-1)<>"",OFFSET(DE100_17!$G$23,ROWS($G$23:G73)-1,COLUMNS($G$23:G73)-1),"") -> 
A60: =IF(OFFSET(DE100_17!$C$23,ROWS($C$23:C74)-1,COLUMNS($C$23:C74)-1)<>"",OFFSET(DE100_17!$C$23,ROWS($C$23:C74)-1,COLUMNS($C$23:C74)-1),"") -> 55406.52 | B60: =IF(OFFSET(DE100_17!$D$23,ROWS($D$23:D74)-1,COLUMNS($D$23:D74)-1)<>"",OFFSET(DE100_17!$D$23,ROWS($D$23:D74)-1,COLUMNS($D$23:D74)-1),"") ->  | C60: =IF(OFFSET(DE100_17!$E$23,ROWS($E$23:E74)-1,COLUMNS($E$23:E74)-1)<>"",OFFSET(DE100_17!$E$23,ROWS($E$23:E74)-1,COLUMNS($E$23:E74)-1),"") -> Lt | D60: =IF(OFFSET(DE100_17!$F$23,ROWS($F$23:F74)-1,COLUMNS($F$23:F74)-1)<>"",OFFSET(DE100_17!$F$23,ROWS($F$23:F74)-1,COLUMNS($F$23:F74)-1),"") -> 60 | E60: =IF(OFFSET(DE100_17!$G$23,ROWS($G$23:G74)-1,COLUMNS($G$23:G74)-1)<>"",OFFSET(DE100_17!$G$23,ROWS($G$23:G74)-1,COLUMNS($G$23:G74)-1),"") -> (1)
A61: =IF(OFFSET(DE100_17!$C$23,ROWS($C$23:C75)-1,COLUMNS($C$23:C75)-1)<>"",OFFSET(DE100_17!$C$23,ROWS($C$23:C75)-1,COLUMNS($C$23:C75)-1),"") ->  | B61: =IF(OFFSET(DE100_17!$D$23,ROWS($D$23:D75)-1,COLUMNS($D$23:D75)-1)<>"",OFFSET(DE100_17!$D$23,ROWS($D$23:D75)-1,COLUMNS($D$23:D75)-1),"") ->  | C61: =IF(OFFSET(DE100_17!$E$23,ROWS($E$23:E75)-1,COLUMNS($E$23:E75)-1)<>"",OFFSET(DE100_17!$E$23,ROWS($E$23:E75)-1,COLUMNS($E$23:E75)-1),"") ->  | D61: =IF(OFFSET(DE100_17!$F$23,ROWS($F$23:F75)-1,COLUMNS($F$23:F75)-1)<>"",OFFSET(DE100_17!$F$23,ROWS($F$23:F75)-1,COLUMNS($F$23:F75)-1),"") ->  | E61: =IF(OFFSET(DE100_17!$G$23,ROWS($G$23:G75)-1,COLUMNS($G$23:G75)-1)<>"",OFFSET(DE100_17!$G$23,ROWS($G$23:G75)-1,COLUMNS($G$23:G75)-1),"") -> 
A62: =IF(OFFSET(DE100_17!$C$23,ROWS($C$23:C76)-1,COLUMNS($C$23:C76)-1)<>"",OFFSET(DE100_17!$C$23,ROWS($C$23:C76)-1,COLUMNS($C$23:C76)-1),"") -> 56997.46 | B62: =IF(OFFSET(DE100_17!$D$23,ROWS($D$23:D76)-1,COLUMNS($D$23:D76)-1)<>"",OFFSET(DE100_17!$D$23,ROWS($D$23:D76)-1,COLUMNS($D$23:D76)-1),"") -> 57159.4 | C62: =IF(OFFSET(DE100_17!$E$23,ROWS($E$23:E76)-1,COLUMNS($E$23:E76)-1)<>"",OFFSET(DE100_17!$E$23,ROWS($E$23:E76)-1,COLUMNS($E$23:E76)-1),"") -> Rt | D62: =IF(OFFSET(DE100_17!$F$23,ROWS($F$23:F76)-1,COLUMNS($F$23:F76)-1)<>"",OFFSET(DE100_17!$F$23,ROWS($F$23:F76)-1,COLUMNS($F$23:F76)-1),"") -> 167.1 | E62: =IF(OFFSET(DE100_17!$G$23,ROWS($G$23:G76)-1,COLUMNS($G$23:G76)-1)<>"",OFFSET(DE100_17!$G$23,ROWS($G$23:G76)-1,COLUMNS($G$23:G76)-1),"") -> 
A63: =IF(OFFSET(DE100_17!$C$23,ROWS($C$23:C77)-1,COLUMNS($C$23:C77)-1)<>"",OFFSET(DE100_17!$C$23,ROWS($C$23:C77)-1,COLUMNS($C$23:C77)-1),"") -> 57165 | B63: =IF(OFFSET(DE100_17!$D$23,ROWS($D$23:D77)-1,COLUMNS($D$23:D77)-1)<>"",OFFSET(DE100_17!$D$23,ROWS($D$23:D77)-1,COLUMNS($D$23:D77)-1),"") -> 57311.04 | C63: =IF(OFFSET(DE100_17!$E$23,ROWS($E$23:E77)-1,COLUMNS($E$23:E77)-1)<>"",OFFSET(DE100_17!$E$23,ROWS($E$23:E77)-1,COLUMNS($E$23:E77)-1),"") -> Rt | D63: =IF(OFFSET(DE100_17!$F$23,ROWS($F$23:F77)-1,COLUMNS($F$23:F77)-1)<>"",OFFSET(DE100_17!$F$23,ROWS($F$23:F77)-1,COLUMNS($F$23:F77)-1),"") -> 151.7 | E63: =IF(OFFSET(DE100_17!$G$23,ROWS($G$23:G77)-1,COLUMNS($G$23:G77)-1)<>"",OFFSET(DE100_17!$G$23,ROWS($G$23:G77)-1,COLUMNS($G$23:G77)-1),"") -> 
A64: =IF(OFFSET(DE100_17!$C$23,ROWS($C$23:C78)-1,COLUMNS($C$23:C78)-1)<>"",OFFSET(DE100_17!$C$23,ROWS($C$23:C78)-1,COLUMNS($C$23:C78)-1),"") ->  | B64: =IF(OFFSET(DE100_17!$D$23,ROWS($D$23:D78)-1,COLUMNS($D$23:D78)-1)<>"",OFFSET(DE100_17!$D$23,ROWS($D$23:D78)-1,COLUMNS($D$23:D78)-1),"") ->  | C64: =IF(OFFSET(DE100_17!$E$23,ROWS($E$23:E78)-1,COLUMNS($E$23:E78)-1)<>"",OFFSET(DE100_17!$E$23,ROWS($E$23:E78)-1,COLUMNS($E$23:E78)-1),"") ->  | D64: =IF(OFFSET(DE100_17!$F$23,ROWS($F$23:F78)-1,COLUMNS($F$23:F78)-1)<>"",OFFSET(DE100_17!$F$23,ROWS($F$23:F78)-1,COLUMNS($F$23:F78)-1),"") ->  | E64: =IF(OFFSET(DE100_17!$G$23,ROWS($G$23:G78)-1,COLUMNS($G$23:G78)-1)<>"",OFFSET(DE100_17!$G$23,ROWS($G$23:G78)-1,COLUMNS($G$23:G78)-1),"") -> 
A65: =IF(OFFSET(DE100_17!$C$23,ROWS($C$23:C79)-1,COLUMNS($C$23:C79)-1)<>"",OFFSET(DE100_17!$C$23,ROWS($C$23:C79)-1,COLUMNS($C$23:C79)-1),"") -> 57106.77 | B65: =IF(OFFSET(DE100_17!$D$23,ROWS($D$23:D79)-1,COLUMNS($D$23:D79)-1)<>"",OFFSET(DE100_17!$D$23,ROWS($D$23:D79)-1,COLUMNS($D$23:D79)-1),"") -> 57159.4 | C65: =IF(OFFSET(DE100_17!$E$23,ROWS($E$23:E79)-1,COLUMNS($E$23:E79)-1)<>"",OFFSET(DE100_17!$E$23,ROWS($E$23:E79)-1,COLUMNS($E$23:E79)-1),"") -> Lt | D65: =IF(OFFSET(DE100_17!$F$23,ROWS($F$23:F79)-1,COLUMNS($F$23:F79)-1)<>"",OFFSET(DE100_17!$F$23,ROWS($F$23:F79)-1,COLUMNS($F$23:F79)-1),"") -> 54 | E65: =IF(OFFSET(DE100_17!$G$23,ROWS($G$23:G79)-1,COLUMNS($G$23:G79)-1)<>"",OFFSET(DE100_17!$G$23,ROWS($G$23:G79)-1,COLUMNS($G$23:G79)-1),"") -> 
A66: =IF(OFFSET(DE100_17!$C$23,ROWS($C$23:C80)-1,COLUMNS($C$23:C80)-1)<>"",OFFSET(DE100_17!$C$23,ROWS($C$23:C80)-1,COLUMNS($C$23:C80)-1),"") -> 57165 | B66: =IF(OFFSET(DE100_17!$D$23,ROWS($D$23:D80)-1,COLUMNS($D$23:D80)-1)<>"",OFFSET(DE100_17!$D$23,ROWS($D$23:D80)-1,COLUMNS($D$23:D80)-1),"") -> 57216.55 | C66: =IF(OFFSET(DE100_17!$E$23,ROWS($E$23:E80)-1,COLUMNS($E$23:E80)-1)<>"",OFFSET(DE100_17!$E$23,ROWS($E$23:E80)-1,COLUMNS($E$23:E80)-1),"") -> Lt | D66: =IF(OFFSET(DE100_17!$F$23,ROWS($F$23:F80)-1,COLUMNS($F$23:F80)-1)<>"",OFFSET(DE100_17!$F$23,ROWS($F$23:F80)-1,COLUMNS($F$23:F80)-1),"") -> 52.8 | E66: =IF(OFFSET(DE100_17!$G$23,ROWS($G$23:G80)-1,COLUMNS($G$23:G80)-1)<>"",OFFSET(DE100_17!$G$23,ROWS($G$23:G80)-1,COLUMNS($G$23:G80)-1),"") -> 
A67: =IF(OFFSET(DE100_17!$C$23,ROWS($C$23:C81)-1,COLUMNS($C$23:C81)-1)<>"",OFFSET(DE100_17!$C$23,ROWS($C$23:C81)-1,COLUMNS($C$23:C81)-1),"") -> 57106.77 | B67: =IF(OFFSET(DE100_17!$D$23,ROWS($D$23:D81)-1,COLUMNS($D$23:D81)-1)<>"",OFFSET(DE100_17!$D$23,ROWS($D$23:D81)-1,COLUMNS($D$23:D81)-1),"") -> 57216.55 | C67: =IF(OFFSET(DE100_17!$E$23,ROWS($E$23:E81)-1,COLUMNS($E$23:E81)-1)<>"",OFFSET(DE100_17!$E$23,ROWS($E$23:E81)-1,COLUMNS($E$23:E81)-1),"") -> Lt | D67: =IF(OFFSET(DE100_17!$F$23,ROWS($F$23:F81)-1,COLUMNS($F$23:F81)-1)<>"",OFFSET(DE100_17!$F$23,ROWS($F$23:F81)-1,COLUMNS($F$23:F81)-1),"") -> 115.8 | E67: =IF(OFFSET(DE100_17!$G$23,ROWS($G$23:G81)-1,COLUMNS($G$23:G81)-1)<>"",OFFSET(DE100_17!$G$23,ROWS($G$23:G81)-1,COLUMNS($G$23:G81)-1),"") -> 
A68: =IF(OFFSET(DE100_17!$C$23,ROWS($C$23:C82)-1,COLUMNS($C$23:C82)-1)<>"",OFFSET(DE100_17!$C$23,ROWS($C$23:C82)-1,COLUMNS($C$23:C82)-1),"") ->  | B68: =IF(OFFSET(DE100_17!$D$23,ROWS($D$23:D82)-1,COLUMNS($D$23:D82)-1)<>"",OFFSET(DE100_17!$D$23,ROWS($D$23:D82)-1,COLUMNS($D$23:D82)-1),"") ->  | C68: =IF(OFFSET(DE100_17!$E$23,ROWS($E$23:E82)-1,COLUMNS($E$23:E82)-1)<>"",OFFSET(DE100_17!$E$23,ROWS($E$23:E82)-1,COLUMNS($E$23:E82)-1),"") ->  | D68: =IF(OFFSET(DE100_17!$F$23,ROWS($F$23:F82)-1,COLUMNS($F$23:F82)-1)<>"",OFFSET(DE100_17!$F$23,ROWS($F$23:F82)-1,COLUMNS($F$23:F82)-1),"") ->  | E68: =IF(OFFSET(DE100_17!$G$23,ROWS($G$23:G82)-1,COLUMNS($G$23:G82)-1)<>"",OFFSET(DE100_17!$G$23,ROWS($G$23:G82)-1,COLUMNS($G$23:G82)-1),"") -> 
A69: =IF(OFFSET(DE100_17!$C$23,ROWS($C$23:C83)-1,COLUMNS($C$23:C83)-1)<>"",OFFSET(DE100_17!$C$23,ROWS($C$23:C83)-1,COLUMNS($C$23:C83)-1),"") -> 58062.16 | B69: =IF(OFFSET(DE100_17!$D$23,ROWS($D$23:D83)-1,COLUMNS($D$23:D83)-1)<>"",OFFSET(DE100_17!$D$23,ROWS($D$23:D83)-1,COLUMNS($D$23:D83)-1),"") -> 58102.67 | C69: =IF(OFFSET(DE100_17!$E$23,ROWS($E$23:E83)-1,COLUMNS($E$23:E83)-1)<>"",OFFSET(DE100_17!$E$23,ROWS($E$23:E83)-1,COLUMNS($E$23:E83)-1),"") -> Rt | D69: =IF(OFFSET(DE100_17!$F$23,ROWS($F$23:F83)-1,COLUMNS($F$23:F83)-1)<>"",OFFSET(DE100_17!$F$23,ROWS($F$23:F83)-1,COLUMNS($F$23:F83)-1),"") -> 42.7 | E69: =IF(OFFSET(DE100_17!$G$23,ROWS($G$23:G83)-1,COLUMNS($G$23:G83)-1)<>"",OFFSET(DE100_17!$G$23,ROWS($G$23:G83)-1,COLUMNS($G$23:G83)-1),"") -> 
A70: =IF(OFFSET(DE100_17!$C$23,ROWS($C$23:C84)-1,COLUMNS($C$23:C84)-1)<>"",OFFSET(DE100_17!$C$23,ROWS($C$23:C84)-1,COLUMNS($C$23:C84)-1),"") -> 58108.27 | B70: =IF(OFFSET(DE100_17!$D$23,ROWS($D$23:D84)-1,COLUMNS($D$23:D84)-1)<>"",OFFSET(DE100_17!$D$23,ROWS($D$23:D84)-1,COLUMNS($D$23:D84)-1),"") -> 58148.78 | C70: =IF(OFFSET(DE100_17!$E$23,ROWS($E$23:E84)-1,COLUMNS($E$23:E84)-1)<>"",OFFSET(DE100_17!$E$23,ROWS($E$23:E84)-1,COLUMNS($E$23:E84)-1),"") -> Rt | D70: =IF(OFFSET(DE100_17!$F$23,ROWS($F$23:F84)-1,COLUMNS($F$23:F84)-1)<>"",OFFSET(DE100_17!$F$23,ROWS($F$23:F84)-1,COLUMNS($F$23:F84)-1),"") -> 42.7 | E70: =IF(OFFSET(DE100_17!$G$23,ROWS($G$23:G84)-1,COLUMNS($G$23:G84)-1)<>"",OFFSET(DE100_17!$G$23,ROWS($G$23:G84)-1,COLUMNS($G$23:G84)-1),"") -> 
A71: =IF(OFFSET(DE100_17!$C$23,ROWS($C$23:C85)-1,COLUMNS($C$23:C85)-1)<>"",OFFSET(DE100_17!$C$23,ROWS($C$23:C85)-1,COLUMNS($C$23:C85)-1),"") -> 58062.16 | B71: =IF(OFFSET(DE100_17!$D$23,ROWS($D$23:D85)-1,COLUMNS($D$23:D85)-1)<>"",OFFSET(DE100_17!$D$23,ROWS($D$23:D85)-1,COLUMNS($D$23:D85)-1),"") -> 58148.78 | C71: =IF(OFFSET(DE100_17!$E$23,ROWS($E$23:E85)-1,COLUMNS($E$23:E85)-1)<>"",OFFSET(DE100_17!$E$23,ROWS($E$23:E85)-1,COLUMNS($E$23:E85)-1),"") -> Rt | D71: =IF(OFFSET(DE100_17!$F$23,ROWS($F$23:F85)-1,COLUMNS($F$23:F85)-1)<>"",OFFSET(DE100_17!$F$23,ROWS($F$23:F85)-1,COLUMNS($F$23:F85)-1),"") -> 90 | E71: =IF(OFFSET(DE100_17!$G$23,ROWS($G$23:G85)-1,COLUMNS($G$23:G85)-1)<>"",OFFSET(DE100_17!$G$23,ROWS($G$23:G85)-1,COLUMNS($G$23:G85)-1),"") -> 
A72: =IF(OFFSET(DE100_17!$C$23,ROWS($C$23:C86)-1,COLUMNS($C$23:C86)-1)<>"",OFFSET(DE100_17!$C$23,ROWS($C$23:C86)-1,COLUMNS($C$23:C86)-1),"") ->  | B72: =IF(OFFSET(DE100_17!$D$23,ROWS($D$23:D86)-1,COLUMNS($D$23:D86)-1)<>"",OFFSET(DE100_17!$D$23,ROWS($D$23:D86)-1,COLUMNS($D$23:D86)-1),"") ->  | C72: =IF(OFFSET(DE100_17!$E$23,ROWS($E$23:E86)-1,COLUMNS($E$23:E86)-1)<>"",OFFSET(DE100_17!$E$23,ROWS($E$23:E86)-1,COLUMNS($E$23:E86)-1),"") ->  | D72: =IF(OFFSET(DE100_17!$F$23,ROWS($F$23:F86)-1,COLUMNS($F$23:F86)-1)<>"",OFFSET(DE100_17!$F$23,ROWS($F$23:F86)-1,COLUMNS($F$23:F86)-1),"") ->  | E72: =IF(OFFSET(DE100_17!$G$23,ROWS($G$23:G86)-1,COLUMNS($G$23:G86)-1)<>"",OFFSET(DE100_17!$G$23,ROWS($G$23:G86)-1,COLUMNS($G$23:G86)-1),"") -> 
A73: =IF(OFFSET(DE100_17!$C$23,ROWS($C$23:C87)-1,COLUMNS($C$23:C87)-1)<>"",OFFSET(DE100_17!$C$23,ROWS($C$23:C87)-1,COLUMNS($C$23:C87)-1),"") -> 65041.53 | B73: =IF(OFFSET(DE100_17!$D$23,ROWS($D$23:D87)-1,COLUMNS($D$23:D87)-1)<>"",OFFSET(DE100_17!$D$23,ROWS($D$23:D87)-1,COLUMNS($D$23:D87)-1),"") -> 65140.8 | C73: =IF(OFFSET(DE100_17!$E$23,ROWS($E$23:E87)-1,COLUMNS($E$23:E87)-1)<>"",OFFSET(DE100_17!$E$23,ROWS($E$23:E87)-1,COLUMNS($E$23:E87)-1),"") -> Rt | D73: =IF(OFFSET(DE100_17!$F$23,ROWS($F$23:F87)-1,COLUMNS($F$23:F87)-1)<>"",OFFSET(DE100_17!$F$23,ROWS($F$23:F87)-1,COLUMNS($F$23:F87)-1),"") -> 104.8 | E73: =IF(OFFSET(DE100_17!$G$23,ROWS($G$23:G87)-1,COLUMNS($G$23:G87)-1)<>"",OFFSET(DE100_17!$G$23,ROWS($G$23:G87)-1,COLUMNS($G$23:G87)-1),"") -> 
A74: =IF(OFFSET(DE100_17!$C$23,ROWS($C$23:C88)-1,COLUMNS($C$23:C88)-1)<>"",OFFSET(DE100_17!$C$23,ROWS($C$23:C88)-1,COLUMNS($C$23:C88)-1),"") -> 65145.2 | B74: =IF(OFFSET(DE100_17!$D$23,ROWS($D$23:D88)-1,COLUMNS($D$23:D88)-1)<>"",OFFSET(DE100_17!$D$23,ROWS($D$23:D88)-1,COLUMNS($D$23:D88)-1),"") -> 65241.34 | C74: =IF(OFFSET(DE100_17!$E$23,ROWS($E$23:E88)-1,COLUMNS($E$23:E88)-1)<>"",OFFSET(DE100_17!$E$23,ROWS($E$23:E88)-1,COLUMNS($E$23:E88)-1),"") -> Rt | D74: =IF(OFFSET(DE100_17!$F$23,ROWS($F$23:F88)-1,COLUMNS($F$23:F88)-1)<>"",OFFSET(DE100_17!$F$23,ROWS($F$23:F88)-1,COLUMNS($F$23:F88)-1),"") -> 102.8 | E74: =IF(OFFSET(DE100_17!$G$23,ROWS($G$23:G88)-1,COLUMNS($G$23:G88)-1)<>"",OFFSET(DE100_17!$G$23,ROWS($G$23:G88)-1,COLUMNS($G$23:G88)-1),"") -> 
A75: =IF(OFFSET(DE100_17!$C$23,ROWS($C$23:C89)-1,COLUMNS($C$23:C89)-1)<>"",OFFSET(DE100_17!$C$23,ROWS($C$23:C89)-1,COLUMNS($C$23:C89)-1),"") ->  | B75: =IF(OFFSET(DE100_17!$D$23,ROWS($D$23:D89)-1,COLUMNS($D$23:D89)-1)<>"",OFFSET(DE100_17!$D$23,ROWS($D$23:D89)-1,COLUMNS($D$23:D89)-1),"") ->  | C75: =IF(OFFSET(DE100_17!$E$23,ROWS($E$23:E89)-1,COLUMNS($E$23:E89)-1)<>"",OFFSET(DE100_17!$E$23,ROWS($E$23:E89)-1,COLUMNS($E$23:E89)-1),"") ->  | D75: =IF(OFFSET(DE100_17!$F$23,ROWS($F$23:F89)-1,COLUMNS($F$23:F89)-1)<>"",OFFSET(DE100_17!$F$23,ROWS($F$23:F89)-1,COLUMNS($F$23:F89)-1),"") ->  | E75: =IF(OFFSET(DE100_17!$G$23,ROWS($G$23:G89)-1,COLUMNS($G$23:G89)-1)<>"",OFFSET(DE100_17!$G$23,ROWS($G$23:G89)-1,COLUMNS($G$23:G89)-1),"") -> 
A76: =IF(OFFSET(DE100_17!$C$23,ROWS($C$23:C90)-1,COLUMNS($C$23:C90)-1)<>"",OFFSET(DE100_17!$C$23,ROWS($C$23:C90)-1,COLUMNS($C$23:C90)-1),"") -> 65049.27 | B76: =IF(OFFSET(DE100_17!$D$23,ROWS($D$23:D90)-1,COLUMNS($D$23:D90)-1)<>"",OFFSET(DE100_17!$D$23,ROWS($D$23:D90)-1,COLUMNS($D$23:D90)-1),"") -> 65141.73 | C76: =IF(OFFSET(DE100_17!$E$23,ROWS($E$23:E90)-1,COLUMNS($E$23:E90)-1)<>"",OFFSET(DE100_17!$E$23,ROWS($E$23:E90)-1,COLUMNS($E$23:E90)-1),"") -> Lt | D76: =IF(OFFSET(DE100_17!$F$23,ROWS($F$23:F90)-1,COLUMNS($F$23:F90)-1)<>"",OFFSET(DE100_17!$F$23,ROWS($F$23:F90)-1,COLUMNS($F$23:F90)-1),"") -> 93.5 | E76: =IF(OFFSET(DE100_17!$G$23,ROWS($G$23:G90)-1,COLUMNS($G$23:G90)-1)<>"",OFFSET(DE100_17!$G$23,ROWS($G$23:G90)-1,COLUMNS($G$23:G90)-1),"") -> 
A77: =IF(OFFSET(DE100_17!$C$23,ROWS($C$23:C91)-1,COLUMNS($C$23:C91)-1)<>"",OFFSET(DE100_17!$C$23,ROWS($C$23:C91)-1,COLUMNS($C$23:C91)-1),"") -> 65144.28 | B77: =IF(OFFSET(DE100_17!$D$23,ROWS($D$23:D91)-1,COLUMNS($D$23:D91)-1)<>"",OFFSET(DE100_17!$D$23,ROWS($D$23:D91)-1,COLUMNS($D$23:D91)-1),"") -> 65238.48 | C77: =IF(OFFSET(DE100_17!$E$23,ROWS($E$23:E91)-1,COLUMNS($E$23:E91)-1)<>"",OFFSET(DE100_17!$E$23,ROWS($E$23:E91)-1,COLUMNS($E$23:E91)-1),"") -> Lt | D77: =IF(OFFSET(DE100_17!$F$23,ROWS($F$23:F91)-1,COLUMNS($F$23:F91)-1)<>"",OFFSET(DE100_17!$F$23,ROWS($F$23:F91)-1,COLUMNS($F$23:F91)-1),"") -> 95.2 | E77: =IF(OFFSET(DE100_17!$G$23,ROWS($G$23:G91)-1,COLUMNS($G$23:G91)-1)<>"",OFFSET(DE100_17!$G$23,ROWS($G$23:G91)-1,COLUMNS($G$23:G91)-1),"") -> 
A78: =IF(OFFSET(DE100_17!$C$23,ROWS($C$23:C92)-1,COLUMNS($C$23:C92)-1)<>"",OFFSET(DE100_17!$C$23,ROWS($C$23:C92)-1,COLUMNS($C$23:C92)-1),"") -> 65050 | B78: =IF(OFFSET(DE100_17!$D$23,ROWS($D$23:D92)-1,COLUMNS($D$23:D92)-1)<>"",OFFSET(DE100_17!$D$23,ROWS($D$23:D92)-1,COLUMNS($D$23:D92)-1),"") -> 65238.48 | C78: =IF(OFFSET(DE100_17!$E$23,ROWS($E$23:E92)-1,COLUMNS($E$23:E92)-1)<>"",OFFSET(DE100_17!$E$23,ROWS($E$23:E92)-1,COLUMNS($E$23:E92)-1),"") -> Lt | D78: =IF(OFFSET(DE100_17!$F$23,ROWS($F$23:F92)-1,COLUMNS($F$23:F92)-1)<>"",OFFSET(DE100_17!$F$23,ROWS($F$23:F92)-1,COLUMNS($F$23:F92)-1),"") -> 199.4 | E78: =IF(OFFSET(DE100_17!$G$23,ROWS($G$23:G92)-1,COLUMNS($G$23:G92)-1)<>"",OFFSET(DE100_17!$G$23,ROWS($G$23:G92)-1,COLUMNS($G$23:G92)-1),"") -> 
A79: =IF(OFFSET(DE100_17!$C$23,ROWS($C$23:C93)-1,COLUMNS($C$23:C93)-1)<>"",OFFSET(DE100_17!$C$23,ROWS($C$23:C93)-1,COLUMNS($C$23:C93)-1),"") ->  | B79: =IF(OFFSET(DE100_17!$D$23,ROWS($D$23:D93)-1,COLUMNS($D$23:D93)-1)<>"",OFFSET(DE100_17!$D$23,ROWS($D$23:D93)-1,COLUMNS($D$23:D93)-1),"") ->  | C79: =IF(OFFSET(DE100_17!$E$23,ROWS($E$23:E93)-1,COLUMNS($E$23:E93)-1)<>"",OFFSET(DE100_17!$E$23,ROWS($E$23:E93)-1,COLUMNS($E$23:E93)-1),"") ->  | D79: =IF(OFFSET(DE100_17!$F$23,ROWS($F$23:F93)-1,COLUMNS($F$23:F93)-1)<>"",OFFSET(DE100_17!$F$23,ROWS($F$23:F93)-1,COLUMNS($F$23:F93)-1),"") ->  | E79: =IF(OFFSET(DE100_17!$G$23,ROWS($G$23:G93)-1,COLUMNS($G$23:G93)-1)<>"",OFFSET(DE100_17!$G$23,ROWS($G$23:G93)-1,COLUMNS($G$23:G93)-1),"") -> 
A80: =IF(OFFSET(DE100_17!$C$23,ROWS($C$23:C94)-1,COLUMNS($C$23:C94)-1)<>"",OFFSET(DE100_17!$C$23,ROWS($C$23:C94)-1,COLUMNS($C$23:C94)-1),"") -> 70461.29 | B80: =IF(OFFSET(DE100_17!$D$23,ROWS($D$23:D94)-1,COLUMNS($D$23:D94)-1)<>"",OFFSET(DE100_17!$D$23,ROWS($D$23:D94)-1,COLUMNS($D$23:D94)-1),"") -> 70467.21 | C80: =IF(OFFSET(DE100_17!$E$23,ROWS($E$23:E94)-1,COLUMNS($E$23:E94)-1)<>"",OFFSET(DE100_17!$E$23,ROWS($E$23:E94)-1,COLUMNS($E$23:E94)-1),"") -> Rt | D80: =IF(OFFSET(DE100_17!$F$23,ROWS($F$23:F94)-1,COLUMNS($F$23:F94)-1)<>"",OFFSET(DE100_17!$F$23,ROWS($F$23:F94)-1,COLUMNS($F$23:F94)-1),"") -> 53.2 | E80: =IF(OFFSET(DE100_17!$G$23,ROWS($G$23:G94)-1,COLUMNS($G$23:G94)-1)<>"",OFFSET(DE100_17!$G$23,ROWS($G$23:G94)-1,COLUMNS($G$23:G94)-1),"") -> 
A81: =IF(OFFSET(DE100_17!$C$23,ROWS($C$23:C95)-1,COLUMNS($C$23:C95)-1)<>"",OFFSET(DE100_17!$C$23,ROWS($C$23:C95)-1,COLUMNS($C$23:C95)-1),"") -> 70474.62 | B81: =IF(OFFSET(DE100_17!$D$23,ROWS($D$23:D95)-1,COLUMNS($D$23:D95)-1)<>"",OFFSET(DE100_17!$D$23,ROWS($D$23:D95)-1,COLUMNS($D$23:D95)-1),"") -> 70485.72 | C81: =IF(OFFSET(DE100_17!$E$23,ROWS($E$23:E95)-1,COLUMNS($E$23:E95)-1)<>"",OFFSET(DE100_17!$E$23,ROWS($E$23:E95)-1,COLUMNS($E$23:E95)-1),"") -> Rt | D81: =IF(OFFSET(DE100_17!$F$23,ROWS($F$23:F95)-1,COLUMNS($F$23:F95)-1)<>"",OFFSET(DE100_17!$F$23,ROWS($F$23:F95)-1,COLUMNS($F$23:F95)-1),"") -> 38.2 | E81: =IF(OFFSET(DE100_17!$G$23,ROWS($G$23:G95)-1,COLUMNS($G$23:G95)-1)<>"",OFFSET(DE100_17!$G$23,ROWS($G$23:G95)-1,COLUMNS($G$23:G95)-1),"") -> 
A82: =IF(OFFSET(DE100_17!$C$23,ROWS($C$23:C96)-1,COLUMNS($C$23:C96)-1)<>"",OFFSET(DE100_17!$C$23,ROWS($C$23:C96)-1,COLUMNS($C$23:C96)-1),"") -> 70474.62 | B82: =IF(OFFSET(DE100_17!$D$23,ROWS($D$23:D96)-1,COLUMNS($D$23:D96)-1)<>"",OFFSET(DE100_17!$D$23,ROWS($D$23:D96)-1,COLUMNS($D$23:D96)-1),"") -> 70572.87 | C82: =IF(OFFSET(DE100_17!$E$23,ROWS($E$23:E96)-1,COLUMNS($E$23:E96)-1)<>"",OFFSET(DE100_17!$E$23,ROWS($E$23:E96)-1,COLUMNS($E$23:E96)-1),"") -> Rt | D82: =IF(OFFSET(DE100_17!$F$23,ROWS($F$23:F96)-1,COLUMNS($F$23:F96)-1)<>"",OFFSET(DE100_17!$F$23,ROWS($F$23:F96)-1,COLUMNS($F$23:F96)-1),"") -> 102.5 | E82: =IF(OFFSET(DE100_17!$G$23,ROWS($G$23:G96)-1,COLUMNS($G$23:G96)-1)<>"",OFFSET(DE100_17!$G$23,ROWS($G$23:G96)-1,COLUMNS($G$23:G96)-1),"") -> 
A83: =IF(OFFSET(DE100_17!$C$23,ROWS($C$23:C97)-1,COLUMNS($C$23:C97)-1)<>"",OFFSET(DE100_17!$C$23,ROWS($C$23:C97)-1,COLUMNS($C$23:C97)-1),"") ->  | B83: =IF(OFFSET(DE100_17!$D$23,ROWS($D$23:D97)-1,COLUMNS($D$23:D97)-1)<>"",OFFSET(DE100_17!$D$23,ROWS($D$23:D97)-1,COLUMNS($D$23:D97)-1),"") ->  | C83: =IF(OFFSET(DE100_17!$E$23,ROWS($E$23:E97)-1,COLUMNS($E$23:E97)-1)<>"",OFFSET(DE100_17!$E$23,ROWS($E$23:E97)-1,COLUMNS($E$23:E97)-1),"") ->  | D83: =IF(OFFSET(DE100_17!$F$23,ROWS($F$23:F97)-1,COLUMNS($F$23:F97)-1)<>"",OFFSET(DE100_17!$F$23,ROWS($F$23:F97)-1,COLUMNS($F$23:F97)-1),"") ->  | E83: =IF(OFFSET(DE100_17!$G$23,ROWS($G$23:G97)-1,COLUMNS($G$23:G97)-1)<>"",OFFSET(DE100_17!$G$23,ROWS($G$23:G97)-1,COLUMNS($G$23:G97)-1),"") -> 
A84: =IF(OFFSET(DE100_17!$C$23,ROWS($C$23:C98)-1,COLUMNS($C$23:C98)-1)<>"",OFFSET(DE100_17!$C$23,ROWS($C$23:C98)-1,COLUMNS($C$23:C98)-1),"") -> 74258.34 | B84: =IF(OFFSET(DE100_17!$D$23,ROWS($D$23:D98)-1,COLUMNS($D$23:D98)-1)<>"",OFFSET(DE100_17!$D$23,ROWS($D$23:D98)-1,COLUMNS($D$23:D98)-1),"") -> 74321.32 | C84: =IF(OFFSET(DE100_17!$E$23,ROWS($E$23:E98)-1,COLUMNS($E$23:E98)-1)<>"",OFFSET(DE100_17!$E$23,ROWS($E$23:E98)-1,COLUMNS($E$23:E98)-1),"") -> Rt | D84: =IF(OFFSET(DE100_17!$F$23,ROWS($F$23:F98)-1,COLUMNS($F$23:F98)-1)<>"",OFFSET(DE100_17!$F$23,ROWS($F$23:F98)-1,COLUMNS($F$23:F98)-1),"") -> 63.2 | E84: =IF(OFFSET(DE100_17!$G$23,ROWS($G$23:G98)-1,COLUMNS($G$23:G98)-1)<>"",OFFSET(DE100_17!$G$23,ROWS($G$23:G98)-1,COLUMNS($G$23:G98)-1),"") -> 
A85: =IF(OFFSET(DE100_17!$C$23,ROWS($C$23:C99)-1,COLUMNS($C$23:C99)-1)<>"",OFFSET(DE100_17!$C$23,ROWS($C$23:C99)-1,COLUMNS($C$23:C99)-1),"") -> 74258.34 | B85: =IF(OFFSET(DE100_17!$D$23,ROWS($D$23:D99)-1,COLUMNS($D$23:D99)-1)<>"",OFFSET(DE100_17!$D$23,ROWS($D$23:D99)-1,COLUMNS($D$23:D99)-1),"") -> 74319.2 | C85: =IF(OFFSET(DE100_17!$E$23,ROWS($E$23:E99)-1,COLUMNS($E$23:E99)-1)<>"",OFFSET(DE100_17!$E$23,ROWS($E$23:E99)-1,COLUMNS($E$23:E99)-1),"") -> Rt | D85: =IF(OFFSET(DE100_17!$F$23,ROWS($F$23:F99)-1,COLUMNS($F$23:F99)-1)<>"",OFFSET(DE100_17!$F$23,ROWS($F$23:F99)-1,COLUMNS($F$23:F99)-1),"") -> 62.7 | E85: =IF(OFFSET(DE100_17!$G$23,ROWS($G$23:G99)-1,COLUMNS($G$23:G99)-1)<>"",OFFSET(DE100_17!$G$23,ROWS($G$23:G99)-1,COLUMNS($G$23:G99)-1),"") -> 
A86: =IF(OFFSET(DE100_17!$C$23,ROWS($C$23:C100)-1,COLUMNS($C$23:C100)-1)<>"",OFFSET(DE100_17!$C$23,ROWS($C$23:C100)-1,COLUMNS($C$23:C100)-1),"") -> 74329.07 | B86: =IF(OFFSET(DE100_17!$D$23,ROWS($D$23:D100)-1,COLUMNS($D$23:D100)-1)<>"",OFFSET(DE100_17!$D$23,ROWS($D$23:D100)-1,COLUMNS($D$23:D100)-1),"") -> 74395.1 | C86: =IF(OFFSET(DE100_17!$E$23,ROWS($E$23:E100)-1,COLUMNS($E$23:E100)-1)<>"",OFFSET(DE100_17!$E$23,ROWS($E$23:E100)-1,COLUMNS($E$23:E100)-1),"") -> Rt | D86: =IF(OFFSET(DE100_17!$F$23,ROWS($F$23:F100)-1,COLUMNS($F$23:F100)-1)<>"",OFFSET(DE100_17!$F$23,ROWS($F$23:F100)-1,COLUMNS($F$23:F100)-1),"") -> 66.3 | E86: =IF(OFFSET(DE100_17!$G$23,ROWS($G$23:G100)-1,COLUMNS($G$23:G100)-1)<>"",OFFSET(DE100_17!$G$23,ROWS($G$23:G100)-1,COLUMNS($G$23:G100)-1),"") -> 
A87: =IF(OFFSET(DE100_17!$C$23,ROWS($C$23:C101)-1,COLUMNS($C$23:C101)-1)<>"",OFFSET(DE100_17!$C$23,ROWS($C$23:C101)-1,COLUMNS($C$23:C101)-1),"") ->  | B87: =IF(OFFSET(DE100_17!$D$23,ROWS($D$23:D101)-1,COLUMNS($D$23:D101)-1)<>"",OFFSET(DE100_17!$D$23,ROWS($D$23:D101)-1,COLUMNS($D$23:D101)-1),"") ->  | C87: =IF(OFFSET(DE100_17!$E$23,ROWS($E$23:E101)-1,COLUMNS($E$23:E101)-1)<>"",OFFSET(DE100_17!$E$23,ROWS($E$23:E101)-1,COLUMNS($E$23:E101)-1),"") ->  | D87: =IF(OFFSET(DE100_17!$F$23,ROWS($F$23:F101)-1,COLUMNS($F$23:F101)-1)<>"",OFFSET(DE100_17!$F$23,ROWS($F$23:F101)-1,COLUMNS($F$23:F101)-1),"") ->  | E87: =IF(OFFSET(DE100_17!$G$23,ROWS($G$23:G101)-1,COLUMNS($G$23:G101)-1)<>"",OFFSET(DE100_17!$G$23,ROWS($G$23:G101)-1,COLUMNS($G$23:G101)-1),"") -> 
A88: =IF(OFFSET(DE100_17!$C$23,ROWS($C$23:C102)-1,COLUMNS($C$23:C102)-1)<>"",OFFSET(DE100_17!$C$23,ROWS($C$23:C102)-1,COLUMNS($C$23:C102)-1),"") -> 74222.28 | B88: =IF(OFFSET(DE100_17!$D$23,ROWS($D$23:D102)-1,COLUMNS($D$23:D102)-1)<>"",OFFSET(DE100_17!$D$23,ROWS($D$23:D102)-1,COLUMNS($D$23:D102)-1),"") -> 74312.44 | C88: =IF(OFFSET(DE100_17!$E$23,ROWS($E$23:E102)-1,COLUMNS($E$23:E102)-1)<>"",OFFSET(DE100_17!$E$23,ROWS($E$23:E102)-1,COLUMNS($E$23:E102)-1),"") -> Lt | D88: =IF(OFFSET(DE100_17!$F$23,ROWS($F$23:F102)-1,COLUMNS($F$23:F102)-1)<>"",OFFSET(DE100_17!$F$23,ROWS($F$23:F102)-1,COLUMNS($F$23:F102)-1),"") -> 94.6 | E88: =IF(OFFSET(DE100_17!$G$23,ROWS($G$23:G102)-1,COLUMNS($G$23:G102)-1)<>"",OFFSET(DE100_17!$G$23,ROWS($G$23:G102)-1,COLUMNS($G$23:G102)-1),"") -> 
A89: =IF(OFFSET(DE100_17!$C$23,ROWS($C$23:C103)-1,COLUMNS($C$23:C103)-1)<>"",OFFSET(DE100_17!$C$23,ROWS($C$23:C103)-1,COLUMNS($C$23:C103)-1),"") -> 74222.28 | B89: =IF(OFFSET(DE100_17!$D$23,ROWS($D$23:D103)-1,COLUMNS($D$23:D103)-1)<>"",OFFSET(DE100_17!$D$23,ROWS($D$23:D103)-1,COLUMNS($D$23:D103)-1),"") -> 74291.03 | C89: =IF(OFFSET(DE100_17!$E$23,ROWS($E$23:E103)-1,COLUMNS($E$23:E103)-1)<>"",OFFSET(DE100_17!$E$23,ROWS($E$23:E103)-1,COLUMNS($E$23:E103)-1),"") -> Lt | D89: =IF(OFFSET(DE100_17!$F$23,ROWS($F$23:F103)-1,COLUMNS($F$23:F103)-1)<>"",OFFSET(DE100_17!$F$23,ROWS($F$23:F103)-1,COLUMNS($F$23:F103)-1),"") -> 79.2 | E89: =IF(OFFSET(DE100_17!$G$23,ROWS($G$23:G103)-1,COLUMNS($G$23:G103)-1)<>"",OFFSET(DE100_17!$G$23,ROWS($G$23:G103)-1,COLUMNS($G$23:G103)-1),"") -> 
A90: =IF(OFFSET(DE100_17!$C$23,ROWS($C$23:C104)-1,COLUMNS($C$23:C104)-1)<>"",OFFSET(DE100_17!$C$23,ROWS($C$23:C104)-1,COLUMNS($C$23:C104)-1),"") -> 74309.93 | B90: =IF(OFFSET(DE100_17!$D$23,ROWS($D$23:D104)-1,COLUMNS($D$23:D104)-1)<>"",OFFSET(DE100_17!$D$23,ROWS($D$23:D104)-1,COLUMNS($D$23:D104)-1),"") -> 74426.49 | C90: =IF(OFFSET(DE100_17!$E$23,ROWS($E$23:E104)-1,COLUMNS($E$23:E104)-1)<>"",OFFSET(DE100_17!$E$23,ROWS($E$23:E104)-1,COLUMNS($E$23:E104)-1),"") -> Lt | D90: =IF(OFFSET(DE100_17!$F$23,ROWS($F$23:F104)-1,COLUMNS($F$23:F104)-1)<>"",OFFSET(DE100_17!$F$23,ROWS($F$23:F104)-1,COLUMNS($F$23:F104)-1),"") -> 128.1 | E90: =IF(OFFSET(DE100_17!$G$23,ROWS($G$23:G104)-1,COLUMNS($G$23:G104)-1)<>"",OFFSET(DE100_17!$G$23,ROWS($G$23:G104)-1,COLUMNS($G$23:G104)-1),"") -> 
A91: 100-17
A92: 2010-04-20
A93: TABULATION OF SILT FENCES
A95: Refer to EC-201
A96: Location | D96: Length | E96: Remarks
A97: Begin Station | B97: End Station | C97: Side
D98: LF
A99: =IF(OFFSET(DE100_17!$C$105,ROWS($C$105:C105)-1,COLUMNS($C$105:C105)-1)<>"",OFFSET(DE100_17!$C$105,ROWS($C$105:C105)-1,COLUMNS($C$105:C105)-1),"") -> 74320.4 | B99: =IF(OFFSET(DE100_17!$D$105,ROWS($D$105:D105)-1,COLUMNS($D$105:D105)-1)<>"",OFFSET(DE100_17!$D$105,ROWS($D$105:D105)-1,COLUMNS($D$105:D105)-1),"") -> 74426.49 | C99: =IF(OFFSET(DE100_17!$E$105,ROWS($E$105:E105)-1,COLUMNS($E$105:E105)-1)<>"",OFFSET(DE100_17!$E$105,ROWS($E$105:E105)-1,COLUMNS($E$105:E105)-1),"") -> Lt | D99: =IF(OFFSET(DE100_17!$F$105,ROWS($F$105:F105)-1,COLUMNS($F$105:F105)-1)<>"",OFFSET(DE100_17!$F$105,ROWS($F$105:F105)-1,COLUMNS($F$105:F105)-1),"") -> 110.4 | E99: =IF(OFFSET(DE100_17!$G$105,ROWS($G$105:G105)-1,COLUMNS($G$105:G105)-1)<>"",OFFSET(DE100_17!$G$105,ROWS($G$105:G105)-1,COLUMNS($G$105:G105)-1),"") -> 
A100: =IF(OFFSET(DE100_17!$C$105,ROWS($C$105:C106)-1,COLUMNS($C$105:C106)-1)<>"",OFFSET(DE100_17!$C$105,ROWS($C$105:C106)-1,COLUMNS($C$105:C106)-1),"") ->  | B100: =IF(OFFSET(DE100_17!$D$105,ROWS($D$105:D106)-1,COLUMNS($D$105:D106)-1)<>"",OFFSET(DE100_17!$D$105,ROWS($D$105:D106)-1,COLUMNS($D$105:D106)-1),"") ->  | C100: =IF(OFFSET(DE100_17!$E$105,ROWS($E$105:E106)-1,COLUMNS($E$105:E106)-1)<>"",OFFSET(DE100_17!$E$105,ROWS($E$105:E106)-1,COLUMNS($E$105:E106)-1),"") ->  | D100: =IF(OFFSET(DE100_17!$F$105,ROWS($F$105:F106)-1,COLUMNS($F$105:F106)-1)<>"",OFFSET(DE100_17!$F$105,ROWS($F$105:F106)-1,COLUMNS($F$105:F106)-1),"") ->  | E100: =IF(OFFSET(DE100_17!$G$105,ROWS($G$105:G106)-1,COLUMNS($G$105:G106)-1)<>"",OFFSET(DE100_17!$G$105,ROWS($G$105:G106)-1,COLUMNS($G$105:G106)-1),"") -> 
A101: =IF(OFFSET(DE100_17!$C$105,ROWS($C$105:C107)-1,COLUMNS($C$105:C107)-1)<>"",OFFSET(DE100_17!$C$105,ROWS($C$105:C107)-1,COLUMNS($C$105:C107)-1),"") -> 76523.87 | B101: =IF(OFFSET(DE100_17!$D$105,ROWS($D$105:D107)-1,COLUMNS($D$105:D107)-1)<>"",OFFSET(DE100_17!$D$105,ROWS($D$105:D107)-1,COLUMNS($D$105:D107)-1),"") -> 76605.59 | C101: =IF(OFFSET(DE100_17!$E$105,ROWS($E$105:E107)-1,COLUMNS($E$105:E107)-1)<>"",OFFSET(DE100_17!$E$105,ROWS($E$105:E107)-1,COLUMNS($E$105:E107)-1),"") -> Rt | D101: =IF(OFFSET(DE100_17!$F$105,ROWS($F$105:F107)-1,COLUMNS($F$105:F107)-1)<>"",OFFSET(DE100_17!$F$105,ROWS($F$105:F107)-1,COLUMNS($F$105:F107)-1),"") -> 89.7 | E101: =IF(OFFSET(DE100_17!$G$105,ROWS($G$105:G107)-1,COLUMNS($G$105:G107)-1)<>"",OFFSET(DE100_17!$G$105,ROWS($G$105:G107)-1,COLUMNS($G$105:G107)-1),"") -> 
A102: =IF(OFFSET(DE100_17!$C$105,ROWS($C$105:C108)-1,COLUMNS($C$105:C108)-1)<>"",OFFSET(DE100_17!$C$105,ROWS($C$105:C108)-1,COLUMNS($C$105:C108)-1),"") -> 76612.4 | B102: =IF(OFFSET(DE100_17!$D$105,ROWS($D$105:D108)-1,COLUMNS($D$105:D108)-1)<>"",OFFSET(DE100_17!$D$105,ROWS($D$105:D108)-1,COLUMNS($D$105:D108)-1),"") -> 76692.45 | C102: =IF(OFFSET(DE100_17!$E$105,ROWS($E$105:E108)-1,COLUMNS($E$105:E108)-1)<>"",OFFSET(DE100_17!$E$105,ROWS($E$105:E108)-1,COLUMNS($E$105:E108)-1),"") -> Rt | D102: =IF(OFFSET(DE100_17!$F$105,ROWS($F$105:F108)-1,COLUMNS($F$105:F108)-1)<>"",OFFSET(DE100_17!$F$105,ROWS($F$105:F108)-1,COLUMNS($F$105:F108)-1),"") -> 88.1 | E102: =IF(OFFSET(DE100_17!$G$105,ROWS($G$105:G108)-1,COLUMNS($G$105:G108)-1)<>"",OFFSET(DE100_17!$G$105,ROWS($G$105:G108)-1,COLUMNS($G$105:G108)-1),"") -> 
A103: =IF(OFFSET(DE100_17!$C$105,ROWS($C$105:C109)-1,COLUMNS($C$105:C109)-1)<>"",OFFSET(DE100_17!$C$105,ROWS($C$105:C109)-1,COLUMNS($C$105:C109)-1),"") -> 76633.7 | B103: =IF(OFFSET(DE100_17!$D$105,ROWS($D$105:D109)-1,COLUMNS($D$105:D109)-1)<>"",OFFSET(DE100_17!$D$105,ROWS($D$105:D109)-1,COLUMNS($D$105:D109)-1),"") ->  | C103: =IF(OFFSET(DE100_17!$E$105,ROWS($E$105:E109)-1,COLUMNS($E$105:E109)-1)<>"",OFFSET(DE100_17!$E$105,ROWS($E$105:E109)-1,COLUMNS($E$105:E109)-1),"") -> Rt | D103: =IF(OFFSET(DE100_17!$F$105,ROWS($F$105:F109)-1,COLUMNS($F$105:F109)-1)<>"",OFFSET(DE100_17!$F$105,ROWS($F$105:F109)-1,COLUMNS($F$105:F109)-1),"") -> 60 | E103: =IF(OFFSET(DE100_17!$G$105,ROWS($G$105:G109)-1,COLUMNS($G$105:G109)-1)<>"",OFFSET(DE100_17!$G$105,ROWS($G$105:G109)-1,COLUMNS($G$105:G109)-1),"") -> (1)
A104: =IF(OFFSET(DE100_17!$C$105,ROWS($C$105:C110)-1,COLUMNS($C$105:C110)-1)<>"",OFFSET(DE100_17!$C$105,ROWS($C$105:C110)-1,COLUMNS($C$105:C110)-1),"") ->  | B104: =IF(OFFSET(DE100_17!$D$105,ROWS($D$105:D110)-1,COLUMNS($D$105:D110)-1)<>"",OFFSET(DE100_17!$D$105,ROWS($D$105:D110)-1,COLUMNS($D$105:D110)-1),"") ->  | C104: =IF(OFFSET(DE100_17!$E$105,ROWS($E$105:E110)-1,COLUMNS($E$105:E110)-1)<>"",OFFSET(DE100_17!$E$105,ROWS($E$105:E110)-1,COLUMNS($E$105:E110)-1),"") ->  | D104: =IF(OFFSET(DE100_17!$F$105,ROWS($F$105:F110)-1,COLUMNS($F$105:F110)-1)<>"",OFFSET(DE100_17!$F$105,ROWS($F$105:F110)-1,COLUMNS($F$105:F110)-1),"") ->  | E104: =IF(OFFSET(DE100_17!$G$105,ROWS($G$105:G110)-1,COLUMNS($G$105:G110)-1)<>"",OFFSET(DE100_17!$G$105,ROWS($G$105:G110)-1,COLUMNS($G$105:G110)-1),"") -> 
A105: =IF(OFFSET(DE100_17!$C$105,ROWS($C$105:C111)-1,COLUMNS($C$105:C111)-1)<>"",OFFSET(DE100_17!$C$105,ROWS($C$105:C111)-1,COLUMNS($C$105:C111)-1),"") -> 76532.86 | B105: =IF(OFFSET(DE100_17!$D$105,ROWS($D$105:D111)-1,COLUMNS($D$105:D111)-1)<>"",OFFSET(DE100_17!$D$105,ROWS($D$105:D111)-1,COLUMNS($D$105:D111)-1),"") -> 76605.7 | C105: =IF(OFFSET(DE100_17!$E$105,ROWS($E$105:E111)-1,COLUMNS($E$105:E111)-1)<>"",OFFSET(DE100_17!$E$105,ROWS($E$105:E111)-1,COLUMNS($E$105:E111)-1),"") -> Lt | D105: =IF(OFFSET(DE100_17!$F$105,ROWS($F$105:F111)-1,COLUMNS($F$105:F111)-1)<>"",OFFSET(DE100_17!$F$105,ROWS($F$105:F111)-1,COLUMNS($F$105:F111)-1),"") -> 76.9 | E105: =IF(OFFSET(DE100_17!$G$105,ROWS($G$105:G111)-1,COLUMNS($G$105:G111)-1)<>"",OFFSET(DE100_17!$G$105,ROWS($G$105:G111)-1,COLUMNS($G$105:G111)-1),"") -> 
A106: =IF(OFFSET(DE100_17!$C$105,ROWS($C$105:C112)-1,COLUMNS($C$105:C112)-1)<>"",OFFSET(DE100_17!$C$105,ROWS($C$105:C112)-1,COLUMNS($C$105:C112)-1),"") -> 76612.29 | B106: =IF(OFFSET(DE100_17!$D$105,ROWS($D$105:D112)-1,COLUMNS($D$105:D112)-1)<>"",OFFSET(DE100_17!$D$105,ROWS($D$105:D112)-1,COLUMNS($D$105:D112)-1),"") -> 76693.99 | C106: =IF(OFFSET(DE100_17!$E$105,ROWS($E$105:E112)-1,COLUMNS($E$105:E112)-1)<>"",OFFSET(DE100_17!$E$105,ROWS($E$105:E112)-1,COLUMNS($E$105:E112)-1),"") -> Lt | D106: =IF(OFFSET(DE100_17!$F$105,ROWS($F$105:F112)-1,COLUMNS($F$105:F112)-1)<>"",OFFSET(DE100_17!$F$105,ROWS($F$105:F112)-1,COLUMNS($F$105:F112)-1),"") -> 86.2 | E106: =IF(OFFSET(DE100_17!$G$105,ROWS($G$105:G112)-1,COLUMNS($G$105:G112)-1)<>"",OFFSET(DE100_17!$G$105,ROWS($G$105:G112)-1,COLUMNS($G$105:G112)-1),"") -> 
A107: =IF(OFFSET(DE100_17!$C$105,ROWS($C$105:C113)-1,COLUMNS($C$105:C113)-1)<>"",OFFSET(DE100_17!$C$105,ROWS($C$105:C113)-1,COLUMNS($C$105:C113)-1),"") -> 76532.87 | B107: =IF(OFFSET(DE100_17!$D$105,ROWS($D$105:D113)-1,COLUMNS($D$105:D113)-1)<>"",OFFSET(DE100_17!$D$105,ROWS($D$105:D113)-1,COLUMNS($D$105:D113)-1),"") -> 76694 | C107: =IF(OFFSET(DE100_17!$E$105,ROWS($E$105:E113)-1,COLUMNS($E$105:E113)-1)<>"",OFFSET(DE100_17!$E$105,ROWS($E$105:E113)-1,COLUMNS($E$105:E113)-1),"") -> Lt | D107: =IF(OFFSET(DE100_17!$F$105,ROWS($F$105:F113)-1,COLUMNS($F$105:F113)-1)<>"",OFFSET(DE100_17!$F$105,ROWS($F$105:F113)-1,COLUMNS($F$105:F113)-1),"") -> 198.6 | E107: =IF(OFFSET(DE100_17!$G$105,ROWS($G$105:G113)-1,COLUMNS($G$105:G113)-1)<>"",OFFSET(DE100_17!$G$105,ROWS($G$105:G113)-1,COLUMNS($G$105:G113)-1),"") -> 
A108: =IF(OFFSET(DE100_17!$C$105,ROWS($C$105:C114)-1,COLUMNS($C$105:C114)-1)<>"",OFFSET(DE100_17!$C$105,ROWS($C$105:C114)-1,COLUMNS($C$105:C114)-1),"") -> 76633.01 | B108: =IF(OFFSET(DE100_17!$D$105,ROWS($D$105:D114)-1,COLUMNS($D$105:D114)-1)<>"",OFFSET(DE100_17!$D$105,ROWS($D$105:D114)-1,COLUMNS($D$105:D114)-1),"") ->  | C108: =IF(OFFSET(DE100_17!$E$105,ROWS($E$105:E114)-1,COLUMNS($E$105:E114)-1)<>"",OFFSET(DE100_17!$E$105,ROWS($E$105:E114)-1,COLUMNS($E$105:E114)-1),"") -> Lt | D108: =IF(OFFSET(DE100_17!$F$105,ROWS($F$105:F114)-1,COLUMNS($F$105:F114)-1)<>"",OFFSET(DE100_17!$F$105,ROWS($F$105:F114)-1,COLUMNS($F$105:F114)-1),"") -> 60 | E108: =IF(OFFSET(DE100_17!$G$105,ROWS($G$105:G114)-1,COLUMNS($G$105:G114)-1)<>"",OFFSET(DE100_17!$G$105,ROWS($G$105:G114)-1,COLUMNS($G$105:G114)-1),"") -> (1)
A109: =IF(OFFSET(DE100_17!$C$105,ROWS($C$105:C115)-1,COLUMNS($C$105:C115)-1)<>"",OFFSET(DE100_17!$C$105,ROWS($C$105:C115)-1,COLUMNS($C$105:C115)-1),"") ->  | B109: =IF(OFFSET(DE100_17!$D$105,ROWS($D$105:D115)-1,COLUMNS($D$105:D115)-1)<>"",OFFSET(DE100_17!$D$105,ROWS($D$105:D115)-1,COLUMNS($D$105:D115)-1),"") ->  | C109: =IF(OFFSET(DE100_17!$E$105,ROWS($E$105:E115)-1,COLUMNS($E$105:E115)-1)<>"",OFFSET(DE100_17!$E$105,ROWS($E$105:E115)-1,COLUMNS($E$105:E115)-1),"") ->  | D109: =IF(OFFSET(DE100_17!$F$105,ROWS($F$105:F115)-1,COLUMNS($F$105:F115)-1)<>"",OFFSET(DE100_17!$F$105,ROWS($F$105:F115)-1,COLUMNS($F$105:F115)-1),"") ->  | E109: =IF(OFFSET(DE100_17!$G$105,ROWS($G$105:G115)-1,COLUMNS($G$105:G115)-1)<>"",OFFSET(DE100_17!$G$105,ROWS($G$105:G115)-1,COLUMNS($G$105:G115)-1),"") -> 
A110: =IF(OFFSET(DE100_17!$C$105,ROWS($C$105:C116)-1,COLUMNS($C$105:C116)-1)<>"",OFFSET(DE100_17!$C$105,ROWS($C$105:C116)-1,COLUMNS($C$105:C116)-1),"") -> 78735.82 | B110: =IF(OFFSET(DE100_17!$D$105,ROWS($D$105:D116)-1,COLUMNS($D$105:D116)-1)<>"",OFFSET(DE100_17!$D$105,ROWS($D$105:D116)-1,COLUMNS($D$105:D116)-1),"") -> 78841.65 | C110: =IF(OFFSET(DE100_17!$E$105,ROWS($E$105:E116)-1,COLUMNS($E$105:E116)-1)<>"",OFFSET(DE100_17!$E$105,ROWS($E$105:E116)-1,COLUMNS($E$105:E116)-1),"") -> Rt | D110: =IF(OFFSET(DE100_17!$F$105,ROWS($F$105:F116)-1,COLUMNS($F$105:F116)-1)<>"",OFFSET(DE100_17!$F$105,ROWS($F$105:F116)-1,COLUMNS($F$105:F116)-1),"") -> 109.1 | E110: =IF(OFFSET(DE100_17!$G$105,ROWS($G$105:G116)-1,COLUMNS($G$105:G116)-1)<>"",OFFSET(DE100_17!$G$105,ROWS($G$105:G116)-1,COLUMNS($G$105:G116)-1),"") -> 
A111: =IF(OFFSET(DE100_17!$C$105,ROWS($C$105:C117)-1,COLUMNS($C$105:C117)-1)<>"",OFFSET(DE100_17!$C$105,ROWS($C$105:C117)-1,COLUMNS($C$105:C117)-1),"") -> 78846.49 | B111: =IF(OFFSET(DE100_17!$D$105,ROWS($D$105:D117)-1,COLUMNS($D$105:D117)-1)<>"",OFFSET(DE100_17!$D$105,ROWS($D$105:D117)-1,COLUMNS($D$105:D117)-1),"") -> 78948.32 | C111: =IF(OFFSET(DE100_17!$E$105,ROWS($E$105:E117)-1,COLUMNS($E$105:E117)-1)<>"",OFFSET(DE100_17!$E$105,ROWS($E$105:E117)-1,COLUMNS($E$105:E117)-1),"") -> Rt | D111: =IF(OFFSET(DE100_17!$F$105,ROWS($F$105:F117)-1,COLUMNS($F$105:F117)-1)<>"",OFFSET(DE100_17!$F$105,ROWS($F$105:F117)-1,COLUMNS($F$105:F117)-1),"") -> 104.6 | E111: =IF(OFFSET(DE100_17!$G$105,ROWS($G$105:G117)-1,COLUMNS($G$105:G117)-1)<>"",OFFSET(DE100_17!$G$105,ROWS($G$105:G117)-1,COLUMNS($G$105:G117)-1),"") -> 
A112: =IF(OFFSET(DE100_17!$C$105,ROWS($C$105:C118)-1,COLUMNS($C$105:C118)-1)<>"",OFFSET(DE100_17!$C$105,ROWS($C$105:C118)-1,COLUMNS($C$105:C118)-1),"") -> 78816.42 | B112: =IF(OFFSET(DE100_17!$D$105,ROWS($D$105:D118)-1,COLUMNS($D$105:D118)-1)<>"",OFFSET(DE100_17!$D$105,ROWS($D$105:D118)-1,COLUMNS($D$105:D118)-1),"") ->  | C112: =IF(OFFSET(DE100_17!$E$105,ROWS($E$105:E118)-1,COLUMNS($E$105:E118)-1)<>"",OFFSET(DE100_17!$E$105,ROWS($E$105:E118)-1,COLUMNS($E$105:E118)-1),"") -> Rt | D112: =IF(OFFSET(DE100_17!$F$105,ROWS($F$105:F118)-1,COLUMNS($F$105:F118)-1)<>"",OFFSET(DE100_17!$F$105,ROWS($F$105:F118)-1,COLUMNS($F$105:F118)-1),"") -> 60 | E112: =IF(OFFSET(DE100_17!$G$105,ROWS($G$105:G118)-1,COLUMNS($G$105:G118)-1)<>"",OFFSET(DE100_17!$G$105,ROWS($G$105:G118)-1,COLUMNS($G$105:G118)-1),"") -> (1)
A113: =IF(OFFSET(DE100_17!$C$105,ROWS($C$105:C119)-1,COLUMNS($C$105:C119)-1)<>"",OFFSET(DE100_17!$C$105,ROWS($C$105:C119)-1,COLUMNS($C$105:C119)-1),"") ->  | B113: =IF(OFFSET(DE100_17!$D$105,ROWS($D$105:D119)-1,COLUMNS($D$105:D119)-1)<>"",OFFSET(DE100_17!$D$105,ROWS($D$105:D119)-1,COLUMNS($D$105:D119)-1),"") ->  | C113: =IF(OFFSET(DE100_17!$E$105,ROWS($E$105:E119)-1,COLUMNS($E$105:E119)-1)<>"",OFFSET(DE100_17!$E$105,ROWS($E$105:E119)-1,COLUMNS($E$105:E119)-1),"") ->  | D113: =IF(OFFSET(DE100_17!$F$105,ROWS($F$105:F119)-1,COLUMNS($F$105:F119)-1)<>"",OFFSET(DE100_17!$F$105,ROWS($F$105:F119)-1,COLUMNS($F$105:F119)-1),"") ->  | E113: =IF(OFFSET(DE100_17!$G$105,ROWS($G$105:G119)-1,COLUMNS($G$105:G119)-1)<>"",OFFSET(DE100_17!$G$105,ROWS($G$105:G119)-1,COLUMNS($G$105:G119)-1),"") -> 
A114: =IF(OFFSET(DE100_17!$C$105,ROWS($C$105:C120)-1,COLUMNS($C$105:C120)-1)<>"",OFFSET(DE100_17!$C$105,ROWS($C$105:C120)-1,COLUMNS($C$105:C120)-1),"") -> 78720.48 | B114: =IF(OFFSET(DE100_17!$D$105,ROWS($D$105:D120)-1,COLUMNS($D$105:D120)-1)<>"",OFFSET(DE100_17!$D$105,ROWS($D$105:D120)-1,COLUMNS($D$105:D120)-1),"") -> 78797.5 | C114: =IF(OFFSET(DE100_17!$E$105,ROWS($E$105:E120)-1,COLUMNS($E$105:E120)-1)<>"",OFFSET(DE100_17!$E$105,ROWS($E$105:E120)-1,COLUMNS($E$105:E120)-1),"") -> Lt | D114: =IF(OFFSET(DE100_17!$F$105,ROWS($F$105:F120)-1,COLUMNS($F$105:F120)-1)<>"",OFFSET(DE100_17!$F$105,ROWS($F$105:F120)-1,COLUMNS($F$105:F120)-1),"") -> 79.4 | E114: =IF(OFFSET(DE100_17!$G$105,ROWS($G$105:G120)-1,COLUMNS($G$105:G120)-1)<>"",OFFSET(DE100_17!$G$105,ROWS($G$105:G120)-1,COLUMNS($G$105:G120)-1),"") -> 
A115: =IF(OFFSET(DE100_17!$C$105,ROWS($C$105:C121)-1,COLUMNS($C$105:C121)-1)<>"",OFFSET(DE100_17!$C$105,ROWS($C$105:C121)-1,COLUMNS($C$105:C121)-1),"") -> 78720.48 | B115: =IF(OFFSET(DE100_17!$D$105,ROWS($D$105:D121)-1,COLUMNS($D$105:D121)-1)<>"",OFFSET(DE100_17!$D$105,ROWS($D$105:D121)-1,COLUMNS($D$105:D121)-1),"") -> 78784.98 | C115: =IF(OFFSET(DE100_17!$E$105,ROWS($E$105:E121)-1,COLUMNS($E$105:E121)-1)<>"",OFFSET(DE100_17!$E$105,ROWS($E$105:E121)-1,COLUMNS($E$105:E121)-1),"") -> Lt | D115: =IF(OFFSET(DE100_17!$F$105,ROWS($F$105:F121)-1,COLUMNS($F$105:F121)-1)<>"",OFFSET(DE100_17!$F$105,ROWS($F$105:F121)-1,COLUMNS($F$105:F121)-1),"") -> 89.5 | E115: =IF(OFFSET(DE100_17!$G$105,ROWS($G$105:G121)-1,COLUMNS($G$105:G121)-1)<>"",OFFSET(DE100_17!$G$105,ROWS($G$105:G121)-1,COLUMNS($G$105:G121)-1),"") -> 
A116: =IF(OFFSET(DE100_17!$C$105,ROWS($C$105:C122)-1,COLUMNS($C$105:C122)-1)<>"",OFFSET(DE100_17!$C$105,ROWS($C$105:C122)-1,COLUMNS($C$105:C122)-1),"") -> 78789.58 | B116: =IF(OFFSET(DE100_17!$D$105,ROWS($D$105:D122)-1,COLUMNS($D$105:D122)-1)<>"",OFFSET(DE100_17!$D$105,ROWS($D$105:D122)-1,COLUMNS($D$105:D122)-1),"") -> 78802.35 | C116: =IF(OFFSET(DE100_17!$E$105,ROWS($E$105:E122)-1,COLUMNS($E$105:E122)-1)<>"",OFFSET(DE100_17!$E$105,ROWS($E$105:E122)-1,COLUMNS($E$105:E122)-1),"") -> Lt | D116: =IF(OFFSET(DE100_17!$F$105,ROWS($F$105:F122)-1,COLUMNS($F$105:F122)-1)<>"",OFFSET(DE100_17!$F$105,ROWS($F$105:F122)-1,COLUMNS($F$105:F122)-1),"") -> 49.1 | E116: =IF(OFFSET(DE100_17!$G$105,ROWS($G$105:G122)-1,COLUMNS($G$105:G122)-1)<>"",OFFSET(DE100_17!$G$105,ROWS($G$105:G122)-1,COLUMNS($G$105:G122)-1),"") -> 
A117: =IF(OFFSET(DE100_17!$C$105,ROWS($C$105:C123)-1,COLUMNS($C$105:C123)-1)<>"",OFFSET(DE100_17!$C$105,ROWS($C$105:C123)-1,COLUMNS($C$105:C123)-1),"") -> 78802.35 | B117: =IF(OFFSET(DE100_17!$D$105,ROWS($D$105:D123)-1,COLUMNS($D$105:D123)-1)<>"",OFFSET(DE100_17!$D$105,ROWS($D$105:D123)-1,COLUMNS($D$105:D123)-1),"") -> 78846.94 | C117: =IF(OFFSET(DE100_17!$E$105,ROWS($E$105:E123)-1,COLUMNS($E$105:E123)-1)<>"",OFFSET(DE100_17!$E$105,ROWS($E$105:E123)-1,COLUMNS($E$105:E123)-1),"") -> Lt | D117: =IF(OFFSET(DE100_17!$F$105,ROWS($F$105:F123)-1,COLUMNS($F$105:F123)-1)<>"",OFFSET(DE100_17!$F$105,ROWS($F$105:F123)-1,COLUMNS($F$105:F123)-1),"") -> 47.6 | E117: =IF(OFFSET(DE100_17!$G$105,ROWS($G$105:G123)-1,COLUMNS($G$105:G123)-1)<>"",OFFSET(DE100_17!$G$105,ROWS($G$105:G123)-1,COLUMNS($G$105:G123)-1),"") -> 
A118: =IF(OFFSET(DE100_17!$C$105,ROWS($C$105:C124)-1,COLUMNS($C$105:C124)-1)<>"",OFFSET(DE100_17!$C$105,ROWS($C$105:C124)-1,COLUMNS($C$105:C124)-1),"") -> 78775.92 | B118: =IF(OFFSET(DE100_17!$D$105,ROWS($D$105:D124)-1,COLUMNS($D$105:D124)-1)<>"",OFFSET(DE100_17!$D$105,ROWS($D$105:D124)-1,COLUMNS($D$105:D124)-1),"") ->  | C118: =IF(OFFSET(DE100_17!$E$105,ROWS($E$105:E124)-1,COLUMNS($E$105:E124)-1)<>"",OFFSET(DE100_17!$E$105,ROWS($E$105:E124)-1,COLUMNS($E$105:E124)-1),"") -> Lt | D118: =IF(OFFSET(DE100_17!$F$105,ROWS($F$105:F124)-1,COLUMNS($F$105:F124)-1)<>"",OFFSET(DE100_17!$F$105,ROWS($F$105:F124)-1,COLUMNS($F$105:F124)-1),"") -> 60 | E118: =IF(OFFSET(DE100_17!$G$105,ROWS($G$105:G124)-1,COLUMNS($G$105:G124)-1)<>"",OFFSET(DE100_17!$G$105,ROWS($G$105:G124)-1,COLUMNS($G$105:G124)-1),"") -> (1)
A119: =IF(OFFSET(DE100_17!$C$105,ROWS($C$105:C125)-1,COLUMNS($C$105:C125)-1)<>"",OFFSET(DE100_17!$C$105,ROWS($C$105:C125)-1,COLUMNS($C$105:C125)-1),"") ->  | B119: =IF(OFFSET(DE100_17!$D$105,ROWS($D$105:D125)-1,COLUMNS($D$105:D125)-1)<>"",OFFSET(DE100_17!$D$105,ROWS($D$105:D125)-1,COLUMNS($D$105:D125)-1),"") ->  | C119: =IF(OFFSET(DE100_17!$E$105,ROWS($E$105:E125)-1,COLUMNS($E$105:E125)-1)<>"",OFFSET(DE100_17!$E$105,ROWS($E$105:E125)-1,COLUMNS($E$105:E125)-1),"") ->  | D119: =IF(OFFSET(DE100_17!$F$105,ROWS($F$105:F125)-1,COLUMNS($F$105:F125)-1)<>"",OFFSET(DE100_17!$F$105,ROWS($F$105:F125)-1,COLUMNS($F$105:F125)-1),"") ->  | E119: =IF(OFFSET(DE100_17!$G$105,ROWS($G$105:G125)-1,COLUMNS($G$105:G125)-1)<>"",OFFSET(DE100_17!$G$105,ROWS($G$105:G125)-1,COLUMNS($G$105:G125)-1),"") -> 
A120: =IF(OFFSET(DE100_17!$C$105,ROWS($C$105:C126)-1,COLUMNS($C$105:C126)-1)<>"",OFFSET(DE100_17!$C$105,ROWS($C$105:C126)-1,COLUMNS($C$105:C126)-1),"") -> 80017.33 | B120: =IF(OFFSET(DE100_17!$D$105,ROWS($D$105:D126)-1,COLUMNS($D$105:D126)-1)<>"",OFFSET(DE100_17!$D$105,ROWS($D$105:D126)-1,COLUMNS($D$105:D126)-1),"") -> 80101.92 | C120: =IF(OFFSET(DE100_17!$E$105,ROWS($E$105:E126)-1,COLUMNS($E$105:E126)-1)<>"",OFFSET(DE100_17!$E$105,ROWS($E$105:E126)-1,COLUMNS($E$105:E126)-1),"") -> Rt | D120: =IF(OFFSET(DE100_17!$F$105,ROWS($F$105:F126)-1,COLUMNS($F$105:F126)-1)<>"",OFFSET(DE100_17!$F$105,ROWS($F$105:F126)-1,COLUMNS($F$105:F126)-1),"") -> 87.2 | E120: =IF(OFFSET(DE100_17!$G$105,ROWS($G$105:G126)-1,COLUMNS($G$105:G126)-1)<>"",OFFSET(DE100_17!$G$105,ROWS($G$105:G126)-1,COLUMNS($G$105:G126)-1),"") -> 
A121: =IF(OFFSET(DE100_17!$C$105,ROWS($C$105:C127)-1,COLUMNS($C$105:C127)-1)<>"",OFFSET(DE100_17!$C$105,ROWS($C$105:C127)-1,COLUMNS($C$105:C127)-1),"") -> 80107.53 | B121: =IF(OFFSET(DE100_17!$D$105,ROWS($D$105:D127)-1,COLUMNS($D$105:D127)-1)<>"",OFFSET(DE100_17!$D$105,ROWS($D$105:D127)-1,COLUMNS($D$105:D127)-1),"") -> 80186.58 | C121: =IF(OFFSET(DE100_17!$E$105,ROWS($E$105:E127)-1,COLUMNS($E$105:E127)-1)<>"",OFFSET(DE100_17!$E$105,ROWS($E$105:E127)-1,COLUMNS($E$105:E127)-1),"") -> Rt | D121: =IF(OFFSET(DE100_17!$F$105,ROWS($F$105:F127)-1,COLUMNS($F$105:F127)-1)<>"",OFFSET(DE100_17!$F$105,ROWS($F$105:F127)-1,COLUMNS($F$105:F127)-1),"") -> 81.7 | E121: =IF(OFFSET(DE100_17!$G$105,ROWS($G$105:G127)-1,COLUMNS($G$105:G127)-1)<>"",OFFSET(DE100_17!$G$105,ROWS($G$105:G127)-1,COLUMNS($G$105:G127)-1),"") -> 
A122: =IF(OFFSET(DE100_17!$C$105,ROWS($C$105:C128)-1,COLUMNS($C$105:C128)-1)<>"",OFFSET(DE100_17!$C$105,ROWS($C$105:C128)-1,COLUMNS($C$105:C128)-1),"") ->  | B122: =IF(OFFSET(DE100_17!$D$105,ROWS($D$105:D128)-1,COLUMNS($D$105:D128)-1)<>"",OFFSET(DE100_17!$D$105,ROWS($D$105:D128)-1,COLUMNS($D$105:D128)-1),"") ->  | C122: =IF(OFFSET(DE100_17!$E$105,ROWS($E$105:E128)-1,COLUMNS($E$105:E128)-1)<>"",OFFSET(DE100_17!$E$105,ROWS($E$105:E128)-1,COLUMNS($E$105:E128)-1),"") ->  | D122: =IF(OFFSET(DE100_17!$F$105,ROWS($F$105:F128)-1,COLUMNS($F$105:F128)-1)<>"",OFFSET(DE100_17!$F$105,ROWS($F$105:F128)-1,COLUMNS($F$105:F128)-1),"") ->  | E122: =IF(OFFSET(DE100_17!$G$105,ROWS($G$105:G128)-1,COLUMNS($G$105:G128)-1)<>"",OFFSET(DE100_17!$G$105,ROWS($G$105:G128)-1,COLUMNS($G$105:G128)-1),"") -> 
A123: =IF(OFFSET(DE100_17!$C$105,ROWS($C$105:C129)-1,COLUMNS($C$105:C129)-1)<>"",OFFSET(DE100_17!$C$105,ROWS($C$105:C129)-1,COLUMNS($C$105:C129)-1),"") -> 80021.29 | B123: =IF(OFFSET(DE100_17!$D$105,ROWS($D$105:D129)-1,COLUMNS($D$105:D129)-1)<>"",OFFSET(DE100_17!$D$105,ROWS($D$105:D129)-1,COLUMNS($D$105:D129)-1),"") -> 80056.46 | C123: =IF(OFFSET(DE100_17!$E$105,ROWS($E$105:E129)-1,COLUMNS($E$105:E129)-1)<>"",OFFSET(DE100_17!$E$105,ROWS($E$105:E129)-1,COLUMNS($E$105:E129)-1),"") -> Lt | D123: =IF(OFFSET(DE100_17!$F$105,ROWS($F$105:F129)-1,COLUMNS($F$105:F129)-1)<>"",OFFSET(DE100_17!$F$105,ROWS($F$105:F129)-1,COLUMNS($F$105:F129)-1),"") -> 38.8 | E123: =IF(OFFSET(DE100_17!$G$105,ROWS($G$105:G129)-1,COLUMNS($G$105:G129)-1)<>"",OFFSET(DE100_17!$G$105,ROWS($G$105:G129)-1,COLUMNS($G$105:G129)-1),"") -> 
A124: =IF(OFFSET(DE100_17!$C$105,ROWS($C$105:C130)-1,COLUMNS($C$105:C130)-1)<>"",OFFSET(DE100_17!$C$105,ROWS($C$105:C130)-1,COLUMNS($C$105:C130)-1),"") -> 80021.29 | B124: =IF(OFFSET(DE100_17!$D$105,ROWS($D$105:D130)-1,COLUMNS($D$105:D130)-1)<>"",OFFSET(DE100_17!$D$105,ROWS($D$105:D130)-1,COLUMNS($D$105:D130)-1),"") -> 80005.13 | C124: =IF(OFFSET(DE100_17!$E$105,ROWS($E$105:E130)-1,COLUMNS($E$105:E130)-1)<>"",OFFSET(DE100_17!$E$105,ROWS($E$105:E130)-1,COLUMNS($E$105:E130)-1),"") -> Lt | D124: =IF(OFFSET(DE100_17!$F$105,ROWS($F$105:F130)-1,COLUMNS($F$105:F130)-1)<>"",OFFSET(DE100_17!$F$105,ROWS($F$105:F130)-1,COLUMNS($F$105:F130)-1),"") -> 89.4 | E124: =IF(OFFSET(DE100_17!$G$105,ROWS($G$105:G130)-1,COLUMNS($G$105:G130)-1)<>"",OFFSET(DE100_17!$G$105,ROWS($G$105:G130)-1,COLUMNS($G$105:G130)-1),"") -> 
A125: =IF(OFFSET(DE100_17!$C$105,ROWS($C$105:C131)-1,COLUMNS($C$105:C131)-1)<>"",OFFSET(DE100_17!$C$105,ROWS($C$105:C131)-1,COLUMNS($C$105:C131)-1),"") -> 80013.42 | B125: =IF(OFFSET(DE100_17!$D$105,ROWS($D$105:D131)-1,COLUMNS($D$105:D131)-1)<>"",OFFSET(DE100_17!$D$105,ROWS($D$105:D131)-1,COLUMNS($D$105:D131)-1),"") -> 80143.03 | C125: =IF(OFFSET(DE100_17!$E$105,ROWS($E$105:E131)-1,COLUMNS($E$105:E131)-1)<>"",OFFSET(DE100_17!$E$105,ROWS($E$105:E131)-1,COLUMNS($E$105:E131)-1),"") -> Lt | D125: =IF(OFFSET(DE100_17!$F$105,ROWS($F$105:F131)-1,COLUMNS($F$105:F131)-1)<>"",OFFSET(DE100_17!$F$105,ROWS($F$105:F131)-1,COLUMNS($F$105:F131)-1),"") -> 158.2 | E125: =IF(OFFSET(DE100_17!$G$105,ROWS($G$105:G131)-1,COLUMNS($G$105:G131)-1)<>"",OFFSET(DE100_17!$G$105,ROWS($G$105:G131)-1,COLUMNS($G$105:G131)-1),"") -> 
A126: =IF(OFFSET(DE100_17!$C$105,ROWS($C$105:C132)-1,COLUMNS($C$105:C132)-1)<>"",OFFSET(DE100_17!$C$105,ROWS($C$105:C132)-1,COLUMNS($C$105:C132)-1),"") -> 80062.07 | B126: =IF(OFFSET(DE100_17!$D$105,ROWS($D$105:D132)-1,COLUMNS($D$105:D132)-1)<>"",OFFSET(DE100_17!$D$105,ROWS($D$105:D132)-1,COLUMNS($D$105:D132)-1),"") -> 80143.04 | C126: =IF(OFFSET(DE100_17!$E$105,ROWS($E$105:E132)-1,COLUMNS($E$105:E132)-1)<>"",OFFSET(DE100_17!$E$105,ROWS($E$105:E132)-1,COLUMNS($E$105:E132)-1),"") -> Lt | D126: =IF(OFFSET(DE100_17!$F$105,ROWS($F$105:F132)-1,COLUMNS($F$105:F132)-1)<>"",OFFSET(DE100_17!$F$105,ROWS($F$105:F132)-1,COLUMNS($F$105:F132)-1),"") -> 87.8 | E126: =IF(OFFSET(DE100_17!$G$105,ROWS($G$105:G132)-1,COLUMNS($G$105:G132)-1)<>"",OFFSET(DE100_17!$G$105,ROWS($G$105:G132)-1,COLUMNS($G$105:G132)-1),"") -> 
A127: =IF(OFFSET(DE100_17!$C$105,ROWS($C$105:C133)-1,COLUMNS($C$105:C133)-1)<>"",OFFSET(DE100_17!$C$105,ROWS($C$105:C133)-1,COLUMNS($C$105:C133)-1),"") ->  | B127: =IF(OFFSET(DE100_17!$D$105,ROWS($D$105:D133)-1,COLUMNS($D$105:D133)-1)<>"",OFFSET(DE100_17!$D$105,ROWS($D$105:D133)-1,COLUMNS($D$105:D133)-1),"") ->  | C127: =IF(OFFSET(DE100_17!$E$105,ROWS($E$105:E133)-1,COLUMNS($E$105:E133)-1)<>"",OFFSET(DE100_17!$E$105,ROWS($E$105:E133)-1,COLUMNS($E$105:E133)-1),"") ->  | D127: =IF(OFFSET(DE100_17!$F$105,ROWS($F$105:F133)-1,COLUMNS($F$105:F133)-1)<>"",OFFSET(DE100_17!$F$105,ROWS($F$105:F133)-1,COLUMNS($F$105:F133)-1),"") ->  | E127: =IF(OFFSET(DE100_17!$G$105,ROWS($G$105:G133)-1,COLUMNS($G$105:G133)-1)<>"",OFFSET(DE100_17!$G$105,ROWS($G$105:G133)-1,COLUMNS($G$105:G133)-1),"") -> 
A128: =IF(OFFSET(DE100_17!$C$105,ROWS($C$105:C134)-1,COLUMNS($C$105:C134)-1)<>"",OFFSET(DE100_17!$C$105,ROWS($C$105:C134)-1,COLUMNS($C$105:C134)-1),"") -> 80767.93 | B128: =IF(OFFSET(DE100_17!$D$105,ROWS($D$105:D134)-1,COLUMNS($D$105:D134)-1)<>"",OFFSET(DE100_17!$D$105,ROWS($D$105:D134)-1,COLUMNS($D$105:D134)-1),"") -> 80862.39 | C128: =IF(OFFSET(DE100_17!$E$105,ROWS($E$105:E134)-1,COLUMNS($E$105:E134)-1)<>"",OFFSET(DE100_17!$E$105,ROWS($E$105:E134)-1,COLUMNS($E$105:E134)-1),"") -> Rt | D128: =IF(OFFSET(DE100_17!$F$105,ROWS($F$105:F134)-1,COLUMNS($F$105:F134)-1)<>"",OFFSET(DE100_17!$F$105,ROWS($F$105:F134)-1,COLUMNS($F$105:F134)-1),"") -> 98.5 | E128: =IF(OFFSET(DE100_17!$G$105,ROWS($G$105:G134)-1,COLUMNS($G$105:G134)-1)<>"",OFFSET(DE100_17!$G$105,ROWS($G$105:G134)-1,COLUMNS($G$105:G134)-1),"") -> 
A129: =IF(OFFSET(DE100_17!$C$105,ROWS($C$105:C135)-1,COLUMNS($C$105:C135)-1)<>"",OFFSET(DE100_17!$C$105,ROWS($C$105:C135)-1,COLUMNS($C$105:C135)-1),"") -> 80849.72 | B129: =IF(OFFSET(DE100_17!$D$105,ROWS($D$105:D135)-1,COLUMNS($D$105:D135)-1)<>"",OFFSET(DE100_17!$D$105,ROWS($D$105:D135)-1,COLUMNS($D$105:D135)-1),"") -> 80861.17 | C129: =IF(OFFSET(DE100_17!$E$105,ROWS($E$105:E135)-1,COLUMNS($E$105:E135)-1)<>"",OFFSET(DE100_17!$E$105,ROWS($E$105:E135)-1,COLUMNS($E$105:E135)-1),"") -> Rt | D129: =IF(OFFSET(DE100_17!$F$105,ROWS($F$105:F135)-1,COLUMNS($F$105:F135)-1)<>"",OFFSET(DE100_17!$F$105,ROWS($F$105:F135)-1,COLUMNS($F$105:F135)-1),"") -> 83.1 | E129: =IF(OFFSET(DE100_17!$G$105,ROWS($G$105:G135)-1,COLUMNS($G$105:G135)-1)<>"",OFFSET(DE100_17!$G$105,ROWS($G$105:G135)-1,COLUMNS($G$105:G135)-1),"") -> 
A130: =IF(OFFSET(DE100_17!$C$105,ROWS($C$105:C136)-1,COLUMNS($C$105:C136)-1)<>"",OFFSET(DE100_17!$C$105,ROWS($C$105:C136)-1,COLUMNS($C$105:C136)-1),"") -> 80868.67 | B130: =IF(OFFSET(DE100_17!$D$105,ROWS($D$105:D136)-1,COLUMNS($D$105:D136)-1)<>"",OFFSET(DE100_17!$D$105,ROWS($D$105:D136)-1,COLUMNS($D$105:D136)-1),"") -> 80874.97 | C130: =IF(OFFSET(DE100_17!$E$105,ROWS($E$105:E136)-1,COLUMNS($E$105:E136)-1)<>"",OFFSET(DE100_17!$E$105,ROWS($E$105:E136)-1,COLUMNS($E$105:E136)-1),"") -> Rt | D130: =IF(OFFSET(DE100_17!$F$105,ROWS($F$105:F136)-1,COLUMNS($F$105:F136)-1)<>"",OFFSET(DE100_17!$F$105,ROWS($F$105:F136)-1,COLUMNS($F$105:F136)-1),"") -> 79.7 | E130: =IF(OFFSET(DE100_17!$G$105,ROWS($G$105:G136)-1,COLUMNS($G$105:G136)-1)<>"",OFFSET(DE100_17!$G$105,ROWS($G$105:G136)-1,COLUMNS($G$105:G136)-1),"") -> 
A131: =IF(OFFSET(DE100_17!$C$105,ROWS($C$105:C137)-1,COLUMNS($C$105:C137)-1)<>"",OFFSET(DE100_17!$C$105,ROWS($C$105:C137)-1,COLUMNS($C$105:C137)-1),"") -> 80871.6 | B131: =IF(OFFSET(DE100_17!$D$105,ROWS($D$105:D137)-1,COLUMNS($D$105:D137)-1)<>"",OFFSET(DE100_17!$D$105,ROWS($D$105:D137)-1,COLUMNS($D$105:D137)-1),"") -> 80965.64 | C131: =IF(OFFSET(DE100_17!$E$105,ROWS($E$105:E137)-1,COLUMNS($E$105:E137)-1)<>"",OFFSET(DE100_17!$E$105,ROWS($E$105:E137)-1,COLUMNS($E$105:E137)-1),"") -> Rt | D131: =IF(OFFSET(DE100_17!$F$105,ROWS($F$105:F137)-1,COLUMNS($F$105:F137)-1)<>"",OFFSET(DE100_17!$F$105,ROWS($F$105:F137)-1,COLUMNS($F$105:F137)-1),"") -> 99 | E131: =IF(OFFSET(DE100_17!$G$105,ROWS($G$105:G137)-1,COLUMNS($G$105:G137)-1)<>"",OFFSET(DE100_17!$G$105,ROWS($G$105:G137)-1,COLUMNS($G$105:G137)-1),"") -> 
A132: =IF(OFFSET(DE100_17!$C$105,ROWS($C$105:C138)-1,COLUMNS($C$105:C138)-1)<>"",OFFSET(DE100_17!$C$105,ROWS($C$105:C138)-1,COLUMNS($C$105:C138)-1),"") ->  | B132: =IF(OFFSET(DE100_17!$D$105,ROWS($D$105:D138)-1,COLUMNS($D$105:D138)-1)<>"",OFFSET(DE100_17!$D$105,ROWS($D$105:D138)-1,COLUMNS($D$105:D138)-1),"") ->  | C132: =IF(OFFSET(DE100_17!$E$105,ROWS($E$105:E138)-1,COLUMNS($E$105:E138)-1)<>"",OFFSET(DE100_17!$E$105,ROWS($E$105:E138)-1,COLUMNS($E$105:E138)-1),"") ->  | D132: =IF(OFFSET(DE100_17!$F$105,ROWS($F$105:F138)-1,COLUMNS($F$105:F138)-1)<>"",OFFSET(DE100_17!$F$105,ROWS($F$105:F138)-1,COLUMNS($F$105:F138)-1),"") ->  | E132: =IF(OFFSET(DE100_17!$G$105,ROWS($G$105:G138)-1,COLUMNS($G$105:G138)-1)<>"",OFFSET(DE100_17!$G$105,ROWS($G$105:G138)-1,COLUMNS($G$105:G138)-1),"") -> 
A133: =IF(OFFSET(DE100_17!$C$105,ROWS($C$105:C139)-1,COLUMNS($C$105:C139)-1)<>"",OFFSET(DE100_17!$C$105,ROWS($C$105:C139)-1,COLUMNS($C$105:C139)-1),"") -> 80797.72 | B133: =IF(OFFSET(DE100_17!$D$105,ROWS($D$105:D139)-1,COLUMNS($D$105:D139)-1)<>"",OFFSET(DE100_17!$D$105,ROWS($D$105:D139)-1,COLUMNS($D$105:D139)-1),"") -> 80862.1 | C133: =IF(OFFSET(DE100_17!$E$105,ROWS($E$105:E139)-1,COLUMNS($E$105:E139)-1)<>"",OFFSET(DE100_17!$E$105,ROWS($E$105:E139)-1,COLUMNS($E$105:E139)-1),"") -> Lt | D133: =IF(OFFSET(DE100_17!$F$105,ROWS($F$105:F139)-1,COLUMNS($F$105:F139)-1)<>"",OFFSET(DE100_17!$F$105,ROWS($F$105:F139)-1,COLUMNS($F$105:F139)-1),"") -> 64.8 | E133: =IF(OFFSET(DE100_17!$G$105,ROWS($G$105:G139)-1,COLUMNS($G$105:G139)-1)<>"",OFFSET(DE100_17!$G$105,ROWS($G$105:G139)-1,COLUMNS($G$105:G139)-1),"") -> 
A134: =IF(OFFSET(DE100_17!$C$105,ROWS($C$105:C140)-1,COLUMNS($C$105:C140)-1)<>"",OFFSET(DE100_17!$C$105,ROWS($C$105:C140)-1,COLUMNS($C$105:C140)-1),"") -> 80797.72 | B134: =IF(OFFSET(DE100_17!$D$105,ROWS($D$105:D140)-1,COLUMNS($D$105:D140)-1)<>"",OFFSET(DE100_17!$D$105,ROWS($D$105:D140)-1,COLUMNS($D$105:D140)-1),"") -> 80854.68 | C134: =IF(OFFSET(DE100_17!$E$105,ROWS($E$105:E140)-1,COLUMNS($E$105:E140)-1)<>"",OFFSET(DE100_17!$E$105,ROWS($E$105:E140)-1,COLUMNS($E$105:E140)-1),"") -> Lt | D134: =IF(OFFSET(DE100_17!$F$105,ROWS($F$105:F140)-1,COLUMNS($F$105:F140)-1)<>"",OFFSET(DE100_17!$F$105,ROWS($F$105:F140)-1,COLUMNS($F$105:F140)-1),"") -> 101.6 | E134: =IF(OFFSET(DE100_17!$G$105,ROWS($G$105:G140)-1,COLUMNS($G$105:G140)-1)<>"",OFFSET(DE100_17!$G$105,ROWS($G$105:G140)-1,COLUMNS($G$105:G140)-1),"") -> 
A135: =IF(OFFSET(DE100_17!$C$105,ROWS($C$105:C141)-1,COLUMNS($C$105:C141)-1)<>"",OFFSET(DE100_17!$C$105,ROWS($C$105:C141)-1,COLUMNS($C$105:C141)-1),"") -> 80871.89 | B135: =IF(OFFSET(DE100_17!$D$105,ROWS($D$105:D141)-1,COLUMNS($D$105:D141)-1)<>"",OFFSET(DE100_17!$D$105,ROWS($D$105:D141)-1,COLUMNS($D$105:D141)-1),"") -> 80935.23 | C135: =IF(OFFSET(DE100_17!$E$105,ROWS($E$105:E141)-1,COLUMNS($E$105:E141)-1)<>"",OFFSET(DE100_17!$E$105,ROWS($E$105:E141)-1,COLUMNS($E$105:E141)-1),"") -> Lt | D135: =IF(OFFSET(DE100_17!$F$105,ROWS($F$105:F141)-1,COLUMNS($F$105:F141)-1)<>"",OFFSET(DE100_17!$F$105,ROWS($F$105:F141)-1,COLUMNS($F$105:F141)-1),"") -> 64 | E135: =IF(OFFSET(DE100_17!$G$105,ROWS($G$105:G141)-1,COLUMNS($G$105:G141)-1)<>"",OFFSET(DE100_17!$G$105,ROWS($G$105:G141)-1,COLUMNS($G$105:G141)-1),"") -> 
A136: =IF(OFFSET(DE100_17!$C$105,ROWS($C$105:C142)-1,COLUMNS($C$105:C142)-1)<>"",OFFSET(DE100_17!$C$105,ROWS($C$105:C142)-1,COLUMNS($C$105:C142)-1),"") -> 80874.53 | B136: =IF(OFFSET(DE100_17!$D$105,ROWS($D$105:D142)-1,COLUMNS($D$105:D142)-1)<>"",OFFSET(DE100_17!$D$105,ROWS($D$105:D142)-1,COLUMNS($D$105:D142)-1),"") -> 80875.17 | C136: =IF(OFFSET(DE100_17!$E$105,ROWS($E$105:E142)-1,COLUMNS($E$105:E142)-1)<>"",OFFSET(DE100_17!$E$105,ROWS($E$105:E142)-1,COLUMNS($E$105:E142)-1),"") -> Lt | D136: =IF(OFFSET(DE100_17!$F$105,ROWS($F$105:F142)-1,COLUMNS($F$105:F142)-1)<>"",OFFSET(DE100_17!$F$105,ROWS($F$105:F142)-1,COLUMNS($F$105:F142)-1),"") -> 45.1 | E136: =IF(OFFSET(DE100_17!$G$105,ROWS($G$105:G142)-1,COLUMNS($G$105:G142)-1)<>"",OFFSET(DE100_17!$G$105,ROWS($G$105:G142)-1,COLUMNS($G$105:G142)-1),"") -> 
A137: =IF(OFFSET(DE100_17!$C$105,ROWS($C$105:C143)-1,COLUMNS($C$105:C143)-1)<>"",OFFSET(DE100_17!$C$105,ROWS($C$105:C143)-1,COLUMNS($C$105:C143)-1),"") ->  | B137: =IF(OFFSET(DE100_17!$D$105,ROWS($D$105:D143)-1,COLUMNS($D$105:D143)-1)<>"",OFFSET(DE100_17!$D$105,ROWS($D$105:D143)-1,COLUMNS($D$105:D143)-1),"") ->  | C137: =IF(OFFSET(DE100_17!$E$105,ROWS($E$105:E143)-1,COLUMNS($E$105:E143)-1)<>"",OFFSET(DE100_17!$E$105,ROWS($E$105:E143)-1,COLUMNS($E$105:E143)-1),"") ->  | D137: =IF(OFFSET(DE100_17!$F$105,ROWS($F$105:F143)-1,COLUMNS($F$105:F143)-1)<>"",OFFSET(DE100_17!$F$105,ROWS($F$105:F143)-1,COLUMNS($F$105:F143)-1),"") ->  | E137: =IF(OFFSET(DE100_17!$G$105,ROWS($G$105:G143)-1,COLUMNS($G$105:G143)-1)<>"",OFFSET(DE100_17!$G$105,ROWS($G$105:G143)-1,COLUMNS($G$105:G143)-1),"") -> 
A138: =IF(OFFSET(DE100_17!$C$105,ROWS($C$105:C144)-1,COLUMNS($C$105:C144)-1)<>"",OFFSET(DE100_17!$C$105,ROWS($C$105:C144)-1,COLUMNS($C$105:C144)-1),"") -> 81693.34 | B138: =IF(OFFSET(DE100_17!$D$105,ROWS($D$105:D144)-1,COLUMNS($D$105:D144)-1)<>"",OFFSET(DE100_17!$D$105,ROWS($D$105:D144)-1,COLUMNS($D$105:D144)-1),"") -> 81777.03 | C138: =IF(OFFSET(DE100_17!$E$105,ROWS($E$105:E144)-1,COLUMNS($E$105:E144)-1)<>"",OFFSET(DE100_17!$E$105,ROWS($E$105:E144)-1,COLUMNS($E$105:E144)-1),"") -> Rt | D138: =IF(OFFSET(DE100_17!$F$105,ROWS($F$105:F144)-1,COLUMNS($F$105:F144)-1)<>"",OFFSET(DE100_17!$F$105,ROWS($F$105:F144)-1,COLUMNS($F$105:F144)-1),"") -> 86.3 | E138: =IF(OFFSET(DE100_17!$G$105,ROWS($G$105:G144)-1,COLUMNS($G$105:G144)-1)<>"",OFFSET(DE100_17!$G$105,ROWS($G$105:G144)-1,COLUMNS($G$105:G144)-1),"") -> 
A139: =IF(OFFSET(DE100_17!$C$105,ROWS($C$105:C145)-1,COLUMNS($C$105:C145)-1)<>"",OFFSET(DE100_17!$C$105,ROWS($C$105:C145)-1,COLUMNS($C$105:C145)-1),"") -> 81784.01 | B139: =IF(OFFSET(DE100_17!$D$105,ROWS($D$105:D145)-1,COLUMNS($D$105:D145)-1)<>"",OFFSET(DE100_17!$D$105,ROWS($D$105:D145)-1,COLUMNS($D$105:D145)-1),"") -> 81868.63 | C139: =IF(OFFSET(DE100_17!$E$105,ROWS($E$105:E145)-1,COLUMNS($E$105:E145)-1)<>"",OFFSET(DE100_17!$E$105,ROWS($E$105:E145)-1,COLUMNS($E$105:E145)-1),"") -> Rt | D139: =IF(OFFSET(DE100_17!$F$105,ROWS($F$105:F145)-1,COLUMNS($F$105:F145)-1)<>"",OFFSET(DE100_17!$F$105,ROWS($F$105:F145)-1,COLUMNS($F$105:F145)-1),"") -> 87.2 | E139: =IF(OFFSET(DE100_17!$G$105,ROWS($G$105:G145)-1,COLUMNS($G$105:G145)-1)<>"",OFFSET(DE100_17!$G$105,ROWS($G$105:G145)-1,COLUMNS($G$105:G145)-1),"") -> 
A140: =IF(OFFSET(DE100_17!$C$105,ROWS($C$105:C146)-1,COLUMNS($C$105:C146)-1)<>"",OFFSET(DE100_17!$C$105,ROWS($C$105:C146)-1,COLUMNS($C$105:C146)-1),"") ->  | B140: =IF(OFFSET(DE100_17!$D$105,ROWS($D$105:D146)-1,COLUMNS($D$105:D146)-1)<>"",OFFSET(DE100_17!$D$105,ROWS($D$105:D146)-1,COLUMNS($D$105:D146)-1),"") ->  | C140: =IF(OFFSET(DE100_17!$E$105,ROWS($E$105:E146)-1,COLUMNS($E$105:E146)-1)<>"",OFFSET(DE100_17!$E$105,ROWS($E$105:E146)-1,COLUMNS($E$105:E146)-1),"") ->  | D140: =IF(OFFSET(DE100_17!$F$105,ROWS($F$105:F146)-1,COLUMNS($F$105:F146)-1)<>"",OFFSET(DE100_17!$F$105,ROWS($F$105:F146)-1,COLUMNS($F$105:F146)-1),"") ->  | E140: =IF(OFFSET(DE100_17!$G$105,ROWS($G$105:G146)-1,COLUMNS($G$105:G146)-1)<>"",OFFSET(DE100_17!$G$105,ROWS($G$105:G146)-1,COLUMNS($G$105:G146)-1),"") -> 
A141: =IF(OFFSET(DE100_17!$C$105,ROWS($C$105:C147)-1,COLUMNS($C$105:C147)-1)<>"",OFFSET(DE100_17!$C$105,ROWS($C$105:C147)-1,COLUMNS($C$105:C147)-1),"") -> 81718.91 | B141: =IF(OFFSET(DE100_17!$D$105,ROWS($D$105:D147)-1,COLUMNS($D$105:D147)-1)<>"",OFFSET(DE100_17!$D$105,ROWS($D$105:D147)-1,COLUMNS($D$105:D147)-1),"") -> 81797.98 | C141: =IF(OFFSET(DE100_17!$E$105,ROWS($E$105:E147)-1,COLUMNS($E$105:E147)-1)<>"",OFFSET(DE100_17!$E$105,ROWS($E$105:E147)-1,COLUMNS($E$105:E147)-1),"") -> Lt | D141: =IF(OFFSET(DE100_17!$F$105,ROWS($F$105:F147)-1,COLUMNS($F$105:F147)-1)<>"",OFFSET(DE100_17!$F$105,ROWS($F$105:F147)-1,COLUMNS($F$105:F147)-1),"") -> 81.6 | E141: =IF(OFFSET(DE100_17!$G$105,ROWS($G$105:G147)-1,COLUMNS($G$105:G147)-1)<>"",OFFSET(DE100_17!$G$105,ROWS($G$105:G147)-1,COLUMNS($G$105:G147)-1),"") -> 
A142: =IF(OFFSET(DE100_17!$C$105,ROWS($C$105:C148)-1,COLUMNS($C$105:C148)-1)<>"",OFFSET(DE100_17!$C$105,ROWS($C$105:C148)-1,COLUMNS($C$105:C148)-1),"") -> 81718.92 | B142: =IF(OFFSET(DE100_17!$D$105,ROWS($D$105:D148)-1,COLUMNS($D$105:D148)-1)<>"",OFFSET(DE100_17!$D$105,ROWS($D$105:D148)-1,COLUMNS($D$105:D148)-1),"") -> 81806.62 | C142: =IF(OFFSET(DE100_17!$E$105,ROWS($E$105:E148)-1,COLUMNS($E$105:E148)-1)<>"",OFFSET(DE100_17!$E$105,ROWS($E$105:E148)-1,COLUMNS($E$105:E148)-1),"") -> Lt | D142: =IF(OFFSET(DE100_17!$F$105,ROWS($F$105:F148)-1,COLUMNS($F$105:F148)-1)<>"",OFFSET(DE100_17!$F$105,ROWS($F$105:F148)-1,COLUMNS($F$105:F148)-1),"") -> 116.1 | E142: =IF(OFFSET(DE100_17!$G$105,ROWS($G$105:G148)-1,COLUMNS($G$105:G148)-1)<>"",OFFSET(DE100_17!$G$105,ROWS($G$105:G148)-1,COLUMNS($G$105:G148)-1),"") -> 
A143: =IF(OFFSET(DE100_17!$C$105,ROWS($C$105:C149)-1,COLUMNS($C$105:C149)-1)<>"",OFFSET(DE100_17!$C$105,ROWS($C$105:C149)-1,COLUMNS($C$105:C149)-1),"") -> 81804.96 | B143: =IF(OFFSET(DE100_17!$D$105,ROWS($D$105:D149)-1,COLUMNS($D$105:D149)-1)<>"",OFFSET(DE100_17!$D$105,ROWS($D$105:D149)-1,COLUMNS($D$105:D149)-1),"") -> 81842.47 | C143: =IF(OFFSET(DE100_17!$E$105,ROWS($E$105:E149)-1,COLUMNS($E$105:E149)-1)<>"",OFFSET(DE100_17!$E$105,ROWS($E$105:E149)-1,COLUMNS($E$105:E149)-1),"") -> Lt | D143: =IF(OFFSET(DE100_17!$F$105,ROWS($F$105:F149)-1,COLUMNS($F$105:F149)-1)<>"",OFFSET(DE100_17!$F$105,ROWS($F$105:F149)-1,COLUMNS($F$105:F149)-1),"") -> 39.1 | E143: =IF(OFFSET(DE100_17!$G$105,ROWS($G$105:G149)-1,COLUMNS($G$105:G149)-1)<>"",OFFSET(DE100_17!$G$105,ROWS($G$105:G149)-1,COLUMNS($G$105:G149)-1),"") -> 
A144: =IF(OFFSET(DE100_17!$C$105,ROWS($C$105:C150)-1,COLUMNS($C$105:C150)-1)<>"",OFFSET(DE100_17!$C$105,ROWS($C$105:C150)-1,COLUMNS($C$105:C150)-1),"") -> 81812.44 | B144: =IF(OFFSET(DE100_17!$D$105,ROWS($D$105:D150)-1,COLUMNS($D$105:D150)-1)<>"",OFFSET(DE100_17!$D$105,ROWS($D$105:D150)-1,COLUMNS($D$105:D150)-1),"") -> 81883.6 | C144: =IF(OFFSET(DE100_17!$E$105,ROWS($E$105:E150)-1,COLUMNS($E$105:E150)-1)<>"",OFFSET(DE100_17!$E$105,ROWS($E$105:E150)-1,COLUMNS($E$105:E150)-1),"") -> Lt | D144: =IF(OFFSET(DE100_17!$F$105,ROWS($F$105:F150)-1,COLUMNS($F$105:F150)-1)<>"",OFFSET(DE100_17!$F$105,ROWS($F$105:F150)-1,COLUMNS($F$105:F150)-1),"") -> 101 | E144: =IF(OFFSET(DE100_17!$G$105,ROWS($G$105:G150)-1,COLUMNS($G$105:G150)-1)<>"",OFFSET(DE100_17!$G$105,ROWS($G$105:G150)-1,COLUMNS($G$105:G150)-1),"") -> 
A145: =IF(OFFSET(DE100_17!$C$105,ROWS($C$105:C151)-1,COLUMNS($C$105:C151)-1)<>"",OFFSET(DE100_17!$C$105,ROWS($C$105:C151)-1,COLUMNS($C$105:C151)-1),"") ->  | B145: =IF(OFFSET(DE100_17!$D$105,ROWS($D$105:D151)-1,COLUMNS($D$105:D151)-1)<>"",OFFSET(DE100_17!$D$105,ROWS($D$105:D151)-1,COLUMNS($D$105:D151)-1),"") ->  | C145: =IF(OFFSET(DE100_17!$E$105,ROWS($E$105:E151)-1,COLUMNS($E$105:E151)-1)<>"",OFFSET(DE100_17!$E$105,ROWS($E$105:E151)-1,COLUMNS($E$105:E151)-1),"") ->  | D145: =IF(OFFSET(DE100_17!$F$105,ROWS($F$105:F151)-1,COLUMNS($F$105:F151)-1)<>"",OFFSET(DE100_17!$F$105,ROWS($F$105:F151)-1,COLUMNS($F$105:F151)-1),"") ->  | E145: =IF(OFFSET(DE100_17!$G$105,ROWS($G$105:G151)-1,COLUMNS($G$105:G151)-1)<>"",OFFSET(DE100_17!$G$105,ROWS($G$105:G151)-1,COLUMNS($G$105:G151)-1),"") -> 
A146: =IF(OFFSET(DE100_17!$C$105,ROWS($C$105:C152)-1,COLUMNS($C$105:C152)-1)<>"",OFFSET(DE100_17!$C$105,ROWS($C$105:C152)-1,COLUMNS($C$105:C152)-1),"") -> 82979.97 | B146: =IF(OFFSET(DE100_17!$D$105,ROWS($D$105:D152)-1,COLUMNS($D$105:D152)-1)<>"",OFFSET(DE100_17!$D$105,ROWS($D$105:D152)-1,COLUMNS($D$105:D152)-1),"") -> 83058.02 | C146: =IF(OFFSET(DE100_17!$E$105,ROWS($E$105:E152)-1,COLUMNS($E$105:E152)-1)<>"",OFFSET(DE100_17!$E$105,ROWS($E$105:E152)-1,COLUMNS($E$105:E152)-1),"") -> Rt | D146: =IF(OFFSET(DE100_17!$F$105,ROWS($F$105:F152)-1,COLUMNS($F$105:F152)-1)<>"",OFFSET(DE100_17!$F$105,ROWS($F$105:F152)-1,COLUMNS($F$105:F152)-1),"") -> 88.7 | E146: =IF(OFFSET(DE100_17!$G$105,ROWS($G$105:G152)-1,COLUMNS($G$105:G152)-1)<>"",OFFSET(DE100_17!$G$105,ROWS($G$105:G152)-1,COLUMNS($G$105:G152)-1),"") -> 
A147: =IF(OFFSET(DE100_17!$C$105,ROWS($C$105:C153)-1,COLUMNS($C$105:C153)-1)<>"",OFFSET(DE100_17!$C$105,ROWS($C$105:C153)-1,COLUMNS($C$105:C153)-1),"") -> 83062.48 | B147: =IF(OFFSET(DE100_17!$D$105,ROWS($D$105:D153)-1,COLUMNS($D$105:D153)-1)<>"",OFFSET(DE100_17!$D$105,ROWS($D$105:D153)-1,COLUMNS($D$105:D153)-1),"") -> 83134.26 | C147: =IF(OFFSET(DE100_17!$E$105,ROWS($E$105:E153)-1,COLUMNS($E$105:E153)-1)<>"",OFFSET(DE100_17!$E$105,ROWS($E$105:E153)-1,COLUMNS($E$105:E153)-1),"") -> Rt | D147: =IF(OFFSET(DE100_17!$F$105,ROWS($F$105:F153)-1,COLUMNS($F$105:F153)-1)<>"",OFFSET(DE100_17!$F$105,ROWS($F$105:F153)-1,COLUMNS($F$105:F153)-1),"") -> 83.5 | E147: =IF(OFFSET(DE100_17!$G$105,ROWS($G$105:G153)-1,COLUMNS($G$105:G153)-1)<>"",OFFSET(DE100_17!$G$105,ROWS($G$105:G153)-1,COLUMNS($G$105:G153)-1),"") -> 
A148: =IF(OFFSET(DE100_17!$C$105,ROWS($C$105:C154)-1,COLUMNS($C$105:C154)-1)<>"",OFFSET(DE100_17!$C$105,ROWS($C$105:C154)-1,COLUMNS($C$105:C154)-1),"") -> 83034.83 | B148: =IF(OFFSET(DE100_17!$D$105,ROWS($D$105:D154)-1,COLUMNS($D$105:D154)-1)<>"",OFFSET(DE100_17!$D$105,ROWS($D$105:D154)-1,COLUMNS($D$105:D154)-1),"") ->  | C148: =IF(OFFSET(DE100_17!$E$105,ROWS($E$105:E154)-1,COLUMNS($E$105:E154)-1)<>"",OFFSET(DE100_17!$E$105,ROWS($E$105:E154)-1,COLUMNS($E$105:E154)-1),"") -> Rt | D148: =IF(OFFSET(DE100_17!$F$105,ROWS($F$105:F154)-1,COLUMNS($F$105:F154)-1)<>"",OFFSET(DE100_17!$F$105,ROWS($F$105:F154)-1,COLUMNS($F$105:F154)-1),"") -> 60 | E148: =IF(OFFSET(DE100_17!$G$105,ROWS($G$105:G154)-1,COLUMNS($G$105:G154)-1)<>"",OFFSET(DE100_17!$G$105,ROWS($G$105:G154)-1,COLUMNS($G$105:G154)-1),"") -> (1)
A149: =IF(OFFSET(DE100_17!$C$105,ROWS($C$105:C155)-1,COLUMNS($C$105:C155)-1)<>"",OFFSET(DE100_17!$C$105,ROWS($C$105:C155)-1,COLUMNS($C$105:C155)-1),"") ->  | B149: =IF(OFFSET(DE100_17!$D$105,ROWS($D$105:D155)-1,COLUMNS($D$105:D155)-1)<>"",OFFSET(DE100_17!$D$105,ROWS($D$105:D155)-1,COLUMNS($D$105:D155)-1),"") ->  | C149: =IF(OFFSET(DE100_17!$E$105,ROWS($E$105:E155)-1,COLUMNS($E$105:E155)-1)<>"",OFFSET(DE100_17!$E$105,ROWS($E$105:E155)-1,COLUMNS($E$105:E155)-1),"") ->  | D149: =IF(OFFSET(DE100_17!$F$105,ROWS($F$105:F155)-1,COLUMNS($F$105:F155)-1)<>"",OFFSET(DE100_17!$F$105,ROWS($F$105:F155)-1,COLUMNS($F$105:F155)-1),"") ->  | E149: =IF(OFFSET(DE100_17!$G$105,ROWS($G$105:G155)-1,COLUMNS($G$105:G155)-1)<>"",OFFSET(DE100_17!$G$105,ROWS($G$105:G155)-1,COLUMNS($G$105:G155)-1),"") -> 
A150: =IF(OFFSET(DE100_17!$C$105,ROWS($C$105:C156)-1,COLUMNS($C$105:C156)-1)<>"",OFFSET(DE100_17!$C$105,ROWS($C$105:C156)-1,COLUMNS($C$105:C156)-1),"") -> 82962.37 | B150: =IF(OFFSET(DE100_17!$D$105,ROWS($D$105:D156)-1,COLUMNS($D$105:D156)-1)<>"",OFFSET(DE100_17!$D$105,ROWS($D$105:D156)-1,COLUMNS($D$105:D156)-1),"") -> 83045.74 | C150: =IF(OFFSET(DE100_17!$E$105,ROWS($E$105:E156)-1,COLUMNS($E$105:E156)-1)<>"",OFFSET(DE100_17!$E$105,ROWS($E$105:E156)-1,COLUMNS($E$105:E156)-1),"") -> Lt | D150: =IF(OFFSET(DE100_17!$F$105,ROWS($F$105:F156)-1,COLUMNS($F$105:F156)-1)<>"",OFFSET(DE100_17!$F$105,ROWS($F$105:F156)-1,COLUMNS($F$105:F156)-1),"") -> 85.4 | E150: =IF(OFFSET(DE100_17!$G$105,ROWS($G$105:G156)-1,COLUMNS($G$105:G156)-1)<>"",OFFSET(DE100_17!$G$105,ROWS($G$105:G156)-1,COLUMNS($G$105:G156)-1),"") -> 
A151: =IF(OFFSET(DE100_17!$C$105,ROWS($C$105:C157)-1,COLUMNS($C$105:C157)-1)<>"",OFFSET(DE100_17!$C$105,ROWS($C$105:C157)-1,COLUMNS($C$105:C157)-1),"") -> 82962.37 | B151: =IF(OFFSET(DE100_17!$D$105,ROWS($D$105:D157)-1,COLUMNS($D$105:D157)-1)<>"",OFFSET(DE100_17!$D$105,ROWS($D$105:D157)-1,COLUMNS($D$105:D157)-1),"") -> 83134.26 | C151: =IF(OFFSET(DE100_17!$E$105,ROWS($E$105:E157)-1,COLUMNS($E$105:E157)-1)<>"",OFFSET(DE100_17!$E$105,ROWS($E$105:E157)-1,COLUMNS($E$105:E157)-1),"") -> Lt | D151: =IF(OFFSET(DE100_17!$F$105,ROWS($F$105:F157)-1,COLUMNS($F$105:F157)-1)<>"",OFFSET(DE100_17!$F$105,ROWS($F$105:F157)-1,COLUMNS($F$105:F157)-1),"") -> 180.3 | E151: =IF(OFFSET(DE100_17!$G$105,ROWS($G$105:G157)-1,COLUMNS($G$105:G157)-1)<>"",OFFSET(DE100_17!$G$105,ROWS($G$105:G157)-1,COLUMNS($G$105:G157)-1),"") -> 
A152: =IF(OFFSET(DE100_17!$C$105,ROWS($C$105:C158)-1,COLUMNS($C$105:C158)-1)<>"",OFFSET(DE100_17!$C$105,ROWS($C$105:C158)-1,COLUMNS($C$105:C158)-1),"") -> 83050.2 | B152: =IF(OFFSET(DE100_17!$D$105,ROWS($D$105:D158)-1,COLUMNS($D$105:D158)-1)<>"",OFFSET(DE100_17!$D$105,ROWS($D$105:D158)-1,COLUMNS($D$105:D158)-1),"") -> 83119.26 | C152: =IF(OFFSET(DE100_17!$E$105,ROWS($E$105:E158)-1,COLUMNS($E$105:E158)-1)<>"",OFFSET(DE100_17!$E$105,ROWS($E$105:E158)-1,COLUMNS($E$105:E158)-1),"") -> Lt | D152: =IF(OFFSET(DE100_17!$F$105,ROWS($F$105:F158)-1,COLUMNS($F$105:F158)-1)<>"",OFFSET(DE100_17!$F$105,ROWS($F$105:F158)-1,COLUMNS($F$105:F158)-1),"") -> 73.2 | E152: =IF(OFFSET(DE100_17!$G$105,ROWS($G$105:G158)-1,COLUMNS($G$105:G158)-1)<>"",OFFSET(DE100_17!$G$105,ROWS($G$105:G158)-1,COLUMNS($G$105:G158)-1),"") -> 
A153: =IF(OFFSET(DE100_17!$C$105,ROWS($C$105:C159)-1,COLUMNS($C$105:C159)-1)<>"",OFFSET(DE100_17!$C$105,ROWS($C$105:C159)-1,COLUMNS($C$105:C159)-1),"") -> 83024.26 | B153: =IF(OFFSET(DE100_17!$D$105,ROWS($D$105:D159)-1,COLUMNS($D$105:D159)-1)<>"",OFFSET(DE100_17!$D$105,ROWS($D$105:D159)-1,COLUMNS($D$105:D159)-1),"") ->  | C153: =IF(OFFSET(DE100_17!$E$105,ROWS($E$105:E159)-1,COLUMNS($E$105:E159)-1)<>"",OFFSET(DE100_17!$E$105,ROWS($E$105:E159)-1,COLUMNS($E$105:E159)-1),"") -> Lt | D153: =IF(OFFSET(DE100_17!$F$105,ROWS($F$105:F159)-1,COLUMNS($F$105:F159)-1)<>"",OFFSET(DE100_17!$F$105,ROWS($F$105:F159)-1,COLUMNS($F$105:F159)-1),"") -> 60 | E153: =IF(OFFSET(DE100_17!$G$105,ROWS($G$105:G159)-1,COLUMNS($G$105:G159)-1)<>"",OFFSET(DE100_17!$G$105,ROWS($G$105:G159)-1,COLUMNS($G$105:G159)-1),"") -> (1)
A154: =IF(OFFSET(DE100_17!$C$105,ROWS($C$105:C160)-1,COLUMNS($C$105:C160)-1)<>"",OFFSET(DE100_17!$C$105,ROWS($C$105:C160)-1,COLUMNS($C$105:C160)-1),"") ->  | B154: =IF(OFFSET(DE100_17!$D$105,ROWS($D$105:D160)-1,COLUMNS($D$105:D160)-1)<>"",OFFSET(DE100_17!$D$105,ROWS($D$105:D160)-1,COLUMNS($D$105:D160)-1),"") ->  | C154: =IF(OFFSET(DE100_17!$E$105,ROWS($E$105:E160)-1,COLUMNS($E$105:E160)-1)<>"",OFFSET(DE100_17!$E$105,ROWS($E$105:E160)-1,COLUMNS($E$105:E160)-1),"") ->  | D154: =IF(OFFSET(DE100_17!$F$105,ROWS($F$105:F160)-1,COLUMNS($F$105:F160)-1)<>"",OFFSET(DE100_17!$F$105,ROWS($F$105:F160)-1,COLUMNS($F$105:F160)-1),"") ->  | E154: =IF(OFFSET(DE100_17!$G$105,ROWS($G$105:G160)-1,COLUMNS($G$105:G160)-1)<>"",OFFSET(DE100_17!$G$105,ROWS($G$105:G160)-1,COLUMNS($G$105:G160)-1),"") -> 
A155: =IF(OFFSET(DE100_17!$C$105,ROWS($C$105:C161)-1,COLUMNS($C$105:C161)-1)<>"",OFFSET(DE100_17!$C$105,ROWS($C$105:C161)-1,COLUMNS($C$105:C161)-1),"") -> 83737.42 | B155: =IF(OFFSET(DE100_17!$D$105,ROWS($D$105:D161)-1,COLUMNS($D$105:D161)-1)<>"",OFFSET(DE100_17!$D$105,ROWS($D$105:D161)-1,COLUMNS($D$105:D161)-1),"") -> 83826.88 | C155: =IF(OFFSET(DE100_17!$E$105,ROWS($E$105:E161)-1,COLUMNS($E$105:E161)-1)<>"",OFFSET(DE100_17!$E$105,ROWS($E$105:E161)-1,COLUMNS($E$105:E161)-1),"") -> Rt | D155: =IF(OFFSET(DE100_17!$F$105,ROWS($F$105:F161)-1,COLUMNS($F$105:F161)-1)<>"",OFFSET(DE100_17!$F$105,ROWS($F$105:F161)-1,COLUMNS($F$105:F161)-1),"") -> 89.46 | E155: =IF(OFFSET(DE100_17!$G$105,ROWS($G$105:G161)-1,COLUMNS($G$105:G161)-1)<>"",OFFSET(DE100_17!$G$105,ROWS($G$105:G161)-1,COLUMNS($G$105:G161)-1),"") -> 
A156: =IF(OFFSET(DE100_17!$C$105,ROWS($C$105:C162)-1,COLUMNS($C$105:C162)-1)<>"",OFFSET(DE100_17!$C$105,ROWS($C$105:C162)-1,COLUMNS($C$105:C162)-1),"") -> 83843.84 | B156: =IF(OFFSET(DE100_17!$D$105,ROWS($D$105:D162)-1,COLUMNS($D$105:D162)-1)<>"",OFFSET(DE100_17!$D$105,ROWS($D$105:D162)-1,COLUMNS($D$105:D162)-1),"") -> 83946.69 | C156: =IF(OFFSET(DE100_17!$E$105,ROWS($E$105:E162)-1,COLUMNS($E$105:E162)-1)<>"",OFFSET(DE100_17!$E$105,ROWS($E$105:E162)-1,COLUMNS($E$105:E162)-1),"") -> Rt | D156: =IF(OFFSET(DE100_17!$F$105,ROWS($F$105:F162)-1,COLUMNS($F$105:F162)-1)<>"",OFFSET(DE100_17!$F$105,ROWS($F$105:F162)-1,COLUMNS($F$105:F162)-1),"") -> 102.85 | E156: =IF(OFFSET(DE100_17!$G$105,ROWS($G$105:G162)-1,COLUMNS($G$105:G162)-1)<>"",OFFSET(DE100_17!$G$105,ROWS($G$105:G162)-1,COLUMNS($G$105:G162)-1),"") -> 
A157: =IF(OFFSET(DE100_17!$C$105,ROWS($C$105:C163)-1,COLUMNS($C$105:C163)-1)<>"",OFFSET(DE100_17!$C$105,ROWS($C$105:C163)-1,COLUMNS($C$105:C163)-1),"") ->  | B157: =IF(OFFSET(DE100_17!$D$105,ROWS($D$105:D163)-1,COLUMNS($D$105:D163)-1)<>"",OFFSET(DE100_17!$D$105,ROWS($D$105:D163)-1,COLUMNS($D$105:D163)-1),"") ->  | C157: =IF(OFFSET(DE100_17!$E$105,ROWS($E$105:E163)-1,COLUMNS($E$105:E163)-1)<>"",OFFSET(DE100_17!$E$105,ROWS($E$105:E163)-1,COLUMNS($E$105:E163)-1),"") ->  | D157: =IF(OFFSET(DE100_17!$F$105,ROWS($F$105:F163)-1,COLUMNS($F$105:F163)-1)<>"",OFFSET(DE100_17!$F$105,ROWS($F$105:F163)-1,COLUMNS($F$105:F163)-1),"") ->  | E157: =IF(OFFSET(DE100_17!$G$105,ROWS($G$105:G163)-1,COLUMNS($G$105:G163)-1)<>"",OFFSET(DE100_17!$G$105,ROWS($G$105:G163)-1,COLUMNS($G$105:G163)-1),"") -> 
A158: =IF(OFFSET(DE100_17!$C$105,ROWS($C$105:C164)-1,COLUMNS($C$105:C164)-1)<>"",OFFSET(DE100_17!$C$105,ROWS($C$105:C164)-1,COLUMNS($C$105:C164)-1),"") -> 83730.6 | B158: =IF(OFFSET(DE100_17!$D$105,ROWS($D$105:D164)-1,COLUMNS($D$105:D164)-1)<>"",OFFSET(DE100_17!$D$105,ROWS($D$105:D164)-1,COLUMNS($D$105:D164)-1),"") -> 83806.38 | C158: =IF(OFFSET(DE100_17!$E$105,ROWS($E$105:E164)-1,COLUMNS($E$105:E164)-1)<>"",OFFSET(DE100_17!$E$105,ROWS($E$105:E164)-1,COLUMNS($E$105:E164)-1),"") -> Lt | D158: =IF(OFFSET(DE100_17!$F$105,ROWS($F$105:F164)-1,COLUMNS($F$105:F164)-1)<>"",OFFSET(DE100_17!$F$105,ROWS($F$105:F164)-1,COLUMNS($F$105:F164)-1),"") -> 75.78 | E158: =IF(OFFSET(DE100_17!$G$105,ROWS($G$105:G164)-1,COLUMNS($G$105:G164)-1)<>"",OFFSET(DE100_17!$G$105,ROWS($G$105:G164)-1,COLUMNS($G$105:G164)-1),"") -> 
A159: =IF(OFFSET(DE100_17!$C$105,ROWS($C$105:C165)-1,COLUMNS($C$105:C165)-1)<>"",OFFSET(DE100_17!$C$105,ROWS($C$105:C165)-1,COLUMNS($C$105:C165)-1),"") -> 83749.48 | B159: =IF(OFFSET(DE100_17!$D$105,ROWS($D$105:D165)-1,COLUMNS($D$105:D165)-1)<>"",OFFSET(DE100_17!$D$105,ROWS($D$105:D165)-1,COLUMNS($D$105:D165)-1),"") -> 83764.85 | C159: =IF(OFFSET(DE100_17!$E$105,ROWS($E$105:E165)-1,COLUMNS($E$105:E165)-1)<>"",OFFSET(DE100_17!$E$105,ROWS($E$105:E165)-1,COLUMNS($E$105:E165)-1),"") -> Lt | D159: =IF(OFFSET(DE100_17!$F$105,ROWS($F$105:F165)-1,COLUMNS($F$105:F165)-1)<>"",OFFSET(DE100_17!$F$105,ROWS($F$105:F165)-1,COLUMNS($F$105:F165)-1),"") -> 15.37 | E159: =IF(OFFSET(DE100_17!$G$105,ROWS($G$105:G165)-1,COLUMNS($G$105:G165)-1)<>"",OFFSET(DE100_17!$G$105,ROWS($G$105:G165)-1,COLUMNS($G$105:G165)-1),"") -> 
A160: =IF(OFFSET(DE100_17!$C$105,ROWS($C$105:C166)-1,COLUMNS($C$105:C166)-1)<>"",OFFSET(DE100_17!$C$105,ROWS($C$105:C166)-1,COLUMNS($C$105:C166)-1),"") -> 83820.96 | B160: =IF(OFFSET(DE100_17!$D$105,ROWS($D$105:D166)-1,COLUMNS($D$105:D166)-1)<>"",OFFSET(DE100_17!$D$105,ROWS($D$105:D166)-1,COLUMNS($D$105:D166)-1),"") -> 83894.9 | C160: =IF(OFFSET(DE100_17!$E$105,ROWS($E$105:E166)-1,COLUMNS($E$105:E166)-1)<>"",OFFSET(DE100_17!$E$105,ROWS($E$105:E166)-1,COLUMNS($E$105:E166)-1),"") -> Lt | D160: =IF(OFFSET(DE100_17!$F$105,ROWS($F$105:F166)-1,COLUMNS($F$105:F166)-1)<>"",OFFSET(DE100_17!$F$105,ROWS($F$105:F166)-1,COLUMNS($F$105:F166)-1),"") -> 73.94 | E160: =IF(OFFSET(DE100_17!$G$105,ROWS($G$105:G166)-1,COLUMNS($G$105:G166)-1)<>"",OFFSET(DE100_17!$G$105,ROWS($G$105:G166)-1,COLUMNS($G$105:G166)-1),"") -> 
A161: =IF(OFFSET(DE100_17!$C$105,ROWS($C$105:C167)-1,COLUMNS($C$105:C167)-1)<>"",OFFSET(DE100_17!$C$105,ROWS($C$105:C167)-1,COLUMNS($C$105:C167)-1),"") -> 83752.81 | B161: =IF(OFFSET(DE100_17!$D$105,ROWS($D$105:D167)-1,COLUMNS($D$105:D167)-1)<>"",OFFSET(DE100_17!$D$105,ROWS($D$105:D167)-1,COLUMNS($D$105:D167)-1),"") -> 83785.77 | C161: =IF(OFFSET(DE100_17!$E$105,ROWS($E$105:E167)-1,COLUMNS($E$105:E167)-1)<>"",OFFSET(DE100_17!$E$105,ROWS($E$105:E167)-1,COLUMNS($E$105:E167)-1),"") -> Lt | D161: =IF(OFFSET(DE100_17!$F$105,ROWS($F$105:F167)-1,COLUMNS($F$105:F167)-1)<>"",OFFSET(DE100_17!$F$105,ROWS($F$105:F167)-1,COLUMNS($F$105:F167)-1),"") -> 32.96 | E161: =IF(OFFSET(DE100_17!$G$105,ROWS($G$105:G167)-1,COLUMNS($G$105:G167)-1)<>"",OFFSET(DE100_17!$G$105,ROWS($G$105:G167)-1,COLUMNS($G$105:G167)-1),"") -> 
A162: =IF(OFFSET(DE100_17!$C$105,ROWS($C$105:C168)-1,COLUMNS($C$105:C168)-1)<>"",OFFSET(DE100_17!$C$105,ROWS($C$105:C168)-1,COLUMNS($C$105:C168)-1),"") ->  | B162: =IF(OFFSET(DE100_17!$D$105,ROWS($D$105:D168)-1,COLUMNS($D$105:D168)-1)<>"",OFFSET(DE100_17!$D$105,ROWS($D$105:D168)-1,COLUMNS($D$105:D168)-1),"") ->  | C162: =IF(OFFSET(DE100_17!$E$105,ROWS($E$105:E168)-1,COLUMNS($E$105:E168)-1)<>"",OFFSET(DE100_17!$E$105,ROWS($E$105:E168)-1,COLUMNS($E$105:E168)-1),"") ->  | D162: =IF(OFFSET(DE100_17!$F$105,ROWS($F$105:F168)-1,COLUMNS($F$105:F168)-1)<>"",OFFSET(DE100_17!$F$105,ROWS($F$105:F168)-1,COLUMNS($F$105:F168)-1),"") ->  | E162: =IF(OFFSET(DE100_17!$G$105,ROWS($G$105:G168)-1,COLUMNS($G$105:G168)-1)<>"",OFFSET(DE100_17!$G$105,ROWS($G$105:G168)-1,COLUMNS($G$105:G168)-1),"") -> 
A163: =IF(OFFSET(DE100_17!$C$105,ROWS($C$105:C169)-1,COLUMNS($C$105:C169)-1)<>"",OFFSET(DE100_17!$C$105,ROWS($C$105:C169)-1,COLUMNS($C$105:C169)-1),"") -> 84292.84 | B163: =IF(OFFSET(DE100_17!$D$105,ROWS($D$105:D169)-1,COLUMNS($D$105:D169)-1)<>"",OFFSET(DE100_17!$D$105,ROWS($D$105:D169)-1,COLUMNS($D$105:D169)-1),"") -> 84377.74 | C163: =IF(OFFSET(DE100_17!$E$105,ROWS($E$105:E169)-1,COLUMNS($E$105:E169)-1)<>"",OFFSET(DE100_17!$E$105,ROWS($E$105:E169)-1,COLUMNS($E$105:E169)-1),"") -> Rt | D163: =IF(OFFSET(DE100_17!$F$105,ROWS($F$105:F169)-1,COLUMNS($F$105:F169)-1)<>"",OFFSET(DE100_17!$F$105,ROWS($F$105:F169)-1,COLUMNS($F$105:F169)-1),"") -> 108.4 | E163: =IF(OFFSET(DE100_17!$G$105,ROWS($G$105:G169)-1,COLUMNS($G$105:G169)-1)<>"",OFFSET(DE100_17!$G$105,ROWS($G$105:G169)-1,COLUMNS($G$105:G169)-1),"") -> 
A164: =IF(OFFSET(DE100_17!$C$105,ROWS($C$105:C170)-1,COLUMNS($C$105:C170)-1)<>"",OFFSET(DE100_17!$C$105,ROWS($C$105:C170)-1,COLUMNS($C$105:C170)-1),"") -> 84317.25 | B164: =IF(OFFSET(DE100_17!$D$105,ROWS($D$105:D170)-1,COLUMNS($D$105:D170)-1)<>"",OFFSET(DE100_17!$D$105,ROWS($D$105:D170)-1,COLUMNS($D$105:D170)-1),"") -> 84404.88 | C164: =IF(OFFSET(DE100_17!$E$105,ROWS($E$105:E170)-1,COLUMNS($E$105:E170)-1)<>"",OFFSET(DE100_17!$E$105,ROWS($E$105:E170)-1,COLUMNS($E$105:E170)-1),"") -> Rt | D164: =IF(OFFSET(DE100_17!$F$105,ROWS($F$105:F170)-1,COLUMNS($F$105:F170)-1)<>"",OFFSET(DE100_17!$F$105,ROWS($F$105:F170)-1,COLUMNS($F$105:F170)-1),"") -> 90.3 | E164: =IF(OFFSET(DE100_17!$G$105,ROWS($G$105:G170)-1,COLUMNS($G$105:G170)-1)<>"",OFFSET(DE100_17!$G$105,ROWS($G$105:G170)-1,COLUMNS($G$105:G170)-1),"") -> 
A165: =IF(OFFSET(DE100_17!$C$105,ROWS($C$105:C171)-1,COLUMNS($C$105:C171)-1)<>"",OFFSET(DE100_17!$C$105,ROWS($C$105:C171)-1,COLUMNS($C$105:C171)-1),"") -> 84305.74 | B165: =IF(OFFSET(DE100_17!$D$105,ROWS($D$105:D171)-1,COLUMNS($D$105:D171)-1)<>"",OFFSET(DE100_17!$D$105,ROWS($D$105:D171)-1,COLUMNS($D$105:D171)-1),"") -> 84425 | C165: =IF(OFFSET(DE100_17!$E$105,ROWS($E$105:E171)-1,COLUMNS($E$105:E171)-1)<>"",OFFSET(DE100_17!$E$105,ROWS($E$105:E171)-1,COLUMNS($E$105:E171)-1),"") -> Rt | D165: =IF(OFFSET(DE100_17!$F$105,ROWS($F$105:F171)-1,COLUMNS($F$105:F171)-1)<>"",OFFSET(DE100_17!$F$105,ROWS($F$105:F171)-1,COLUMNS($F$105:F171)-1),"") -> 145.5 | E165: =IF(OFFSET(DE100_17!$G$105,ROWS($G$105:G171)-1,COLUMNS($G$105:G171)-1)<>"",OFFSET(DE100_17!$G$105,ROWS($G$105:G171)-1,COLUMNS($G$105:G171)-1),"") -> 
A166: =IF(OFFSET(DE100_17!$C$105,ROWS($C$105:C172)-1,COLUMNS($C$105:C172)-1)<>"",OFFSET(DE100_17!$C$105,ROWS($C$105:C172)-1,COLUMNS($C$105:C172)-1),"") -> 84418.3 | B166: =IF(OFFSET(DE100_17!$D$105,ROWS($D$105:D172)-1,COLUMNS($D$105:D172)-1)<>"",OFFSET(DE100_17!$D$105,ROWS($D$105:D172)-1,COLUMNS($D$105:D172)-1),"") -> 84510.56 | C166: =IF(OFFSET(DE100_17!$E$105,ROWS($E$105:E172)-1,COLUMNS($E$105:E172)-1)<>"",OFFSET(DE100_17!$E$105,ROWS($E$105:E172)-1,COLUMNS($E$105:E172)-1),"") -> Rt | D166: =IF(OFFSET(DE100_17!$F$105,ROWS($F$105:F172)-1,COLUMNS($F$105:F172)-1)<>"",OFFSET(DE100_17!$F$105,ROWS($F$105:F172)-1,COLUMNS($F$105:F172)-1),"") -> 94.9 | E166: =IF(OFFSET(DE100_17!$G$105,ROWS($G$105:G172)-1,COLUMNS($G$105:G172)-1)<>"",OFFSET(DE100_17!$G$105,ROWS($G$105:G172)-1,COLUMNS($G$105:G172)-1),"") -> 
A167: =IF(OFFSET(DE100_17!$C$105,ROWS($C$105:C173)-1,COLUMNS($C$105:C173)-1)<>"",OFFSET(DE100_17!$C$105,ROWS($C$105:C173)-1,COLUMNS($C$105:C173)-1),"") ->  | B167: =IF(OFFSET(DE100_17!$D$105,ROWS($D$105:D173)-1,COLUMNS($D$105:D173)-1)<>"",OFFSET(DE100_17!$D$105,ROWS($D$105:D173)-1,COLUMNS($D$105:D173)-1),"") ->  | C167: =IF(OFFSET(DE100_17!$E$105,ROWS($E$105:E173)-1,COLUMNS($E$105:E173)-1)<>"",OFFSET(DE100_17!$E$105,ROWS($E$105:E173)-1,COLUMNS($E$105:E173)-1),"") ->  | D167: =IF(OFFSET(DE100_17!$F$105,ROWS($F$105:F173)-1,COLUMNS($F$105:F173)-1)<>"",OFFSET(DE100_17!$F$105,ROWS($F$105:F173)-1,COLUMNS($F$105:F173)-1),"") ->  | E167: =IF(OFFSET(DE100_17!$G$105,ROWS($G$105:G173)-1,COLUMNS($G$105:G173)-1)<>"",OFFSET(DE100_17!$G$105,ROWS($G$105:G173)-1,COLUMNS($G$105:G173)-1),"") -> 
A168: =IF(OFFSET(DE100_17!$C$105,ROWS($C$105:C174)-1,COLUMNS($C$105:C174)-1)<>"",OFFSET(DE100_17!$C$105,ROWS($C$105:C174)-1,COLUMNS($C$105:C174)-1),"") -> 85479.48 | B168: =IF(OFFSET(DE100_17!$D$105,ROWS($D$105:D174)-1,COLUMNS($D$105:D174)-1)<>"",OFFSET(DE100_17!$D$105,ROWS($D$105:D174)-1,COLUMNS($D$105:D174)-1),"") -> 85554.46 | C168: =IF(OFFSET(DE100_17!$E$105,ROWS($E$105:E174)-1,COLUMNS($E$105:E174)-1)<>"",OFFSET(DE100_17!$E$105,ROWS($E$105:E174)-1,COLUMNS($E$105:E174)-1),"") -> Rt | D168: =IF(OFFSET(DE100_17!$F$105,ROWS($F$105:F174)-1,COLUMNS($F$105:F174)-1)<>"",OFFSET(DE100_17!$F$105,ROWS($F$105:F174)-1,COLUMNS($F$105:F174)-1),"") -> 88.7 | E168: =IF(OFFSET(DE100_17!$G$105,ROWS($G$105:G174)-1,COLUMNS($G$105:G174)-1)<>"",OFFSET(DE100_17!$G$105,ROWS($G$105:G174)-1,COLUMNS($G$105:G174)-1),"") -> 
A169: =IF(OFFSET(DE100_17!$C$105,ROWS($C$105:C175)-1,COLUMNS($C$105:C175)-1)<>"",OFFSET(DE100_17!$C$105,ROWS($C$105:C175)-1,COLUMNS($C$105:C175)-1),"") -> 85519.37 | B169: =IF(OFFSET(DE100_17!$D$105,ROWS($D$105:D175)-1,COLUMNS($D$105:D175)-1)<>"",OFFSET(DE100_17!$D$105,ROWS($D$105:D175)-1,COLUMNS($D$105:D175)-1),"") -> 85556.83 | C169: =IF(OFFSET(DE100_17!$E$105,ROWS($E$105:E175)-1,COLUMNS($E$105:E175)-1)<>"",OFFSET(DE100_17!$E$105,ROWS($E$105:E175)-1,COLUMNS($E$105:E175)-1),"") -> Rt | D169: =IF(OFFSET(DE100_17!$F$105,ROWS($F$105:F175)-1,COLUMNS($F$105:F175)-1)<>"",OFFSET(DE100_17!$F$105,ROWS($F$105:F175)-1,COLUMNS($F$105:F175)-1),"") -> 61.4 | E169: =IF(OFFSET(DE100_17!$G$105,ROWS($G$105:G175)-1,COLUMNS($G$105:G175)-1)<>"",OFFSET(DE100_17!$G$105,ROWS($G$105:G175)-1,COLUMNS($G$105:G175)-1),"") -> 
A170: =IF(OFFSET(DE100_17!$C$105,ROWS($C$105:C176)-1,COLUMNS($C$105:C176)-1)<>"",OFFSET(DE100_17!$C$105,ROWS($C$105:C176)-1,COLUMNS($C$105:C176)-1),"") -> 85477.02 | B170: =IF(OFFSET(DE100_17!$D$105,ROWS($D$105:D176)-1,COLUMNS($D$105:D176)-1)<>"",OFFSET(DE100_17!$D$105,ROWS($D$105:D176)-1,COLUMNS($D$105:D176)-1),"") ->  | C170: =IF(OFFSET(DE100_17!$E$105,ROWS($E$105:E176)-1,COLUMNS($E$105:E176)-1)<>"",OFFSET(DE100_17!$E$105,ROWS($E$105:E176)-1,COLUMNS($E$105:E176)-1),"") -> Rt | D170: =IF(OFFSET(DE100_17!$F$105,ROWS($F$105:F176)-1,COLUMNS($F$105:F176)-1)<>"",OFFSET(DE100_17!$F$105,ROWS($F$105:F176)-1,COLUMNS($F$105:F176)-1),"") -> 60 | E170: =IF(OFFSET(DE100_17!$G$105,ROWS($G$105:G176)-1,COLUMNS($G$105:G176)-1)<>"",OFFSET(DE100_17!$G$105,ROWS($G$105:G176)-1,COLUMNS($G$105:G176)-1),"") -> (1)
A171: =IF(OFFSET(DE100_17!$C$105,ROWS($C$105:C177)-1,COLUMNS($C$105:C177)-1)<>"",OFFSET(DE100_17!$C$105,ROWS($C$105:C177)-1,COLUMNS($C$105:C177)-1),"") ->  | B171: =IF(OFFSET(DE100_17!$D$105,ROWS($D$105:D177)-1,COLUMNS($D$105:D177)-1)<>"",OFFSET(DE100_17!$D$105,ROWS($D$105:D177)-1,COLUMNS($D$105:D177)-1),"") ->  | C171: =IF(OFFSET(DE100_17!$E$105,ROWS($E$105:E177)-1,COLUMNS($E$105:E177)-1)<>"",OFFSET(DE100_17!$E$105,ROWS($E$105:E177)-1,COLUMNS($E$105:E177)-1),"") ->  | D171: =IF(OFFSET(DE100_17!$F$105,ROWS($F$105:F177)-1,COLUMNS($F$105:F177)-1)<>"",OFFSET(DE100_17!$F$105,ROWS($F$105:F177)-1,COLUMNS($F$105:F177)-1),"") ->  | E171: =IF(OFFSET(DE100_17!$G$105,ROWS($G$105:G177)-1,COLUMNS($G$105:G177)-1)<>"",OFFSET(DE100_17!$G$105,ROWS($G$105:G177)-1,COLUMNS($G$105:G177)-1),"") -> 
A172: =IF(OFFSET(DE100_17!$C$105,ROWS($C$105:C178)-1,COLUMNS($C$105:C178)-1)<>"",OFFSET(DE100_17!$C$105,ROWS($C$105:C178)-1,COLUMNS($C$105:C178)-1),"") -> 85417.59 | B172: =IF(OFFSET(DE100_17!$D$105,ROWS($D$105:D178)-1,COLUMNS($D$105:D178)-1)<>"",OFFSET(DE100_17!$D$105,ROWS($D$105:D178)-1,COLUMNS($D$105:D178)-1),"") -> 85497.8 | C172: =IF(OFFSET(DE100_17!$E$105,ROWS($E$105:E178)-1,COLUMNS($E$105:E178)-1)<>"",OFFSET(DE100_17!$E$105,ROWS($E$105:E178)-1,COLUMNS($E$105:E178)-1),"") -> Lt | D172: =IF(OFFSET(DE100_17!$F$105,ROWS($F$105:F178)-1,COLUMNS($F$105:F178)-1)<>"",OFFSET(DE100_17!$F$105,ROWS($F$105:F178)-1,COLUMNS($F$105:F178)-1),"") -> 113.7 | E172: =IF(OFFSET(DE100_17!$G$105,ROWS($G$105:G178)-1,COLUMNS($G$105:G178)-1)<>"",OFFSET(DE100_17!$G$105,ROWS($G$105:G178)-1,COLUMNS($G$105:G178)-1),"") -> 
A173: =IF(OFFSET(DE100_17!$C$105,ROWS($C$105:C179)-1,COLUMNS($C$105:C179)-1)<>"",OFFSET(DE100_17!$C$105,ROWS($C$105:C179)-1,COLUMNS($C$105:C179)-1),"") -> 85502.2 | B173: =IF(OFFSET(DE100_17!$D$105,ROWS($D$105:D179)-1,COLUMNS($D$105:D179)-1)<>"",OFFSET(DE100_17!$D$105,ROWS($D$105:D179)-1,COLUMNS($D$105:D179)-1),"") -> 85578.36 | C173: =IF(OFFSET(DE100_17!$E$105,ROWS($E$105:E179)-1,COLUMNS($E$105:E179)-1)<>"",OFFSET(DE100_17!$E$105,ROWS($E$105:E179)-1,COLUMNS($E$105:E179)-1),"") -> Lt | D173: =IF(OFFSET(DE100_17!$F$105,ROWS($F$105:F179)-1,COLUMNS($F$105:F179)-1)<>"",OFFSET(DE100_17!$F$105,ROWS($F$105:F179)-1,COLUMNS($F$105:F179)-1),"") -> 112.7 | E173: =IF(OFFSET(DE100_17!$G$105,ROWS($G$105:G179)-1,COLUMNS($G$105:G179)-1)<>"",OFFSET(DE100_17!$G$105,ROWS($G$105:G179)-1,COLUMNS($G$105:G179)-1),"") -> 
A174: =IF(OFFSET(DE100_17!$C$105,ROWS($C$105:C180)-1,COLUMNS($C$105:C180)-1)<>"",OFFSET(DE100_17!$C$105,ROWS($C$105:C180)-1,COLUMNS($C$105:C180)-1),"") -> 85483.65 | B174: =IF(OFFSET(DE100_17!$D$105,ROWS($D$105:D180)-1,COLUMNS($D$105:D180)-1)<>"",OFFSET(DE100_17!$D$105,ROWS($D$105:D180)-1,COLUMNS($D$105:D180)-1),"") ->  | C174: =IF(OFFSET(DE100_17!$E$105,ROWS($E$105:E180)-1,COLUMNS($E$105:E180)-1)<>"",OFFSET(DE100_17!$E$105,ROWS($E$105:E180)-1,COLUMNS($E$105:E180)-1),"") ->  | D174: =IF(OFFSET(DE100_17!$F$105,ROWS($F$105:F180)-1,COLUMNS($F$105:F180)-1)<>"",OFFSET(DE100_17!$F$105,ROWS($F$105:F180)-1,COLUMNS($F$105:F180)-1),"") -> 60 | E174: =IF(OFFSET(DE100_17!$G$105,ROWS($G$105:G180)-1,COLUMNS($G$105:G180)-1)<>"",OFFSET(DE100_17!$G$105,ROWS($G$105:G180)-1,COLUMNS($G$105:G180)-1),"") -> (1)
A175: =IF(OFFSET(DE100_17!$C$105,ROWS($C$105:C181)-1,COLUMNS($C$105:C181)-1)<>"",OFFSET(DE100_17!$C$105,ROWS($C$105:C181)-1,COLUMNS($C$105:C181)-1),"") ->  | B175: =IF(OFFSET(DE100_17!$D$105,ROWS($D$105:D181)-1,COLUMNS($D$105:D181)-1)<>"",OFFSET(DE100_17!$D$105,ROWS($D$105:D181)-1,COLUMNS($D$105:D181)-1),"") ->  | C175: =IF(OFFSET(DE100_17!$E$105,ROWS($E$105:E181)-1,COLUMNS($E$105:E181)-1)<>"",OFFSET(DE100_17!$E$105,ROWS($E$105:E181)-1,COLUMNS($E$105:E181)-1),"") ->  | D175: =IF(OFFSET(DE100_17!$F$105,ROWS($F$105:F181)-1,COLUMNS($F$105:F181)-1)<>"",OFFSET(DE100_17!$F$105,ROWS($F$105:F181)-1,COLUMNS($F$105:F181)-1),"") ->  | E175: =IF(OFFSET(DE100_17!$G$105,ROWS($G$105:G181)-1,COLUMNS($G$105:G181)-1)<>"",OFFSET(DE100_17!$G$105,ROWS($G$105:G181)-1,COLUMNS($G$105:G181)-1),"") -> 
A176: =IF(OFFSET(DE100_17!$C$105,ROWS($C$105:C182)-1,COLUMNS($C$105:C182)-1)<>"",OFFSET(DE100_17!$C$105,ROWS($C$105:C182)-1,COLUMNS($C$105:C182)-1),"") -> 87805.54 | B176: =IF(OFFSET(DE100_17!$D$105,ROWS($D$105:D182)-1,COLUMNS($D$105:D182)-1)<>"",OFFSET(DE100_17!$D$105,ROWS($D$105:D182)-1,COLUMNS($D$105:D182)-1),"") -> 87864.97 | C176: =IF(OFFSET(DE100_17!$E$105,ROWS($E$105:E182)-1,COLUMNS($E$105:E182)-1)<>"",OFFSET(DE100_17!$E$105,ROWS($E$105:E182)-1,COLUMNS($E$105:E182)-1),"") -> Rt | D176: =IF(OFFSET(DE100_17!$F$105,ROWS($F$105:F182)-1,COLUMNS($F$105:F182)-1)<>"",OFFSET(DE100_17!$F$105,ROWS($F$105:F182)-1,COLUMNS($F$105:F182)-1),"") -> 61.3 | E176: =IF(OFFSET(DE100_17!$G$105,ROWS($G$105:G182)-1,COLUMNS($G$105:G182)-1)<>"",OFFSET(DE100_17!$G$105,ROWS($G$105:G182)-1,COLUMNS($G$105:G182)-1),"") -> 
A177: =IF(OFFSET(DE100_17!$C$105,ROWS($C$105:C183)-1,COLUMNS($C$105:C183)-1)<>"",OFFSET(DE100_17!$C$105,ROWS($C$105:C183)-1,COLUMNS($C$105:C183)-1),"") -> 87869.54 | B177: =IF(OFFSET(DE100_17!$D$105,ROWS($D$105:D183)-1,COLUMNS($D$105:D183)-1)<>"",OFFSET(DE100_17!$D$105,ROWS($D$105:D183)-1,COLUMNS($D$105:D183)-1),"") -> 87954.28 | C177: =IF(OFFSET(DE100_17!$E$105,ROWS($E$105:E183)-1,COLUMNS($E$105:E183)-1)<>"",OFFSET(DE100_17!$E$105,ROWS($E$105:E183)-1,COLUMNS($E$105:E183)-1),"") -> Rt | D177: =IF(OFFSET(DE100_17!$F$105,ROWS($F$105:F183)-1,COLUMNS($F$105:F183)-1)<>"",OFFSET(DE100_17!$F$105,ROWS($F$105:F183)-1,COLUMNS($F$105:F183)-1),"") -> 86.6 | E177: =IF(OFFSET(DE100_17!$G$105,ROWS($G$105:G183)-1,COLUMNS($G$105:G183)-1)<>"",OFFSET(DE100_17!$G$105,ROWS($G$105:G183)-1,COLUMNS($G$105:G183)-1),"") -> 
A178: =IF(OFFSET(DE100_17!$C$105,ROWS($C$105:C184)-1,COLUMNS($C$105:C184)-1)<>"",OFFSET(DE100_17!$C$105,ROWS($C$105:C184)-1,COLUMNS($C$105:C184)-1),"") ->  | B178: =IF(OFFSET(DE100_17!$D$105,ROWS($D$105:D184)-1,COLUMNS($D$105:D184)-1)<>"",OFFSET(DE100_17!$D$105,ROWS($D$105:D184)-1,COLUMNS($D$105:D184)-1),"") ->  | C178: =IF(OFFSET(DE100_17!$E$105,ROWS($E$105:E184)-1,COLUMNS($E$105:E184)-1)<>"",OFFSET(DE100_17!$E$105,ROWS($E$105:E184)-1,COLUMNS($E$105:E184)-1),"") ->  | D178: =IF(OFFSET(DE100_17!$F$105,ROWS($F$105:F184)-1,COLUMNS($F$105:F184)-1)<>"",OFFSET(DE100_17!$F$105,ROWS($F$105:F184)-1,COLUMNS($F$105:F184)-1),"") ->  | E178: =IF(OFFSET(DE100_17!$G$105,ROWS($G$105:G184)-1,COLUMNS($G$105:G184)-1)<>"",OFFSET(DE100_17!$G$105,ROWS($G$105:G184)-1,COLUMNS($G$105:G184)-1),"") -> 
A179: =IF(OFFSET(DE100_17!$C$105,ROWS($C$105:C185)-1,COLUMNS($C$105:C185)-1)<>"",OFFSET(DE100_17!$C$105,ROWS($C$105:C185)-1,COLUMNS($C$105:C185)-1),"") -> 90842.08 | B179: =IF(OFFSET(DE100_17!$D$105,ROWS($D$105:D185)-1,COLUMNS($D$105:D185)-1)<>"",OFFSET(DE100_17!$D$105,ROWS($D$105:D185)-1,COLUMNS($D$105:D185)-1),"") -> 90914.1 | C179: =IF(OFFSET(DE100_17!$E$105,ROWS($E$105:E185)-1,COLUMNS($E$105:E185)-1)<>"",OFFSET(DE100_17!$E$105,ROWS($E$105:E185)-1,COLUMNS($E$105:E185)-1),"") -> Rt | D179: =IF(OFFSET(DE100_17!$F$105,ROWS($F$105:F185)-1,COLUMNS($F$105:F185)-1)<>"",OFFSET(DE100_17!$F$105,ROWS($F$105:F185)-1,COLUMNS($F$105:F185)-1),"") -> 93.1 | E179: =IF(OFFSET(DE100_17!$G$105,ROWS($G$105:G185)-1,COLUMNS($G$105:G185)-1)<>"",OFFSET(DE100_17!$G$105,ROWS($G$105:G185)-1,COLUMNS($G$105:G185)-1),"") -> 
A180: =IF(OFFSET(DE100_17!$C$105,ROWS($C$105:C186)-1,COLUMNS($C$105:C186)-1)<>"",OFFSET(DE100_17!$C$105,ROWS($C$105:C186)-1,COLUMNS($C$105:C186)-1),"") -> 90916.87 | B180: =IF(OFFSET(DE100_17!$D$105,ROWS($D$105:D186)-1,COLUMNS($D$105:D186)-1)<>"",OFFSET(DE100_17!$D$105,ROWS($D$105:D186)-1,COLUMNS($D$105:D186)-1),"") -> 90987.26 | C180: =IF(OFFSET(DE100_17!$E$105,ROWS($E$105:E186)-1,COLUMNS($E$105:E186)-1)<>"",OFFSET(DE100_17!$E$105,ROWS($E$105:E186)-1,COLUMNS($E$105:E186)-1),"") -> Rt | D180: =IF(OFFSET(DE100_17!$F$105,ROWS($F$105:F186)-1,COLUMNS($F$105:F186)-1)<>"",OFFSET(DE100_17!$F$105,ROWS($F$105:F186)-1,COLUMNS($F$105:F186)-1),"") -> 87.5 | E180: =IF(OFFSET(DE100_17!$G$105,ROWS($G$105:G186)-1,COLUMNS($G$105:G186)-1)<>"",OFFSET(DE100_17!$G$105,ROWS($G$105:G186)-1,COLUMNS($G$105:G186)-1),"") -> 
A181: 100-17
A182: 2010-04-20
A183: TABULATION OF SILT FENCES
A185: Refer to EC-201
A186: Location | D186: Length | E186: Remarks
A187: Begin Station | B187: End Station | C187: Side
D188: LF
A189: =IF(OFFSET(DE100_17!$C$187,ROWS($C$187:C187)-1,COLUMNS($C$187:C187)-1)<>"",OFFSET(DE100_17!$C$187,ROWS($C$187:C187)-1,COLUMNS($C$187:C187)-1),"") ->  | B189: =IF(OFFSET(DE100_17!$D$187,ROWS($D$187:D187)-1,COLUMNS($D$187:D187)-1)<>"",OFFSET(DE100_17!$D$187,ROWS($D$187:D187)-1,COLUMNS($D$187:D187)-1),"") ->  | C189: =IF(OFFSET(DE100_17!$E$187,ROWS($E$187:E187)-1,COLUMNS($E$187:E187)-1)<>"",OFFSET(DE100_17!$E$187,ROWS($E$187:E187)-1,COLUMNS($E$187:E187)-1),"") ->  | D189: =IF(OFFSET(DE100_17!$F$187,ROWS($F$187:F187)-1,COLUMNS($F$187:F187)-1)<>"",OFFSET(DE100_17!$F$187,ROWS($F$187:F187)-1,COLUMNS($F$187:F187)-1),"") ->  | E189: =IF(OFFSET(DE100_17!$G$187,ROWS($G$187:G187)-1,COLUMNS($G$187:G187)-1)<>"",OFFSET(DE100_17!$G$187,ROWS($G$187:G187)-1,COLUMNS($G$187:G187)-1),"") -> 
A190: =IF(OFFSET(DE100_17!$C$187,ROWS($C$187:C188)-1,COLUMNS($C$187:C188)-1)<>"",OFFSET(DE100_17!$C$187,ROWS($C$187:C188)-1,COLUMNS($C$187:C188)-1),"") ->  | B190: =IF(OFFSET(DE100_17!$D$187,ROWS($D$187:D188)-1,COLUMNS($D$187:D188)-1)<>"",OFFSET(DE100_17!$D$187,ROWS($D$187:D188)-1,COLUMNS($D$187:D188)-1),"") ->  | C190: =IF(OFFSET(DE100_17!$E$187,ROWS($E$187:E188)-1,COLUMNS($E$187:E188)-1)<>"",OFFSET(DE100_17!$E$187,ROWS($E$187:E188)-1,COLUMNS($E$187:E188)-1),"") ->  | D190: =IF(OFFSET(DE100_17!$F$187,ROWS($F$187:F188)-1,COLUMNS($F$187:F188)-1)<>"",OFFSET(DE100_17!$F$187,ROWS($F$187:F188)-1,COLUMNS($F$187:F188)-1),"") -> 11391.26 | E190: =IF(OFFSET(DE100_17!$G$187,ROWS($G$187:G188)-1,COLUMNS($G$187:G188)-1)<>"",OFFSET(DE100_17!$G$187,ROWS($G$187:G188)-1,COLUMNS($G$187:G188)-1),"") -> TOTAL
A191: =IF(OFFSET(DE100_17!$C$187,ROWS($C$187:C189)-1,COLUMNS($C$187:C189)-1)<>"",OFFSET(DE100_17!$C$187,ROWS($C$187:C189)-1,COLUMNS($C$187:C189)-1),"") ->  | B191: =IF(OFFSET(DE100_17!$D$187,ROWS($D$187:D189)-1,COLUMNS($D$187:D189)-1)<>"",OFFSET(DE100_17!$D$187,ROWS($D$187:D189)-1,COLUMNS($D$187:D189)-1),"") ->  | C191: =IF(OFFSET(DE100_17!$E$187,ROWS($E$187:E189)-1,COLUMNS($E$187:E189)-1)<>"",OFFSET(DE100_17!$E$187,ROWS($E$187:E189)-1,COLUMNS($E$187:E189)-1),"") ->  | D191: =IF(OFFSET(DE100_17!$F$187,ROWS($F$187:F189)-1,COLUMNS($F$187:F189)-1)<>"",OFFSET(DE100_17!$F$187,ROWS($F$187:F189)-1,COLUMNS($F$187:F189)-1),"") ->  | E191: =IF(OFFSET(DE100_17!$G$187,ROWS($G$187:G189)-1,COLUMNS($G$187:G189)-1)<>"",OFFSET(DE100_17!$G$187,ROWS($G$187:G189)-1,COLUMNS($G$187:G189)-1),"") -> 
A192: =IF(OFFSET(DE100_17!$C$187,ROWS($C$187:C190)-1,COLUMNS($C$187:C190)-1)<>"",OFFSET(DE100_17!$C$187,ROWS($C$187:C190)-1,COLUMNS($C$187:C190)-1),"") ->  | B192: =IF(OFFSET(DE100_17!$D$187,ROWS($D$187:D190)-1,COLUMNS($D$187:D190)-1)<>"",OFFSET(DE100_17!$D$187,ROWS($D$187:D190)-1,COLUMNS($D$187:D190)-1),"") ->  | C192: =IF(OFFSET(DE100_17!$E$187,ROWS($E$187:E190)-1,COLUMNS($E$187:E190)-1)<>"",OFFSET(DE100_17!$E$187,ROWS($E$187:E190)-1,COLUMNS($E$187:E190)-1),"") ->  | D192: =IF(OFFSET(DE100_17!$F$187,ROWS($F$187:F190)-1,COLUMNS($F$187:F190)-1)<>"",OFFSET(DE100_17!$F$187,ROWS($F$187:F190)-1,COLUMNS($F$187:F190)-1),"") -> 2847.815 | E192: =IF(OFFSET(DE100_17!$G$187,ROWS($G$187:G190)-1,COLUMNS($G$187:G190)-1)<>"",OFFSET(DE100_17!$G$187,ROWS($G$187:G190)-1,COLUMNS($G$187:G190)-1),"") -> 25% FOR REPLACEMENT
A193: =IF(OFFSET(DE100_17!$C$187,ROWS($C$187:C191)-1,COLUMNS($C$187:C191)-1)<>"",OFFSET(DE100_17!$C$187,ROWS($C$187:C191)-1,COLUMNS($C$187:C191)-1),"") ->  | B193: =IF(OFFSET(DE100_17!$D$187,ROWS($D$187:D191)-1,COLUMNS($D$187:D191)-1)<>"",OFFSET(DE100_17!$D$187,ROWS($D$187:D191)-1,COLUMNS($D$187:D191)-1),"") ->  | C193: =IF(OFFSET(DE100_17!$E$187,ROWS($E$187:E191)-1,COLUMNS($E$187:E191)-1)<>"",OFFSET(DE100_17!$E$187,ROWS($E$187:E191)-1,COLUMNS($E$187:E191)-1),"") ->  | D193: =IF(OFFSET(DE100_17!$F$187,ROWS($F$187:F191)-1,COLUMNS($F$187:F191)-1)<>"",OFFSET(DE100_17!$F$187,ROWS($F$187:F191)-1,COLUMNS($F$187:F191)-1),"") ->  | E193: =IF(OFFSET(DE100_17!$G$187,ROWS($G$187:G191)-1,COLUMNS($G$187:G191)-1)<>"",OFFSET(DE100_17!$G$187,ROWS($G$187:G191)-1,COLUMNS($G$187:G191)-1),"") -> 
A194: =IF(OFFSET(DE100_17!$C$187,ROWS($C$187:C192)-1,COLUMNS($C$187:C192)-1)<>"",OFFSET(DE100_17!$C$187,ROWS($C$187:C192)-1,COLUMNS($C$187:C192)-1),"") ->  | B194: =IF(OFFSET(DE100_17!$D$187,ROWS($D$187:D192)-1,COLUMNS($D$187:D192)-1)<>"",OFFSET(DE100_17!$D$187,ROWS($D$187:D192)-1,COLUMNS($D$187:D192)-1),"") ->  | C194: =IF(OFFSET(DE100_17!$E$187,ROWS($E$187:E192)-1,COLUMNS($E$187:E192)-1)<>"",OFFSET(DE100_17!$E$187,ROWS($E$187:E192)-1,COLUMNS($E$187:E192)-1),"") ->  | D194: =IF(OFFSET(DE100_17!$F$187,ROWS($F$187:F192)-1,COLUMNS($F$187:F192)-1)<>"",OFFSET(DE100_17!$F$187,ROWS($F$187:F192)-1,COLUMNS($F$187:F192)-1),"") -> 14239.075 | E194: =IF(OFFSET(DE100_17!$G$187,ROWS($G$187:G192)-1,COLUMNS($G$187:G192)-1)<>"",OFFSET(DE100_17!$G$187,ROWS($G$187:G192)-1,COLUMNS($G$187:G192)-1),"") -> TOTAL BID QUANTITY
A195: =IF(OFFSET(DE100_17!$C$187,ROWS($C$187:C193)-1,COLUMNS($C$187:C193)-1)<>"",OFFSET(DE100_17!$C$187,ROWS($C$187:C193)-1,COLUMNS($C$187:C193)-1),"") ->  | B195: =IF(OFFSET(DE100_17!$D$187,ROWS($D$187:D193)-1,COLUMNS($D$187:D193)-1)<>"",OFFSET(DE100_17!$D$187,ROWS($D$187:D193)-1,COLUMNS($D$187:D193)-1),"") ->  | C195: =IF(OFFSET(DE100_17!$E$187,ROWS($E$187:E193)-1,COLUMNS($E$187:E193)-1)<>"",OFFSET(DE100_17!$E$187,ROWS($E$187:E193)-1,COLUMNS($E$187:E193)-1),"") ->  | D195: =IF(OFFSET(DE100_17!$F$187,ROWS($F$187:F193)-1,COLUMNS($F$187:F193)-1)<>"",OFFSET(DE100_17!$F$187,ROWS($F$187:F193)-1,COLUMNS($F$187:F193)-1),"") ->  | E195: =IF(OFFSET(DE100_17!$G$187,ROWS($G$187:G193)-1,COLUMNS($G$187:G193)-1)<>"",OFFSET(DE100_17!$G$187,ROWS($G$187:G193)-1,COLUMNS($G$187:G193)-1),"") -> 
A196: =IF(OFFSET(DE100_17!$C$187,ROWS($C$187:C194)-1,COLUMNS($C$187:C194)-1)<>"",OFFSET(DE100_17!$C$187,ROWS($C$187:C194)-1,COLUMNS($C$187:C194)-1),"") -> (1) Silt Fence to enclose excavated material for trenchless
A197: =IF(OFFSET(DE100_17!$C$187,ROWS($C$187:C195)-1,COLUMNS($C$187:C195)-1)<>"",OFFSET(DE100_17!$C$187,ROWS($C$187:C195)-1,COLUMNS($C$187:C195)-1),"") -> construction. See Detail 570-09 on Sheet U.2.
A198: =IF(OFFSET(DE100_17!$C$187,ROWS($C$187:C196)-1,COLUMNS($C$187:C196)-1)<>"",OFFSET(DE100_17!$C$187,ROWS($C$187:C196)-1,COLUMNS($C$187:C196)-1),"") ->  | B198: =IF(OFFSET(DE100_17!$D$187,ROWS($D$187:D196)-1,COLUMNS($D$187:D196)-1)<>"",OFFSET(DE100_17!$D$187,ROWS($D$187:D196)-1,COLUMNS($D$187:D196)-1),"") ->  | C198: =IF(OFFSET(DE100_17!$E$187,ROWS($E$187:E196)-1,COLUMNS($E$187:E196)-1)<>"",OFFSET(DE100_17!$E$187,ROWS($E$187:E196)-1,COLUMNS($E$187:E196)-1),"") ->  | D198: =IF(OFFSET(DE100_17!$F$187,ROWS($F$187:F196)-1,COLUMNS($F$187:F196)-1)<>"",OFFSET(DE100_17!$F$187,ROWS($F$187:F196)-1,COLUMNS($F$187:F196)-1),"") ->  | E198: =IF(OFFSET(DE100_17!$G$187,ROWS($G$187:G196)-1,COLUMNS($G$187:G196)-1)<>"",OFFSET(DE100_17!$G$187,ROWS($G$187:G196)-1,COLUMNS($G$187:G196)-1),"") -> 
A199: =IF(OFFSET(DE100_17!$C$187,ROWS($C$187:C197)-1,COLUMNS($C$187:C197)-1)<>"",OFFSET(DE100_17!$C$187,ROWS($C$187:C197)-1,COLUMNS($C$187:C197)-1),"") ->  | B199: =IF(OFFSET(DE100_17!$D$187,ROWS($D$187:D197)-1,COLUMNS($D$187:D197)-1)<>"",OFFSET(DE100_17!$D$187,ROWS($D$187:D197)-1,COLUMNS($D$187:D197)-1),"") ->  | C199: =IF(OFFSET(DE100_17!$E$187,ROWS($E$187:E197)-1,COLUMNS($E$187:E197)-1)<>"",OFFSET(DE100_17!$E$187,ROWS($E$187:E197)-1,COLUMNS($E$187:E197)-1),"") ->  | D199: =IF(OFFSET(DE100_17!$F$187,ROWS($F$187:F197)-1,COLUMNS($F$187:F197)-1)<>"",OFFSET(DE100_17!$F$187,ROWS($F$187:F197)-1,COLUMNS($F$187:F197)-1),"") ->  | E199: =IF(OFFSET(DE100_17!$G$187,ROWS($G$187:G197)-1,COLUMNS($G$187:G197)-1)<>"",OFFSET(DE100_17!$G$187,ROWS($G$187:G197)-1,COLUMNS($G$187:G197)-1),"") -> 
A200: =IF(OFFSET(DE100_17!$C$187,ROWS($C$187:C198)-1,COLUMNS($C$187:C198)-1)<>"",OFFSET(DE100_17!$C$187,ROWS($C$187:C198)-1,COLUMNS($C$187:C198)-1),"") ->  | B200: =IF(OFFSET(DE100_17!$D$187,ROWS($D$187:D198)-1,COLUMNS($D$187:D198)-1)<>"",OFFSET(DE100_17!$D$187,ROWS($D$187:D198)-1,COLUMNS($D$187:D198)-1),"") ->  | C200: =IF(OFFSET(DE100_17!$E$187,ROWS($E$187:E198)-1,COLUMNS($E$187:E198)-1)<>"",OFFSET(DE100_17!$E$187,ROWS($E$187:E198)-1,COLUMNS($E$187:E198)-1),"") ->  | D200: =IF(OFFSET(DE100_17!$F$187,ROWS($F$187:F198)-1,COLUMNS($F$187:F198)-1)<>"",OFFSET(DE100_17!$F$187,ROWS($F$187:F198)-1,COLUMNS($F$187:F198)-1),"") ->  | E200: =IF(OFFSET(DE100_17!$G$187,ROWS($G$187:G198)-1,COLUMNS($G$187:G198)-1)<>"",OFFSET(DE100_17!$G$187,ROWS($G$187:G198)-1,COLUMNS($G$187:G198)-1),"") -> 
A201: =IF(OFFSET(DE100_17!$C$187,ROWS($C$187:C199)-1,COLUMNS($C$187:C199)-1)<>"",OFFSET(DE100_17!$C$187,ROWS($C$187:C199)-1,COLUMNS($C$187:C199)-1),"") ->  | B201: =IF(OFFSET(DE100_17!$D$187,ROWS($D$187:D199)-1,COLUMNS($D$187:D199)-1)<>"",OFFSET(DE100_17!$D$187,ROWS($D$187:D199)-1,COLUMNS($D$187:D199)-1),"") ->  | C201: =IF(OFFSET(DE100_17!$E$187,ROWS($E$187:E199)-1,COLUMNS($E$187:E199)-1)<>"",OFFSET(DE100_17!$E$187,ROWS($E$187:E199)-1,COLUMNS($E$187:E199)-1),"") ->  | D201: =IF(OFFSET(DE100_17!$F$187,ROWS($F$187:F199)-1,COLUMNS($F$187:F199)-1)<>"",OFFSET(DE100_17!$F$187,ROWS($F$187:F199)-1,COLUMNS($F$187:F199)-1),"") ->  | E201: =IF(OFFSET(DE100_17!$G$187,ROWS($G$187:G199)-1,COLUMNS($G$187:G199)-1)<>"",OFFSET(DE100_17!$G$187,ROWS($G$187:G199)-1,COLUMNS($G$187:G199)-1),"") -> 
A202: =IF(OFFSET(DE100_17!$C$187,ROWS($C$187:C200)-1,COLUMNS($C$187:C200)-1)<>"",OFFSET(DE100_17!$C$187,ROWS($C$187:C200)-1,COLUMNS($C$187:C200)-1),"") ->  | B202: =IF(OFFSET(DE100_17!$D$187,ROWS($D$187:D200)-1,COLUMNS($D$187:D200)-1)<>"",OFFSET(DE100_17!$D$187,ROWS($D$187:D200)-1,COLUMNS($D$187:D200)-1),"") ->  | C202: =IF(OFFSET(DE100_17!$E$187,ROWS($E$187:E200)-1,COLUMNS($E$187:E200)-1)<>"",OFFSET(DE100_17!$E$187,ROWS($E$187:E200)-1,COLUMNS($E$187:E200)-1),"") ->  | D202: =IF(OFFSET(DE100_17!$F$187,ROWS($F$187:F200)-1,COLUMNS($F$187:F200)-1)<>"",OFFSET(DE100_17!$F$187,ROWS($F$187:F200)-1,COLUMNS($F$187:F200)-1),"") ->  | E202: =IF(OFFSET(DE100_17!$G$187,ROWS($G$187:G200)-1,COLUMNS($G$187:G200)-1)<>"",OFFSET(DE100_17!$G$187,ROWS($G$187:G200)-1,COLUMNS($G$187:G200)-1),"") -> 

Sheet 100_18
A1: 100-18
A2: 2017-10-17
A3: SILT FENCES FOR DITCH CHECKS
A6: Possible Standard: EC-201 Possible Detail: 570-4
A18: * The functional height used in the volume equation is 85% of effective height. Effective height is 1.58 feet as shown on EC-201.
A19: * Volume equation: [0.5*Spacing*(0.5*H2*FS+DW*H+0.5*H2*BS)]
A20: Basin No. | B20: Type | C20: Location | E20: Bid Items | H20: Stormwater Storage Volume Summary | M20: Remarks
C21: Station | D21: Side | E21: Installation | F21: Maintenance | G21: Removal | H21: Foreslope | I21: Backslope | J21: Ditch Width | K21: Avg.% Slope | L21: Volume*
E22: LF | F22: LF | G22: LF | H22: FS:1 | I22: BS:1 | J22: FT | K22: Ditch Grade | L22: CF
A23: =IF(OFFSET(DE100_18!$C$37,ROWS($C$37:C37)-1,COLUMNS($C$37:C37)-1)<>"",OFFSET(DE100_18!$C$37,ROWS($C$37:C37)-1,COLUMNS($C$37:C37)-1),"") ->  | B23: =IF(OFFSET(DE100_18!$D$37,ROWS($D$37:D37)-1,COLUMNS($D$37:D37)-1)<>"",OFFSET(DE100_18!$D$37,ROWS($D$37:D37)-1,COLUMNS($D$37:D37)-1),"") ->  | C23: =IF(OFFSET(DE100_18!$E$37,ROWS($E$37:E37)-1,COLUMNS($E$37:E37)-1)<>"",OFFSET(DE100_18!$E$37,ROWS($E$37:E37)-1,COLUMNS($E$37:E37)-1),"") ->  | D23: =IF(OFFSET(DE100_18!$F$37,ROWS($F$37:F37)-1,COLUMNS($F$37:F37)-1)<>"",OFFSET(DE100_18!$F$37,ROWS($F$37:F37)-1,COLUMNS($F$37:F37)-1),"") ->  | E23: =IF(OFFSET(DE100_18!$G$37,ROWS($G$37:G37)-1,COLUMNS($G$37:G37)-1)<>"",OFFSET(DE100_18!$G$37,ROWS($G$37:G37)-1,COLUMNS($G$37:G37)-1),"") ->  | F23: =IF(OFFSET(DE100_18!$H$37,ROWS($H$37:H37)-1,COLUMNS($H$37:H37)-1)<>"",OFFSET(DE100_18!$H$37,ROWS($H$37:H37)-1,COLUMNS($H$37:H37)-1),"") ->  | G23: =IF(OFFSET(DE100_18!$I$37,ROWS($I$37:I37)-1,COLUMNS($I$37:I37)-1)<>"",OFFSET(DE100_18!$I$37,ROWS($I$37:I37)-1,COLUMNS($I$37:I37)-1),"") ->  | H23: =IF(OFFSET(DE100_18!$J$37,ROWS($J$37:J37)-1,COLUMNS($J$37:J37)-1)<>"",OFFSET(DE100_18!$J$37,ROWS($J$37:J37)-1,COLUMNS($J$37:J37)-1),"") ->  | I23: =IF(OFFSET(DE100_18!$K$37,ROWS($K$37:K37)-1,COLUMNS($K$37:K37)-1)<>"",OFFSET(DE100_18!$K$37,ROWS($K$37:K37)-1,COLUMNS($K$37:K37)-1),"") ->  | J23: =IF(OFFSET(DE100_18!$L$37,ROWS($L$37:L37)-1,COLUMNS($L$37:L37)-1)<>"",OFFSET(DE100_18!$L$37,ROWS($L$37:L37)-1,COLUMNS($L$37:L37)-1),"") ->  | K23: =IF(OFFSET(DE100_18!$M$37,ROWS($M$37:M37)-1,COLUMNS($M$37:M37)-1)<>"",OFFSET(DE100_18!$M$37,ROWS($M$37:M37)-1,COLUMNS($M$37:M37)-1),"") ->  | L23: =IF(OFFSET(DE100_18!$P$37,ROWS($P$37:P37)-1,COLUMNS($P$37:P37)-1)<>"",OFFSET(DE100_18!$P$37,ROWS($P$37:P37)-1,COLUMNS($P$37:P37)-1),"") ->  | M23: =IF(OFFSET(DE100_18!$R$37,ROWS($R$37:R37)-1,COLUMNS($R$37:R37)-1)<>"",OFFSET(DE100_18!$R$37,ROWS($R$37:R37)-1,COLUMNS($R$37:R37)-1),"") -> 
A24: =IF(OFFSET(DE100_18!$C$37,ROWS($C$37:C38)-1,COLUMNS($C$37:C38)-1)<>"",OFFSET(DE100_18!$C$37,ROWS($C$37:C38)-1,COLUMNS($C$37:C38)-1),"") -> 1 | B24: =IF(OFFSET(DE100_18!$D$37,ROWS($D$37:D38)-1,COLUMNS($D$37:D38)-1)<>"",OFFSET(DE100_18!$D$37,ROWS($D$37:D38)-1,COLUMNS($D$37:D38)-1),"") -> 1 | C24: =IF(OFFSET(DE100_18!$E$37,ROWS($E$37:E38)-1,COLUMNS($E$37:E38)-1)<>"",OFFSET(DE100_18!$E$37,ROWS($E$37:E38)-1,COLUMNS($E$37:E38)-1),"") -> 8010.74 | D24: =IF(OFFSET(DE100_18!$F$37,ROWS($F$37:F38)-1,COLUMNS($F$37:F38)-1)<>"",OFFSET(DE100_18!$F$37,ROWS($F$37:F38)-1,COLUMNS($F$37:F38)-1),"") -> Rt | E24: =IF(OFFSET(DE100_18!$G$37,ROWS($G$37:G38)-1,COLUMNS($G$37:G38)-1)<>"",OFFSET(DE100_18!$G$37,ROWS($G$37:G38)-1,COLUMNS($G$37:G38)-1),"") -> 19 | F24: =IF(OFFSET(DE100_18!$H$37,ROWS($H$37:H38)-1,COLUMNS($H$37:H38)-1)<>"",OFFSET(DE100_18!$H$37,ROWS($H$37:H38)-1,COLUMNS($H$37:H38)-1),"") -> 1.9 | G24: =IF(OFFSET(DE100_18!$I$37,ROWS($I$37:I38)-1,COLUMNS($I$37:I38)-1)<>"",OFFSET(DE100_18!$I$37,ROWS($I$37:I38)-1,COLUMNS($I$37:I38)-1),"") -> 19 | H24: =IF(OFFSET(DE100_18!$J$37,ROWS($J$37:J38)-1,COLUMNS($J$37:J38)-1)<>"",OFFSET(DE100_18!$J$37,ROWS($J$37:J38)-1,COLUMNS($J$37:J38)-1),"") -> 4.9 | I24: =IF(OFFSET(DE100_18!$K$37,ROWS($K$37:K38)-1,COLUMNS($K$37:K38)-1)<>"",OFFSET(DE100_18!$K$37,ROWS($K$37:K38)-1,COLUMNS($K$37:K38)-1),"") -> 2 | J24: =IF(OFFSET(DE100_18!$L$37,ROWS($L$37:L38)-1,COLUMNS($L$37:L38)-1)<>"",OFFSET(DE100_18!$L$37,ROWS($L$37:L38)-1,COLUMNS($L$37:L38)-1),"") -> 5.1745 | K24: =IF(OFFSET(DE100_18!$M$37,ROWS($M$37:M38)-1,COLUMNS($M$37:M38)-1)<>"",OFFSET(DE100_18!$M$37,ROWS($M$37:M38)-1,COLUMNS($M$37:M38)-1),"") -> 0.0151646 | L24: =IF(OFFSET(DE100_18!$P$37,ROWS($P$37:P38)-1,COLUMNS($P$37:P38)-1)<>"",OFFSET(DE100_18!$P$37,ROWS($P$37:P38)-1,COLUMNS($P$37:P38)-1),"") -> 658.5971275 | M24: =IF(OFFSET(DE100_18!$R$37,ROWS($R$37:R38)-1,COLUMNS($R$37:R38)-1)<>"",OFFSET(DE100_18!$R$37,ROWS($R$37:R38)-1,COLUMNS($R$37:R38)-1),"") -> 
A25: =IF(OFFSET(DE100_18!$C$37,ROWS($C$37:C39)-1,COLUMNS($C$37:C39)-1)<>"",OFFSET(DE100_18!$C$37,ROWS($C$37:C39)-1,COLUMNS($C$37:C39)-1),"") -> 1 | B25: =IF(OFFSET(DE100_18!$D$37,ROWS($D$37:D39)-1,COLUMNS($D$37:D39)-1)<>"",OFFSET(DE100_18!$D$37,ROWS($D$37:D39)-1,COLUMNS($D$37:D39)-1),"") -> 1 | C25: =IF(OFFSET(DE100_18!$E$37,ROWS($E$37:E39)-1,COLUMNS($E$37:E39)-1)<>"",OFFSET(DE100_18!$E$37,ROWS($E$37:E39)-1,COLUMNS($E$37:E39)-1),"") -> 7995.82 | D25: =IF(OFFSET(DE100_18!$F$37,ROWS($F$37:F39)-1,COLUMNS($F$37:F39)-1)<>"",OFFSET(DE100_18!$F$37,ROWS($F$37:F39)-1,COLUMNS($F$37:F39)-1),"") -> Lt | E25: =IF(OFFSET(DE100_18!$G$37,ROWS($G$37:G39)-1,COLUMNS($G$37:G39)-1)<>"",OFFSET(DE100_18!$G$37,ROWS($G$37:G39)-1,COLUMNS($G$37:G39)-1),"") -> 13 | F25: =IF(OFFSET(DE100_18!$H$37,ROWS($H$37:H39)-1,COLUMNS($H$37:H39)-1)<>"",OFFSET(DE100_18!$H$37,ROWS($H$37:H39)-1,COLUMNS($H$37:H39)-1),"") -> 1.3 | G25: =IF(OFFSET(DE100_18!$I$37,ROWS($I$37:I39)-1,COLUMNS($I$37:I39)-1)<>"",OFFSET(DE100_18!$I$37,ROWS($I$37:I39)-1,COLUMNS($I$37:I39)-1),"") -> 13 | H25: =IF(OFFSET(DE100_18!$J$37,ROWS($J$37:J39)-1,COLUMNS($J$37:J39)-1)<>"",OFFSET(DE100_18!$J$37,ROWS($J$37:J39)-1,COLUMNS($J$37:J39)-1),"") -> 1.99135 | I25: =IF(OFFSET(DE100_18!$K$37,ROWS($K$37:K39)-1,COLUMNS($K$37:K39)-1)<>"",OFFSET(DE100_18!$K$37,ROWS($K$37:K39)-1,COLUMNS($K$37:K39)-1),"") -> 2 | J25: =IF(OFFSET(DE100_18!$L$37,ROWS($L$37:L39)-1,COLUMNS($L$37:L39)-1)<>"",OFFSET(DE100_18!$L$37,ROWS($L$37:L39)-1,COLUMNS($L$37:L39)-1),"") -> 5 | K25: =IF(OFFSET(DE100_18!$M$37,ROWS($M$37:M39)-1,COLUMNS($M$37:M39)-1)<>"",OFFSET(DE100_18!$M$37,ROWS($M$37:M39)-1,COLUMNS($M$37:M39)-1),"") -> 0.0101345 | L25: =IF(OFFSET(DE100_18!$P$37,ROWS($P$37:P39)-1,COLUMNS($P$37:P39)-1)<>"",OFFSET(DE100_18!$P$37,ROWS($P$37:P39)-1,COLUMNS($P$37:P39)-1),"") -> 799.3735344 | M25: =IF(OFFSET(DE100_18!$R$37,ROWS($R$37:R39)-1,COLUMNS($R$37:R39)-1)<>"",OFFSET(DE100_18!$R$37,ROWS($R$37:R39)-1,COLUMNS($R$37:R39)-1),"") -> 
A26: =IF(OFFSET(DE100_18!$C$37,ROWS($C$37:C40)-1,COLUMNS($C$37:C40)-1)<>"",OFFSET(DE100_18!$C$37,ROWS($C$37:C40)-1,COLUMNS($C$37:C40)-1),"") -> 1 | B26: =IF(OFFSET(DE100_18!$D$37,ROWS($D$37:D40)-1,COLUMNS($D$37:D40)-1)<>"",OFFSET(DE100_18!$D$37,ROWS($D$37:D40)-1,COLUMNS($D$37:D40)-1),"") -> 1 | C26: =IF(OFFSET(DE100_18!$E$37,ROWS($E$37:E40)-1,COLUMNS($E$37:E40)-1)<>"",OFFSET(DE100_18!$E$37,ROWS($E$37:E40)-1,COLUMNS($E$37:E40)-1),"") -> 8050 | D26: =IF(OFFSET(DE100_18!$F$37,ROWS($F$37:F40)-1,COLUMNS($F$37:F40)-1)<>"",OFFSET(DE100_18!$F$37,ROWS($F$37:F40)-1,COLUMNS($F$37:F40)-1),"") -> Rt | E26: =IF(OFFSET(DE100_18!$G$37,ROWS($G$37:G40)-1,COLUMNS($G$37:G40)-1)<>"",OFFSET(DE100_18!$G$37,ROWS($G$37:G40)-1,COLUMNS($G$37:G40)-1),"") -> 18 | F26: =IF(OFFSET(DE100_18!$H$37,ROWS($H$37:H40)-1,COLUMNS($H$37:H40)-1)<>"",OFFSET(DE100_18!$H$37,ROWS($H$37:H40)-1,COLUMNS($H$37:H40)-1),"") -> 1.8 | G26: =IF(OFFSET(DE100_18!$I$37,ROWS($I$37:I40)-1,COLUMNS($I$37:I40)-1)<>"",OFFSET(DE100_18!$I$37,ROWS($I$37:I40)-1,COLUMNS($I$37:I40)-1),"") -> 18 | H26: =IF(OFFSET(DE100_18!$J$37,ROWS($J$37:J40)-1,COLUMNS($J$37:J40)-1)<>"",OFFSET(DE100_18!$J$37,ROWS($J$37:J40)-1,COLUMNS($J$37:J40)-1),"") -> 4 | I26: =IF(OFFSET(DE100_18!$K$37,ROWS($K$37:K40)-1,COLUMNS($K$37:K40)-1)<>"",OFFSET(DE100_18!$K$37,ROWS($K$37:K40)-1,COLUMNS($K$37:K40)-1),"") -> 2 | J26: =IF(OFFSET(DE100_18!$L$37,ROWS($L$37:L40)-1,COLUMNS($L$37:L40)-1)<>"",OFFSET(DE100_18!$L$37,ROWS($L$37:L40)-1,COLUMNS($L$37:L40)-1),"") -> 5.0225 | K26: =IF(OFFSET(DE100_18!$M$37,ROWS($M$37:M40)-1,COLUMNS($M$37:M40)-1)<>"",OFFSET(DE100_18!$M$37,ROWS($M$37:M40)-1,COLUMNS($M$37:M40)-1),"") -> 0.0394407 | L26: =IF(OFFSET(DE100_18!$P$37,ROWS($P$37:P40)-1,COLUMNS($P$37:P40)-1)<>"",OFFSET(DE100_18!$P$37,ROWS($P$37:P40)-1,COLUMNS($P$37:P40)-1),"") -> 243.12329 | M26: =IF(OFFSET(DE100_18!$R$37,ROWS($R$37:R40)-1,COLUMNS($R$37:R40)-1)<>"",OFFSET(DE100_18!$R$37,ROWS($R$37:R40)-1,COLUMNS($R$37:R40)-1),"") -> 
A27: =IF(OFFSET(DE100_18!$C$37,ROWS($C$37:C41)-1,COLUMNS($C$37:C41)-1)<>"",OFFSET(DE100_18!$C$37,ROWS($C$37:C41)-1,COLUMNS($C$37:C41)-1),"") -> 1 | B27: =IF(OFFSET(DE100_18!$D$37,ROWS($D$37:D41)-1,COLUMNS($D$37:D41)-1)<>"",OFFSET(DE100_18!$D$37,ROWS($D$37:D41)-1,COLUMNS($D$37:D41)-1),"") -> 1 | C27: =IF(OFFSET(DE100_18!$E$37,ROWS($E$37:E41)-1,COLUMNS($E$37:E41)-1)<>"",OFFSET(DE100_18!$E$37,ROWS($E$37:E41)-1,COLUMNS($E$37:E41)-1),"") -> 8075 | D27: =IF(OFFSET(DE100_18!$F$37,ROWS($F$37:F41)-1,COLUMNS($F$37:F41)-1)<>"",OFFSET(DE100_18!$F$37,ROWS($F$37:F41)-1,COLUMNS($F$37:F41)-1),"") -> Rt | E27: =IF(OFFSET(DE100_18!$G$37,ROWS($G$37:G41)-1,COLUMNS($G$37:G41)-1)<>"",OFFSET(DE100_18!$G$37,ROWS($G$37:G41)-1,COLUMNS($G$37:G41)-1),"") -> 14 | F27: =IF(OFFSET(DE100_18!$H$37,ROWS($H$37:H41)-1,COLUMNS($H$37:H41)-1)<>"",OFFSET(DE100_18!$H$37,ROWS($H$37:H41)-1,COLUMNS($H$37:H41)-1),"") -> 1.4 | G27: =IF(OFFSET(DE100_18!$I$37,ROWS($I$37:I41)-1,COLUMNS($I$37:I41)-1)<>"",OFFSET(DE100_18!$I$37,ROWS($I$37:I41)-1,COLUMNS($I$37:I41)-1),"") -> 14 | H27: =IF(OFFSET(DE100_18!$J$37,ROWS($J$37:J41)-1,COLUMNS($J$37:J41)-1)<>"",OFFSET(DE100_18!$J$37,ROWS($J$37:J41)-1,COLUMNS($J$37:J41)-1),"") -> 3.4 | I27: =IF(OFFSET(DE100_18!$K$37,ROWS($K$37:K41)-1,COLUMNS($K$37:K41)-1)<>"",OFFSET(DE100_18!$K$37,ROWS($K$37:K41)-1,COLUMNS($K$37:K41)-1),"") -> 2 | J27: =IF(OFFSET(DE100_18!$L$37,ROWS($L$37:L41)-1,COLUMNS($L$37:L41)-1)<>"",OFFSET(DE100_18!$L$37,ROWS($L$37:L41)-1,COLUMNS($L$37:L41)-1),"") -> 5.0413 | K27: =IF(OFFSET(DE100_18!$M$37,ROWS($M$37:M41)-1,COLUMNS($M$37:M41)-1)<>"",OFFSET(DE100_18!$M$37,ROWS($M$37:M41)-1,COLUMNS($M$37:M41)-1),"") -> 0.0394407 | L27: =IF(OFFSET(DE100_18!$P$37,ROWS($P$37:P41)-1,COLUMNS($P$37:P41)-1)<>"",OFFSET(DE100_18!$P$37,ROWS($P$37:P41)-1,COLUMNS($P$37:P41)-1),"") -> 232.806364 | M27: =IF(OFFSET(DE100_18!$R$37,ROWS($R$37:R41)-1,COLUMNS($R$37:R41)-1)<>"",OFFSET(DE100_18!$R$37,ROWS($R$37:R41)-1,COLUMNS($R$37:R41)-1),"") -> 
A28: =IF(OFFSET(DE100_18!$C$37,ROWS($C$37:C42)-1,COLUMNS($C$37:C42)-1)<>"",OFFSET(DE100_18!$C$37,ROWS($C$37:C42)-1,COLUMNS($C$37:C42)-1),"") ->  | B28: =IF(OFFSET(DE100_18!$D$37,ROWS($D$37:D42)-1,COLUMNS($D$37:D42)-1)<>"",OFFSET(DE100_18!$D$37,ROWS($D$37:D42)-1,COLUMNS($D$37:D42)-1),"") ->  | C28: =IF(OFFSET(DE100_18!$E$37,ROWS($E$37:E42)-1,COLUMNS($E$37:E42)-1)<>"",OFFSET(DE100_18!$E$37,ROWS($E$37:E42)-1,COLUMNS($E$37:E42)-1),"") ->  | D28: =IF(OFFSET(DE100_18!$F$37,ROWS($F$37:F42)-1,COLUMNS($F$37:F42)-1)<>"",OFFSET(DE100_18!$F$37,ROWS($F$37:F42)-1,COLUMNS($F$37:F42)-1),"") ->  | E28: =IF(OFFSET(DE100_18!$G$37,ROWS($G$37:G42)-1,COLUMNS($G$37:G42)-1)<>"",OFFSET(DE100_18!$G$37,ROWS($G$37:G42)-1,COLUMNS($G$37:G42)-1),"") ->  | F28: =IF(OFFSET(DE100_18!$H$37,ROWS($H$37:H42)-1,COLUMNS($H$37:H42)-1)<>"",OFFSET(DE100_18!$H$37,ROWS($H$37:H42)-1,COLUMNS($H$37:H42)-1),"") ->  | G28: =IF(OFFSET(DE100_18!$I$37,ROWS($I$37:I42)-1,COLUMNS($I$37:I42)-1)<>"",OFFSET(DE100_18!$I$37,ROWS($I$37:I42)-1,COLUMNS($I$37:I42)-1),"") ->  | H28: =IF(OFFSET(DE100_18!$J$37,ROWS($J$37:J42)-1,COLUMNS($J$37:J42)-1)<>"",OFFSET(DE100_18!$J$37,ROWS($J$37:J42)-1,COLUMNS($J$37:J42)-1),"") ->  | I28: =IF(OFFSET(DE100_18!$K$37,ROWS($K$37:K42)-1,COLUMNS($K$37:K42)-1)<>"",OFFSET(DE100_18!$K$37,ROWS($K$37:K42)-1,COLUMNS($K$37:K42)-1),"") ->  | J28: =IF(OFFSET(DE100_18!$L$37,ROWS($L$37:L42)-1,COLUMNS($L$37:L42)-1)<>"",OFFSET(DE100_18!$L$37,ROWS($L$37:L42)-1,COLUMNS($L$37:L42)-1),"") ->  | K28: =IF(OFFSET(DE100_18!$M$37,ROWS($M$37:M42)-1,COLUMNS($M$37:M42)-1)<>"",OFFSET(DE100_18!$M$37,ROWS($M$37:M42)-1,COLUMNS($M$37:M42)-1),"") ->  | L28: =IF(OFFSET(DE100_18!$P$37,ROWS($P$37:P42)-1,COLUMNS($P$37:P42)-1)<>"",OFFSET(DE100_18!$P$37,ROWS($P$37:P42)-1,COLUMNS($P$37:P42)-1),"") ->  | M28: =IF(OFFSET(DE100_18!$R$37,ROWS($R$37:R42)-1,COLUMNS($R$37:R42)-1)<>"",OFFSET(DE100_18!$R$37,ROWS($R$37:R42)-1,COLUMNS($R$37:R42)-1),"") -> 
A29: =IF(OFFSET(DE100_18!$C$37,ROWS($C$37:C43)-1,COLUMNS($C$37:C43)-1)<>"",OFFSET(DE100_18!$C$37,ROWS($C$37:C43)-1,COLUMNS($C$37:C43)-1),"") -> 2 | B29: =IF(OFFSET(DE100_18!$D$37,ROWS($D$37:D43)-1,COLUMNS($D$37:D43)-1)<>"",OFFSET(DE100_18!$D$37,ROWS($D$37:D43)-1,COLUMNS($D$37:D43)-1),"") -> 1 | C29: =IF(OFFSET(DE100_18!$E$37,ROWS($E$37:E43)-1,COLUMNS($E$37:E43)-1)<>"",OFFSET(DE100_18!$E$37,ROWS($E$37:E43)-1,COLUMNS($E$37:E43)-1),"") -> 9575 | D29: =IF(OFFSET(DE100_18!$F$37,ROWS($F$37:F43)-1,COLUMNS($F$37:F43)-1)<>"",OFFSET(DE100_18!$F$37,ROWS($F$37:F43)-1,COLUMNS($F$37:F43)-1),"") -> Rt | E29: =IF(OFFSET(DE100_18!$G$37,ROWS($G$37:G43)-1,COLUMNS($G$37:G43)-1)<>"",OFFSET(DE100_18!$G$37,ROWS($G$37:G43)-1,COLUMNS($G$37:G43)-1),"") -> 14 | F29: =IF(OFFSET(DE100_18!$H$37,ROWS($H$37:H43)-1,COLUMNS($H$37:H43)-1)<>"",OFFSET(DE100_18!$H$37,ROWS($H$37:H43)-1,COLUMNS($H$37:H43)-1),"") -> 1.4 | G29: =IF(OFFSET(DE100_18!$I$37,ROWS($I$37:I43)-1,COLUMNS($I$37:I43)-1)<>"",OFFSET(DE100_18!$I$37,ROWS($I$37:I43)-1,COLUMNS($I$37:I43)-1),"") -> 14 | H29: =IF(OFFSET(DE100_18!$J$37,ROWS($J$37:J43)-1,COLUMNS($J$37:J43)-1)<>"",OFFSET(DE100_18!$J$37,ROWS($J$37:J43)-1,COLUMNS($J$37:J43)-1),"") -> 3.6 | I29: =IF(OFFSET(DE100_18!$K$37,ROWS($K$37:K43)-1,COLUMNS($K$37:K43)-1)<>"",OFFSET(DE100_18!$K$37,ROWS($K$37:K43)-1,COLUMNS($K$37:K43)-1),"") -> 2 | J29: =IF(OFFSET(DE100_18!$L$37,ROWS($L$37:L43)-1,COLUMNS($L$37:L43)-1)<>"",OFFSET(DE100_18!$L$37,ROWS($L$37:L43)-1,COLUMNS($L$37:L43)-1),"") -> 1.9847 | K29: =IF(OFFSET(DE100_18!$M$37,ROWS($M$37:M43)-1,COLUMNS($M$37:M43)-1)<>"",OFFSET(DE100_18!$M$37,ROWS($M$37:M43)-1,COLUMNS($M$37:M43)-1),"") -> 0.039 | L29: =IF(OFFSET(DE100_18!$P$37,ROWS($P$37:P43)-1,COLUMNS($P$37:P43)-1)<>"",OFFSET(DE100_18!$P$37,ROWS($P$37:P43)-1,COLUMNS($P$37:P43)-1),"") -> 154.313386 | M29: =IF(OFFSET(DE100_18!$R$37,ROWS($R$37:R43)-1,COLUMNS($R$37:R43)-1)<>"",OFFSET(DE100_18!$R$37,ROWS($R$37:R43)-1,COLUMNS($R$37:R43)-1),"") -> 
A30: =IF(OFFSET(DE100_18!$C$37,ROWS($C$37:C44)-1,COLUMNS($C$37:C44)-1)<>"",OFFSET(DE100_18!$C$37,ROWS($C$37:C44)-1,COLUMNS($C$37:C44)-1),"") -> 2 | B30: =IF(OFFSET(DE100_18!$D$37,ROWS($D$37:D44)-1,COLUMNS($D$37:D44)-1)<>"",OFFSET(DE100_18!$D$37,ROWS($D$37:D44)-1,COLUMNS($D$37:D44)-1),"") -> 1 | C30: =IF(OFFSET(DE100_18!$E$37,ROWS($E$37:E44)-1,COLUMNS($E$37:E44)-1)<>"",OFFSET(DE100_18!$E$37,ROWS($E$37:E44)-1,COLUMNS($E$37:E44)-1),"") -> 9625 | D30: =IF(OFFSET(DE100_18!$F$37,ROWS($F$37:F44)-1,COLUMNS($F$37:F44)-1)<>"",OFFSET(DE100_18!$F$37,ROWS($F$37:F44)-1,COLUMNS($F$37:F44)-1),"") -> Rt | E30: =IF(OFFSET(DE100_18!$G$37,ROWS($G$37:G44)-1,COLUMNS($G$37:G44)-1)<>"",OFFSET(DE100_18!$G$37,ROWS($G$37:G44)-1,COLUMNS($G$37:G44)-1),"") -> 18 | F30: =IF(OFFSET(DE100_18!$H$37,ROWS($H$37:H44)-1,COLUMNS($H$37:H44)-1)<>"",OFFSET(DE100_18!$H$37,ROWS($H$37:H44)-1,COLUMNS($H$37:H44)-1),"") -> 1.8 | G30: =IF(OFFSET(DE100_18!$I$37,ROWS($I$37:I44)-1,COLUMNS($I$37:I44)-1)<>"",OFFSET(DE100_18!$I$37,ROWS($I$37:I44)-1,COLUMNS($I$37:I44)-1),"") -> 18 | H30: =IF(OFFSET(DE100_18!$J$37,ROWS($J$37:J44)-1,COLUMNS($J$37:J44)-1)<>"",OFFSET(DE100_18!$J$37,ROWS($J$37:J44)-1,COLUMNS($J$37:J44)-1),"") -> 4.1 | I30: =IF(OFFSET(DE100_18!$K$37,ROWS($K$37:K44)-1,COLUMNS($K$37:K44)-1)<>"",OFFSET(DE100_18!$K$37,ROWS($K$37:K44)-1,COLUMNS($K$37:K44)-1),"") -> 2.1 | J30: =IF(OFFSET(DE100_18!$L$37,ROWS($L$37:L44)-1,COLUMNS($L$37:L44)-1)<>"",OFFSET(DE100_18!$L$37,ROWS($L$37:L44)-1,COLUMNS($L$37:L44)-1),"") -> 5 | K30: =IF(OFFSET(DE100_18!$M$37,ROWS($M$37:M44)-1,COLUMNS($M$37:M44)-1)<>"",OFFSET(DE100_18!$M$37,ROWS($M$37:M44)-1,COLUMNS($M$37:M44)-1),"") -> 0.039 | L30: =IF(OFFSET(DE100_18!$P$37,ROWS($P$37:P44)-1,COLUMNS($P$37:P44)-1)<>"",OFFSET(DE100_18!$P$37,ROWS($P$37:P44)-1,COLUMNS($P$37:P44)-1),"") -> 246.126238 | M30: =IF(OFFSET(DE100_18!$R$37,ROWS($R$37:R44)-1,COLUMNS($R$37:R44)-1)<>"",OFFSET(DE100_18!$R$37,ROWS($R$37:R44)-1,COLUMNS($R$37:R44)-1),"") -> 
A31: =IF(OFFSET(DE100_18!$C$37,ROWS($C$37:C45)-1,COLUMNS($C$37:C45)-1)<>"",OFFSET(DE100_18!$C$37,ROWS($C$37:C45)-1,COLUMNS($C$37:C45)-1),"") -> 2 | B31: =IF(OFFSET(DE100_18!$D$37,ROWS($D$37:D45)-1,COLUMNS($D$37:D45)-1)<>"",OFFSET(DE100_18!$D$37,ROWS($D$37:D45)-1,COLUMNS($D$37:D45)-1),"") -> 1 | C31: =IF(OFFSET(DE100_18!$E$37,ROWS($E$37:E45)-1,COLUMNS($E$37:E45)-1)<>"",OFFSET(DE100_18!$E$37,ROWS($E$37:E45)-1,COLUMNS($E$37:E45)-1),"") -> 9675 | D31: =IF(OFFSET(DE100_18!$F$37,ROWS($F$37:F45)-1,COLUMNS($F$37:F45)-1)<>"",OFFSET(DE100_18!$F$37,ROWS($F$37:F45)-1,COLUMNS($F$37:F45)-1),"") -> Rt | E31: =IF(OFFSET(DE100_18!$G$37,ROWS($G$37:G45)-1,COLUMNS($G$37:G45)-1)<>"",OFFSET(DE100_18!$G$37,ROWS($G$37:G45)-1,COLUMNS($G$37:G45)-1),"") -> 17 | F31: =IF(OFFSET(DE100_18!$H$37,ROWS($H$37:H45)-1,COLUMNS($H$37:H45)-1)<>"",OFFSET(DE100_18!$H$37,ROWS($H$37:H45)-1,COLUMNS($H$37:H45)-1),"") -> 1.7 | G31: =IF(OFFSET(DE100_18!$I$37,ROWS($I$37:I45)-1,COLUMNS($I$37:I45)-1)<>"",OFFSET(DE100_18!$I$37,ROWS($I$37:I45)-1,COLUMNS($I$37:I45)-1),"") -> 17 | H31: =IF(OFFSET(DE100_18!$J$37,ROWS($J$37:J45)-1,COLUMNS($J$37:J45)-1)<>"",OFFSET(DE100_18!$J$37,ROWS($J$37:J45)-1,COLUMNS($J$37:J45)-1),"") -> 3.3 | I31: =IF(OFFSET(DE100_18!$K$37,ROWS($K$37:K45)-1,COLUMNS($K$37:K45)-1)<>"",OFFSET(DE100_18!$K$37,ROWS($K$37:K45)-1,COLUMNS($K$37:K45)-1),"") -> 2 | J31: =IF(OFFSET(DE100_18!$L$37,ROWS($L$37:L45)-1,COLUMNS($L$37:L45)-1)<>"",OFFSET(DE100_18!$L$37,ROWS($L$37:L45)-1,COLUMNS($L$37:L45)-1),"") -> 5 | K31: =IF(OFFSET(DE100_18!$M$37,ROWS($M$37:M45)-1,COLUMNS($M$37:M45)-1)<>"",OFFSET(DE100_18!$M$37,ROWS($M$37:M45)-1,COLUMNS($M$37:M45)-1),"") -> 0.0363574 | L31: =IF(OFFSET(DE100_18!$P$37,ROWS($P$37:P45)-1,COLUMNS($P$37:P45)-1)<>"",OFFSET(DE100_18!$P$37,ROWS($P$37:P45)-1,COLUMNS($P$37:P45)-1),"") -> 229.893397 | M31: =IF(OFFSET(DE100_18!$R$37,ROWS($R$37:R45)-1,COLUMNS($R$37:R45)-1)<>"",OFFSET(DE100_18!$R$37,ROWS($R$37:R45)-1,COLUMNS($R$37:R45)-1),"") -> 
A32: =IF(OFFSET(DE100_18!$C$37,ROWS($C$37:C46)-1,COLUMNS($C$37:C46)-1)<>"",OFFSET(DE100_18!$C$37,ROWS($C$37:C46)-1,COLUMNS($C$37:C46)-1),"") -> 2 | B32: =IF(OFFSET(DE100_18!$D$37,ROWS($D$37:D46)-1,COLUMNS($D$37:D46)-1)<>"",OFFSET(DE100_18!$D$37,ROWS($D$37:D46)-1,COLUMNS($D$37:D46)-1),"") -> 1 | C32: =IF(OFFSET(DE100_18!$E$37,ROWS($E$37:E46)-1,COLUMNS($E$37:E46)-1)<>"",OFFSET(DE100_18!$E$37,ROWS($E$37:E46)-1,COLUMNS($E$37:E46)-1),"") -> 9725 | D32: =IF(OFFSET(DE100_18!$F$37,ROWS($F$37:F46)-1,COLUMNS($F$37:F46)-1)<>"",OFFSET(DE100_18!$F$37,ROWS($F$37:F46)-1,COLUMNS($F$37:F46)-1),"") -> Rt | E32: =IF(OFFSET(DE100_18!$G$37,ROWS($G$37:G46)-1,COLUMNS($G$37:G46)-1)<>"",OFFSET(DE100_18!$G$37,ROWS($G$37:G46)-1,COLUMNS($G$37:G46)-1),"") -> 13 | F32: =IF(OFFSET(DE100_18!$H$37,ROWS($H$37:H46)-1,COLUMNS($H$37:H46)-1)<>"",OFFSET(DE100_18!$H$37,ROWS($H$37:H46)-1,COLUMNS($H$37:H46)-1),"") -> 1.3 | G32: =IF(OFFSET(DE100_18!$I$37,ROWS($I$37:I46)-1,COLUMNS($I$37:I46)-1)<>"",OFFSET(DE100_18!$I$37,ROWS($I$37:I46)-1,COLUMNS($I$37:I46)-1),"") -> 13 | H32: =IF(OFFSET(DE100_18!$J$37,ROWS($J$37:J46)-1,COLUMNS($J$37:J46)-1)<>"",OFFSET(DE100_18!$J$37,ROWS($J$37:J46)-1,COLUMNS($J$37:J46)-1),"") -> 3.2 | I32: =IF(OFFSET(DE100_18!$K$37,ROWS($K$37:K46)-1,COLUMNS($K$37:K46)-1)<>"",OFFSET(DE100_18!$K$37,ROWS($K$37:K46)-1,COLUMNS($K$37:K46)-1),"") -> 2 | J32: =IF(OFFSET(DE100_18!$L$37,ROWS($L$37:L46)-1,COLUMNS($L$37:L46)-1)<>"",OFFSET(DE100_18!$L$37,ROWS($L$37:L46)-1,COLUMNS($L$37:L46)-1),"") -> 1.7 | K32: =IF(OFFSET(DE100_18!$M$37,ROWS($M$37:M46)-1,COLUMNS($M$37:M46)-1)<>"",OFFSET(DE100_18!$M$37,ROWS($M$37:M46)-1,COLUMNS($M$37:M46)-1),"") -> 0.0363574 | L32: =IF(OFFSET(DE100_18!$P$37,ROWS($P$37:P46)-1,COLUMNS($P$37:P46)-1)<>"",OFFSET(DE100_18!$P$37,ROWS($P$37:P46)-1,COLUMNS($P$37:P46)-1),"") -> 139.451748 | M32: =IF(OFFSET(DE100_18!$R$37,ROWS($R$37:R46)-1,COLUMNS($R$37:R46)-1)<>"",OFFSET(DE100_18!$R$37,ROWS($R$37:R46)-1,COLUMNS($R$37:R46)-1),"") -> 
A33: =IF(OFFSET(DE100_18!$C$37,ROWS($C$37:C47)-1,COLUMNS($C$37:C47)-1)<>"",OFFSET(DE100_18!$C$37,ROWS($C$37:C47)-1,COLUMNS($C$37:C47)-1),"") ->  | B33: =IF(OFFSET(DE100_18!$D$37,ROWS($D$37:D47)-1,COLUMNS($D$37:D47)-1)<>"",OFFSET(DE100_18!$D$37,ROWS($D$37:D47)-1,COLUMNS($D$37:D47)-1),"") ->  | C33: =IF(OFFSET(DE100_18!$E$37,ROWS($E$37:E47)-1,COLUMNS($E$37:E47)-1)<>"",OFFSET(DE100_18!$E$37,ROWS($E$37:E47)-1,COLUMNS($E$37:E47)-1),"") ->  | D33: =IF(OFFSET(DE100_18!$F$37,ROWS($F$37:F47)-1,COLUMNS($F$37:F47)-1)<>"",OFFSET(DE100_18!$F$37,ROWS($F$37:F47)-1,COLUMNS($F$37:F47)-1),"") ->  | E33: =IF(OFFSET(DE100_18!$G$37,ROWS($G$37:G47)-1,COLUMNS($G$37:G47)-1)<>"",OFFSET(DE100_18!$G$37,ROWS($G$37:G47)-1,COLUMNS($G$37:G47)-1),"") ->  | F33: =IF(OFFSET(DE100_18!$H$37,ROWS($H$37:H47)-1,COLUMNS($H$37:H47)-1)<>"",OFFSET(DE100_18!$H$37,ROWS($H$37:H47)-1,COLUMNS($H$37:H47)-1),"") ->  | G33: =IF(OFFSET(DE100_18!$I$37,ROWS($I$37:I47)-1,COLUMNS($I$37:I47)-1)<>"",OFFSET(DE100_18!$I$37,ROWS($I$37:I47)-1,COLUMNS($I$37:I47)-1),"") ->  | H33: =IF(OFFSET(DE100_18!$J$37,ROWS($J$37:J47)-1,COLUMNS($J$37:J47)-1)<>"",OFFSET(DE100_18!$J$37,ROWS($J$37:J47)-1,COLUMNS($J$37:J47)-1),"") ->  | I33: =IF(OFFSET(DE100_18!$K$37,ROWS($K$37:K47)-1,COLUMNS($K$37:K47)-1)<>"",OFFSET(DE100_18!$K$37,ROWS($K$37:K47)-1,COLUMNS($K$37:K47)-1),"") ->  | J33: =IF(OFFSET(DE100_18!$L$37,ROWS($L$37:L47)-1,COLUMNS($L$37:L47)-1)<>"",OFFSET(DE100_18!$L$37,ROWS($L$37:L47)-1,COLUMNS($L$37:L47)-1),"") ->  | K33: =IF(OFFSET(DE100_18!$M$37,ROWS($M$37:M47)-1,COLUMNS($M$37:M47)-1)<>"",OFFSET(DE100_18!$M$37,ROWS($M$37:M47)-1,COLUMNS($M$37:M47)-1),"") ->  | L33: =IF(OFFSET(DE100_18!$P$37,ROWS($P$37:P47)-1,COLUMNS($P$37:P47)-1)<>"",OFFSET(DE100_18!$P$37,ROWS($P$37:P47)-1,COLUMNS($P$37:P47)-1),"") ->  | M33: =IF(OFFSET(DE100_18!$R$37,ROWS($R$37:R47)-1,COLUMNS($R$37:R47)-1)<>"",OFFSET(DE100_18!$R$37,ROWS($R$37:R47)-1,COLUMNS($R$37:R47)-1),"") -> 
A34: =IF(OFFSET(DE100_18!$C$37,ROWS($C$37:C48)-1,COLUMNS($C$37:C48)-1)<>"",OFFSET(DE100_18!$C$37,ROWS($C$37:C48)-1,COLUMNS($C$37:C48)-1),"") -> 3 | B34: =IF(OFFSET(DE100_18!$D$37,ROWS($D$37:D48)-1,COLUMNS($D$37:D48)-1)<>"",OFFSET(DE100_18!$D$37,ROWS($D$37:D48)-1,COLUMNS($D$37:D48)-1),"") -> 1 | C34: =IF(OFFSET(DE100_18!$E$37,ROWS($E$37:E48)-1,COLUMNS($E$37:E48)-1)<>"",OFFSET(DE100_18!$E$37,ROWS($E$37:E48)-1,COLUMNS($E$37:E48)-1),"") -> 10800 | D34: =IF(OFFSET(DE100_18!$F$37,ROWS($F$37:F48)-1,COLUMNS($F$37:F48)-1)<>"",OFFSET(DE100_18!$F$37,ROWS($F$37:F48)-1,COLUMNS($F$37:F48)-1),"") -> Rt | E34: =IF(OFFSET(DE100_18!$G$37,ROWS($G$37:G48)-1,COLUMNS($G$37:G48)-1)<>"",OFFSET(DE100_18!$G$37,ROWS($G$37:G48)-1,COLUMNS($G$37:G48)-1),"") -> 18 | F34: =IF(OFFSET(DE100_18!$H$37,ROWS($H$37:H48)-1,COLUMNS($H$37:H48)-1)<>"",OFFSET(DE100_18!$H$37,ROWS($H$37:H48)-1,COLUMNS($H$37:H48)-1),"") -> 1.8 | G34: =IF(OFFSET(DE100_18!$I$37,ROWS($I$37:I48)-1,COLUMNS($I$37:I48)-1)<>"",OFFSET(DE100_18!$I$37,ROWS($I$37:I48)-1,COLUMNS($I$37:I48)-1),"") -> 18 | H34: =IF(OFFSET(DE100_18!$J$37,ROWS($J$37:J48)-1,COLUMNS($J$37:J48)-1)<>"",OFFSET(DE100_18!$J$37,ROWS($J$37:J48)-1,COLUMNS($J$37:J48)-1),"") -> 3.4 | I34: =IF(OFFSET(DE100_18!$K$37,ROWS($K$37:K48)-1,COLUMNS($K$37:K48)-1)<>"",OFFSET(DE100_18!$K$37,ROWS($K$37:K48)-1,COLUMNS($K$37:K48)-1),"") -> 2 | J34: =IF(OFFSET(DE100_18!$L$37,ROWS($L$37:L48)-1,COLUMNS($L$37:L48)-1)<>"",OFFSET(DE100_18!$L$37,ROWS($L$37:L48)-1,COLUMNS($L$37:L48)-1),"") -> 2.4385 | K34: =IF(OFFSET(DE100_18!$M$37,ROWS($M$37:M48)-1,COLUMNS($M$37:M48)-1)<>"",OFFSET(DE100_18!$M$37,ROWS($M$37:M48)-1,COLUMNS($M$37:M48)-1),"") -> 0.0346233 | L34: =IF(OFFSET(DE100_18!$P$37,ROWS($P$37:P48)-1,COLUMNS($P$37:P48)-1)<>"",OFFSET(DE100_18!$P$37,ROWS($P$37:P48)-1,COLUMNS($P$37:P48)-1),"") -> 183.2570505 | M34: =IF(OFFSET(DE100_18!$R$37,ROWS($R$37:R48)-1,COLUMNS($R$37:R48)-1)<>"",OFFSET(DE100_18!$R$37,ROWS($R$37:R48)-1,COLUMNS($R$37:R48)-1),"") -> 
A35: =IF(OFFSET(DE100_18!$C$37,ROWS($C$37:C49)-1,COLUMNS($C$37:C49)-1)<>"",OFFSET(DE100_18!$C$37,ROWS($C$37:C49)-1,COLUMNS($C$37:C49)-1),"") -> 3 | B35: =IF(OFFSET(DE100_18!$D$37,ROWS($D$37:D49)-1,COLUMNS($D$37:D49)-1)<>"",OFFSET(DE100_18!$D$37,ROWS($D$37:D49)-1,COLUMNS($D$37:D49)-1),"") -> 1 | C35: =IF(OFFSET(DE100_18!$E$37,ROWS($E$37:E49)-1,COLUMNS($E$37:E49)-1)<>"",OFFSET(DE100_18!$E$37,ROWS($E$37:E49)-1,COLUMNS($E$37:E49)-1),"") -> 10850 | D35: =IF(OFFSET(DE100_18!$F$37,ROWS($F$37:F49)-1,COLUMNS($F$37:F49)-1)<>"",OFFSET(DE100_18!$F$37,ROWS($F$37:F49)-1,COLUMNS($F$37:F49)-1),"") -> Rt | E35: =IF(OFFSET(DE100_18!$G$37,ROWS($G$37:G49)-1,COLUMNS($G$37:G49)-1)<>"",OFFSET(DE100_18!$G$37,ROWS($G$37:G49)-1,COLUMNS($G$37:G49)-1),"") -> 22 | F35: =IF(OFFSET(DE100_18!$H$37,ROWS($H$37:H49)-1,COLUMNS($H$37:H49)-1)<>"",OFFSET(DE100_18!$H$37,ROWS($H$37:H49)-1,COLUMNS($H$37:H49)-1),"") -> 2.2 | G35: =IF(OFFSET(DE100_18!$I$37,ROWS($I$37:I49)-1,COLUMNS($I$37:I49)-1)<>"",OFFSET(DE100_18!$I$37,ROWS($I$37:I49)-1,COLUMNS($I$37:I49)-1),"") -> 22 | H35: =IF(OFFSET(DE100_18!$J$37,ROWS($J$37:J49)-1,COLUMNS($J$37:J49)-1)<>"",OFFSET(DE100_18!$J$37,ROWS($J$37:J49)-1,COLUMNS($J$37:J49)-1),"") -> 3.5 | I35: =IF(OFFSET(DE100_18!$K$37,ROWS($K$37:K49)-1,COLUMNS($K$37:K49)-1)<>"",OFFSET(DE100_18!$K$37,ROWS($K$37:K49)-1,COLUMNS($K$37:K49)-1),"") -> 2 | J35: =IF(OFFSET(DE100_18!$L$37,ROWS($L$37:L49)-1,COLUMNS($L$37:L49)-1)<>"",OFFSET(DE100_18!$L$37,ROWS($L$37:L49)-1,COLUMNS($L$37:L49)-1),"") -> 5.1598 | K35: =IF(OFFSET(DE100_18!$M$37,ROWS($M$37:M49)-1,COLUMNS($M$37:M49)-1)<>"",OFFSET(DE100_18!$M$37,ROWS($M$37:M49)-1,COLUMNS($M$37:M49)-1),"") -> 0.0346233 | L35: =IF(OFFSET(DE100_18!$P$37,ROWS($P$37:P49)-1,COLUMNS($P$37:P49)-1)<>"",OFFSET(DE100_18!$P$37,ROWS($P$37:P49)-1,COLUMNS($P$37:P49)-1),"") -> 267.5170384 | M35: =IF(OFFSET(DE100_18!$R$37,ROWS($R$37:R49)-1,COLUMNS($R$37:R49)-1)<>"",OFFSET(DE100_18!$R$37,ROWS($R$37:R49)-1,COLUMNS($R$37:R49)-1),"") -> 
A36: =IF(OFFSET(DE100_18!$C$37,ROWS($C$37:C50)-1,COLUMNS($C$37:C50)-1)<>"",OFFSET(DE100_18!$C$37,ROWS($C$37:C50)-1,COLUMNS($C$37:C50)-1),"") ->  | B36: =IF(OFFSET(DE100_18!$D$37,ROWS($D$37:D50)-1,COLUMNS($D$37:D50)-1)<>"",OFFSET(DE100_18!$D$37,ROWS($D$37:D50)-1,COLUMNS($D$37:D50)-1),"") ->  | C36: =IF(OFFSET(DE100_18!$E$37,ROWS($E$37:E50)-1,COLUMNS($E$37:E50)-1)<>"",OFFSET(DE100_18!$E$37,ROWS($E$37:E50)-1,COLUMNS($E$37:E50)-1),"") ->  | D36: =IF(OFFSET(DE100_18!$F$37,ROWS($F$37:F50)-1,COLUMNS($F$37:F50)-1)<>"",OFFSET(DE100_18!$F$37,ROWS($F$37:F50)-1,COLUMNS($F$37:F50)-1),"") ->  | E36: =IF(OFFSET(DE100_18!$G$37,ROWS($G$37:G50)-1,COLUMNS($G$37:G50)-1)<>"",OFFSET(DE100_18!$G$37,ROWS($G$37:G50)-1,COLUMNS($G$37:G50)-1),"") ->  | F36: =IF(OFFSET(DE100_18!$H$37,ROWS($H$37:H50)-1,COLUMNS($H$37:H50)-1)<>"",OFFSET(DE100_18!$H$37,ROWS($H$37:H50)-1,COLUMNS($H$37:H50)-1),"") ->  | G36: =IF(OFFSET(DE100_18!$I$37,ROWS($I$37:I50)-1,COLUMNS($I$37:I50)-1)<>"",OFFSET(DE100_18!$I$37,ROWS($I$37:I50)-1,COLUMNS($I$37:I50)-1),"") ->  | H36: =IF(OFFSET(DE100_18!$J$37,ROWS($J$37:J50)-1,COLUMNS($J$37:J50)-1)<>"",OFFSET(DE100_18!$J$37,ROWS($J$37:J50)-1,COLUMNS($J$37:J50)-1),"") ->  | I36: =IF(OFFSET(DE100_18!$K$37,ROWS($K$37:K50)-1,COLUMNS($K$37:K50)-1)<>"",OFFSET(DE100_18!$K$37,ROWS($K$37:K50)-1,COLUMNS($K$37:K50)-1),"") ->  | J36: =IF(OFFSET(DE100_18!$L$37,ROWS($L$37:L50)-1,COLUMNS($L$37:L50)-1)<>"",OFFSET(DE100_18!$L$37,ROWS($L$37:L50)-1,COLUMNS($L$37:L50)-1),"") ->  | K36: =IF(OFFSET(DE100_18!$M$37,ROWS($M$37:M50)-1,COLUMNS($M$37:M50)-1)<>"",OFFSET(DE100_18!$M$37,ROWS($M$37:M50)-1,COLUMNS($M$37:M50)-1),"") ->  | L36: =IF(OFFSET(DE100_18!$P$37,ROWS($P$37:P50)-1,COLUMNS($P$37:P50)-1)<>"",OFFSET(DE100_18!$P$37,ROWS($P$37:P50)-1,COLUMNS($P$37:P50)-1),"") ->  | M36: =IF(OFFSET(DE100_18!$R$37,ROWS($R$37:R50)-1,COLUMNS($R$37:R50)-1)<>"",OFFSET(DE100_18!$R$37,ROWS($R$37:R50)-1,COLUMNS($R$37:R50)-1),"") -> 
A37: =IF(OFFSET(DE100_18!$C$37,ROWS($C$37:C51)-1,COLUMNS($C$37:C51)-1)<>"",OFFSET(DE100_18!$C$37,ROWS($C$37:C51)-1,COLUMNS($C$37:C51)-1),"") -> 4 | B37: =IF(OFFSET(DE100_18!$D$37,ROWS($D$37:D51)-1,COLUMNS($D$37:D51)-1)<>"",OFFSET(DE100_18!$D$37,ROWS($D$37:D51)-1,COLUMNS($D$37:D51)-1),"") -> 1 | C37: =IF(OFFSET(DE100_18!$E$37,ROWS($E$37:E51)-1,COLUMNS($E$37:E51)-1)<>"",OFFSET(DE100_18!$E$37,ROWS($E$37:E51)-1,COLUMNS($E$37:E51)-1),"") -> 38225 | D37: =IF(OFFSET(DE100_18!$F$37,ROWS($F$37:F51)-1,COLUMNS($F$37:F51)-1)<>"",OFFSET(DE100_18!$F$37,ROWS($F$37:F51)-1,COLUMNS($F$37:F51)-1),"") -> Lt | E37: =IF(OFFSET(DE100_18!$G$37,ROWS($G$37:G51)-1,COLUMNS($G$37:G51)-1)<>"",OFFSET(DE100_18!$G$37,ROWS($G$37:G51)-1,COLUMNS($G$37:G51)-1),"") -> 14 | F37: =IF(OFFSET(DE100_18!$H$37,ROWS($H$37:H51)-1,COLUMNS($H$37:H51)-1)<>"",OFFSET(DE100_18!$H$37,ROWS($H$37:H51)-1,COLUMNS($H$37:H51)-1),"") -> 1.4 | G37: =IF(OFFSET(DE100_18!$I$37,ROWS($I$37:I51)-1,COLUMNS($I$37:I51)-1)<>"",OFFSET(DE100_18!$I$37,ROWS($I$37:I51)-1,COLUMNS($I$37:I51)-1),"") -> 14 | H37: =IF(OFFSET(DE100_18!$J$37,ROWS($J$37:J51)-1,COLUMNS($J$37:J51)-1)<>"",OFFSET(DE100_18!$J$37,ROWS($J$37:J51)-1,COLUMNS($J$37:J51)-1),"") -> 4.4 | I37: =IF(OFFSET(DE100_18!$K$37,ROWS($K$37:K51)-1,COLUMNS($K$37:K51)-1)<>"",OFFSET(DE100_18!$K$37,ROWS($K$37:K51)-1,COLUMNS($K$37:K51)-1),"") -> 2 | J37: =IF(OFFSET(DE100_18!$L$37,ROWS($L$37:L51)-1,COLUMNS($L$37:L51)-1)<>"",OFFSET(DE100_18!$L$37,ROWS($L$37:L51)-1,COLUMNS($L$37:L51)-1),"") -> 0.8227 | K37: =IF(OFFSET(DE100_18!$M$37,ROWS($M$37:M51)-1,COLUMNS($M$37:M51)-1)<>"",OFFSET(DE100_18!$M$37,ROWS($M$37:M51)-1,COLUMNS($M$37:M51)-1),"") -> 0.0423 | L37: =IF(OFFSET(DE100_18!$P$37,ROWS($P$37:P51)-1,COLUMNS($P$37:P51)-1)<>"",OFFSET(DE100_18!$P$37,ROWS($P$37:P51)-1,COLUMNS($P$37:P51)-1),"") -> 120.3398507 | M37: =IF(OFFSET(DE100_18!$R$37,ROWS($R$37:R51)-1,COLUMNS($R$37:R51)-1)<>"",OFFSET(DE100_18!$R$37,ROWS($R$37:R51)-1,COLUMNS($R$37:R51)-1),"") -> 
A38: =IF(OFFSET(DE100_18!$C$37,ROWS($C$37:C52)-1,COLUMNS($C$37:C52)-1)<>"",OFFSET(DE100_18!$C$37,ROWS($C$37:C52)-1,COLUMNS($C$37:C52)-1),"") -> 4 | B38: =IF(OFFSET(DE100_18!$D$37,ROWS($D$37:D52)-1,COLUMNS($D$37:D52)-1)<>"",OFFSET(DE100_18!$D$37,ROWS($D$37:D52)-1,COLUMNS($D$37:D52)-1),"") -> 1 | C38: =IF(OFFSET(DE100_18!$E$37,ROWS($E$37:E52)-1,COLUMNS($E$37:E52)-1)<>"",OFFSET(DE100_18!$E$37,ROWS($E$37:E52)-1,COLUMNS($E$37:E52)-1),"") -> 38250 | D38: =IF(OFFSET(DE100_18!$F$37,ROWS($F$37:F52)-1,COLUMNS($F$37:F52)-1)<>"",OFFSET(DE100_18!$F$37,ROWS($F$37:F52)-1,COLUMNS($F$37:F52)-1),"") -> Lt | E38: =IF(OFFSET(DE100_18!$G$37,ROWS($G$37:G52)-1,COLUMNS($G$37:G52)-1)<>"",OFFSET(DE100_18!$G$37,ROWS($G$37:G52)-1,COLUMNS($G$37:G52)-1),"") -> 15 | F38: =IF(OFFSET(DE100_18!$H$37,ROWS($H$37:H52)-1,COLUMNS($H$37:H52)-1)<>"",OFFSET(DE100_18!$H$37,ROWS($H$37:H52)-1,COLUMNS($H$37:H52)-1),"") -> 1.5 | G38: =IF(OFFSET(DE100_18!$I$37,ROWS($I$37:I52)-1,COLUMNS($I$37:I52)-1)<>"",OFFSET(DE100_18!$I$37,ROWS($I$37:I52)-1,COLUMNS($I$37:I52)-1),"") -> 15 | H38: =IF(OFFSET(DE100_18!$J$37,ROWS($J$37:J52)-1,COLUMNS($J$37:J52)-1)<>"",OFFSET(DE100_18!$J$37,ROWS($J$37:J52)-1,COLUMNS($J$37:J52)-1),"") -> 3.9 | I38: =IF(OFFSET(DE100_18!$K$37,ROWS($K$37:K52)-1,COLUMNS($K$37:K52)-1)<>"",OFFSET(DE100_18!$K$37,ROWS($K$37:K52)-1,COLUMNS($K$37:K52)-1),"") -> 2 | J38: =IF(OFFSET(DE100_18!$L$37,ROWS($L$37:L52)-1,COLUMNS($L$37:L52)-1)<>"",OFFSET(DE100_18!$L$37,ROWS($L$37:L52)-1,COLUMNS($L$37:L52)-1),"") -> 1.98 | K38: =IF(OFFSET(DE100_18!$M$37,ROWS($M$37:M52)-1,COLUMNS($M$37:M52)-1)<>"",OFFSET(DE100_18!$M$37,ROWS($M$37:M52)-1,COLUMNS($M$37:M52)-1),"") -> 0.0423 | L38: =IF(OFFSET(DE100_18!$P$37,ROWS($P$37:P52)-1,COLUMNS($P$37:P52)-1)<>"",OFFSET(DE100_18!$P$37,ROWS($P$37:P52)-1,COLUMNS($P$37:P52)-1),"") -> 139.6483296 | M38: =IF(OFFSET(DE100_18!$R$37,ROWS($R$37:R52)-1,COLUMNS($R$37:R52)-1)<>"",OFFSET(DE100_18!$R$37,ROWS($R$37:R52)-1,COLUMNS($R$37:R52)-1),"") -> 
A39: =IF(OFFSET(DE100_18!$C$37,ROWS($C$37:C53)-1,COLUMNS($C$37:C53)-1)<>"",OFFSET(DE100_18!$C$37,ROWS($C$37:C53)-1,COLUMNS($C$37:C53)-1),"") -> 4 | B39: =IF(OFFSET(DE100_18!$D$37,ROWS($D$37:D53)-1,COLUMNS($D$37:D53)-1)<>"",OFFSET(DE100_18!$D$37,ROWS($D$37:D53)-1,COLUMNS($D$37:D53)-1),"") -> 1 | C39: =IF(OFFSET(DE100_18!$E$37,ROWS($E$37:E53)-1,COLUMNS($E$37:E53)-1)<>"",OFFSET(DE100_18!$E$37,ROWS($E$37:E53)-1,COLUMNS($E$37:E53)-1),"") -> 38275 | D39: =IF(OFFSET(DE100_18!$F$37,ROWS($F$37:F53)-1,COLUMNS($F$37:F53)-1)<>"",OFFSET(DE100_18!$F$37,ROWS($F$37:F53)-1,COLUMNS($F$37:F53)-1),"") -> Lt | E39: =IF(OFFSET(DE100_18!$G$37,ROWS($G$37:G53)-1,COLUMNS($G$37:G53)-1)<>"",OFFSET(DE100_18!$G$37,ROWS($G$37:G53)-1,COLUMNS($G$37:G53)-1),"") -> 15 | F39: =IF(OFFSET(DE100_18!$H$37,ROWS($H$37:H53)-1,COLUMNS($H$37:H53)-1)<>"",OFFSET(DE100_18!$H$37,ROWS($H$37:H53)-1,COLUMNS($H$37:H53)-1),"") -> 1.5 | G39: =IF(OFFSET(DE100_18!$I$37,ROWS($I$37:I53)-1,COLUMNS($I$37:I53)-1)<>"",OFFSET(DE100_18!$I$37,ROWS($I$37:I53)-1,COLUMNS($I$37:I53)-1),"") -> 15 | H39: =IF(OFFSET(DE100_18!$J$37,ROWS($J$37:J53)-1,COLUMNS($J$37:J53)-1)<>"",OFFSET(DE100_18!$J$37,ROWS($J$37:J53)-1,COLUMNS($J$37:J53)-1),"") -> 3.8 | I39: =IF(OFFSET(DE100_18!$K$37,ROWS($K$37:K53)-1,COLUMNS($K$37:K53)-1)<>"",OFFSET(DE100_18!$K$37,ROWS($K$37:K53)-1,COLUMNS($K$37:K53)-1),"") -> 2 | J39: =IF(OFFSET(DE100_18!$L$37,ROWS($L$37:L53)-1,COLUMNS($L$37:L53)-1)<>"",OFFSET(DE100_18!$L$37,ROWS($L$37:L53)-1,COLUMNS($L$37:L53)-1),"") -> 3.1511 | K39: =IF(OFFSET(DE100_18!$M$37,ROWS($M$37:M53)-1,COLUMNS($M$37:M53)-1)<>"",OFFSET(DE100_18!$M$37,ROWS($M$37:M53)-1,COLUMNS($M$37:M53)-1),"") -> 0.0423 | L39: =IF(OFFSET(DE100_18!$P$37,ROWS($P$37:P53)-1,COLUMNS($P$37:P53)-1)<>"",OFFSET(DE100_18!$P$37,ROWS($P$37:P53)-1,COLUMNS($P$37:P53)-1),"") -> 165.5939145 | M39: =IF(OFFSET(DE100_18!$R$37,ROWS($R$37:R53)-1,COLUMNS($R$37:R53)-1)<>"",OFFSET(DE100_18!$R$37,ROWS($R$37:R53)-1,COLUMNS($R$37:R53)-1),"") -> 
A40: =IF(OFFSET(DE100_18!$C$37,ROWS($C$37:C54)-1,COLUMNS($C$37:C54)-1)<>"",OFFSET(DE100_18!$C$37,ROWS($C$37:C54)-1,COLUMNS($C$37:C54)-1),"") -> 4 | B40: =IF(OFFSET(DE100_18!$D$37,ROWS($D$37:D54)-1,COLUMNS($D$37:D54)-1)<>"",OFFSET(DE100_18!$D$37,ROWS($D$37:D54)-1,COLUMNS($D$37:D54)-1),"") -> 1 | C40: =IF(OFFSET(DE100_18!$E$37,ROWS($E$37:E54)-1,COLUMNS($E$37:E54)-1)<>"",OFFSET(DE100_18!$E$37,ROWS($E$37:E54)-1,COLUMNS($E$37:E54)-1),"") -> 38300 | D40: =IF(OFFSET(DE100_18!$F$37,ROWS($F$37:F54)-1,COLUMNS($F$37:F54)-1)<>"",OFFSET(DE100_18!$F$37,ROWS($F$37:F54)-1,COLUMNS($F$37:F54)-1),"") -> Lt | E40: =IF(OFFSET(DE100_18!$G$37,ROWS($G$37:G54)-1,COLUMNS($G$37:G54)-1)<>"",OFFSET(DE100_18!$G$37,ROWS($G$37:G54)-1,COLUMNS($G$37:G54)-1),"") -> 16 | F40: =IF(OFFSET(DE100_18!$H$37,ROWS($H$37:H54)-1,COLUMNS($H$37:H54)-1)<>"",OFFSET(DE100_18!$H$37,ROWS($H$37:H54)-1,COLUMNS($H$37:H54)-1),"") -> 1.6 | G40: =IF(OFFSET(DE100_18!$I$37,ROWS($I$37:I54)-1,COLUMNS($I$37:I54)-1)<>"",OFFSET(DE100_18!$I$37,ROWS($I$37:I54)-1,COLUMNS($I$37:I54)-1),"") -> 16 | H40: =IF(OFFSET(DE100_18!$J$37,ROWS($J$37:J54)-1,COLUMNS($J$37:J54)-1)<>"",OFFSET(DE100_18!$J$37,ROWS($J$37:J54)-1,COLUMNS($J$37:J54)-1),"") -> 3.2 | I40: =IF(OFFSET(DE100_18!$K$37,ROWS($K$37:K54)-1,COLUMNS($K$37:K54)-1)<>"",OFFSET(DE100_18!$K$37,ROWS($K$37:K54)-1,COLUMNS($K$37:K54)-1),"") -> 2 | J40: =IF(OFFSET(DE100_18!$L$37,ROWS($L$37:L54)-1,COLUMNS($L$37:L54)-1)<>"",OFFSET(DE100_18!$L$37,ROWS($L$37:L54)-1,COLUMNS($L$37:L54)-1),"") -> 4.339 | K40: =IF(OFFSET(DE100_18!$M$37,ROWS($M$37:M54)-1,COLUMNS($M$37:M54)-1)<>"",OFFSET(DE100_18!$M$37,ROWS($M$37:M54)-1,COLUMNS($M$37:M54)-1),"") -> 0.0423 | L40: =IF(OFFSET(DE100_18!$P$37,ROWS($P$37:P54)-1,COLUMNS($P$37:P54)-1)<>"",OFFSET(DE100_18!$P$37,ROWS($P$37:P54)-1,COLUMNS($P$37:P54)-1),"") -> 184.043377 | M40: =IF(OFFSET(DE100_18!$R$37,ROWS($R$37:R54)-1,COLUMNS($R$37:R54)-1)<>"",OFFSET(DE100_18!$R$37,ROWS($R$37:R54)-1,COLUMNS($R$37:R54)-1),"") -> 
A41: =IF(OFFSET(DE100_18!$C$37,ROWS($C$37:C55)-1,COLUMNS($C$37:C55)-1)<>"",OFFSET(DE100_18!$C$37,ROWS($C$37:C55)-1,COLUMNS($C$37:C55)-1),"") -> 4 | B41: =IF(OFFSET(DE100_18!$D$37,ROWS($D$37:D55)-1,COLUMNS($D$37:D55)-1)<>"",OFFSET(DE100_18!$D$37,ROWS($D$37:D55)-1,COLUMNS($D$37:D55)-1),"") -> 1 | C41: =IF(OFFSET(DE100_18!$E$37,ROWS($E$37:E55)-1,COLUMNS($E$37:E55)-1)<>"",OFFSET(DE100_18!$E$37,ROWS($E$37:E55)-1,COLUMNS($E$37:E55)-1),"") -> 38350 | D41: =IF(OFFSET(DE100_18!$F$37,ROWS($F$37:F55)-1,COLUMNS($F$37:F55)-1)<>"",OFFSET(DE100_18!$F$37,ROWS($F$37:F55)-1,COLUMNS($F$37:F55)-1),"") -> Lt | E41: =IF(OFFSET(DE100_18!$G$37,ROWS($G$37:G55)-1,COLUMNS($G$37:G55)-1)<>"",OFFSET(DE100_18!$G$37,ROWS($G$37:G55)-1,COLUMNS($G$37:G55)-1),"") -> 17 | F41: =IF(OFFSET(DE100_18!$H$37,ROWS($H$37:H55)-1,COLUMNS($H$37:H55)-1)<>"",OFFSET(DE100_18!$H$37,ROWS($H$37:H55)-1,COLUMNS($H$37:H55)-1),"") -> 1.7 | G41: =IF(OFFSET(DE100_18!$I$37,ROWS($I$37:I55)-1,COLUMNS($I$37:I55)-1)<>"",OFFSET(DE100_18!$I$37,ROWS($I$37:I55)-1,COLUMNS($I$37:I55)-1),"") -> 17 | H41: =IF(OFFSET(DE100_18!$J$37,ROWS($J$37:J55)-1,COLUMNS($J$37:J55)-1)<>"",OFFSET(DE100_18!$J$37,ROWS($J$37:J55)-1,COLUMNS($J$37:J55)-1),"") -> 3.6 | I41: =IF(OFFSET(DE100_18!$K$37,ROWS($K$37:K55)-1,COLUMNS($K$37:K55)-1)<>"",OFFSET(DE100_18!$K$37,ROWS($K$37:K55)-1,COLUMNS($K$37:K55)-1),"") -> 2 | J41: =IF(OFFSET(DE100_18!$L$37,ROWS($L$37:L55)-1,COLUMNS($L$37:L55)-1)<>"",OFFSET(DE100_18!$L$37,ROWS($L$37:L55)-1,COLUMNS($L$37:L55)-1),"") -> 5 | K41: =IF(OFFSET(DE100_18!$M$37,ROWS($M$37:M55)-1,COLUMNS($M$37:M55)-1)<>"",OFFSET(DE100_18!$M$37,ROWS($M$37:M55)-1,COLUMNS($M$37:M55)-1),"") -> 0.034 | L41: =IF(OFFSET(DE100_18!$P$37,ROWS($P$37:P55)-1,COLUMNS($P$37:P55)-1)<>"",OFFSET(DE100_18!$P$37,ROWS($P$37:P55)-1,COLUMNS($P$37:P55)-1),"") -> 264.717387 | M41: =IF(OFFSET(DE100_18!$R$37,ROWS($R$37:R55)-1,COLUMNS($R$37:R55)-1)<>"",OFFSET(DE100_18!$R$37,ROWS($R$37:R55)-1,COLUMNS($R$37:R55)-1),"") -> 
A42: =IF(OFFSET(DE100_18!$C$37,ROWS($C$37:C56)-1,COLUMNS($C$37:C56)-1)<>"",OFFSET(DE100_18!$C$37,ROWS($C$37:C56)-1,COLUMNS($C$37:C56)-1),"") -> 4 | B42: =IF(OFFSET(DE100_18!$D$37,ROWS($D$37:D56)-1,COLUMNS($D$37:D56)-1)<>"",OFFSET(DE100_18!$D$37,ROWS($D$37:D56)-1,COLUMNS($D$37:D56)-1),"") -> 1 | C42: =IF(OFFSET(DE100_18!$E$37,ROWS($E$37:E56)-1,COLUMNS($E$37:E56)-1)<>"",OFFSET(DE100_18!$E$37,ROWS($E$37:E56)-1,COLUMNS($E$37:E56)-1),"") -> 38375 | D42: =IF(OFFSET(DE100_18!$F$37,ROWS($F$37:F56)-1,COLUMNS($F$37:F56)-1)<>"",OFFSET(DE100_18!$F$37,ROWS($F$37:F56)-1,COLUMNS($F$37:F56)-1),"") -> Lt | E42: =IF(OFFSET(DE100_18!$G$37,ROWS($G$37:G56)-1,COLUMNS($G$37:G56)-1)<>"",OFFSET(DE100_18!$G$37,ROWS($G$37:G56)-1,COLUMNS($G$37:G56)-1),"") -> 16 | F42: =IF(OFFSET(DE100_18!$H$37,ROWS($H$37:H56)-1,COLUMNS($H$37:H56)-1)<>"",OFFSET(DE100_18!$H$37,ROWS($H$37:H56)-1,COLUMNS($H$37:H56)-1),"") -> 1.6 | G42: =IF(OFFSET(DE100_18!$I$37,ROWS($I$37:I56)-1,COLUMNS($I$37:I56)-1)<>"",OFFSET(DE100_18!$I$37,ROWS($I$37:I56)-1,COLUMNS($I$37:I56)-1),"") -> 16 | H42: =IF(OFFSET(DE100_18!$J$37,ROWS($J$37:J56)-1,COLUMNS($J$37:J56)-1)<>"",OFFSET(DE100_18!$J$37,ROWS($J$37:J56)-1,COLUMNS($J$37:J56)-1),"") -> 3.4 | I42: =IF(OFFSET(DE100_18!$K$37,ROWS($K$37:K56)-1,COLUMNS($K$37:K56)-1)<>"",OFFSET(DE100_18!$K$37,ROWS($K$37:K56)-1,COLUMNS($K$37:K56)-1),"") -> 2 | J42: =IF(OFFSET(DE100_18!$L$37,ROWS($L$37:L56)-1,COLUMNS($L$37:L56)-1)<>"",OFFSET(DE100_18!$L$37,ROWS($L$37:L56)-1,COLUMNS($L$37:L56)-1),"") -> 3.939 | K42: =IF(OFFSET(DE100_18!$M$37,ROWS($M$37:M56)-1,COLUMNS($M$37:M56)-1)<>"",OFFSET(DE100_18!$M$37,ROWS($M$37:M56)-1,COLUMNS($M$37:M56)-1),"") -> 0.034 | L42: =IF(OFFSET(DE100_18!$P$37,ROWS($P$37:P56)-1,COLUMNS($P$37:P56)-1)<>"",OFFSET(DE100_18!$P$37,ROWS($P$37:P56)-1,COLUMNS($P$37:P56)-1),"") -> 228.5984093 | M42: =IF(OFFSET(DE100_18!$R$37,ROWS($R$37:R56)-1,COLUMNS($R$37:R56)-1)<>"",OFFSET(DE100_18!$R$37,ROWS($R$37:R56)-1,COLUMNS($R$37:R56)-1),"") -> 
A43: =IF(OFFSET(DE100_18!$C$37,ROWS($C$37:C57)-1,COLUMNS($C$37:C57)-1)<>"",OFFSET(DE100_18!$C$37,ROWS($C$37:C57)-1,COLUMNS($C$37:C57)-1),"") -> 4 | B43: =IF(OFFSET(DE100_18!$D$37,ROWS($D$37:D57)-1,COLUMNS($D$37:D57)-1)<>"",OFFSET(DE100_18!$D$37,ROWS($D$37:D57)-1,COLUMNS($D$37:D57)-1),"") -> 1 | C43: =IF(OFFSET(DE100_18!$E$37,ROWS($E$37:E57)-1,COLUMNS($E$37:E57)-1)<>"",OFFSET(DE100_18!$E$37,ROWS($E$37:E57)-1,COLUMNS($E$37:E57)-1),"") -> 38400 | D43: =IF(OFFSET(DE100_18!$F$37,ROWS($F$37:F57)-1,COLUMNS($F$37:F57)-1)<>"",OFFSET(DE100_18!$F$37,ROWS($F$37:F57)-1,COLUMNS($F$37:F57)-1),"") -> Lt | E43: =IF(OFFSET(DE100_18!$G$37,ROWS($G$37:G57)-1,COLUMNS($G$37:G57)-1)<>"",OFFSET(DE100_18!$G$37,ROWS($G$37:G57)-1,COLUMNS($G$37:G57)-1),"") -> 15 | F43: =IF(OFFSET(DE100_18!$H$37,ROWS($H$37:H57)-1,COLUMNS($H$37:H57)-1)<>"",OFFSET(DE100_18!$H$37,ROWS($H$37:H57)-1,COLUMNS($H$37:H57)-1),"") -> 1.5 | G43: =IF(OFFSET(DE100_18!$I$37,ROWS($I$37:I57)-1,COLUMNS($I$37:I57)-1)<>"",OFFSET(DE100_18!$I$37,ROWS($I$37:I57)-1,COLUMNS($I$37:I57)-1),"") -> 15 | H43: =IF(OFFSET(DE100_18!$J$37,ROWS($J$37:J57)-1,COLUMNS($J$37:J57)-1)<>"",OFFSET(DE100_18!$J$37,ROWS($J$37:J57)-1,COLUMNS($J$37:J57)-1),"") -> 3.2 | I43: =IF(OFFSET(DE100_18!$K$37,ROWS($K$37:K57)-1,COLUMNS($K$37:K57)-1)<>"",OFFSET(DE100_18!$K$37,ROWS($K$37:K57)-1,COLUMNS($K$37:K57)-1),"") -> 2 | J43: =IF(OFFSET(DE100_18!$L$37,ROWS($L$37:L57)-1,COLUMNS($L$37:L57)-1)<>"",OFFSET(DE100_18!$L$37,ROWS($L$37:L57)-1,COLUMNS($L$37:L57)-1),"") -> 3.0227 | K43: =IF(OFFSET(DE100_18!$M$37,ROWS($M$37:M57)-1,COLUMNS($M$37:M57)-1)<>"",OFFSET(DE100_18!$M$37,ROWS($M$37:M57)-1,COLUMNS($M$37:M57)-1),"") -> 0.034 | L43: =IF(OFFSET(DE100_18!$P$37,ROWS($P$37:P57)-1,COLUMNS($P$37:P57)-1)<>"",OFFSET(DE100_18!$P$37,ROWS($P$37:P57)-1,COLUMNS($P$37:P57)-1),"") -> 196.8519037 | M43: =IF(OFFSET(DE100_18!$R$37,ROWS($R$37:R57)-1,COLUMNS($R$37:R57)-1)<>"",OFFSET(DE100_18!$R$37,ROWS($R$37:R57)-1,COLUMNS($R$37:R57)-1),"") -> 
A44: =IF(OFFSET(DE100_18!$C$37,ROWS($C$37:C58)-1,COLUMNS($C$37:C58)-1)<>"",OFFSET(DE100_18!$C$37,ROWS($C$37:C58)-1,COLUMNS($C$37:C58)-1),"") -> 4 | B44: =IF(OFFSET(DE100_18!$D$37,ROWS($D$37:D58)-1,COLUMNS($D$37:D58)-1)<>"",OFFSET(DE100_18!$D$37,ROWS($D$37:D58)-1,COLUMNS($D$37:D58)-1),"") -> 1 | C44: =IF(OFFSET(DE100_18!$E$37,ROWS($E$37:E58)-1,COLUMNS($E$37:E58)-1)<>"",OFFSET(DE100_18!$E$37,ROWS($E$37:E58)-1,COLUMNS($E$37:E58)-1),"") -> 38425 | D44: =IF(OFFSET(DE100_18!$F$37,ROWS($F$37:F58)-1,COLUMNS($F$37:F58)-1)<>"",OFFSET(DE100_18!$F$37,ROWS($F$37:F58)-1,COLUMNS($F$37:F58)-1),"") -> Lt | E44: =IF(OFFSET(DE100_18!$G$37,ROWS($G$37:G58)-1,COLUMNS($G$37:G58)-1)<>"",OFFSET(DE100_18!$G$37,ROWS($G$37:G58)-1,COLUMNS($G$37:G58)-1),"") -> 14 | F44: =IF(OFFSET(DE100_18!$H$37,ROWS($H$37:H58)-1,COLUMNS($H$37:H58)-1)<>"",OFFSET(DE100_18!$H$37,ROWS($H$37:H58)-1,COLUMNS($H$37:H58)-1),"") -> 1.4 | G44: =IF(OFFSET(DE100_18!$I$37,ROWS($I$37:I58)-1,COLUMNS($I$37:I58)-1)<>"",OFFSET(DE100_18!$I$37,ROWS($I$37:I58)-1,COLUMNS($I$37:I58)-1),"") -> 14 | H44: =IF(OFFSET(DE100_18!$J$37,ROWS($J$37:J58)-1,COLUMNS($J$37:J58)-1)<>"",OFFSET(DE100_18!$J$37,ROWS($J$37:J58)-1,COLUMNS($J$37:J58)-1),"") -> 3.4 | I44: =IF(OFFSET(DE100_18!$K$37,ROWS($K$37:K58)-1,COLUMNS($K$37:K58)-1)<>"",OFFSET(DE100_18!$K$37,ROWS($K$37:K58)-1,COLUMNS($K$37:K58)-1),"") -> 2 | J44: =IF(OFFSET(DE100_18!$L$37,ROWS($L$37:L58)-1,COLUMNS($L$37:L58)-1)<>"",OFFSET(DE100_18!$L$37,ROWS($L$37:L58)-1,COLUMNS($L$37:L58)-1),"") -> 2.1193 | K44: =IF(OFFSET(DE100_18!$M$37,ROWS($M$37:M58)-1,COLUMNS($M$37:M58)-1)<>"",OFFSET(DE100_18!$M$37,ROWS($M$37:M58)-1,COLUMNS($M$37:M58)-1),"") -> 0.034 | L44: =IF(OFFSET(DE100_18!$P$37,ROWS($P$37:P58)-1,COLUMNS($P$37:P58)-1)<>"",OFFSET(DE100_18!$P$37,ROWS($P$37:P58)-1,COLUMNS($P$37:P58)-1),"") -> 173.6116245 | M44: =IF(OFFSET(DE100_18!$R$37,ROWS($R$37:R58)-1,COLUMNS($R$37:R58)-1)<>"",OFFSET(DE100_18!$R$37,ROWS($R$37:R58)-1,COLUMNS($R$37:R58)-1),"") -> 
A45: =IF(OFFSET(DE100_18!$C$37,ROWS($C$37:C59)-1,COLUMNS($C$37:C59)-1)<>"",OFFSET(DE100_18!$C$37,ROWS($C$37:C59)-1,COLUMNS($C$37:C59)-1),"") -> 4 | B45: =IF(OFFSET(DE100_18!$D$37,ROWS($D$37:D59)-1,COLUMNS($D$37:D59)-1)<>"",OFFSET(DE100_18!$D$37,ROWS($D$37:D59)-1,COLUMNS($D$37:D59)-1),"") -> 1 | C45: =IF(OFFSET(DE100_18!$E$37,ROWS($E$37:E59)-1,COLUMNS($E$37:E59)-1)<>"",OFFSET(DE100_18!$E$37,ROWS($E$37:E59)-1,COLUMNS($E$37:E59)-1),"") -> 38450 | D45: =IF(OFFSET(DE100_18!$F$37,ROWS($F$37:F59)-1,COLUMNS($F$37:F59)-1)<>"",OFFSET(DE100_18!$F$37,ROWS($F$37:F59)-1,COLUMNS($F$37:F59)-1),"") -> Lt | E45: =IF(OFFSET(DE100_18!$G$37,ROWS($G$37:G59)-1,COLUMNS($G$37:G59)-1)<>"",OFFSET(DE100_18!$G$37,ROWS($G$37:G59)-1,COLUMNS($G$37:G59)-1),"") -> 14 | F45: =IF(OFFSET(DE100_18!$H$37,ROWS($H$37:H59)-1,COLUMNS($H$37:H59)-1)<>"",OFFSET(DE100_18!$H$37,ROWS($H$37:H59)-1,COLUMNS($H$37:H59)-1),"") -> 1.4 | G45: =IF(OFFSET(DE100_18!$I$37,ROWS($I$37:I59)-1,COLUMNS($I$37:I59)-1)<>"",OFFSET(DE100_18!$I$37,ROWS($I$37:I59)-1,COLUMNS($I$37:I59)-1),"") -> 14 | H45: =IF(OFFSET(DE100_18!$J$37,ROWS($J$37:J59)-1,COLUMNS($J$37:J59)-1)<>"",OFFSET(DE100_18!$J$37,ROWS($J$37:J59)-1,COLUMNS($J$37:J59)-1),"") -> 3.8 | I45: =IF(OFFSET(DE100_18!$K$37,ROWS($K$37:K59)-1,COLUMNS($K$37:K59)-1)<>"",OFFSET(DE100_18!$K$37,ROWS($K$37:K59)-1,COLUMNS($K$37:K59)-1),"") -> 2 | J45: =IF(OFFSET(DE100_18!$L$37,ROWS($L$37:L59)-1,COLUMNS($L$37:L59)-1)<>"",OFFSET(DE100_18!$L$37,ROWS($L$37:L59)-1,COLUMNS($L$37:L59)-1),"") -> 1.2264 | K45: =IF(OFFSET(DE100_18!$M$37,ROWS($M$37:M59)-1,COLUMNS($M$37:M59)-1)<>"",OFFSET(DE100_18!$M$37,ROWS($M$37:M59)-1,COLUMNS($M$37:M59)-1),"") -> 0.034 | L45: =IF(OFFSET(DE100_18!$P$37,ROWS($P$37:P59)-1,COLUMNS($P$37:P59)-1)<>"",OFFSET(DE100_18!$P$37,ROWS($P$37:P59)-1,COLUMNS($P$37:P59)-1),"") -> 154.7468392 | M45: =IF(OFFSET(DE100_18!$R$37,ROWS($R$37:R59)-1,COLUMNS($R$37:R59)-1)<>"",OFFSET(DE100_18!$R$37,ROWS($R$37:R59)-1,COLUMNS($R$37:R59)-1),"") -> 
A46: =IF(OFFSET(DE100_18!$C$37,ROWS($C$37:C60)-1,COLUMNS($C$37:C60)-1)<>"",OFFSET(DE100_18!$C$37,ROWS($C$37:C60)-1,COLUMNS($C$37:C60)-1),"") ->  | B46: =IF(OFFSET(DE100_18!$D$37,ROWS($D$37:D60)-1,COLUMNS($D$37:D60)-1)<>"",OFFSET(DE100_18!$D$37,ROWS($D$37:D60)-1,COLUMNS($D$37:D60)-1),"") ->  | C46: =IF(OFFSET(DE100_18!$E$37,ROWS($E$37:E60)-1,COLUMNS($E$37:E60)-1)<>"",OFFSET(DE100_18!$E$37,ROWS($E$37:E60)-1,COLUMNS($E$37:E60)-1),"") ->  | D46: =IF(OFFSET(DE100_18!$F$37,ROWS($F$37:F60)-1,COLUMNS($F$37:F60)-1)<>"",OFFSET(DE100_18!$F$37,ROWS($F$37:F60)-1,COLUMNS($F$37:F60)-1),"") ->  | E46: =IF(OFFSET(DE100_18!$G$37,ROWS($G$37:G60)-1,COLUMNS($G$37:G60)-1)<>"",OFFSET(DE100_18!$G$37,ROWS($G$37:G60)-1,COLUMNS($G$37:G60)-1),"") ->  | F46: =IF(OFFSET(DE100_18!$H$37,ROWS($H$37:H60)-1,COLUMNS($H$37:H60)-1)<>"",OFFSET(DE100_18!$H$37,ROWS($H$37:H60)-1,COLUMNS($H$37:H60)-1),"") ->  | G46: =IF(OFFSET(DE100_18!$I$37,ROWS($I$37:I60)-1,COLUMNS($I$37:I60)-1)<>"",OFFSET(DE100_18!$I$37,ROWS($I$37:I60)-1,COLUMNS($I$37:I60)-1),"") ->  | H46: =IF(OFFSET(DE100_18!$J$37,ROWS($J$37:J60)-1,COLUMNS($J$37:J60)-1)<>"",OFFSET(DE100_18!$J$37,ROWS($J$37:J60)-1,COLUMNS($J$37:J60)-1),"") ->  | I46: =IF(OFFSET(DE100_18!$K$37,ROWS($K$37:K60)-1,COLUMNS($K$37:K60)-1)<>"",OFFSET(DE100_18!$K$37,ROWS($K$37:K60)-1,COLUMNS($K$37:K60)-1),"") ->  | J46: =IF(OFFSET(DE100_18!$L$37,ROWS($L$37:L60)-1,COLUMNS($L$37:L60)-1)<>"",OFFSET(DE100_18!$L$37,ROWS($L$37:L60)-1,COLUMNS($L$37:L60)-1),"") ->  | K46: =IF(OFFSET(DE100_18!$M$37,ROWS($M$37:M60)-1,COLUMNS($M$37:M60)-1)<>"",OFFSET(DE100_18!$M$37,ROWS($M$37:M60)-1,COLUMNS($M$37:M60)-1),"") ->  | L46: =IF(OFFSET(DE100_18!$P$37,ROWS($P$37:P60)-1,COLUMNS($P$37:P60)-1)<>"",OFFSET(DE100_18!$P$37,ROWS($P$37:P60)-1,COLUMNS($P$37:P60)-1),"") ->  | M46: =IF(OFFSET(DE100_18!$R$37,ROWS($R$37:R60)-1,COLUMNS($R$37:R60)-1)<>"",OFFSET(DE100_18!$R$37,ROWS($R$37:R60)-1,COLUMNS($R$37:R60)-1),"") -> 
A47: =IF(OFFSET(DE100_18!$C$37,ROWS($C$37:C61)-1,COLUMNS($C$37:C61)-1)<>"",OFFSET(DE100_18!$C$37,ROWS($C$37:C61)-1,COLUMNS($C$37:C61)-1),"") -> 5 | B47: =IF(OFFSET(DE100_18!$D$37,ROWS($D$37:D61)-1,COLUMNS($D$37:D61)-1)<>"",OFFSET(DE100_18!$D$37,ROWS($D$37:D61)-1,COLUMNS($D$37:D61)-1),"") -> 1 | C47: =IF(OFFSET(DE100_18!$E$37,ROWS($E$37:E61)-1,COLUMNS($E$37:E61)-1)<>"",OFFSET(DE100_18!$E$37,ROWS($E$37:E61)-1,COLUMNS($E$37:E61)-1),"") -> 53907.07 | D47: =IF(OFFSET(DE100_18!$F$37,ROWS($F$37:F61)-1,COLUMNS($F$37:F61)-1)<>"",OFFSET(DE100_18!$F$37,ROWS($F$37:F61)-1,COLUMNS($F$37:F61)-1),"") -> Lt | E47: =IF(OFFSET(DE100_18!$G$37,ROWS($G$37:G61)-1,COLUMNS($G$37:G61)-1)<>"",OFFSET(DE100_18!$G$37,ROWS($G$37:G61)-1,COLUMNS($G$37:G61)-1),"") -> 17 | F47: =IF(OFFSET(DE100_18!$H$37,ROWS($H$37:H61)-1,COLUMNS($H$37:H61)-1)<>"",OFFSET(DE100_18!$H$37,ROWS($H$37:H61)-1,COLUMNS($H$37:H61)-1),"") -> 1.7 | G47: =IF(OFFSET(DE100_18!$I$37,ROWS($I$37:I61)-1,COLUMNS($I$37:I61)-1)<>"",OFFSET(DE100_18!$I$37,ROWS($I$37:I61)-1,COLUMNS($I$37:I61)-1),"") -> 17 | H47: =IF(OFFSET(DE100_18!$J$37,ROWS($J$37:J61)-1,COLUMNS($J$37:J61)-1)<>"",OFFSET(DE100_18!$J$37,ROWS($J$37:J61)-1,COLUMNS($J$37:J61)-1),"") -> 4.05 | I47: =IF(OFFSET(DE100_18!$K$37,ROWS($K$37:K61)-1,COLUMNS($K$37:K61)-1)<>"",OFFSET(DE100_18!$K$37,ROWS($K$37:K61)-1,COLUMNS($K$37:K61)-1),"") -> 2 | J47: =IF(OFFSET(DE100_18!$L$37,ROWS($L$37:L61)-1,COLUMNS($L$37:L61)-1)<>"",OFFSET(DE100_18!$L$37,ROWS($L$37:L61)-1,COLUMNS($L$37:L61)-1),"") -> 3.6542 | K47: =IF(OFFSET(DE100_18!$M$37,ROWS($M$37:M61)-1,COLUMNS($M$37:M61)-1)<>"",OFFSET(DE100_18!$M$37,ROWS($M$37:M61)-1,COLUMNS($M$37:M61)-1),"") -> 0.0337237 | L47: =IF(OFFSET(DE100_18!$P$37,ROWS($P$37:P61)-1,COLUMNS($P$37:P61)-1)<>"",OFFSET(DE100_18!$P$37,ROWS($P$37:P61)-1,COLUMNS($P$37:P61)-1),"") -> 233.1816486 | M47: =IF(OFFSET(DE100_18!$R$37,ROWS($R$37:R61)-1,COLUMNS($R$37:R61)-1)<>"",OFFSET(DE100_18!$R$37,ROWS($R$37:R61)-1,COLUMNS($R$37:R61)-1),"") -> 
A48: =IF(OFFSET(DE100_18!$C$37,ROWS($C$37:C62)-1,COLUMNS($C$37:C62)-1)<>"",OFFSET(DE100_18!$C$37,ROWS($C$37:C62)-1,COLUMNS($C$37:C62)-1),"") -> 5 | B48: =IF(OFFSET(DE100_18!$D$37,ROWS($D$37:D62)-1,COLUMNS($D$37:D62)-1)<>"",OFFSET(DE100_18!$D$37,ROWS($D$37:D62)-1,COLUMNS($D$37:D62)-1),"") -> 1 | C48: =IF(OFFSET(DE100_18!$E$37,ROWS($E$37:E62)-1,COLUMNS($E$37:E62)-1)<>"",OFFSET(DE100_18!$E$37,ROWS($E$37:E62)-1,COLUMNS($E$37:E62)-1),"") -> 53938.67 | D48: =IF(OFFSET(DE100_18!$F$37,ROWS($F$37:F62)-1,COLUMNS($F$37:F62)-1)<>"",OFFSET(DE100_18!$F$37,ROWS($F$37:F62)-1,COLUMNS($F$37:F62)-1),"") -> Lt | E48: =IF(OFFSET(DE100_18!$G$37,ROWS($G$37:G62)-1,COLUMNS($G$37:G62)-1)<>"",OFFSET(DE100_18!$G$37,ROWS($G$37:G62)-1,COLUMNS($G$37:G62)-1),"") -> 17 | F48: =IF(OFFSET(DE100_18!$H$37,ROWS($H$37:H62)-1,COLUMNS($H$37:H62)-1)<>"",OFFSET(DE100_18!$H$37,ROWS($H$37:H62)-1,COLUMNS($H$37:H62)-1),"") -> 1.7 | G48: =IF(OFFSET(DE100_18!$I$37,ROWS($I$37:I62)-1,COLUMNS($I$37:I62)-1)<>"",OFFSET(DE100_18!$I$37,ROWS($I$37:I62)-1,COLUMNS($I$37:I62)-1),"") -> 17 | H48: =IF(OFFSET(DE100_18!$J$37,ROWS($J$37:J62)-1,COLUMNS($J$37:J62)-1)<>"",OFFSET(DE100_18!$J$37,ROWS($J$37:J62)-1,COLUMNS($J$37:J62)-1),"") -> 3.5 | I48: =IF(OFFSET(DE100_18!$K$37,ROWS($K$37:K62)-1,COLUMNS($K$37:K62)-1)<>"",OFFSET(DE100_18!$K$37,ROWS($K$37:K62)-1,COLUMNS($K$37:K62)-1),"") -> 2 | J48: =IF(OFFSET(DE100_18!$L$37,ROWS($L$37:L62)-1,COLUMNS($L$37:L62)-1)<>"",OFFSET(DE100_18!$L$37,ROWS($L$37:L62)-1,COLUMNS($L$37:L62)-1),"") -> 5 | K48: =IF(OFFSET(DE100_18!$M$37,ROWS($M$37:M62)-1,COLUMNS($M$37:M62)-1)<>"",OFFSET(DE100_18!$M$37,ROWS($M$37:M62)-1,COLUMNS($M$37:M62)-1),"") -> 0.0337237 | L48: =IF(OFFSET(DE100_18!$P$37,ROWS($P$37:P62)-1,COLUMNS($P$37:P62)-1)<>"",OFFSET(DE100_18!$P$37,ROWS($P$37:P62)-1,COLUMNS($P$37:P62)-1),"") -> 262.6882819 | M48: =IF(OFFSET(DE100_18!$R$37,ROWS($R$37:R62)-1,COLUMNS($R$37:R62)-1)<>"",OFFSET(DE100_18!$R$37,ROWS($R$37:R62)-1,COLUMNS($R$37:R62)-1),"") -> 
A49: =IF(OFFSET(DE100_18!$C$37,ROWS($C$37:C63)-1,COLUMNS($C$37:C63)-1)<>"",OFFSET(DE100_18!$C$37,ROWS($C$37:C63)-1,COLUMNS($C$37:C63)-1),"") -> 5 | B49: =IF(OFFSET(DE100_18!$D$37,ROWS($D$37:D63)-1,COLUMNS($D$37:D63)-1)<>"",OFFSET(DE100_18!$D$37,ROWS($D$37:D63)-1,COLUMNS($D$37:D63)-1),"") -> 1 | C49: =IF(OFFSET(DE100_18!$E$37,ROWS($E$37:E63)-1,COLUMNS($E$37:E63)-1)<>"",OFFSET(DE100_18!$E$37,ROWS($E$37:E63)-1,COLUMNS($E$37:E63)-1),"") -> 53966.34 | D49: =IF(OFFSET(DE100_18!$F$37,ROWS($F$37:F63)-1,COLUMNS($F$37:F63)-1)<>"",OFFSET(DE100_18!$F$37,ROWS($F$37:F63)-1,COLUMNS($F$37:F63)-1),"") -> Lt | E49: =IF(OFFSET(DE100_18!$G$37,ROWS($G$37:G63)-1,COLUMNS($G$37:G63)-1)<>"",OFFSET(DE100_18!$G$37,ROWS($G$37:G63)-1,COLUMNS($G$37:G63)-1),"") -> 17 | F49: =IF(OFFSET(DE100_18!$H$37,ROWS($H$37:H63)-1,COLUMNS($H$37:H63)-1)<>"",OFFSET(DE100_18!$H$37,ROWS($H$37:H63)-1,COLUMNS($H$37:H63)-1),"") -> 1.7 | G49: =IF(OFFSET(DE100_18!$I$37,ROWS($I$37:I63)-1,COLUMNS($I$37:I63)-1)<>"",OFFSET(DE100_18!$I$37,ROWS($I$37:I63)-1,COLUMNS($I$37:I63)-1),"") -> 17 | H49: =IF(OFFSET(DE100_18!$J$37,ROWS($J$37:J63)-1,COLUMNS($J$37:J63)-1)<>"",OFFSET(DE100_18!$J$37,ROWS($J$37:J63)-1,COLUMNS($J$37:J63)-1),"") -> 3.35 | I49: =IF(OFFSET(DE100_18!$K$37,ROWS($K$37:K63)-1,COLUMNS($K$37:K63)-1)<>"",OFFSET(DE100_18!$K$37,ROWS($K$37:K63)-1,COLUMNS($K$37:K63)-1),"") -> 2 | J49: =IF(OFFSET(DE100_18!$L$37,ROWS($L$37:L63)-1,COLUMNS($L$37:L63)-1)<>"",OFFSET(DE100_18!$L$37,ROWS($L$37:L63)-1,COLUMNS($L$37:L63)-1),"") -> 5 | K49: =IF(OFFSET(DE100_18!$M$37,ROWS($M$37:M63)-1,COLUMNS($M$37:M63)-1)<>"",OFFSET(DE100_18!$M$37,ROWS($M$37:M63)-1,COLUMNS($M$37:M63)-1),"") -> 0.0360078 | L49: =IF(OFFSET(DE100_18!$P$37,ROWS($P$37:P63)-1,COLUMNS($P$37:P63)-1)<>"",OFFSET(DE100_18!$P$37,ROWS($P$37:P63)-1,COLUMNS($P$37:P63)-1),"") -> 230.7952215 | M49: =IF(OFFSET(DE100_18!$R$37,ROWS($R$37:R63)-1,COLUMNS($R$37:R63)-1)<>"",OFFSET(DE100_18!$R$37,ROWS($R$37:R63)-1,COLUMNS($R$37:R63)-1),"") -> 
A50: =IF(OFFSET(DE100_18!$C$37,ROWS($C$37:C64)-1,COLUMNS($C$37:C64)-1)<>"",OFFSET(DE100_18!$C$37,ROWS($C$37:C64)-1,COLUMNS($C$37:C64)-1),"") -> 5 | B50: =IF(OFFSET(DE100_18!$D$37,ROWS($D$37:D64)-1,COLUMNS($D$37:D64)-1)<>"",OFFSET(DE100_18!$D$37,ROWS($D$37:D64)-1,COLUMNS($D$37:D64)-1),"") -> 1 | C50: =IF(OFFSET(DE100_18!$E$37,ROWS($E$37:E64)-1,COLUMNS($E$37:E64)-1)<>"",OFFSET(DE100_18!$E$37,ROWS($E$37:E64)-1,COLUMNS($E$37:E64)-1),"") -> 53983.86 | D50: =IF(OFFSET(DE100_18!$F$37,ROWS($F$37:F64)-1,COLUMNS($F$37:F64)-1)<>"",OFFSET(DE100_18!$F$37,ROWS($F$37:F64)-1,COLUMNS($F$37:F64)-1),"") -> Lt | E50: =IF(OFFSET(DE100_18!$G$37,ROWS($G$37:G64)-1,COLUMNS($G$37:G64)-1)<>"",OFFSET(DE100_18!$G$37,ROWS($G$37:G64)-1,COLUMNS($G$37:G64)-1),"") -> 17 | F50: =IF(OFFSET(DE100_18!$H$37,ROWS($H$37:H64)-1,COLUMNS($H$37:H64)-1)<>"",OFFSET(DE100_18!$H$37,ROWS($H$37:H64)-1,COLUMNS($H$37:H64)-1),"") -> 1.7 | G50: =IF(OFFSET(DE100_18!$I$37,ROWS($I$37:I64)-1,COLUMNS($I$37:I64)-1)<>"",OFFSET(DE100_18!$I$37,ROWS($I$37:I64)-1,COLUMNS($I$37:I64)-1),"") -> 17 | H50: =IF(OFFSET(DE100_18!$J$37,ROWS($J$37:J64)-1,COLUMNS($J$37:J64)-1)<>"",OFFSET(DE100_18!$J$37,ROWS($J$37:J64)-1,COLUMNS($J$37:J64)-1),"") -> 4.4 | I50: =IF(OFFSET(DE100_18!$K$37,ROWS($K$37:K64)-1,COLUMNS($K$37:K64)-1)<>"",OFFSET(DE100_18!$K$37,ROWS($K$37:K64)-1,COLUMNS($K$37:K64)-1),"") -> 2 | J50: =IF(OFFSET(DE100_18!$L$37,ROWS($L$37:L64)-1,COLUMNS($L$37:L64)-1)<>"",OFFSET(DE100_18!$L$37,ROWS($L$37:L64)-1,COLUMNS($L$37:L64)-1),"") -> 3.4059 | K50: =IF(OFFSET(DE100_18!$M$37,ROWS($M$37:M64)-1,COLUMNS($M$37:M64)-1)<>"",OFFSET(DE100_18!$M$37,ROWS($M$37:M64)-1,COLUMNS($M$37:M64)-1),"") -> 0.0360078 | L50: =IF(OFFSET(DE100_18!$P$37,ROWS($P$37:P64)-1,COLUMNS($P$37:P64)-1)<>"",OFFSET(DE100_18!$P$37,ROWS($P$37:P64)-1,COLUMNS($P$37:P64)-1),"") -> 206.91601 | M50: =IF(OFFSET(DE100_18!$R$37,ROWS($R$37:R64)-1,COLUMNS($R$37:R64)-1)<>"",OFFSET(DE100_18!$R$37,ROWS($R$37:R64)-1,COLUMNS($R$37:R64)-1),"") -> 
A51: =IF(OFFSET(DE100_18!$C$37,ROWS($C$37:C65)-1,COLUMNS($C$37:C65)-1)<>"",OFFSET(DE100_18!$C$37,ROWS($C$37:C65)-1,COLUMNS($C$37:C65)-1),"") ->  | B51: =IF(OFFSET(DE100_18!$D$37,ROWS($D$37:D65)-1,COLUMNS($D$37:D65)-1)<>"",OFFSET(DE100_18!$D$37,ROWS($D$37:D65)-1,COLUMNS($D$37:D65)-1),"") ->  | C51: =IF(OFFSET(DE100_18!$E$37,ROWS($E$37:E65)-1,COLUMNS($E$37:E65)-1)<>"",OFFSET(DE100_18!$E$37,ROWS($E$37:E65)-1,COLUMNS($E$37:E65)-1),"") ->  | D51: =IF(OFFSET(DE100_18!$F$37,ROWS($F$37:F65)-1,COLUMNS($F$37:F65)-1)<>"",OFFSET(DE100_18!$F$37,ROWS($F$37:F65)-1,COLUMNS($F$37:F65)-1),"") ->  | E51: =IF(OFFSET(DE100_18!$G$37,ROWS($G$37:G65)-1,COLUMNS($G$37:G65)-1)<>"",OFFSET(DE100_18!$G$37,ROWS($G$37:G65)-1,COLUMNS($G$37:G65)-1),"") ->  | F51: =IF(OFFSET(DE100_18!$H$37,ROWS($H$37:H65)-1,COLUMNS($H$37:H65)-1)<>"",OFFSET(DE100_18!$H$37,ROWS($H$37:H65)-1,COLUMNS($H$37:H65)-1),"") ->  | G51: =IF(OFFSET(DE100_18!$I$37,ROWS($I$37:I65)-1,COLUMNS($I$37:I65)-1)<>"",OFFSET(DE100_18!$I$37,ROWS($I$37:I65)-1,COLUMNS($I$37:I65)-1),"") ->  | H51: =IF(OFFSET(DE100_18!$J$37,ROWS($J$37:J65)-1,COLUMNS($J$37:J65)-1)<>"",OFFSET(DE100_18!$J$37,ROWS($J$37:J65)-1,COLUMNS($J$37:J65)-1),"") ->  | I51: =IF(OFFSET(DE100_18!$K$37,ROWS($K$37:K65)-1,COLUMNS($K$37:K65)-1)<>"",OFFSET(DE100_18!$K$37,ROWS($K$37:K65)-1,COLUMNS($K$37:K65)-1),"") ->  | J51: =IF(OFFSET(DE100_18!$L$37,ROWS($L$37:L65)-1,COLUMNS($L$37:L65)-1)<>"",OFFSET(DE100_18!$L$37,ROWS($L$37:L65)-1,COLUMNS($L$37:L65)-1),"") ->  | K51: =IF(OFFSET(DE100_18!$M$37,ROWS($M$37:M65)-1,COLUMNS($M$37:M65)-1)<>"",OFFSET(DE100_18!$M$37,ROWS($M$37:M65)-1,COLUMNS($M$37:M65)-1),"") ->  | L51: =IF(OFFSET(DE100_18!$P$37,ROWS($P$37:P65)-1,COLUMNS($P$37:P65)-1)<>"",OFFSET(DE100_18!$P$37,ROWS($P$37:P65)-1,COLUMNS($P$37:P65)-1),"") ->  | M51: =IF(OFFSET(DE100_18!$R$37,ROWS($R$37:R65)-1,COLUMNS($R$37:R65)-1)<>"",OFFSET(DE100_18!$R$37,ROWS($R$37:R65)-1,COLUMNS($R$37:R65)-1),"") -> 
A52: =IF(OFFSET(DE100_18!$C$37,ROWS($C$37:C66)-1,COLUMNS($C$37:C66)-1)<>"",OFFSET(DE100_18!$C$37,ROWS($C$37:C66)-1,COLUMNS($C$37:C66)-1),"") -> 6 | B52: =IF(OFFSET(DE100_18!$D$37,ROWS($D$37:D66)-1,COLUMNS($D$37:D66)-1)<>"",OFFSET(DE100_18!$D$37,ROWS($D$37:D66)-1,COLUMNS($D$37:D66)-1),"") -> 1 | C52: =IF(OFFSET(DE100_18!$E$37,ROWS($E$37:E66)-1,COLUMNS($E$37:E66)-1)<>"",OFFSET(DE100_18!$E$37,ROWS($E$37:E66)-1,COLUMNS($E$37:E66)-1),"") -> 55300 | D52: =IF(OFFSET(DE100_18!$F$37,ROWS($F$37:F66)-1,COLUMNS($F$37:F66)-1)<>"",OFFSET(DE100_18!$F$37,ROWS($F$37:F66)-1,COLUMNS($F$37:F66)-1),"") -> Lt | E52: =IF(OFFSET(DE100_18!$G$37,ROWS($G$37:G66)-1,COLUMNS($G$37:G66)-1)<>"",OFFSET(DE100_18!$G$37,ROWS($G$37:G66)-1,COLUMNS($G$37:G66)-1),"") -> 16 | F52: =IF(OFFSET(DE100_18!$H$37,ROWS($H$37:H66)-1,COLUMNS($H$37:H66)-1)<>"",OFFSET(DE100_18!$H$37,ROWS($H$37:H66)-1,COLUMNS($H$37:H66)-1),"") -> 1.6 | G52: =IF(OFFSET(DE100_18!$I$37,ROWS($I$37:I66)-1,COLUMNS($I$37:I66)-1)<>"",OFFSET(DE100_18!$I$37,ROWS($I$37:I66)-1,COLUMNS($I$37:I66)-1),"") -> 16 | H52: =IF(OFFSET(DE100_18!$J$37,ROWS($J$37:J66)-1,COLUMNS($J$37:J66)-1)<>"",OFFSET(DE100_18!$J$37,ROWS($J$37:J66)-1,COLUMNS($J$37:J66)-1),"") -> 4.7 | I52: =IF(OFFSET(DE100_18!$K$37,ROWS($K$37:K66)-1,COLUMNS($K$37:K66)-1)<>"",OFFSET(DE100_18!$K$37,ROWS($K$37:K66)-1,COLUMNS($K$37:K66)-1),"") -> 2 | J52: =IF(OFFSET(DE100_18!$L$37,ROWS($L$37:L66)-1,COLUMNS($L$37:L66)-1)<>"",OFFSET(DE100_18!$L$37,ROWS($L$37:L66)-1,COLUMNS($L$37:L66)-1),"") -> 1.4125 | K52: =IF(OFFSET(DE100_18!$M$37,ROWS($M$37:M66)-1,COLUMNS($M$37:M66)-1)<>"",OFFSET(DE100_18!$M$37,ROWS($M$37:M66)-1,COLUMNS($M$37:M66)-1),"") -> 0.0314062 | L52: =IF(OFFSET(DE100_18!$P$37,ROWS($P$37:P66)-1,COLUMNS($P$37:P66)-1)<>"",OFFSET(DE100_18!$P$37,ROWS($P$37:P66)-1,COLUMNS($P$37:P66)-1),"") -> 198.4802912 | M52: =IF(OFFSET(DE100_18!$R$37,ROWS($R$37:R66)-1,COLUMNS($R$37:R66)-1)<>"",OFFSET(DE100_18!$R$37,ROWS($R$37:R66)-1,COLUMNS($R$37:R66)-1),"") -> 
A53: =IF(OFFSET(DE100_18!$C$37,ROWS($C$37:C67)-1,COLUMNS($C$37:C67)-1)<>"",OFFSET(DE100_18!$C$37,ROWS($C$37:C67)-1,COLUMNS($C$37:C67)-1),"") -> 6 | B53: =IF(OFFSET(DE100_18!$D$37,ROWS($D$37:D67)-1,COLUMNS($D$37:D67)-1)<>"",OFFSET(DE100_18!$D$37,ROWS($D$37:D67)-1,COLUMNS($D$37:D67)-1),"") -> 1 | C53: =IF(OFFSET(DE100_18!$E$37,ROWS($E$37:E67)-1,COLUMNS($E$37:E67)-1)<>"",OFFSET(DE100_18!$E$37,ROWS($E$37:E67)-1,COLUMNS($E$37:E67)-1),"") -> 55350 | D53: =IF(OFFSET(DE100_18!$F$37,ROWS($F$37:F67)-1,COLUMNS($F$37:F67)-1)<>"",OFFSET(DE100_18!$F$37,ROWS($F$37:F67)-1,COLUMNS($F$37:F67)-1),"") -> Lt | E53: =IF(OFFSET(DE100_18!$G$37,ROWS($G$37:G67)-1,COLUMNS($G$37:G67)-1)<>"",OFFSET(DE100_18!$G$37,ROWS($G$37:G67)-1,COLUMNS($G$37:G67)-1),"") -> 18 | F53: =IF(OFFSET(DE100_18!$H$37,ROWS($H$37:H67)-1,COLUMNS($H$37:H67)-1)<>"",OFFSET(DE100_18!$H$37,ROWS($H$37:H67)-1,COLUMNS($H$37:H67)-1),"") -> 1.8 | G53: =IF(OFFSET(DE100_18!$I$37,ROWS($I$37:I67)-1,COLUMNS($I$37:I67)-1)<>"",OFFSET(DE100_18!$I$37,ROWS($I$37:I67)-1,COLUMNS($I$37:I67)-1),"") -> 18 | H53: =IF(OFFSET(DE100_18!$J$37,ROWS($J$37:J67)-1,COLUMNS($J$37:J67)-1)<>"",OFFSET(DE100_18!$J$37,ROWS($J$37:J67)-1,COLUMNS($J$37:J67)-1),"") -> 4.4 | I53: =IF(OFFSET(DE100_18!$K$37,ROWS($K$37:K67)-1,COLUMNS($K$37:K67)-1)<>"",OFFSET(DE100_18!$K$37,ROWS($K$37:K67)-1,COLUMNS($K$37:K67)-1),"") -> 2 | J53: =IF(OFFSET(DE100_18!$L$37,ROWS($L$37:L67)-1,COLUMNS($L$37:L67)-1)<>"",OFFSET(DE100_18!$L$37,ROWS($L$37:L67)-1,COLUMNS($L$37:L67)-1),"") -> 4.1644 | K53: =IF(OFFSET(DE100_18!$M$37,ROWS($M$37:M67)-1,COLUMNS($M$37:M67)-1)<>"",OFFSET(DE100_18!$M$37,ROWS($M$37:M67)-1,COLUMNS($M$37:M67)-1),"") -> 0.0314062 | L53: =IF(OFFSET(DE100_18!$P$37,ROWS($P$37:P67)-1,COLUMNS($P$37:P67)-1)<>"",OFFSET(DE100_18!$P$37,ROWS($P$37:P67)-1,COLUMNS($P$37:P67)-1),"") -> 284.11165 | M53: =IF(OFFSET(DE100_18!$R$37,ROWS($R$37:R67)-1,COLUMNS($R$37:R67)-1)<>"",OFFSET(DE100_18!$R$37,ROWS($R$37:R67)-1,COLUMNS($R$37:R67)-1),"") -> 
A54: =IF(OFFSET(DE100_18!$C$37,ROWS($C$37:C68)-1,COLUMNS($C$37:C68)-1)<>"",OFFSET(DE100_18!$C$37,ROWS($C$37:C68)-1,COLUMNS($C$37:C68)-1),"") -> 6 | B54: =IF(OFFSET(DE100_18!$D$37,ROWS($D$37:D68)-1,COLUMNS($D$37:D68)-1)<>"",OFFSET(DE100_18!$D$37,ROWS($D$37:D68)-1,COLUMNS($D$37:D68)-1),"") -> 1 | C54: =IF(OFFSET(DE100_18!$E$37,ROWS($E$37:E68)-1,COLUMNS($E$37:E68)-1)<>"",OFFSET(DE100_18!$E$37,ROWS($E$37:E68)-1,COLUMNS($E$37:E68)-1),"") -> 55400 | D54: =IF(OFFSET(DE100_18!$F$37,ROWS($F$37:F68)-1,COLUMNS($F$37:F68)-1)<>"",OFFSET(DE100_18!$F$37,ROWS($F$37:F68)-1,COLUMNS($F$37:F68)-1),"") -> Lt | E54: =IF(OFFSET(DE100_18!$G$37,ROWS($G$37:G68)-1,COLUMNS($G$37:G68)-1)<>"",OFFSET(DE100_18!$G$37,ROWS($G$37:G68)-1,COLUMNS($G$37:G68)-1),"") -> 17 | F54: =IF(OFFSET(DE100_18!$H$37,ROWS($H$37:H68)-1,COLUMNS($H$37:H68)-1)<>"",OFFSET(DE100_18!$H$37,ROWS($H$37:H68)-1,COLUMNS($H$37:H68)-1),"") -> 1.7 | G54: =IF(OFFSET(DE100_18!$I$37,ROWS($I$37:I68)-1,COLUMNS($I$37:I68)-1)<>"",OFFSET(DE100_18!$I$37,ROWS($I$37:I68)-1,COLUMNS($I$37:I68)-1),"") -> 17 | H54: =IF(OFFSET(DE100_18!$J$37,ROWS($J$37:J68)-1,COLUMNS($J$37:J68)-1)<>"",OFFSET(DE100_18!$J$37,ROWS($J$37:J68)-1,COLUMNS($J$37:J68)-1),"") -> 3.4 | I54: =IF(OFFSET(DE100_18!$K$37,ROWS($K$37:K68)-1,COLUMNS($K$37:K68)-1)<>"",OFFSET(DE100_18!$K$37,ROWS($K$37:K68)-1,COLUMNS($K$37:K68)-1),"") -> 2 | J54: =IF(OFFSET(DE100_18!$L$37,ROWS($L$37:L68)-1,COLUMNS($L$37:L68)-1)<>"",OFFSET(DE100_18!$L$37,ROWS($L$37:L68)-1,COLUMNS($L$37:L68)-1),"") -> 5 | K54: =IF(OFFSET(DE100_18!$M$37,ROWS($M$37:M68)-1,COLUMNS($M$37:M68)-1)<>"",OFFSET(DE100_18!$M$37,ROWS($M$37:M68)-1,COLUMNS($M$37:M68)-1),"") -> 0.0211043 | L54: =IF(OFFSET(DE100_18!$P$37,ROWS($P$37:P68)-1,COLUMNS($P$37:P68)-1)<>"",OFFSET(DE100_18!$P$37,ROWS($P$37:P68)-1,COLUMNS($P$37:P68)-1),"") -> 347.545569 | M54: =IF(OFFSET(DE100_18!$R$37,ROWS($R$37:R68)-1,COLUMNS($R$37:R68)-1)<>"",OFFSET(DE100_18!$R$37,ROWS($R$37:R68)-1,COLUMNS($R$37:R68)-1),"") -> 
A55: =IF(OFFSET(DE100_18!$C$37,ROWS($C$37:C69)-1,COLUMNS($C$37:C69)-1)<>"",OFFSET(DE100_18!$C$37,ROWS($C$37:C69)-1,COLUMNS($C$37:C69)-1),"") -> 6 | B55: =IF(OFFSET(DE100_18!$D$37,ROWS($D$37:D69)-1,COLUMNS($D$37:D69)-1)<>"",OFFSET(DE100_18!$D$37,ROWS($D$37:D69)-1,COLUMNS($D$37:D69)-1),"") -> 1 | C55: =IF(OFFSET(DE100_18!$E$37,ROWS($E$37:E69)-1,COLUMNS($E$37:E69)-1)<>"",OFFSET(DE100_18!$E$37,ROWS($E$37:E69)-1,COLUMNS($E$37:E69)-1),"") -> 55450 | D55: =IF(OFFSET(DE100_18!$F$37,ROWS($F$37:F69)-1,COLUMNS($F$37:F69)-1)<>"",OFFSET(DE100_18!$F$37,ROWS($F$37:F69)-1,COLUMNS($F$37:F69)-1),"") -> Lt | E55: =IF(OFFSET(DE100_18!$G$37,ROWS($G$37:G69)-1,COLUMNS($G$37:G69)-1)<>"",OFFSET(DE100_18!$G$37,ROWS($G$37:G69)-1,COLUMNS($G$37:G69)-1),"") -> 16 | F55: =IF(OFFSET(DE100_18!$H$37,ROWS($H$37:H69)-1,COLUMNS($H$37:H69)-1)<>"",OFFSET(DE100_18!$H$37,ROWS($H$37:H69)-1,COLUMNS($H$37:H69)-1),"") -> 1.6 | G55: =IF(OFFSET(DE100_18!$I$37,ROWS($I$37:I69)-1,COLUMNS($I$37:I69)-1)<>"",OFFSET(DE100_18!$I$37,ROWS($I$37:I69)-1,COLUMNS($I$37:I69)-1),"") -> 16 | H55: =IF(OFFSET(DE100_18!$J$37,ROWS($J$37:J69)-1,COLUMNS($J$37:J69)-1)<>"",OFFSET(DE100_18!$J$37,ROWS($J$37:J69)-1,COLUMNS($J$37:J69)-1),"") -> 4.1 | I55: =IF(OFFSET(DE100_18!$K$37,ROWS($K$37:K69)-1,COLUMNS($K$37:K69)-1)<>"",OFFSET(DE100_18!$K$37,ROWS($K$37:K69)-1,COLUMNS($K$37:K69)-1),"") -> 2 | J55: =IF(OFFSET(DE100_18!$L$37,ROWS($L$37:L69)-1,COLUMNS($L$37:L69)-1)<>"",OFFSET(DE100_18!$L$37,ROWS($L$37:L69)-1,COLUMNS($L$37:L69)-1),"") -> 2.3457 | K55: =IF(OFFSET(DE100_18!$M$37,ROWS($M$37:M69)-1,COLUMNS($M$37:M69)-1)<>"",OFFSET(DE100_18!$M$37,ROWS($M$37:M69)-1,COLUMNS($M$37:M69)-1),"") -> 0.0211043 | L55: =IF(OFFSET(DE100_18!$P$37,ROWS($P$37:P69)-1,COLUMNS($P$37:P69)-1)<>"",OFFSET(DE100_18!$P$37,ROWS($P$37:P69)-1,COLUMNS($P$37:P69)-1),"") -> 259.5421365 | M55: =IF(OFFSET(DE100_18!$R$37,ROWS($R$37:R69)-1,COLUMNS($R$37:R69)-1)<>"",OFFSET(DE100_18!$R$37,ROWS($R$37:R69)-1,COLUMNS($R$37:R69)-1),"") -> 
A56: =IF(OFFSET(DE100_18!$C$37,ROWS($C$37:C70)-1,COLUMNS($C$37:C70)-1)<>"",OFFSET(DE100_18!$C$37,ROWS($C$37:C70)-1,COLUMNS($C$37:C70)-1),"") ->  | B56: =IF(OFFSET(DE100_18!$D$37,ROWS($D$37:D70)-1,COLUMNS($D$37:D70)-1)<>"",OFFSET(DE100_18!$D$37,ROWS($D$37:D70)-1,COLUMNS($D$37:D70)-1),"") ->  | C56: =IF(OFFSET(DE100_18!$E$37,ROWS($E$37:E70)-1,COLUMNS($E$37:E70)-1)<>"",OFFSET(DE100_18!$E$37,ROWS($E$37:E70)-1,COLUMNS($E$37:E70)-1),"") ->  | D56: =IF(OFFSET(DE100_18!$F$37,ROWS($F$37:F70)-1,COLUMNS($F$37:F70)-1)<>"",OFFSET(DE100_18!$F$37,ROWS($F$37:F70)-1,COLUMNS($F$37:F70)-1),"") ->  | E56: =IF(OFFSET(DE100_18!$G$37,ROWS($G$37:G70)-1,COLUMNS($G$37:G70)-1)<>"",OFFSET(DE100_18!$G$37,ROWS($G$37:G70)-1,COLUMNS($G$37:G70)-1),"") ->  | F56: =IF(OFFSET(DE100_18!$H$37,ROWS($H$37:H70)-1,COLUMNS($H$37:H70)-1)<>"",OFFSET(DE100_18!$H$37,ROWS($H$37:H70)-1,COLUMNS($H$37:H70)-1),"") ->  | G56: =IF(OFFSET(DE100_18!$I$37,ROWS($I$37:I70)-1,COLUMNS($I$37:I70)-1)<>"",OFFSET(DE100_18!$I$37,ROWS($I$37:I70)-1,COLUMNS($I$37:I70)-1),"") ->  | H56: =IF(OFFSET(DE100_18!$J$37,ROWS($J$37:J70)-1,COLUMNS($J$37:J70)-1)<>"",OFFSET(DE100_18!$J$37,ROWS($J$37:J70)-1,COLUMNS($J$37:J70)-1),"") ->  | I56: =IF(OFFSET(DE100_18!$K$37,ROWS($K$37:K70)-1,COLUMNS($K$37:K70)-1)<>"",OFFSET(DE100_18!$K$37,ROWS($K$37:K70)-1,COLUMNS($K$37:K70)-1),"") ->  | J56: =IF(OFFSET(DE100_18!$L$37,ROWS($L$37:L70)-1,COLUMNS($L$37:L70)-1)<>"",OFFSET(DE100_18!$L$37,ROWS($L$37:L70)-1,COLUMNS($L$37:L70)-1),"") ->  | K56: =IF(OFFSET(DE100_18!$M$37,ROWS($M$37:M70)-1,COLUMNS($M$37:M70)-1)<>"",OFFSET(DE100_18!$M$37,ROWS($M$37:M70)-1,COLUMNS($M$37:M70)-1),"") ->  | L56: =IF(OFFSET(DE100_18!$P$37,ROWS($P$37:P70)-1,COLUMNS($P$37:P70)-1)<>"",OFFSET(DE100_18!$P$37,ROWS($P$37:P70)-1,COLUMNS($P$37:P70)-1),"") ->  | M56: =IF(OFFSET(DE100_18!$R$37,ROWS($R$37:R70)-1,COLUMNS($R$37:R70)-1)<>"",OFFSET(DE100_18!$R$37,ROWS($R$37:R70)-1,COLUMNS($R$37:R70)-1),"") -> 
A57: =IF(OFFSET(DE100_18!$C$37,ROWS($C$37:C71)-1,COLUMNS($C$37:C71)-1)<>"",OFFSET(DE100_18!$C$37,ROWS($C$37:C71)-1,COLUMNS($C$37:C71)-1),"") -> 7 | B57: =IF(OFFSET(DE100_18!$D$37,ROWS($D$37:D71)-1,COLUMNS($D$37:D71)-1)<>"",OFFSET(DE100_18!$D$37,ROWS($D$37:D71)-1,COLUMNS($D$37:D71)-1),"") -> 1 | C57: =IF(OFFSET(DE100_18!$E$37,ROWS($E$37:E71)-1,COLUMNS($E$37:E71)-1)<>"",OFFSET(DE100_18!$E$37,ROWS($E$37:E71)-1,COLUMNS($E$37:E71)-1),"") -> 57125 | D57: =IF(OFFSET(DE100_18!$F$37,ROWS($F$37:F71)-1,COLUMNS($F$37:F71)-1)<>"",OFFSET(DE100_18!$F$37,ROWS($F$37:F71)-1,COLUMNS($F$37:F71)-1),"") -> Lt | E57: =IF(OFFSET(DE100_18!$G$37,ROWS($G$37:G71)-1,COLUMNS($G$37:G71)-1)<>"",OFFSET(DE100_18!$G$37,ROWS($G$37:G71)-1,COLUMNS($G$37:G71)-1),"") -> 17 | F57: =IF(OFFSET(DE100_18!$H$37,ROWS($H$37:H71)-1,COLUMNS($H$37:H71)-1)<>"",OFFSET(DE100_18!$H$37,ROWS($H$37:H71)-1,COLUMNS($H$37:H71)-1),"") -> 1.7 | G57: =IF(OFFSET(DE100_18!$I$37,ROWS($I$37:I71)-1,COLUMNS($I$37:I71)-1)<>"",OFFSET(DE100_18!$I$37,ROWS($I$37:I71)-1,COLUMNS($I$37:I71)-1),"") -> 17 | H57: =IF(OFFSET(DE100_18!$J$37,ROWS($J$37:J71)-1,COLUMNS($J$37:J71)-1)<>"",OFFSET(DE100_18!$J$37,ROWS($J$37:J71)-1,COLUMNS($J$37:J71)-1),"") -> 3.3 | I57: =IF(OFFSET(DE100_18!$K$37,ROWS($K$37:K71)-1,COLUMNS($K$37:K71)-1)<>"",OFFSET(DE100_18!$K$37,ROWS($K$37:K71)-1,COLUMNS($K$37:K71)-1),"") -> 2 | J57: =IF(OFFSET(DE100_18!$L$37,ROWS($L$37:L71)-1,COLUMNS($L$37:L71)-1)<>"",OFFSET(DE100_18!$L$37,ROWS($L$37:L71)-1,COLUMNS($L$37:L71)-1),"") -> 5 | K57: =IF(OFFSET(DE100_18!$M$37,ROWS($M$37:M71)-1,COLUMNS($M$37:M71)-1)<>"",OFFSET(DE100_18!$M$37,ROWS($M$37:M71)-1,COLUMNS($M$37:M71)-1),"") -> 0.0409 | L57: =IF(OFFSET(DE100_18!$P$37,ROWS($P$37:P71)-1,COLUMNS($P$37:P71)-1)<>"",OFFSET(DE100_18!$P$37,ROWS($P$37:P71)-1,COLUMNS($P$37:P71)-1),"") -> 229.893397 | M57: =IF(OFFSET(DE100_18!$R$37,ROWS($R$37:R71)-1,COLUMNS($R$37:R71)-1)<>"",OFFSET(DE100_18!$R$37,ROWS($R$37:R71)-1,COLUMNS($R$37:R71)-1),"") -> 
A58: =IF(OFFSET(DE100_18!$C$37,ROWS($C$37:C72)-1,COLUMNS($C$37:C72)-1)<>"",OFFSET(DE100_18!$C$37,ROWS($C$37:C72)-1,COLUMNS($C$37:C72)-1),"") -> 7 | B58: =IF(OFFSET(DE100_18!$D$37,ROWS($D$37:D72)-1,COLUMNS($D$37:D72)-1)<>"",OFFSET(DE100_18!$D$37,ROWS($D$37:D72)-1,COLUMNS($D$37:D72)-1),"") -> 1 | C58: =IF(OFFSET(DE100_18!$E$37,ROWS($E$37:E72)-1,COLUMNS($E$37:E72)-1)<>"",OFFSET(DE100_18!$E$37,ROWS($E$37:E72)-1,COLUMNS($E$37:E72)-1),"") -> 57150 | D58: =IF(OFFSET(DE100_18!$F$37,ROWS($F$37:F72)-1,COLUMNS($F$37:F72)-1)<>"",OFFSET(DE100_18!$F$37,ROWS($F$37:F72)-1,COLUMNS($F$37:F72)-1),"") -> Lt | E58: =IF(OFFSET(DE100_18!$G$37,ROWS($G$37:G72)-1,COLUMNS($G$37:G72)-1)<>"",OFFSET(DE100_18!$G$37,ROWS($G$37:G72)-1,COLUMNS($G$37:G72)-1),"") -> 20 | F58: =IF(OFFSET(DE100_18!$H$37,ROWS($H$37:H72)-1,COLUMNS($H$37:H72)-1)<>"",OFFSET(DE100_18!$H$37,ROWS($H$37:H72)-1,COLUMNS($H$37:H72)-1),"") -> 2 | G58: =IF(OFFSET(DE100_18!$I$37,ROWS($I$37:I72)-1,COLUMNS($I$37:I72)-1)<>"",OFFSET(DE100_18!$I$37,ROWS($I$37:I72)-1,COLUMNS($I$37:I72)-1),"") -> 20 | H58: =IF(OFFSET(DE100_18!$J$37,ROWS($J$37:J72)-1,COLUMNS($J$37:J72)-1)<>"",OFFSET(DE100_18!$J$37,ROWS($J$37:J72)-1,COLUMNS($J$37:J72)-1),"") -> 4.9 | I58: =IF(OFFSET(DE100_18!$K$37,ROWS($K$37:K72)-1,COLUMNS($K$37:K72)-1)<>"",OFFSET(DE100_18!$K$37,ROWS($K$37:K72)-1,COLUMNS($K$37:K72)-1),"") -> 2 | J58: =IF(OFFSET(DE100_18!$L$37,ROWS($L$37:L72)-1,COLUMNS($L$37:L72)-1)<>"",OFFSET(DE100_18!$L$37,ROWS($L$37:L72)-1,COLUMNS($L$37:L72)-1),"") -> 5 | K58: =IF(OFFSET(DE100_18!$M$37,ROWS($M$37:M72)-1,COLUMNS($M$37:M72)-1)<>"",OFFSET(DE100_18!$M$37,ROWS($M$37:M72)-1,COLUMNS($M$37:M72)-1),"") -> 0.0409 | L58: =IF(OFFSET(DE100_18!$P$37,ROWS($P$37:P72)-1,COLUMNS($P$37:P72)-1)<>"",OFFSET(DE100_18!$P$37,ROWS($P$37:P72)-1,COLUMNS($P$37:P72)-1),"") -> 258.751781 | M58: =IF(OFFSET(DE100_18!$R$37,ROWS($R$37:R72)-1,COLUMNS($R$37:R72)-1)<>"",OFFSET(DE100_18!$R$37,ROWS($R$37:R72)-1,COLUMNS($R$37:R72)-1),"") -> 
A59: =IF(OFFSET(DE100_18!$C$37,ROWS($C$37:C73)-1,COLUMNS($C$37:C73)-1)<>"",OFFSET(DE100_18!$C$37,ROWS($C$37:C73)-1,COLUMNS($C$37:C73)-1),"") -> 7 | B59: =IF(OFFSET(DE100_18!$D$37,ROWS($D$37:D73)-1,COLUMNS($D$37:D73)-1)<>"",OFFSET(DE100_18!$D$37,ROWS($D$37:D73)-1,COLUMNS($D$37:D73)-1),"") -> 1 | C59: =IF(OFFSET(DE100_18!$E$37,ROWS($E$37:E73)-1,COLUMNS($E$37:E73)-1)<>"",OFFSET(DE100_18!$E$37,ROWS($E$37:E73)-1,COLUMNS($E$37:E73)-1),"") -> 57175 | D59: =IF(OFFSET(DE100_18!$F$37,ROWS($F$37:F73)-1,COLUMNS($F$37:F73)-1)<>"",OFFSET(DE100_18!$F$37,ROWS($F$37:F73)-1,COLUMNS($F$37:F73)-1),"") -> Lt | E59: =IF(OFFSET(DE100_18!$G$37,ROWS($G$37:G73)-1,COLUMNS($G$37:G73)-1)<>"",OFFSET(DE100_18!$G$37,ROWS($G$37:G73)-1,COLUMNS($G$37:G73)-1),"") -> 20 | F59: =IF(OFFSET(DE100_18!$H$37,ROWS($H$37:H73)-1,COLUMNS($H$37:H73)-1)<>"",OFFSET(DE100_18!$H$37,ROWS($H$37:H73)-1,COLUMNS($H$37:H73)-1),"") -> 2 | G59: =IF(OFFSET(DE100_18!$I$37,ROWS($I$37:I73)-1,COLUMNS($I$37:I73)-1)<>"",OFFSET(DE100_18!$I$37,ROWS($I$37:I73)-1,COLUMNS($I$37:I73)-1),"") -> 20 | H59: =IF(OFFSET(DE100_18!$J$37,ROWS($J$37:J73)-1,COLUMNS($J$37:J73)-1)<>"",OFFSET(DE100_18!$J$37,ROWS($J$37:J73)-1,COLUMNS($J$37:J73)-1),"") -> 5 | I59: =IF(OFFSET(DE100_18!$K$37,ROWS($K$37:K73)-1,COLUMNS($K$37:K73)-1)<>"",OFFSET(DE100_18!$K$37,ROWS($K$37:K73)-1,COLUMNS($K$37:K73)-1),"") -> 5 | J59: =IF(OFFSET(DE100_18!$L$37,ROWS($L$37:L73)-1,COLUMNS($L$37:L73)-1)<>"",OFFSET(DE100_18!$L$37,ROWS($L$37:L73)-1,COLUMNS($L$37:L73)-1),"") -> 2 | K59: =IF(OFFSET(DE100_18!$M$37,ROWS($M$37:M73)-1,COLUMNS($M$37:M73)-1)<>"",OFFSET(DE100_18!$M$37,ROWS($M$37:M73)-1,COLUMNS($M$37:M73)-1),"") -> 0.0164453 | L59: =IF(OFFSET(DE100_18!$P$37,ROWS($P$37:P73)-1,COLUMNS($P$37:P73)-1)<>"",OFFSET(DE100_18!$P$37,ROWS($P$37:P73)-1,COLUMNS($P$37:P73)-1),"") -> 438.9091875 | M59: =IF(OFFSET(DE100_18!$R$37,ROWS($R$37:R73)-1,COLUMNS($R$37:R73)-1)<>"",OFFSET(DE100_18!$R$37,ROWS($R$37:R73)-1,COLUMNS($R$37:R73)-1),"") -> 
